Workbook

Sheet Parametres
A1: CALCUL SACEM
A3: ANNEE | B3: 2022 | D3: Association MONASSO - MASMAC
A5: TABLEAU TAUX SACEM - Protocole SMA | C5: Etablissement de concerts | E5: Festival | G5: Séances occasionnelles
C6: Abattements | D6: Taux | E6: Abattements | F6: Taux | G6: Abattements | H6: Taux
A7: RECETTES ENTREES HT (BILLETTERIE) | B7: Taux général | D7: 0.11 | F7: 0.11 | H7: 0.11
B8: Abattement Contrat | C8: 0.2 | D8: =D7*(1-C8) -> 0.088 | E8: 0.2 | F8: =F7*(1-E8) -> 0.088 | G8: 0.2 | H8: =H7*(1-G8) -> 0.088
B9: Abattement Protocolaire SMA | C9: 0.12 | D9: =D8*(1-C9) -> 0.07744 | E9: 0.09 | F9: =F8*(1-E9) -> 0.08008 | G9: 0.1 | H9: =H8*(1-G9) -> 0.0792
B10: Abattement Commission paritaire SMA | C10: 0 | D10: =D9*(1-C10) -> 0.07744 | E10: 0 | F10: =F9*(1-E10) -> 0.08008 | G10: 0 | H10: =H9*(1-G10) -> 0.0792
B11: Majoration SMA relative aux offerts au delà de | C11: 0.1 | E11: 0.1 | G11: 0.05
C13: Etablissement de concerts | E13: Festival | G13: Séances occasionnelles
C14: Abattements | D14: Taux | E14: Abattements | F14: Taux | G14: Abattements | H14: Taux
A15: RECETTES ANNEXES HT (BAR) | B15: Taux général | D15: 0.11 | F15: 0.11 | H15: 0.11
B16: Abattement Contrat | C16: 0.2 | D16: =D15*(1-C16) -> 0.088 | E16: 0.2 | F16: =F15*(1-E16) -> 0.088 | G16: 0.2 | H16: =H15*(1-G16) -> 0.088
B17: Abattement Assiette Recettes Annexes | C17: 0.5 | D17: =D16*(1-C17) -> 0.044 | E17: 0.5 | F17: =F16*(1-E17) -> 0.044 | G17: 0.5 | H17: =H16*(1-G17) -> 0.044
B18: Abattement Protocolaire SMA | C18: 0.12 | D18: =D17*(1-C18) -> 0.03872 | E18: 0.09 | F18: =F17*(1-E18) -> 0.04004 | G18: 0.1 | H18: =H17*(1-G18) -> 0.0396
B19: Abattement Recettes Annexes SMA | C19: 0.13 | D19: =D18*(1-C19) -> 0.0336864 | E19: 0.2 | F19: =F18*(1-E19) -> 0.032032 | G19: 0 | H19: =H18*(1-G19) -> 0.0396
B20: Abattement Commission paritaire SMA | C20: 0 | D20: =D19*(1-C20) -> 0.0336864 | E20: 0 | F20: =F19*(1-E20) -> 0.032032 | G20: 0 | H20: =H19*(1-G20) -> 0.0396
B21: Majoration SMA relative aux offerts au delà de | C21: 0.1 | E21: 0.1 | G21: 0.05
C23: Etablissement de concerts
C24: Abattements | D24: Taux
A25: FORFAIT MINIMUM | B25: Forfait au tarif général | D25: 61.88
B26: Abattement Contrat | C26: 0.2 | D26: =D25*(1-C26) -> 49.504
B27: Abattement Protocolaire SMA | C27: 0.12 | D27: =ROUND(D26*(1-C27),2) -> 43.56
B28: Abattement Commission paritaire SMA | C28: 0 | D28: =ROUND(D27*(1-C28),2) -> 43.56
C31: Majoration relative aux offerts
C32: 0.05 | D32: 0.1 | E32: 0.025
C33: 0.15 | E33: 0.05
C34: 0.2 | E34: 0.1
C35: 0.2 | E35: 0.15 | F35: plafond
C38: Etablissement de concerts | E38: Festival | G38: Séances occasionnelles
C39: Abattements | E39: Abattements | G39: Abattements
A40: DEPENSES ENGAGEES HT | B40: Majoration du budget artistique HT | C40: Selon jauge de la salle | E40: 0.35 | G40: 0.25 | H40: ="+ frais tech & pub" -> + frais tech & pub
B41: Abattement remise copies des Factures artistiques | C41: 0.1 | E41: 0.1 | G41: 0.1
B42: Abattement Fais d'approche (transports inclus) | C42: 0.1 | E42: 0.1 | G42: 0.1
B46: MAJORATION FRAIS ARTISTIQUES JAUGE DE LA SALLE
B47: Jauge de la salle : | C47: jusqu'à | D47: 200 | E47: 0.2
B48: Jauge de la salle : | C48: 201 | D48: 400 | E48: 0.25
B49: Jauge de la salle : | C49: 401 | D49: 700 | E49: 0.3
B50: Jauge de la salle : | C50: plus de | D50: 700 | E50: 0.35
D51: Festivals | E51: 0.35
D52: Séance occasionnelle | E52: 0.25
B56: FACTURATION
B57: TVA | C57: 0.1
B58: AGESSA SS | C58: 0.01
B59: AGESSA CFP | C59: 0.001
A62: typedeseance
A63: payant
A64: gratuit
A67: typeorganisateur
A68: ETABLISSEMENT DE CONCERTS
A69: FESTIVAL
A70: ORGANISTEUR DE SEANCES OCCASIONNELLES
A73: Mois
A74: Janvier
A75: Février
A76: Mars
A77: Avril
A78: Mai
A79: Juin
A80: Juillet
A81: Août
A82: Septembre
A83: Octobre
A84: Novembre
A85: Décembre
A88: Redevancesur
A89: RECETTES
A90: DEPENSES
A91: FORFAIT MINI
A94: ListSalle | B94: ListJaugeSalle
A95: PLEIN AIR | B95: 200000
A96: STADE DE France | B96: 150000
A97: VELODROME | B97: 100000
A98: ARENA | B98: 50000
A99: ZENITH | B99: 20000
A100: OLYMPIA | B100: 3000
A101: MA SMAC | B101: 1000
A102: MON CLUB 1 | B102: 750
A103: MON CLUB 2 | B103: 450
A104: MON CLUB 3 | B104: 250
A105: MON CLUB 4 | B105: 150
A106: MON SALON | B106: 50
A107: MES TOILETTES | B107: 5
A109: WOODSTOCK | B109: 500000
A110: WORLD FLUTE DE PAN FESTIVAL | B110: 180
A130: OuiNon
A131: Oui
A132: Non

Sheet 01-Saisie Recettes&Depenses
A1: Nom de l'adhérent SMA | C1: =Parametres!D3 -> Association MONASSO - MASMAC | AH1: V 1.0
A2: ETABLISSEMENT DE CONCERTS
A4: ETAT DES RECETTES REALISEES ET DEPENSES ENGAGEES (HT)
A6: Mois de | B6: Janvier | D6: Année | E6: =Parametres!B3 -> 2022 | F6: Nbre dates | G6: =COUNTA(A10:A135) -> 1
A8: Dates | B8: Nom de la Salle (ou Nom du festival) | C8: Jauge de la salle | D8: Nom des orchestres, groupes ou artistes | E8: Programme joint: oui/non ou n° de programme | F8: Dépenses Engagées | O8: Type de séance | P8: Recettes Entrées | X8: Recettes Annexes | AB8: Calcul redevance sur | AC8: Montant de la redevance
F9: Montants cession HT ou engagement | G9: Facture ou Fiche de paie fournie | H9: Frais d'approche inclus | I9: Montants Abattus | J9: Total Frais Artistiques | K9: Taux de majoration/ dépenses | L9: Calcul Dépenses Engagées | M9: Taux redevance/ Dépenses | N9: Calcul redevance/ Dépenses | P9: Recettes Billetterie HT | Q9: Nbre Total d'Entrées | R9: Nbre Entrées Payantes | S9: Nbre Entrées Gratuites | T9: % Entrées Gratuites | U9: % Majoration/ Entrées gratuites | V9: Taux redevance/ Billetterie | W9: Calcul redevance/ Billetterie | X9: Recettes Buvette HT | Y9: Autres recettes Annexes HT | Z9: Taux redevance /Recettes Annexes | AA9: Calcul redevance /Recettes Annexes | AC9: Montant Redevance HT | AD9: TVA | AE9: Redevance AGESSA SS | AF9: Redevance AGESSA CFP | AG9: TOTAL Redevance TTC
A10: 2018-01-21 | B10: MON CLUB 2 | C10: =IF(B10=0,"",VLOOKUP(B10,ListJaugeSalle,2,FALSE)) -> 450 | D10: BOB MARLEY | E10: Oui | F10: 1900 | G10: Oui | H10: Oui | I10: =IF(F10=0,"",IF(A$2=Parametres!A$68,IF(G10="Oui",IF(H10="Oui",F10-F10*Parametres!C$41-(F10-F10*Parametres!C$41)*Parametres!C$42,IF(H10="Non",F10-F10*Parametres!C$41,"")),IF(G10="Non",IF(H10="Oui",F10-F10*Parametres!C$42,IF(H10="Non",F10,"")))),IF(A$2=Parametres!A$69,IF(G10="Oui",IF(H10="Oui",F10-F10*Parametres!C$41-(F10-F10*Parametres!C$41)*Parametres!C$42,IF(H10="Non",F10-F10*Parametres!E$41,"")),IF(G10="Non",IF(H10="Oui",F10-F10*Parametres!E$42,IF(H10="Non",F10,"")))),IF(A$2=Parametres!A$70,IF(G10="Oui",IF(H10="Oui",F10-F10*Parametres!C$41-(F10-F10*Parametres!C$41)*Parametres!C$42,IF(H10="Non",F10-F10*Parametres!G$41,"")),IF(G10="Non",IF(H10="Oui",F10-F10*Parametres!G$42,IF(H10="Non",F10,"")))),"")))) -> 1539 | J10: =IF(B10=0,"",SUM(I10:I15)) -> 99577.5687 | K10: =IF(C10="","",IF(A$2=Parametres!A$70,Parametres!E$52,IF(A$2=Parametres!A$69,Parametres!E$51,IF(C10<=Parametres!D$47,Parametres!E$47,IF(C10<=Parametres!D$48,Parametres!E$48,IF(C10<=Parametres!D$49,Parametres!E$49,IF(C10>Parametres!D$50,Parametres!E$50,""))))))) -> 0.3 | L10: =IF(A$2=Parametres!A$70,Parametres!G$40,IF(B10="","",J10+J10*K10)) -> 129450.8393 | M10: =IF(B10=0,"",IF(A$2=Parametres!A$68,Parametres!D$10,IF(A$2=Parametres!A$69,Parametres!F$10,IF(A$2=Parametres!A$70,Parametres!H$10,"")))) -> 0.07744 | N10: =IF(B10=0,"",M10*L10) -> 10024.673 | O10: =IF(P10>0,"payant",IF(B10=0,"","gratuit")) -> payant | P10: 250000 | Q10: =IF(B10=0,"",R10+S10) -> 830 | R10: 800 | S10: 30 | T10: =IF(O10="gratuit","",IF(Q10=0,0,IF(Q10="","",S10/R10))) -> 0.0375 | U10: =IF(O10="gratuit","",IF(B10=0,"",IF(A$2=Parametres!A$68,IF(T10<Parametres!C$21,0,IF(T10<Parametres!D$32,Parametres!E$32,IF(T10<Parametres!C$33,Parametres!E$33,IF(T10<Parametres!C$34,Parametres!E$34,Parametres!E$35)))), IF(A$2=Parametres!A$69,IF(T10<Parametres!E$21,0,IF(T10<Parametres!D$32,Parametres!E$32,IF(T10<Parametres!C$33,Parametres!E$33,IF(T10<Parametres!C$34,Parametres!E$34,Parametres!E$35)))), IF(A$2=Parametres!A$70,IF(T10<Parametres!G$21,0,IF(T10<Parametres!D$32,Parametres!E$32,IF(T10<Parametres!C$33,Parametres!E$33,IF(T10<Parametres!C$34,Parametres!E$34,Parametres!E$35))))))))) -> 0 | V10: =IF(B10=0,"",IF(A$2=Parametres!A$68,Parametres!D$10,IF(A$2=Parametres!A$69,Parametres!F$10,IF(A$2=Parametres!A$70,Parametres!H$10,"")))) -> 0.07744 | W10: =IF(B10=0,"",IF(O10="gratuit",P10*V10,P10*V10+(P10*V10)*U10)) -> 19360 | X10: 1800 | Y10: 0 | Z10: =IF(B10=0,"",IF(A$2=Parametres!A$68,Parametres!D$20,IF(A$2=Parametres!A$69,Parametres!F$20,IF(A$2=Parametres!A$70,Parametres!H$20,"")))) -> 0.0336864 | AA10: =IF(B10=0,"",(X10+Y10)*Z10) -> 60.63552 | AB10: =IF(A$2=Parametres!A$69,"",IF(B10=0,"",IF(N10>(W10+AA10),IF(N10<Parametres!D$28,"FORFAIT MINI","DEPENSES"),IF((W10+AA10)<Parametres!D$28,"FORFAIT MINI","RECETTES")))) -> RECETTES | AC10: =IF(A$2=Parametres!A$69,"",IF(B10=0,"",ROUND(IF(N10>(W10+AA10),IF(N10<Parametres!D$28,Parametres!D$28,N10),IF((W10+AA10)<Parametres!D$28,Parametres!D$28,(W10+AA10))),2))) -> 19420.64 | AD10: =IF(A$2=Parametres!A$69,"",IF(B10=0,"",ROUND(AC10*Parametres!C$57,2))) -> 1942.06 | AE10: =IF(A$2=Parametres!A$69,"",IF(B10=0,"",ROUND(AC10*Parametres!C$58,2))) -> 194.21 | AF10: =IF(A$2=Parametres!A$69,"",IF(B10=0,"",ROUND(AC10*Parametres!C$59,2))) -> 19.42 | AG10: =IF(A$2=Parametres!A$69,"",IF(B10=0,"",SUM(ROUND(AC10,2),ROUND(AD10,2),ROUND(AE10,2),ROUND(AF10,2)))) -> 21576.33
D11: NIRVANA | E11: Oui | F11: 2500 | G11: Oui | H11: Oui | I11: =IF(F11=0,"",IF(A$2=Parametres!A$68,IF(G11="Oui",IF(H11="Oui",F11-F11*Parametres!C$41-(F11-F11*Parametres!C$41)*Parametres!C$42,IF(H11="Non",F11-F11*Parametres!C$41,"")),IF(G11="Non",IF(H11="Oui",F11-F11*Parametres!C$42,IF(H11="Non",F11,"")))),IF(A$2=Parametres!A$69,IF(G11="Oui",IF(H11="Oui",F11-F11*Parametres!C$41-(F11-F11*Parametres!C$41)*Parametres!C$42,IF(H11="Non",F11-F11*Parametres!E$41,"")),IF(G11="Non",IF(H11="Oui",F11-F11*Parametres!E$42,IF(H11="Non",F11,"")))),IF(A$2=Parametres!A$70,IF(G11="Oui",IF(H11="Oui",F11-F11*Parametres!C$41-(F11-F11*Parametres!C$41)*Parametres!C$42,IF(H11="Non",F11-F11*Parametres!G$41,"")),IF(G11="Non",IF(H11="Oui",F11-F11*Parametres!G$42,IF(H11="Non",F11,"")))),"")))) -> 2025 | J11: =IF(B11=0,"",SUM(I10:I15)) ->  | K11: =IF(C11="","",IF(A$2=Parametres!A$70,Parametres!E$52,IF(A$2=Parametres!A$69,Parametres!E$51,IF(C11<=Parametres!D$47,Parametres!E$47,IF(C11<=Parametres!D$48,Parametres!E$48,IF(C11<=Parametres!D$49,Parametres!E$49,IF(C11>Parametres!D$50,Parametres!E$50,""))))))) ->  | L11: =IF(A$2=Parametres!A$70,Parametres!G$40,IF(B11="","",J11+J11*K11)) ->  | M11: =IF(B11=0,"",IF(A$2=Parametres!A$68,Parametres!D$10,IF(A$2=Parametres!A$69,Parametres!F$9,IF(A$2=Parametres!A$70,Parametres!H$9,"")))) ->  | T11: =IF(O11="gratuit","",IF(Q11=0,0,IF(Q11="","",S11/R11))) ->  | U11: =IF(O11="gratuit","",IF(B11=0,"",IF(A$2=Parametres!A$68,IF(T11<Parametres!C$21,0,IF(T11<Parametres!D$32,Parametres!E$32,IF(T11<Parametres!C$33,Parametres!E$33,IF(T11<Parametres!C$34,Parametres!E$34,Parametres!E$35)))), IF(A$2=Parametres!A$69,IF(T11<Parametres!E$21,0,IF(T11<Parametres!D$32,Parametres!E$32,IF(T11<Parametres!C$33,Parametres!E$33,IF(T11<Parametres!C$34,Parametres!E$34,Parametres!E$35)))), IF(A$2=Parametres!A$70,IF(T11<Parametres!G$21,0,IF(T11<Parametres!D$32,Parametres!E$32,IF(T11<Parametres!C$33,Parametres!E$33,IF(T11<Parametres!C$34,Parametres!E$34,Parametres!E$35))))))))) ->  | V11: =IF(B11=0,"",IF(A$2=Parametres!A$68,Parametres!D$10,IF(A$2=Parametres!A$69,Parametres!F$10,IF(A$2=Parametres!A$70,Parametres!H$10,"")))) ->  | W11: =IF(B11=0,"",IF(O11="gratuit",P11*V11,P11*V11+(P11*V11)*U11)) ->  | Z11: =IF(B11=0,"",IF(A$2=Parametres!A$68,Parametres!D$20,IF(A$2=Parametres!A$69,Parametres!F$20,IF(A$2=Parametres!A$70,Parametres!H$20,"")))) ->  | AB11: =IF(A$2=Parametres!A$69,"",IF(B11=0,"",IF(N11>(W11+AA11),IF(N11<Parametres!D$28,"FORFAIT MINI","DEPENSES"),IF((W11+AA11)<Parametres!D$28,"FORFAIT MINI","RECETTES")))) ->  | AC11: =IF(A$2=Parametres!A$69,"",IF(B11=0,"",ROUND(IF(N11>(W11+AA11),IF(N11<Parametres!D$28,Parametres!D$28,N11),IF((W11+AA11)<Parametres!D$28,Parametres!D$28,(W11+AA11))),2))) ->  | AD11: =IF(A$2=Parametres!A$69,"",IF(B11=0,"",ROUND(AC11*Parametres!C$57,2))) ->  | AE11: =IF(A$2=Parametres!A$69,"",IF(B11=0,"",ROUND(AC11*Parametres!C$58,2))) ->  | AF11: =IF(A$2=Parametres!A$69,"",IF(B11=0,"",ROUND(AC11*Parametres!C$59,2))) ->  | AG11: =IF(A$2=Parametres!A$69,"",IF(B11=0,"",SUM(ROUND(AC11,2),ROUND(AD11,2),ROUND(AE11,2),ROUND(AF11,2)))) -> 
D12: JIMMY HENDRIX | E12: Oui | F12: 2400 | G12: Oui | H12: Oui | I12: =IF(F12=0,"",IF(A$2=Parametres!A$68,IF(G12="Oui",IF(H12="Oui",F12-F12*Parametres!C$41-(F12-F12*Parametres!C$41)*Parametres!C$42,IF(H12="Non",F12-F12*Parametres!C$41,"")),IF(G12="Non",IF(H12="Oui",F12-F12*Parametres!C$42,IF(H12="Non",F12,"")))),IF(A$2=Parametres!A$69,IF(G12="Oui",IF(H12="Oui",F12-F12*Parametres!C$41-(F12-F12*Parametres!C$41)*Parametres!C$42,IF(H12="Non",F12-F12*Parametres!E$41,"")),IF(G12="Non",IF(H12="Oui",F12-F12*Parametres!E$42,IF(H12="Non",F12,"")))),IF(A$2=Parametres!A$70,IF(G12="Oui",IF(H12="Oui",F12-F12*Parametres!C$41-(F12-F12*Parametres!C$41)*Parametres!C$42,IF(H12="Non",F12-F12*Parametres!G$41,"")),IF(G12="Non",IF(H12="Oui",F12-F12*Parametres!G$42,IF(H12="Non",F12,"")))),"")))) -> 1944 | J12: =IF(B12=0,"",(I10:I15)) ->  | K12: =IF(C12="","",IF(A$2=Parametres!A$70,Parametres!E$52,IF(A$2=Parametres!A$69,Parametres!E$51,IF(C12<=Parametres!D$47,Parametres!E$47,IF(C12<=Parametres!D$48,Parametres!E$48,IF(C12<=Parametres!D$49,Parametres!E$49,IF(C12>Parametres!D$50,Parametres!E$50,""))))))) ->  | L12: =IF(A$2=Parametres!A$70,Parametres!G$40,IF(B12="","",J12+J12*K12)) ->  | M12: =IF(B12=0,"",IF(A$2=Parametres!A$68,Parametres!D$10,IF(A$2=Parametres!A$69,Parametres!F$9,IF(A$2=Parametres!A$70,Parametres!H$9,"")))) ->  | U12: =IF(O12="gratuit","",IF(B12=0,"",IF(A$2=Parametres!A$68,IF(T12<Parametres!C$21,0,IF(T12<Parametres!D$32,Parametres!E$32,IF(T12<Parametres!C$33,Parametres!E$33,IF(T12<Parametres!C$34,Parametres!E$34,Parametres!E$35)))), IF(A$2=Parametres!A$69,IF(T12<Parametres!E$21,0,IF(T12<Parametres!D$32,Parametres!E$32,IF(T12<Parametres!C$33,Parametres!E$33,IF(T12<Parametres!C$34,Parametres!E$34,Parametres!E$35)))), IF(A$2=Parametres!A$70,IF(T12<Parametres!G$21,0,IF(T12<Parametres!D$32,Parametres!E$32,IF(T12<Parametres!C$33,Parametres!E$33,IF(T12<Parametres!C$34,Parametres!E$34,Parametres!E$35))))))))) ->  | V12: =IF(B12=0,"",IF(A$2=Parametres!A$68,Parametres!D$10,IF(A$2=Parametres!A$69,Parametres!F$10,IF(A$2=Parametres!A$70,Parametres!H$10,"")))) ->  | Z12: =IF(B12=0,"",IF(A$2=Parametres!A$68,Parametres!D$20,IF(A$2=Parametres!A$69,Parametres!F$20,IF(A$2=Parametres!A$70,Parametres!H$20,"")))) ->  | AB12: =IF(A$2=Parametres!A$69,"",IF(B12=0,"",IF(N12>(W12+AA12),IF(N12<Parametres!D$28,"FORFAIT MINI","DEPENSES"),IF((W12+AA12)<Parametres!D$28,"FORFAIT MINI","RECETTES")))) ->  | AC12: =IF(A$2=Parametres!A$69,"",IF(B12=0,"",ROUND(IF(N12>(W12+AA12),IF(N12<Parametres!D$28,Parametres!D$28,N12),IF((W12+AA12)<Parametres!D$28,Parametres!D$28,(W12+AA12))),2))) ->  | AD12: =IF(A$2=Parametres!A$69,"",IF(B12=0,"",ROUND(AC12*Parametres!C$57,2))) ->  | AE12: =IF(A$2=Parametres!A$69,"",IF(B12=0,"",ROUND(AC12*Parametres!C$58,2))) ->  | AF12: =IF(A$2=Parametres!A$69,"",IF(B12=0,"",ROUND(AC12*Parametres!C$59,2))) ->  | AG12: =IF(A$2=Parametres!A$69,"",IF(B12=0,"",SUM(ROUND(AC12,2),ROUND(AD12,2),ROUND(AE12,2),ROUND(AF12,2)))) -> 
D13: SERGE GAINSBOURG | E13: 12525732 | F13: 2135.27 | G13: Oui | H13: Oui | I13: =IF(F13=0,"",IF(A$2=Parametres!A$68,IF(G13="Oui",IF(H13="Oui",F13-F13*Parametres!C$41-(F13-F13*Parametres!C$41)*Parametres!C$42,IF(H13="Non",F13-F13*Parametres!C$41,"")),IF(G13="Non",IF(H13="Oui",F13-F13*Parametres!C$42,IF(H13="Non",F13,"")))),IF(A$2=Parametres!A$69,IF(G13="Oui",IF(H13="Oui",F13-F13*Parametres!C$41-(F13-F13*Parametres!C$41)*Parametres!C$42,IF(H13="Non",F13-F13*Parametres!E$41,"")),IF(G13="Non",IF(H13="Oui",F13-F13*Parametres!E$42,IF(H13="Non",F13,"")))),IF(A$2=Parametres!A$70,IF(G13="Oui",IF(H13="Oui",F13-F13*Parametres!C$41-(F13-F13*Parametres!C$41)*Parametres!C$42,IF(H13="Non",F13-F13*Parametres!G$41,"")),IF(G13="Non",IF(H13="Oui",F13-F13*Parametres!G$42,IF(H13="Non",F13,"")))),"")))) -> 1729.5687 | J13: =IF(B13=0,"",SUM(I10:I15)) ->  | K13: =IF(C13="","",IF(A$2=Parametres!A$70,Parametres!E$52,IF(A$2=Parametres!A$69,Parametres!E$51,IF(C13<=Parametres!D$47,Parametres!E$47,IF(C13<=Parametres!D$48,Parametres!E$48,IF(C13<=Parametres!D$49,Parametres!E$49,IF(C13>Parametres!D$50,Parametres!E$50,""))))))) ->  | L13: =IF(A$2=Parametres!A$70,Parametres!G$40,IF(B13="","",J13+J13*K13)) ->  | M13: =IF(B13=0,"",IF(A$2=Parametres!A$68,Parametres!D$10,IF(A$2=Parametres!A$69,Parametres!F$9,IF(A$2=Parametres!A$70,Parametres!H$9,"")))) ->  | U13: =IF(O13="gratuit","",IF(B13=0,"",IF(A$2=Parametres!A$68,IF(T13<Parametres!C$21,0,IF(T13<Parametres!D$32,Parametres!E$32,IF(T13<Parametres!C$33,Parametres!E$33,IF(T13<Parametres!C$34,Parametres!E$34,Parametres!E$35)))), IF(A$2=Parametres!A$69,IF(T13<Parametres!E$21,0,IF(T13<Parametres!D$32,Parametres!E$32,IF(T13<Parametres!C$33,Parametres!E$33,IF(T13<Parametres!C$34,Parametres!E$34,Parametres!E$35)))), IF(A$2=Parametres!A$70,IF(T13<Parametres!G$21,0,IF(T13<Parametres!D$32,Parametres!E$32,IF(T13<Parametres!C$33,Parametres!E$33,IF(T13<Parametres!C$34,Parametres!E$34,Parametres!E$35))))))))) ->  | V13: =IF(B13=0,"",IF(A$2=Parametres!A$68,Parametres!D$10,IF(A$2=Parametres!A$69,Parametres!F$10,IF(A$2=Parametres!A$70,Parametres!H$10,"")))) ->  | Z13: =IF(B13=0,"",IF(A$2=Parametres!A$68,Parametres!D$20,IF(A$2=Parametres!A$69,Parametres!F$20,IF(A$2=Parametres!A$70,Parametres!H$20,"")))) ->  | AB13: =IF(A$2=Parametres!A$69,"",IF(B13=0,"",IF(N13>(W13+AA13),IF(N13<Parametres!D$28,"FORFAIT MINI","DEPENSES"),IF((W13+AA13)<Parametres!D$28,"FORFAIT MINI","RECETTES")))) ->  | AC13: =IF(A$2=Parametres!A$69,"",IF(B13=0,"",ROUND(IF(N13>(W13+AA13),IF(N13<Parametres!D$28,Parametres!D$28,N13),IF((W13+AA13)<Parametres!D$28,Parametres!D$28,(W13+AA13))),2))) ->  | AD13: =IF(A$2=Parametres!A$69,"",IF(B13=0,"",ROUND(AC13*Parametres!C$57,2))) ->  | AE13: =IF(A$2=Parametres!A$69,"",IF(B13=0,"",ROUND(AC13*Parametres!C$58,2))) ->  | AF13: =IF(A$2=Parametres!A$69,"",IF(B13=0,"",ROUND(AC13*Parametres!C$59,2))) ->  | AG13: =IF(A$2=Parametres!A$69,"",IF(B13=0,"",SUM(ROUND(AC13,2),ROUND(AD13,2),ROUND(AE13,2),ROUND(AF13,2)))) -> 
D14: JACQUES BREL | E14: Oui | F14: 2000 | G14: Oui | H14: Oui | I14: =IF(F14=0,"",IF(A$2=Parametres!A$68,IF(G14="Oui",IF(H14="Oui",F14-F14*Parametres!C$41-(F14-F14*Parametres!C$41)*Parametres!C$42,IF(H14="Non",F14-F14*Parametres!C$41,"")),IF(G14="Non",IF(H14="Oui",F14-F14*Parametres!C$42,IF(H14="Non",F14,"")))),IF(A$2=Parametres!A$69,IF(G14="Oui",IF(H14="Oui",F14-F14*Parametres!C$41-(F14-F14*Parametres!C$41)*Parametres!C$42,IF(H14="Non",F14-F14*Parametres!E$41,"")),IF(G14="Non",IF(H14="Oui",F14-F14*Parametres!E$42,IF(H14="Non",F14,"")))),IF(A$2=Parametres!A$70,IF(G14="Oui",IF(H14="Oui",F14-F14*Parametres!C$41-(F14-F14*Parametres!C$41)*Parametres!C$42,IF(H14="Non",F14-F14*Parametres!G$41,"")),IF(G14="Non",IF(H14="Oui",F14-F14*Parametres!G$42,IF(H14="Non",F14,"")))),"")))) -> 1620 | J14: =IF(B14=0,"",SUM(I10:I15)) ->  | K14: =IF(C14="","",IF(A$2=Parametres!A$70,Parametres!E$52,IF(A$2=Parametres!A$69,Parametres!E$51,IF(C14<=Parametres!D$47,Parametres!E$47,IF(C14<=Parametres!D$48,Parametres!E$48,IF(C14<=Parametres!D$49,Parametres!E$49,IF(C14>Parametres!D$50,Parametres!E$50,""))))))) ->  | L14: =IF(A$2=Parametres!A$70,Parametres!G$40,IF(B14="","",J14+J14*K14)) ->  | M14: =IF(B14=0,"",IF(A$2=Parametres!A$68,Parametres!D$10,IF(A$2=Parametres!A$69,Parametres!F$9,IF(A$2=Parametres!A$70,Parametres!H$9,"")))) ->  | U14: =IF(O14="gratuit","",IF(B14=0,"",IF(A$2=Parametres!A$68,IF(T14<Parametres!C$21,0,IF(T14<Parametres!D$32,Parametres!E$32,IF(T14<Parametres!C$33,Parametres!E$33,IF(T14<Parametres!C$34,Parametres!E$34,Parametres!E$35)))), IF(A$2=Parametres!A$69,IF(T14<Parametres!E$21,0,IF(T14<Parametres!D$32,Parametres!E$32,IF(T14<Parametres!C$33,Parametres!E$33,IF(T14<Parametres!C$34,Parametres!E$34,Parametres!E$35)))), IF(A$2=Parametres!A$70,IF(T14<Parametres!G$21,0,IF(T14<Parametres!D$32,Parametres!E$32,IF(T14<Parametres!C$33,Parametres!E$33,IF(T14<Parametres!C$34,Parametres!E$34,Parametres!E$35))))))))) ->  | V14: =IF(B14=0,"",IF(A$2=Parametres!A$68,Parametres!D$10,IF(A$2=Parametres!A$69,Parametres!F$10,IF(A$2=Parametres!A$70,Parametres!H$10,"")))) ->  | Z14: =IF(B14=0,"",IF(A$2=Parametres!A$68,Parametres!D$20,IF(A$2=Parametres!A$69,Parametres!F$20,IF(A$2=Parametres!A$70,Parametres!H$20,"")))) ->  | AB14: =IF(A$2=Parametres!A$69,"",IF(B14=0,"",IF(N14>(W14+AA14),IF(N14<Parametres!D$28,"FORFAIT MINI","DEPENSES"),IF((W14+AA14)<Parametres!D$28,"FORFAIT MINI","RECETTES")))) ->  | AC14: =IF(A$2=Parametres!A$69,"",IF(B14=0,"",ROUND(IF(N14>(W14+AA14),IF(N14<Parametres!D$28,Parametres!D$28,N14),IF((W14+AA14)<Parametres!D$28,Parametres!D$28,(W14+AA14))),2))) ->  | AD14: =IF(A$2=Parametres!A$69,"",IF(B14=0,"",ROUND(AC14*Parametres!C$57,2))) ->  | AE14: =IF(A$2=Parametres!A$69,"",IF(B14=0,"",ROUND(AC14*Parametres!C$58,2))) ->  | AF14: =IF(A$2=Parametres!A$69,"",IF(B14=0,"",ROUND(AC14*Parametres!C$59,2))) ->  | AG14: =IF(A$2=Parametres!A$69,"",IF(B14=0,"",SUM(ROUND(AC14,2),ROUND(AD14,2),ROUND(AE14,2),ROUND(AF14,2)))) -> 
D15: MIREILLE MATHIEU | E15: Oui | F15: 112000 | G15: Oui | H15: Oui | I15: =IF(F15=0,"",IF(A$2=Parametres!A$68,IF(G15="Oui",IF(H15="Oui",F15-F15*Parametres!C$41-(F15-F15*Parametres!C$41)*Parametres!C$42,IF(H15="Non",F15-F15*Parametres!C$41,"")),IF(G15="Non",IF(H15="Oui",F15-F15*Parametres!C$42,IF(H15="Non",F15,"")))),IF(A$2=Parametres!A$69,IF(G15="Oui",IF(H15="Oui",F15-F15*Parametres!C$41-(F15-F15*Parametres!C$41)*Parametres!C$42,IF(H15="Non",F15-F15*Parametres!E$41,"")),IF(G15="Non",IF(H15="Oui",F15-F15*Parametres!E$42,IF(H15="Non",F15,"")))),IF(A$2=Parametres!A$70,IF(G15="Oui",IF(H15="Oui",F15-F15*Parametres!C$41-(F15-F15*Parametres!C$41)*Parametres!C$42,IF(H15="Non",F15-F15*Parametres!G$41,"")),IF(G15="Non",IF(H15="Oui",F15-F15*Parametres!G$42,IF(H15="Non",F15,"")))),"")))) -> 90720 | J15: =IF(B15=0,"",SUM(I10:I15)) ->  | K15: =IF(C15="","",IF(A$2=Parametres!A$70,Parametres!E$52,IF(A$2=Parametres!A$69,Parametres!E$51,IF(C15<=Parametres!D$47,Parametres!E$47,IF(C15<=Parametres!D$48,Parametres!E$48,IF(C15<=Parametres!D$49,Parametres!E$49,IF(C15>Parametres!D$50,Parametres!E$50,""))))))) ->  | L15: =IF(A$2=Parametres!A$70,Parametres!G$40,IF(B15="","",J15+J15*K15)) ->  | M15: =IF(B15=0,"",IF(A$2=Parametres!A$68,Parametres!D$10,IF(A$2=Parametres!A$69,Parametres!F$9,IF(A$2=Parametres!A$70,Parametres!H$9,"")))) ->  | U15: =IF(O15="gratuit","",IF(B15=0,"",IF(A$2=Parametres!A$68,IF(T15<Parametres!C$21,0,IF(T15<Parametres!D$32,Parametres!E$32,IF(T15<Parametres!C$33,Parametres!E$33,IF(T15<Parametres!C$34,Parametres!E$34,Parametres!E$35)))), IF(A$2=Parametres!A$69,IF(T15<Parametres!E$21,0,IF(T15<Parametres!D$32,Parametres!E$32,IF(T15<Parametres!C$33,Parametres!E$33,IF(T15<Parametres!C$34,Parametres!E$34,Parametres!E$35)))), IF(A$2=Parametres!A$70,IF(T15<Parametres!G$21,0,IF(T15<Parametres!D$32,Parametres!E$32,IF(T15<Parametres!C$33,Parametres!E$33,IF(T15<Parametres!C$34,Parametres!E$34,Parametres!E$35))))))))) ->  | V15: =IF(B15=0,"",IF(A$2=Parametres!A$68,Parametres!D$10,IF(A$2=Parametres!A$69,Parametres!F$10,IF(A$2=Parametres!A$70,Parametres!H$10,"")))) ->  | Z15: =IF(B15=0,"",IF(A$2=Parametres!A$68,Parametres!D$20,IF(A$2=Parametres!A$69,Parametres!F$20,IF(A$2=Parametres!A$70,Parametres!H$20,"")))) ->  | AB15: =IF(A$2=Parametres!A$69,"",IF(B15=0,"",IF(N15>(W15+AA15),IF(N15<Parametres!D$28,"FORFAIT MINI","DEPENSES"),IF((W15+AA15)<Parametres!D$28,"FORFAIT MINI","RECETTES")))) ->  | AC15: =IF(A$2=Parametres!A$69,"",IF(B15=0,"",ROUND(IF(N15>(W15+AA15),IF(N15<Parametres!D$28,Parametres!D$28,N15),IF((W15+AA15)<Parametres!D$28,Parametres!D$28,(W15+AA15))),2))) ->  | AD15: =IF(A$2=Parametres!A$69,"",IF(B15=0,"",ROUND(AC15*Parametres!C$57,2))) ->  | AE15: =IF(A$2=Parametres!A$69,"",IF(B15=0,"",ROUND(AC15*Parametres!C$58,2))) ->  | AF15: =IF(A$2=Parametres!A$69,"",IF(B15=0,"",ROUND(AC15*Parametres!C$59,2))) ->  | AG15: =IF(A$2=Parametres!A$69,"",IF(B15=0,"",SUM(ROUND(AC15,2),ROUND(AD15,2),ROUND(AE15,2),ROUND(AF15,2)))) -> 
C17: =IF(B17=0,"",VLOOKUP(B17,ListJaugeSalle,2,FALSE)) ->  | I17: =IF(F17=0,"",IF(A$2=Parametres!A$68,IF(G17="Oui",IF(H17="Oui",F17-F17*Parametres!C$41-(F17-F17*Parametres!C$41)*Parametres!C$42,IF(H17="Non",F17-F17*Parametres!C$41,"")),IF(G17="Non",IF(H17="Oui",F17-F17*Parametres!C$42,IF(H17="Non",F17,"")))),IF(A$2=Parametres!A$69,IF(G17="Oui",IF(H17="Oui",F17-F17*Parametres!C$41-(F17-F17*Parametres!C$41)*Parametres!C$42,IF(H17="Non",F17-F17*Parametres!E$41,"")),IF(G17="Non",IF(H17="Oui",F17-F17*Parametres!E$42,IF(H17="Non",F17,"")))),IF(A$2=Parametres!A$70,IF(G17="Oui",IF(H17="Oui",F17-F17*Parametres!C$41-(F17-F17*Parametres!C$41)*Parametres!C$42,IF(H17="Non",F17-F17*Parametres!G$41,"")),IF(G17="Non",IF(H17="Oui",F17-F17*Parametres!G$42,IF(H17="Non",F17,"")))),"")))) ->  | J17: =IF(B17=0,"",SUM(I17:I22)) ->  | K17: =IF(C17="","",IF(A$2=Parametres!A$70,Parametres!E$52,IF(A$2=Parametres!A$69,Parametres!E$51,IF(C17<=Parametres!D$47,Parametres!E$47,IF(C17<=Parametres!D$48,Parametres!E$48,IF(C17<=Parametres!D$49,Parametres!E$49,IF(C17>Parametres!D$50,Parametres!E$50,""))))))) ->  | L17: =IF(A$2=Parametres!A$70,Parametres!G$40,IF(B17="","",J17+J17*K17)) ->  | M17: =IF(B17=0,"",IF(A$2=Parametres!A$68,Parametres!D$10,IF(A$2=Parametres!A$69,Parametres!F$10,IF(A$2=Parametres!A$70,Parametres!H$10,"")))) ->  | N17: =IF(B17=0,"",M17*L17) ->  | O17: =IF(P17>0,"payant",IF(B17=0,"","gratuit")) ->  | Q17: =IF(B17=0,"",R17+S17) ->  | T17: =IF(O17="gratuit","",IF(Q17=0,0,IF(Q17="","",S17/R17))) ->  | U17: =IF(O17="gratuit","",IF(B17=0,"",IF(A$2=Parametres!A$68,IF(T17<Parametres!C$21,0,IF(T17<Parametres!D$32,Parametres!E$32,IF(T17<Parametres!C$33,Parametres!E$33,IF(T17<Parametres!C$34,Parametres!E$34,Parametres!E$35)))), IF(A$2=Parametres!A$69,IF(T17<Parametres!E$21,0,IF(T17<Parametres!D$32,Parametres!E$32,IF(T17<Parametres!C$33,Parametres!E$33,IF(T17<Parametres!C$34,Parametres!E$34,Parametres!E$35)))), IF(A$2=Parametres!A$70,IF(T17<Parametres!G$21,0,IF(T17<Parametres!D$32,Parametres!E$32,IF(T17<Parametres!C$33,Parametres!E$33,IF(T17<Parametres!C$34,Parametres!E$34,Parametres!E$35))))))))) ->  | V17: =IF(B17=0,"",IF(A$2=Parametres!A$68,Parametres!D$10,IF(A$2=Parametres!A$69,Parametres!F$10,IF(A$2=Parametres!A$70,Parametres!H$10,"")))) ->  | W17: =IF(B17=0,"",IF(O17="gratuit",P17*V17,P17*V17+(P17*V17)*U17)) ->  | Z17: =IF(B17=0,"",IF(A$2=Parametres!A$68,Parametres!D$20,IF(A$2=Parametres!A$69,Parametres!F$20,IF(A$2=Parametres!A$70,Parametres!H$20,"")))) ->  | AA17: =IF(B17=0,"",(X17+Y17)*Z17) ->  | AB17: =IF(A$2=Parametres!A$69,"",IF(B17=0,"",IF(N17>(W17+AA17),IF(N17<Parametres!D$28,"FORFAIT MINI","DEPENSES"),IF((W17+AA17)<Parametres!D$28,"FORFAIT MINI","RECETTES")))) ->  | AC17: =IF(A$2=Parametres!A$69,"",IF(B17=0,"",ROUND(IF(N17>(W17+AA17),IF(N17<Parametres!D$28,Parametres!D$28,N17),IF((W17+AA17)<Parametres!D$28,Parametres!D$28,(W17+AA17))),2))) ->  | AD17: =IF(A$2=Parametres!A$69,"",IF(B17=0,"",ROUND(AC17*Parametres!C$57,2))) ->  | AE17: =IF(A$2=Parametres!A$69,"",IF(B17=0,"",ROUND(AC17*Parametres!C$58,2))) ->  | AF17: =IF(A$2=Parametres!A$69,"",IF(B17=0,"",ROUND(AC17*Parametres!C$59,2))) ->  | AG17: =IF(A$2=Parametres!A$69,"",IF(B17=0,"",SUM(ROUND(AC17,2),ROUND(AD17,2),ROUND(AE17,2),ROUND(AF17,2)))) -> 
I18: =IF(F18=0,"",IF(A$2=Parametres!A$68,IF(G18="Oui",IF(H18="Oui",F18-F18*Parametres!C$41-(F18-F18*Parametres!C$41)*Parametres!C$42,IF(H18="Non",F18-F18*Parametres!C$41,"")),IF(G18="Non",IF(H18="Oui",F18-F18*Parametres!C$42,IF(H18="Non",F18,"")))),IF(A$2=Parametres!A$69,IF(G18="Oui",IF(H18="Oui",F18-F18*Parametres!C$41-(F18-F18*Parametres!C$41)*Parametres!C$42,IF(H18="Non",F18-F18*Parametres!E$41,"")),IF(G18="Non",IF(H18="Oui",F18-F18*Parametres!E$42,IF(H18="Non",F18,"")))),IF(A$2=Parametres!A$70,IF(G18="Oui",IF(H18="Oui",F18-F18*Parametres!C$41-(F18-F18*Parametres!C$41)*Parametres!C$42,IF(H18="Non",F18-F18*Parametres!G$41,"")),IF(G18="Non",IF(H18="Oui",F18-F18*Parametres!G$42,IF(H18="Non",F18,"")))),"")))) ->  | J18: =IF(B18=0,"",SUM(I17:I22)) ->  | K18: =IF(C18="","",IF(A$2=Parametres!A$70,Parametres!E$52,IF(A$2=Parametres!A$69,Parametres!E$51,IF(C18<=Parametres!D$47,Parametres!E$47,IF(C18<=Parametres!D$48,Parametres!E$48,IF(C18<=Parametres!D$49,Parametres!E$49,IF(C18>Parametres!D$50,Parametres!E$50,""))))))) ->  | L18: =IF(A$2=Parametres!A$70,Parametres!G$40,IF(B18="","",J18+J18*K18)) ->  | M18: =IF(B18=0,"",IF(A$2=Parametres!A$68,Parametres!D$10,IF(A$2=Parametres!A$69,Parametres!F$9,IF(A$2=Parametres!A$70,Parametres!H$9,"")))) ->  | T18: =IF(O18="gratuit","",IF(Q18=0,0,IF(Q18="","",S18/R18))) ->  | U18: =IF(O18="gratuit","",IF(B18=0,"",IF(A$2=Parametres!A$68,IF(T18<Parametres!C$21,0,IF(T18<Parametres!D$32,Parametres!E$32,IF(T18<Parametres!C$33,Parametres!E$33,IF(T18<Parametres!C$34,Parametres!E$34,Parametres!E$35)))), IF(A$2=Parametres!A$69,IF(T18<Parametres!E$21,0,IF(T18<Parametres!D$32,Parametres!E$32,IF(T18<Parametres!C$33,Parametres!E$33,IF(T18<Parametres!C$34,Parametres!E$34,Parametres!E$35)))), IF(A$2=Parametres!A$70,IF(T18<Parametres!G$21,0,IF(T18<Parametres!D$32,Parametres!E$32,IF(T18<Parametres!C$33,Parametres!E$33,IF(T18<Parametres!C$34,Parametres!E$34,Parametres!E$35))))))))) ->  | V18: =IF(B18=0,"",IF(A$2=Parametres!A$68,Parametres!D$10,IF(A$2=Parametres!A$69,Parametres!F$10,IF(A$2=Parametres!A$70,Parametres!H$10,"")))) ->  | W18: =IF(B18=0,"",IF(O18="gratuit",P18*V18,P18*V18+(P18*V18)*U18)) ->  | Z18: =IF(B18=0,"",IF(A$2=Parametres!A$68,Parametres!D$20,IF(A$2=Parametres!A$69,Parametres!F$20,IF(A$2=Parametres!A$70,Parametres!H$20,"")))) ->  | AB18: =IF(A$2=Parametres!A$69,"",IF(B18=0,"",IF(N18>(W18+AA18),IF(N18<Parametres!D$28,"FORFAIT MINI","DEPENSES"),IF((W18+AA18)<Parametres!D$28,"FORFAIT MINI","RECETTES")))) ->  | AC18: =IF(A$2=Parametres!A$69,"",IF(B18=0,"",ROUND(IF(N18>(W18+AA18),IF(N18<Parametres!D$28,Parametres!D$28,N18),IF((W18+AA18)<Parametres!D$28,Parametres!D$28,(W18+AA18))),2))) ->  | AD18: =IF(A$2=Parametres!A$69,"",IF(B18=0,"",ROUND(AC18*Parametres!C$57,2))) ->  | AE18: =IF(A$2=Parametres!A$69,"",IF(B18=0,"",ROUND(AC18*Parametres!C$58,2))) ->  | AF18: =IF(A$2=Parametres!A$69,"",IF(B18=0,"",ROUND(AC18*Parametres!C$59,2))) ->  | AG18: =IF(A$2=Parametres!A$69,"",IF(B18=0,"",SUM(ROUND(AC18,2),ROUND(AD18,2),ROUND(AE18,2),ROUND(AF18,2)))) -> 
I19: =IF(F19=0,"",IF(A$2=Parametres!A$68,IF(G19="Oui",IF(H19="Oui",F19-F19*Parametres!C$41-(F19-F19*Parametres!C$41)*Parametres!C$42,IF(H19="Non",F19-F19*Parametres!C$41,"")),IF(G19="Non",IF(H19="Oui",F19-F19*Parametres!C$42,IF(H19="Non",F19,"")))),IF(A$2=Parametres!A$69,IF(G19="Oui",IF(H19="Oui",F19-F19*Parametres!C$41-(F19-F19*Parametres!C$41)*Parametres!C$42,IF(H19="Non",F19-F19*Parametres!E$41,"")),IF(G19="Non",IF(H19="Oui",F19-F19*Parametres!E$42,IF(H19="Non",F19,"")))),IF(A$2=Parametres!A$70,IF(G19="Oui",IF(H19="Oui",F19-F19*Parametres!C$41-(F19-F19*Parametres!C$41)*Parametres!C$42,IF(H19="Non",F19-F19*Parametres!G$41,"")),IF(G19="Non",IF(H19="Oui",F19-F19*Parametres!G$42,IF(H19="Non",F19,"")))),"")))) ->  | J19: =IF(B19=0,"",(I17:I22)) ->  | K19: =IF(C19="","",IF(A$2=Parametres!A$70,Parametres!E$52,IF(A$2=Parametres!A$69,Parametres!E$51,IF(C19<=Parametres!D$47,Parametres!E$47,IF(C19<=Parametres!D$48,Parametres!E$48,IF(C19<=Parametres!D$49,Parametres!E$49,IF(C19>Parametres!D$50,Parametres!E$50,""))))))) ->  | L19: =IF(A$2=Parametres!A$70,Parametres!G$40,IF(B19="","",J19+J19*K19)) ->  | M19: =IF(B19=0,"",IF(A$2=Parametres!A$68,Parametres!D$10,IF(A$2=Parametres!A$69,Parametres!F$9,IF(A$2=Parametres!A$70,Parametres!H$9,"")))) ->  | U19: =IF(O19="gratuit","",IF(B19=0,"",IF(A$2=Parametres!A$68,IF(T19<Parametres!C$21,0,IF(T19<Parametres!D$32,Parametres!E$32,IF(T19<Parametres!C$33,Parametres!E$33,IF(T19<Parametres!C$34,Parametres!E$34,Parametres!E$35)))), IF(A$2=Parametres!A$69,IF(T19<Parametres!E$21,0,IF(T19<Parametres!D$32,Parametres!E$32,IF(T19<Parametres!C$33,Parametres!E$33,IF(T19<Parametres!C$34,Parametres!E$34,Parametres!E$35)))), IF(A$2=Parametres!A$70,IF(T19<Parametres!G$21,0,IF(T19<Parametres!D$32,Parametres!E$32,IF(T19<Parametres!C$33,Parametres!E$33,IF(T19<Parametres!C$34,Parametres!E$34,Parametres!E$35))))))))) ->  | V19: =IF(B19=0,"",IF(A$2=Parametres!A$68,Parametres!D$10,IF(A$2=Parametres!A$69,Parametres!F$10,IF(A$2=Parametres!A$70,Parametres!H$10,"")))) ->  | Z19: =IF(B19=0,"",IF(A$2=Parametres!A$68,Parametres!D$20,IF(A$2=Parametres!A$69,Parametres!F$20,IF(A$2=Parametres!A$70,Parametres!H$20,"")))) ->  | AB19: =IF(A$2=Parametres!A$69,"",IF(B19=0,"",IF(N19>(W19+AA19),IF(N19<Parametres!D$28,"FORFAIT MINI","DEPENSES"),IF((W19+AA19)<Parametres!D$28,"FORFAIT MINI","RECETTES")))) ->  | AC19: =IF(A$2=Parametres!A$69,"",IF(B19=0,"",ROUND(IF(N19>(W19+AA19),IF(N19<Parametres!D$28,Parametres!D$28,N19),IF((W19+AA19)<Parametres!D$28,Parametres!D$28,(W19+AA19))),2))) ->  | AD19: =IF(A$2=Parametres!A$69,"",IF(B19=0,"",ROUND(AC19*Parametres!C$57,2))) ->  | AE19: =IF(A$2=Parametres!A$69,"",IF(B19=0,"",ROUND(AC19*Parametres!C$58,2))) ->  | AF19: =IF(A$2=Parametres!A$69,"",IF(B19=0,"",ROUND(AC19*Parametres!C$59,2))) ->  | AG19: =IF(A$2=Parametres!A$69,"",IF(B19=0,"",SUM(ROUND(AC19,2),ROUND(AD19,2),ROUND(AE19,2),ROUND(AF19,2)))) -> 
I20: =IF(F20=0,"",IF(A$2=Parametres!A$68,IF(G20="Oui",IF(H20="Oui",F20-F20*Parametres!C$41-(F20-F20*Parametres!C$41)*Parametres!C$42,IF(H20="Non",F20-F20*Parametres!C$41,"")),IF(G20="Non",IF(H20="Oui",F20-F20*Parametres!C$42,IF(H20="Non",F20,"")))),IF(A$2=Parametres!A$69,IF(G20="Oui",IF(H20="Oui",F20-F20*Parametres!C$41-(F20-F20*Parametres!C$41)*Parametres!C$42,IF(H20="Non",F20-F20*Parametres!E$41,"")),IF(G20="Non",IF(H20="Oui",F20-F20*Parametres!E$42,IF(H20="Non",F20,"")))),IF(A$2=Parametres!A$70,IF(G20="Oui",IF(H20="Oui",F20-F20*Parametres!C$41-(F20-F20*Parametres!C$41)*Parametres!C$42,IF(H20="Non",F20-F20*Parametres!G$41,"")),IF(G20="Non",IF(H20="Oui",F20-F20*Parametres!G$42,IF(H20="Non",F20,"")))),"")))) ->  | J20: =IF(B20=0,"",SUM(I17:I22)) ->  | K20: =IF(C20="","",IF(A$2=Parametres!A$70,Parametres!E$52,IF(A$2=Parametres!A$69,Parametres!E$51,IF(C20<=Parametres!D$47,Parametres!E$47,IF(C20<=Parametres!D$48,Parametres!E$48,IF(C20<=Parametres!D$49,Parametres!E$49,IF(C20>Parametres!D$50,Parametres!E$50,""))))))) ->  | L20: =IF(A$2=Parametres!A$70,Parametres!G$40,IF(B20="","",J20+J20*K20)) ->  | M20: =IF(B20=0,"",IF(A$2=Parametres!A$68,Parametres!D$10,IF(A$2=Parametres!A$69,Parametres!F$9,IF(A$2=Parametres!A$70,Parametres!H$9,"")))) ->  | U20: =IF(O20="gratuit","",IF(B20=0,"",IF(A$2=Parametres!A$68,IF(T20<Parametres!C$21,0,IF(T20<Parametres!D$32,Parametres!E$32,IF(T20<Parametres!C$33,Parametres!E$33,IF(T20<Parametres!C$34,Parametres!E$34,Parametres!E$35)))), IF(A$2=Parametres!A$69,IF(T20<Parametres!E$21,0,IF(T20<Parametres!D$32,Parametres!E$32,IF(T20<Parametres!C$33,Parametres!E$33,IF(T20<Parametres!C$34,Parametres!E$34,Parametres!E$35)))), IF(A$2=Parametres!A$70,IF(T20<Parametres!G$21,0,IF(T20<Parametres!D$32,Parametres!E$32,IF(T20<Parametres!C$33,Parametres!E$33,IF(T20<Parametres!C$34,Parametres!E$34,Parametres!E$35))))))))) ->  | V20: =IF(B20=0,"",IF(A$2=Parametres!A$68,Parametres!D$10,IF(A$2=Parametres!A$69,Parametres!F$10,IF(A$2=Parametres!A$70,Parametres!H$10,"")))) ->  | Z20: =IF(B20=0,"",IF(A$2=Parametres!A$68,Parametres!D$20,IF(A$2=Parametres!A$69,Parametres!F$20,IF(A$2=Parametres!A$70,Parametres!H$20,"")))) ->  | AB20: =IF(A$2=Parametres!A$69,"",IF(B20=0,"",IF(N20>(W20+AA20),IF(N20<Parametres!D$28,"FORFAIT MINI","DEPENSES"),IF((W20+AA20)<Parametres!D$28,"FORFAIT MINI","RECETTES")))) ->  | AC20: =IF(A$2=Parametres!A$69,"",IF(B20=0,"",ROUND(IF(N20>(W20+AA20),IF(N20<Parametres!D$28,Parametres!D$28,N20),IF((W20+AA20)<Parametres!D$28,Parametres!D$28,(W20+AA20))),2))) ->  | AD20: =IF(A$2=Parametres!A$69,"",IF(B20=0,"",ROUND(AC20*Parametres!C$57,2))) ->  | AE20: =IF(A$2=Parametres!A$69,"",IF(B20=0,"",ROUND(AC20*Parametres!C$58,2))) ->  | AF20: =IF(A$2=Parametres!A$69,"",IF(B20=0,"",ROUND(AC20*Parametres!C$59,2))) ->  | AG20: =IF(A$2=Parametres!A$69,"",IF(B20=0,"",SUM(ROUND(AC20,2),ROUND(AD20,2),ROUND(AE20,2),ROUND(AF20,2)))) -> 
I21: =IF(F21=0,"",IF(A$2=Parametres!A$68,IF(G21="Oui",IF(H21="Oui",F21-F21*Parametres!C$41-(F21-F21*Parametres!C$41)*Parametres!C$42,IF(H21="Non",F21-F21*Parametres!C$41,"")),IF(G21="Non",IF(H21="Oui",F21-F21*Parametres!C$42,IF(H21="Non",F21,"")))),IF(A$2=Parametres!A$69,IF(G21="Oui",IF(H21="Oui",F21-F21*Parametres!C$41-(F21-F21*Parametres!C$41)*Parametres!C$42,IF(H21="Non",F21-F21*Parametres!E$41,"")),IF(G21="Non",IF(H21="Oui",F21-F21*Parametres!E$42,IF(H21="Non",F21,"")))),IF(A$2=Parametres!A$70,IF(G21="Oui",IF(H21="Oui",F21-F21*Parametres!C$41-(F21-F21*Parametres!C$41)*Parametres!C$42,IF(H21="Non",F21-F21*Parametres!G$41,"")),IF(G21="Non",IF(H21="Oui",F21-F21*Parametres!G$42,IF(H21="Non",F21,"")))),"")))) ->  | J21: =IF(B21=0,"",SUM(I17:I22)) ->  | K21: =IF(C21="","",IF(A$2=Parametres!A$70,Parametres!E$52,IF(A$2=Parametres!A$69,Parametres!E$51,IF(C21<=Parametres!D$47,Parametres!E$47,IF(C21<=Parametres!D$48,Parametres!E$48,IF(C21<=Parametres!D$49,Parametres!E$49,IF(C21>Parametres!D$50,Parametres!E$50,""))))))) ->  | L21: =IF(A$2=Parametres!A$70,Parametres!G$40,IF(B21="","",J21+J21*K21)) ->  | M21: =IF(B21=0,"",IF(A$2=Parametres!A$68,Parametres!D$10,IF(A$2=Parametres!A$69,Parametres!F$9,IF(A$2=Parametres!A$70,Parametres!H$9,"")))) ->  | U21: =IF(O21="gratuit","",IF(B21=0,"",IF(A$2=Parametres!A$68,IF(T21<Parametres!C$21,0,IF(T21<Parametres!D$32,Parametres!E$32,IF(T21<Parametres!C$33,Parametres!E$33,IF(T21<Parametres!C$34,Parametres!E$34,Parametres!E$35)))), IF(A$2=Parametres!A$69,IF(T21<Parametres!E$21,0,IF(T21<Parametres!D$32,Parametres!E$32,IF(T21<Parametres!C$33,Parametres!E$33,IF(T21<Parametres!C$34,Parametres!E$34,Parametres!E$35)))), IF(A$2=Parametres!A$70,IF(T21<Parametres!G$21,0,IF(T21<Parametres!D$32,Parametres!E$32,IF(T21<Parametres!C$33,Parametres!E$33,IF(T21<Parametres!C$34,Parametres!E$34,Parametres!E$35))))))))) ->  | V21: =IF(B21=0,"",IF(A$2=Parametres!A$68,Parametres!D$10,IF(A$2=Parametres!A$69,Parametres!F$10,IF(A$2=Parametres!A$70,Parametres!H$10,"")))) ->  | Z21: =IF(B21=0,"",IF(A$2=Parametres!A$68,Parametres!D$20,IF(A$2=Parametres!A$69,Parametres!F$20,IF(A$2=Parametres!A$70,Parametres!H$20,"")))) ->  | AB21: =IF(A$2=Parametres!A$69,"",IF(B21=0,"",IF(N21>(W21+AA21),IF(N21<Parametres!D$28,"FORFAIT MINI","DEPENSES"),IF((W21+AA21)<Parametres!D$28,"FORFAIT MINI","RECETTES")))) ->  | AC21: =IF(A$2=Parametres!A$69,"",IF(B21=0,"",ROUND(IF(N21>(W21+AA21),IF(N21<Parametres!D$28,Parametres!D$28,N21),IF((W21+AA21)<Parametres!D$28,Parametres!D$28,(W21+AA21))),2))) ->  | AD21: =IF(A$2=Parametres!A$69,"",IF(B21=0,"",ROUND(AC21*Parametres!C$57,2))) ->  | AE21: =IF(A$2=Parametres!A$69,"",IF(B21=0,"",ROUND(AC21*Parametres!C$58,2))) ->  | AF21: =IF(A$2=Parametres!A$69,"",IF(B21=0,"",ROUND(AC21*Parametres!C$59,2))) ->  | AG21: =IF(A$2=Parametres!A$69,"",IF(B21=0,"",SUM(ROUND(AC21,2),ROUND(AD21,2),ROUND(AE21,2),ROUND(AF21,2)))) -> 
I22: =IF(F22=0,"",IF(A$2=Parametres!A$68,IF(G22="Oui",IF(H22="Oui",F22-F22*Parametres!C$41-(F22-F22*Parametres!C$41)*Parametres!C$42,IF(H22="Non",F22-F22*Parametres!C$41,"")),IF(G22="Non",IF(H22="Oui",F22-F22*Parametres!C$42,IF(H22="Non",F22,"")))),IF(A$2=Parametres!A$69,IF(G22="Oui",IF(H22="Oui",F22-F22*Parametres!C$41-(F22-F22*Parametres!C$41)*Parametres!C$42,IF(H22="Non",F22-F22*Parametres!E$41,"")),IF(G22="Non",IF(H22="Oui",F22-F22*Parametres!E$42,IF(H22="Non",F22,"")))),IF(A$2=Parametres!A$70,IF(G22="Oui",IF(H22="Oui",F22-F22*Parametres!C$41-(F22-F22*Parametres!C$41)*Parametres!C$42,IF(H22="Non",F22-F22*Parametres!G$41,"")),IF(G22="Non",IF(H22="Oui",F22-F22*Parametres!G$42,IF(H22="Non",F22,"")))),"")))) ->  | J22: =IF(B22=0,"",SUM(I17:I22)) ->  | K22: =IF(C22="","",IF(A$2=Parametres!A$70,Parametres!E$52,IF(A$2=Parametres!A$69,Parametres!E$51,IF(C22<=Parametres!D$47,Parametres!E$47,IF(C22<=Parametres!D$48,Parametres!E$48,IF(C22<=Parametres!D$49,Parametres!E$49,IF(C22>Parametres!D$50,Parametres!E$50,""))))))) ->  | L22: =IF(A$2=Parametres!A$70,Parametres!G$40,IF(B22="","",J22+J22*K22)) ->  | M22: =IF(B22=0,"",IF(A$2=Parametres!A$68,Parametres!D$10,IF(A$2=Parametres!A$69,Parametres!F$9,IF(A$2=Parametres!A$70,Parametres!H$9,"")))) ->  | U22: =IF(O22="gratuit","",IF(B22=0,"",IF(A$2=Parametres!A$68,IF(T22<Parametres!C$21,0,IF(T22<Parametres!D$32,Parametres!E$32,IF(T22<Parametres!C$33,Parametres!E$33,IF(T22<Parametres!C$34,Parametres!E$34,Parametres!E$35)))), IF(A$2=Parametres!A$69,IF(T22<Parametres!E$21,0,IF(T22<Parametres!D$32,Parametres!E$32,IF(T22<Parametres!C$33,Parametres!E$33,IF(T22<Parametres!C$34,Parametres!E$34,Parametres!E$35)))), IF(A$2=Parametres!A$70,IF(T22<Parametres!G$21,0,IF(T22<Parametres!D$32,Parametres!E$32,IF(T22<Parametres!C$33,Parametres!E$33,IF(T22<Parametres!C$34,Parametres!E$34,Parametres!E$35))))))))) ->  | V22: =IF(B22=0,"",IF(A$2=Parametres!A$68,Parametres!D$10,IF(A$2=Parametres!A$69,Parametres!F$10,IF(A$2=Parametres!A$70,Parametres!H$10,"")))) ->  | Z22: =IF(B22=0,"",IF(A$2=Parametres!A$68,Parametres!D$20,IF(A$2=Parametres!A$69,Parametres!F$20,IF(A$2=Parametres!A$70,Parametres!H$20,"")))) ->  | AB22: =IF(A$2=Parametres!A$69,"",IF(B22=0,"",IF(N22>(W22+AA22),IF(N22<Parametres!D$28,"FORFAIT MINI","DEPENSES"),IF((W22+AA22)<Parametres!D$28,"FORFAIT MINI","RECETTES")))) ->  | AC22: =IF(A$2=Parametres!A$69,"",IF(B22=0,"",ROUND(IF(N22>(W22+AA22),IF(N22<Parametres!D$28,Parametres!D$28,N22),IF((W22+AA22)<Parametres!D$28,Parametres!D$28,(W22+AA22))),2))) ->  | AD22: =IF(A$2=Parametres!A$69,"",IF(B22=0,"",ROUND(AC22*Parametres!C$57,2))) ->  | AE22: =IF(A$2=Parametres!A$69,"",IF(B22=0,"",ROUND(AC22*Parametres!C$58,2))) ->  | AF22: =IF(A$2=Parametres!A$69,"",IF(B22=0,"",ROUND(AC22*Parametres!C$59,2))) ->  | AG22: =IF(A$2=Parametres!A$69,"",IF(B22=0,"",SUM(ROUND(AC22,2),ROUND(AD22,2),ROUND(AE22,2),ROUND(AF22,2)))) -> 
C24: =IF(B24=0,"",VLOOKUP(B24,ListJaugeSalle,2,FALSE)) ->  | I24: =IF(F24=0,"",IF(A$2=Parametres!A$68,IF(G24="Oui",IF(H24="Oui",F24-F24*Parametres!C$41-(F24-F24*Parametres!C$41)*Parametres!C$42,IF(H24="Non",F24-F24*Parametres!C$41,"")),IF(G24="Non",IF(H24="Oui",F24-F24*Parametres!C$42,IF(H24="Non",F24,"")))),IF(A$2=Parametres!A$69,IF(G24="Oui",IF(H24="Oui",F24-F24*Parametres!C$41-(F24-F24*Parametres!C$41)*Parametres!C$42,IF(H24="Non",F24-F24*Parametres!E$41,"")),IF(G24="Non",IF(H24="Oui",F24-F24*Parametres!E$42,IF(H24="Non",F24,"")))),IF(A$2=Parametres!A$70,IF(G24="Oui",IF(H24="Oui",F24-F24*Parametres!C$41-(F24-F24*Parametres!C$41)*Parametres!C$42,IF(H24="Non",F24-F24*Parametres!G$41,"")),IF(G24="Non",IF(H24="Oui",F24-F24*Parametres!G$42,IF(H24="Non",F24,"")))),"")))) ->  | J24: =IF(B24=0,"",SUM(I24:I29)) ->  | K24: =IF(C24="","",IF(A$2=Parametres!A$70,Parametres!E$52,IF(A$2=Parametres!A$69,Parametres!E$51,IF(C24<=Parametres!D$47,Parametres!E$47,IF(C24<=Parametres!D$48,Parametres!E$48,IF(C24<=Parametres!D$49,Parametres!E$49,IF(C24>Parametres!D$50,Parametres!E$50,""))))))) ->  | L24: =IF(A$2=Parametres!A$70,Parametres!G$40,IF(B24="","",J24+J24*K24)) ->  | M24: =IF(B24=0,"",IF(A$2=Parametres!A$68,Parametres!D$10,IF(A$2=Parametres!A$69,Parametres!F$10,IF(A$2=Parametres!A$70,Parametres!H$10,"")))) ->  | N24: =IF(B24=0,"",M24*L24) ->  | O24: =IF(P24>0,"payant",IF(B24=0,"","gratuit")) ->  | Q24: =IF(B24=0,"",R24+S24) ->  | T24: =IF(O24="gratuit","",IF(Q24=0,0,IF(Q24="","",S24/R24))) ->  | U24: =IF(O24="gratuit","",IF(B24=0,"",IF(A$2=Parametres!A$68,IF(T24<Parametres!C$21,0,IF(T24<Parametres!D$32,Parametres!E$32,IF(T24<Parametres!C$33,Parametres!E$33,IF(T24<Parametres!C$34,Parametres!E$34,Parametres!E$35)))), IF(A$2=Parametres!A$69,IF(T24<Parametres!E$21,0,IF(T24<Parametres!D$32,Parametres!E$32,IF(T24<Parametres!C$33,Parametres!E$33,IF(T24<Parametres!C$34,Parametres!E$34,Parametres!E$35)))), IF(A$2=Parametres!A$70,IF(T24<Parametres!G$21,0,IF(T24<Parametres!D$32,Parametres!E$32,IF(T24<Parametres!C$33,Parametres!E$33,IF(T24<Parametres!C$34,Parametres!E$34,Parametres!E$35))))))))) ->  | V24: =IF(B24=0,"",IF(A$2=Parametres!A$68,Parametres!D$10,IF(A$2=Parametres!A$69,Parametres!F$10,IF(A$2=Parametres!A$70,Parametres!H$10,"")))) ->  | W24: =IF(B24=0,"",IF(O24="gratuit",P24*V24,P24*V24+(P24*V24)*U24)) ->  | Z24: =IF(B24=0,"",IF(A$2=Parametres!A$68,Parametres!D$20,IF(A$2=Parametres!A$69,Parametres!F$20,IF(A$2=Parametres!A$70,Parametres!H$20,"")))) ->  | AA24: =IF(B24=0,"",(X24+Y24)*Z24) ->  | AB24: =IF(A$2=Parametres!A$69,"",IF(B24=0,"",IF(N24>(W24+AA24),IF(N24<Parametres!D$28,"FORFAIT MINI","DEPENSES"),IF((W24+AA24)<Parametres!D$28,"FORFAIT MINI","RECETTES")))) ->  | AC24: =IF(A$2=Parametres!A$69,"",IF(B24=0,"",ROUND(IF(N24>(W24+AA24),IF(N24<Parametres!D$28,Parametres!D$28,N24),IF((W24+AA24)<Parametres!D$28,Parametres!D$28,(W24+AA24))),2))) ->  | AD24: =IF(A$2=Parametres!A$69,"",IF(B24=0,"",ROUND(AC24*Parametres!C$57,2))) ->  | AE24: =IF(A$2=Parametres!A$69,"",IF(B24=0,"",ROUND(AC24*Parametres!C$58,2))) ->  | AF24: =IF(A$2=Parametres!A$69,"",IF(B24=0,"",ROUND(AC24*Parametres!C$59,2))) ->  | AG24: =IF(A$2=Parametres!A$69,"",IF(B24=0,"",SUM(ROUND(AC24,2),ROUND(AD24,2),ROUND(AE24,2),ROUND(AF24,2)))) -> 
I25: =IF(F25=0,"",IF(A$2=Parametres!A$68,IF(G25="Oui",IF(H25="Oui",F25-F25*Parametres!C$41-(F25-F25*Parametres!C$41)*Parametres!C$42,IF(H25="Non",F25-F25*Parametres!C$41,"")),IF(G25="Non",IF(H25="Oui",F25-F25*Parametres!C$42,IF(H25="Non",F25,"")))),IF(A$2=Parametres!A$69,IF(G25="Oui",IF(H25="Oui",F25-F25*Parametres!C$41-(F25-F25*Parametres!C$41)*Parametres!C$42,IF(H25="Non",F25-F25*Parametres!E$41,"")),IF(G25="Non",IF(H25="Oui",F25-F25*Parametres!E$42,IF(H25="Non",F25,"")))),IF(A$2=Parametres!A$70,IF(G25="Oui",IF(H25="Oui",F25-F25*Parametres!C$41-(F25-F25*Parametres!C$41)*Parametres!C$42,IF(H25="Non",F25-F25*Parametres!G$41,"")),IF(G25="Non",IF(H25="Oui",F25-F25*Parametres!G$42,IF(H25="Non",F25,"")))),"")))) ->  | J25: =IF(B25=0,"",SUM(I24:I29)) ->  | K25: =IF(C25="","",IF(A$2=Parametres!A$70,Parametres!E$52,IF(A$2=Parametres!A$69,Parametres!E$51,IF(C25<=Parametres!D$47,Parametres!E$47,IF(C25<=Parametres!D$48,Parametres!E$48,IF(C25<=Parametres!D$49,Parametres!E$49,IF(C25>Parametres!D$50,Parametres!E$50,""))))))) ->  | L25: =IF(A$2=Parametres!A$70,Parametres!G$40,IF(B25="","",J25+J25*K25)) ->  | M25: =IF(B25=0,"",IF(A$2=Parametres!A$68,Parametres!D$10,IF(A$2=Parametres!A$69,Parametres!F$9,IF(A$2=Parametres!A$70,Parametres!H$9,"")))) ->  | T25: =IF(O25="gratuit","",IF(Q25=0,0,IF(Q25="","",S25/R25))) ->  | U25: =IF(O25="gratuit","",IF(B25=0,"",IF(A$2=Parametres!A$68,IF(T25<Parametres!C$21,0,IF(T25<Parametres!D$32,Parametres!E$32,IF(T25<Parametres!C$33,Parametres!E$33,IF(T25<Parametres!C$34,Parametres!E$34,Parametres!E$35)))), IF(A$2=Parametres!A$69,IF(T25<Parametres!E$21,0,IF(T25<Parametres!D$32,Parametres!E$32,IF(T25<Parametres!C$33,Parametres!E$33,IF(T25<Parametres!C$34,Parametres!E$34,Parametres!E$35)))), IF(A$2=Parametres!A$70,IF(T25<Parametres!G$21,0,IF(T25<Parametres!D$32,Parametres!E$32,IF(T25<Parametres!C$33,Parametres!E$33,IF(T25<Parametres!C$34,Parametres!E$34,Parametres!E$35))))))))) ->  | V25: =IF(B25=0,"",IF(A$2=Parametres!A$68,Parametres!D$10,IF(A$2=Parametres!A$69,Parametres!F$10,IF(A$2=Parametres!A$70,Parametres!H$10,"")))) ->  | W25: =IF(B25=0,"",IF(O25="gratuit",P25*V25,P25*V25+(P25*V25)*U25)) ->  | Z25: =IF(B25=0,"",IF(A$2=Parametres!A$68,Parametres!D$20,IF(A$2=Parametres!A$69,Parametres!F$20,IF(A$2=Parametres!A$70,Parametres!H$20,"")))) ->  | AB25: =IF(A$2=Parametres!A$69,"",IF(B25=0,"",IF(N25>(W25+AA25),IF(N25<Parametres!D$28,"FORFAIT MINI","DEPENSES"),IF((W25+AA25)<Parametres!D$28,"FORFAIT MINI","RECETTES")))) ->  | AC25: =IF(A$2=Parametres!A$69,"",IF(B25=0,"",ROUND(IF(N25>(W25+AA25),IF(N25<Parametres!D$28,Parametres!D$28,N25),IF((W25+AA25)<Parametres!D$28,Parametres!D$28,(W25+AA25))),2))) ->  | AD25: =IF(A$2=Parametres!A$69,"",IF(B25=0,"",ROUND(AC25*Parametres!C$57,2))) ->  | AE25: =IF(A$2=Parametres!A$69,"",IF(B25=0,"",ROUND(AC25*Parametres!C$58,2))) ->  | AF25: =IF(A$2=Parametres!A$69,"",IF(B25=0,"",ROUND(AC25*Parametres!C$59,2))) ->  | AG25: =IF(A$2=Parametres!A$69,"",IF(B25=0,"",SUM(ROUND(AC25,2),ROUND(AD25,2),ROUND(AE25,2),ROUND(AF25,2)))) -> 
I26: =IF(F26=0,"",IF(A$2=Parametres!A$68,IF(G26="Oui",IF(H26="Oui",F26-F26*Parametres!C$41-(F26-F26*Parametres!C$41)*Parametres!C$42,IF(H26="Non",F26-F26*Parametres!C$41,"")),IF(G26="Non",IF(H26="Oui",F26-F26*Parametres!C$42,IF(H26="Non",F26,"")))),IF(A$2=Parametres!A$69,IF(G26="Oui",IF(H26="Oui",F26-F26*Parametres!C$41-(F26-F26*Parametres!C$41)*Parametres!C$42,IF(H26="Non",F26-F26*Parametres!E$41,"")),IF(G26="Non",IF(H26="Oui",F26-F26*Parametres!E$42,IF(H26="Non",F26,"")))),IF(A$2=Parametres!A$70,IF(G26="Oui",IF(H26="Oui",F26-F26*Parametres!C$41-(F26-F26*Parametres!C$41)*Parametres!C$42,IF(H26="Non",F26-F26*Parametres!G$41,"")),IF(G26="Non",IF(H26="Oui",F26-F26*Parametres!G$42,IF(H26="Non",F26,"")))),"")))) ->  | J26: =IF(B26=0,"",(I24:I29)) ->  | K26: =IF(C26="","",IF(A$2=Parametres!A$70,Parametres!E$52,IF(A$2=Parametres!A$69,Parametres!E$51,IF(C26<=Parametres!D$47,Parametres!E$47,IF(C26<=Parametres!D$48,Parametres!E$48,IF(C26<=Parametres!D$49,Parametres!E$49,IF(C26>Parametres!D$50,Parametres!E$50,""))))))) ->  | L26: =IF(A$2=Parametres!A$70,Parametres!G$40,IF(B26="","",J26+J26*K26)) ->  | M26: =IF(B26=0,"",IF(A$2=Parametres!A$68,Parametres!D$10,IF(A$2=Parametres!A$69,Parametres!F$9,IF(A$2=Parametres!A$70,Parametres!H$9,"")))) ->  | U26: =IF(O26="gratuit","",IF(B26=0,"",IF(A$2=Parametres!A$68,IF(T26<Parametres!C$21,0,IF(T26<Parametres!D$32,Parametres!E$32,IF(T26<Parametres!C$33,Parametres!E$33,IF(T26<Parametres!C$34,Parametres!E$34,Parametres!E$35)))), IF(A$2=Parametres!A$69,IF(T26<Parametres!E$21,0,IF(T26<Parametres!D$32,Parametres!E$32,IF(T26<Parametres!C$33,Parametres!E$33,IF(T26<Parametres!C$34,Parametres!E$34,Parametres!E$35)))), IF(A$2=Parametres!A$70,IF(T26<Parametres!G$21,0,IF(T26<Parametres!D$32,Parametres!E$32,IF(T26<Parametres!C$33,Parametres!E$33,IF(T26<Parametres!C$34,Parametres!E$34,Parametres!E$35))))))))) ->  | V26: =IF(B26=0,"",IF(A$2=Parametres!A$68,Parametres!D$10,IF(A$2=Parametres!A$69,Parametres!F$10,IF(A$2=Parametres!A$70,Parametres!H$10,"")))) ->  | Z26: =IF(B26=0,"",IF(A$2=Parametres!A$68,Parametres!D$20,IF(A$2=Parametres!A$69,Parametres!F$20,IF(A$2=Parametres!A$70,Parametres!H$20,"")))) ->  | AB26: =IF(A$2=Parametres!A$69,"",IF(B26=0,"",IF(N26>(W26+AA26),IF(N26<Parametres!D$28,"FORFAIT MINI","DEPENSES"),IF((W26+AA26)<Parametres!D$28,"FORFAIT MINI","RECETTES")))) ->  | AC26: =IF(A$2=Parametres!A$69,"",IF(B26=0,"",ROUND(IF(N26>(W26+AA26),IF(N26<Parametres!D$28,Parametres!D$28,N26),IF((W26+AA26)<Parametres!D$28,Parametres!D$28,(W26+AA26))),2))) ->  | AD26: =IF(A$2=Parametres!A$69,"",IF(B26=0,"",ROUND(AC26*Parametres!C$57,2))) ->  | AE26: =IF(A$2=Parametres!A$69,"",IF(B26=0,"",ROUND(AC26*Parametres!C$58,2))) ->  | AF26: =IF(A$2=Parametres!A$69,"",IF(B26=0,"",ROUND(AC26*Parametres!C$59,2))) ->  | AG26: =IF(A$2=Parametres!A$69,"",IF(B26=0,"",SUM(ROUND(AC26,2),ROUND(AD26,2),ROUND(AE26,2),ROUND(AF26,2)))) -> 
I27: =IF(F27=0,"",IF(A$2=Parametres!A$68,IF(G27="Oui",IF(H27="Oui",F27-F27*Parametres!C$41-(F27-F27*Parametres!C$41)*Parametres!C$42,IF(H27="Non",F27-F27*Parametres!C$41,"")),IF(G27="Non",IF(H27="Oui",F27-F27*Parametres!C$42,IF(H27="Non",F27,"")))),IF(A$2=Parametres!A$69,IF(G27="Oui",IF(H27="Oui",F27-F27*Parametres!C$41-(F27-F27*Parametres!C$41)*Parametres!C$42,IF(H27="Non",F27-F27*Parametres!E$41,"")),IF(G27="Non",IF(H27="Oui",F27-F27*Parametres!E$42,IF(H27="Non",F27,"")))),IF(A$2=Parametres!A$70,IF(G27="Oui",IF(H27="Oui",F27-F27*Parametres!C$41-(F27-F27*Parametres!C$41)*Parametres!C$42,IF(H27="Non",F27-F27*Parametres!G$41,"")),IF(G27="Non",IF(H27="Oui",F27-F27*Parametres!G$42,IF(H27="Non",F27,"")))),"")))) ->  | J27: =IF(B27=0,"",SUM(I24:I29)) ->  | K27: =IF(C27="","",IF(A$2=Parametres!A$70,Parametres!E$52,IF(A$2=Parametres!A$69,Parametres!E$51,IF(C27<=Parametres!D$47,Parametres!E$47,IF(C27<=Parametres!D$48,Parametres!E$48,IF(C27<=Parametres!D$49,Parametres!E$49,IF(C27>Parametres!D$50,Parametres!E$50,""))))))) ->  | L27: =IF(A$2=Parametres!A$70,Parametres!G$40,IF(B27="","",J27+J27*K27)) ->  | M27: =IF(B27=0,"",IF(A$2=Parametres!A$68,Parametres!D$10,IF(A$2=Parametres!A$69,Parametres!F$9,IF(A$2=Parametres!A$70,Parametres!H$9,"")))) ->  | U27: =IF(O27="gratuit","",IF(B27=0,"",IF(A$2=Parametres!A$68,IF(T27<Parametres!C$21,0,IF(T27<Parametres!D$32,Parametres!E$32,IF(T27<Parametres!C$33,Parametres!E$33,IF(T27<Parametres!C$34,Parametres!E$34,Parametres!E$35)))), IF(A$2=Parametres!A$69,IF(T27<Parametres!E$21,0,IF(T27<Parametres!D$32,Parametres!E$32,IF(T27<Parametres!C$33,Parametres!E$33,IF(T27<Parametres!C$34,Parametres!E$34,Parametres!E$35)))), IF(A$2=Parametres!A$70,IF(T27<Parametres!G$21,0,IF(T27<Parametres!D$32,Parametres!E$32,IF(T27<Parametres!C$33,Parametres!E$33,IF(T27<Parametres!C$34,Parametres!E$34,Parametres!E$35))))))))) ->  | V27: =IF(B27=0,"",IF(A$2=Parametres!A$68,Parametres!D$10,IF(A$2=Parametres!A$69,Parametres!F$10,IF(A$2=Parametres!A$70,Parametres!H$10,"")))) ->  | Z27: =IF(B27=0,"",IF(A$2=Parametres!A$68,Parametres!D$20,IF(A$2=Parametres!A$69,Parametres!F$20,IF(A$2=Parametres!A$70,Parametres!H$20,"")))) ->  | AB27: =IF(A$2=Parametres!A$69,"",IF(B27=0,"",IF(N27>(W27+AA27),IF(N27<Parametres!D$28,"FORFAIT MINI","DEPENSES"),IF((W27+AA27)<Parametres!D$28,"FORFAIT MINI","RECETTES")))) ->  | AC27: =IF(A$2=Parametres!A$69,"",IF(B27=0,"",ROUND(IF(N27>(W27+AA27),IF(N27<Parametres!D$28,Parametres!D$28,N27),IF((W27+AA27)<Parametres!D$28,Parametres!D$28,(W27+AA27))),2))) ->  | AD27: =IF(A$2=Parametres!A$69,"",IF(B27=0,"",ROUND(AC27*Parametres!C$57,2))) ->  | AE27: =IF(A$2=Parametres!A$69,"",IF(B27=0,"",ROUND(AC27*Parametres!C$58,2))) ->  | AF27: =IF(A$2=Parametres!A$69,"",IF(B27=0,"",ROUND(AC27*Parametres!C$59,2))) ->  | AG27: =IF(A$2=Parametres!A$69,"",IF(B27=0,"",SUM(ROUND(AC27,2),ROUND(AD27,2),ROUND(AE27,2),ROUND(AF27,2)))) -> 
I28: =IF(F28=0,"",IF(A$2=Parametres!A$68,IF(G28="Oui",IF(H28="Oui",F28-F28*Parametres!C$41-(F28-F28*Parametres!C$41)*Parametres!C$42,IF(H28="Non",F28-F28*Parametres!C$41,"")),IF(G28="Non",IF(H28="Oui",F28-F28*Parametres!C$42,IF(H28="Non",F28,"")))),IF(A$2=Parametres!A$69,IF(G28="Oui",IF(H28="Oui",F28-F28*Parametres!C$41-(F28-F28*Parametres!C$41)*Parametres!C$42,IF(H28="Non",F28-F28*Parametres!E$41,"")),IF(G28="Non",IF(H28="Oui",F28-F28*Parametres!E$42,IF(H28="Non",F28,"")))),IF(A$2=Parametres!A$70,IF(G28="Oui",IF(H28="Oui",F28-F28*Parametres!C$41-(F28-F28*Parametres!C$41)*Parametres!C$42,IF(H28="Non",F28-F28*Parametres!G$41,"")),IF(G28="Non",IF(H28="Oui",F28-F28*Parametres!G$42,IF(H28="Non",F28,"")))),"")))) ->  | J28: =IF(B28=0,"",SUM(I24:I29)) ->  | K28: =IF(C28="","",IF(A$2=Parametres!A$70,Parametres!E$52,IF(A$2=Parametres!A$69,Parametres!E$51,IF(C28<=Parametres!D$47,Parametres!E$47,IF(C28<=Parametres!D$48,Parametres!E$48,IF(C28<=Parametres!D$49,Parametres!E$49,IF(C28>Parametres!D$50,Parametres!E$50,""))))))) ->  | L28: =IF(A$2=Parametres!A$70,Parametres!G$40,IF(B28="","",J28+J28*K28)) ->  | M28: =IF(B28=0,"",IF(A$2=Parametres!A$68,Parametres!D$10,IF(A$2=Parametres!A$69,Parametres!F$9,IF(A$2=Parametres!A$70,Parametres!H$9,"")))) ->  | U28: =IF(O28="gratuit","",IF(B28=0,"",IF(A$2=Parametres!A$68,IF(T28<Parametres!C$21,0,IF(T28<Parametres!D$32,Parametres!E$32,IF(T28<Parametres!C$33,Parametres!E$33,IF(T28<Parametres!C$34,Parametres!E$34,Parametres!E$35)))), IF(A$2=Parametres!A$69,IF(T28<Parametres!E$21,0,IF(T28<Parametres!D$32,Parametres!E$32,IF(T28<Parametres!C$33,Parametres!E$33,IF(T28<Parametres!C$34,Parametres!E$34,Parametres!E$35)))), IF(A$2=Parametres!A$70,IF(T28<Parametres!G$21,0,IF(T28<Parametres!D$32,Parametres!E$32,IF(T28<Parametres!C$33,Parametres!E$33,IF(T28<Parametres!C$34,Parametres!E$34,Parametres!E$35))))))))) ->  | V28: =IF(B28=0,"",IF(A$2=Parametres!A$68,Parametres!D$10,IF(A$2=Parametres!A$69,Parametres!F$10,IF(A$2=Parametres!A$70,Parametres!H$10,"")))) ->  | Z28: =IF(B28=0,"",IF(A$2=Parametres!A$68,Parametres!D$20,IF(A$2=Parametres!A$69,Parametres!F$20,IF(A$2=Parametres!A$70,Parametres!H$20,"")))) ->  | AB28: =IF(A$2=Parametres!A$69,"",IF(B28=0,"",IF(N28>(W28+AA28),IF(N28<Parametres!D$28,"FORFAIT MINI","DEPENSES"),IF((W28+AA28)<Parametres!D$28,"FORFAIT MINI","RECETTES")))) ->  | AC28: =IF(A$2=Parametres!A$69,"",IF(B28=0,"",ROUND(IF(N28>(W28+AA28),IF(N28<Parametres!D$28,Parametres!D$28,N28),IF((W28+AA28)<Parametres!D$28,Parametres!D$28,(W28+AA28))),2))) ->  | AD28: =IF(A$2=Parametres!A$69,"",IF(B28=0,"",ROUND(AC28*Parametres!C$57,2))) ->  | AE28: =IF(A$2=Parametres!A$69,"",IF(B28=0,"",ROUND(AC28*Parametres!C$58,2))) ->  | AF28: =IF(A$2=Parametres!A$69,"",IF(B28=0,"",ROUND(AC28*Parametres!C$59,2))) ->  | AG28: =IF(A$2=Parametres!A$69,"",IF(B28=0,"",SUM(ROUND(AC28,2),ROUND(AD28,2),ROUND(AE28,2),ROUND(AF28,2)))) -> 
I29: =IF(F29=0,"",IF(A$2=Parametres!A$68,IF(G29="Oui",IF(H29="Oui",F29-F29*Parametres!C$41-(F29-F29*Parametres!C$41)*Parametres!C$42,IF(H29="Non",F29-F29*Parametres!C$41,"")),IF(G29="Non",IF(H29="Oui",F29-F29*Parametres!C$42,IF(H29="Non",F29,"")))),IF(A$2=Parametres!A$69,IF(G29="Oui",IF(H29="Oui",F29-F29*Parametres!C$41-(F29-F29*Parametres!C$41)*Parametres!C$42,IF(H29="Non",F29-F29*Parametres!E$41,"")),IF(G29="Non",IF(H29="Oui",F29-F29*Parametres!E$42,IF(H29="Non",F29,"")))),IF(A$2=Parametres!A$70,IF(G29="Oui",IF(H29="Oui",F29-F29*Parametres!C$41-(F29-F29*Parametres!C$41)*Parametres!C$42,IF(H29="Non",F29-F29*Parametres!G$41,"")),IF(G29="Non",IF(H29="Oui",F29-F29*Parametres!G$42,IF(H29="Non",F29,"")))),"")))) ->  | J29: =IF(B29=0,"",SUM(I24:I29)) ->  | K29: =IF(C29="","",IF(A$2=Parametres!A$70,Parametres!E$52,IF(A$2=Parametres!A$69,Parametres!E$51,IF(C29<=Parametres!D$47,Parametres!E$47,IF(C29<=Parametres!D$48,Parametres!E$48,IF(C29<=Parametres!D$49,Parametres!E$49,IF(C29>Parametres!D$50,Parametres!E$50,""))))))) ->  | L29: =IF(A$2=Parametres!A$70,Parametres!G$40,IF(B29="","",J29+J29*K29)) ->  | M29: =IF(B29=0,"",IF(A$2=Parametres!A$68,Parametres!D$10,IF(A$2=Parametres!A$69,Parametres!F$9,IF(A$2=Parametres!A$70,Parametres!H$9,"")))) ->  | U29: =IF(O29="gratuit","",IF(B29=0,"",IF(A$2=Parametres!A$68,IF(T29<Parametres!C$21,0,IF(T29<Parametres!D$32,Parametres!E$32,IF(T29<Parametres!C$33,Parametres!E$33,IF(T29<Parametres!C$34,Parametres!E$34,Parametres!E$35)))), IF(A$2=Parametres!A$69,IF(T29<Parametres!E$21,0,IF(T29<Parametres!D$32,Parametres!E$32,IF(T29<Parametres!C$33,Parametres!E$33,IF(T29<Parametres!C$34,Parametres!E$34,Parametres!E$35)))), IF(A$2=Parametres!A$70,IF(T29<Parametres!G$21,0,IF(T29<Parametres!D$32,Parametres!E$32,IF(T29<Parametres!C$33,Parametres!E$33,IF(T29<Parametres!C$34,Parametres!E$34,Parametres!E$35))))))))) ->  | V29: =IF(B29=0,"",IF(A$2=Parametres!A$68,Parametres!D$10,IF(A$2=Parametres!A$69,Parametres!F$10,IF(A$2=Parametres!A$70,Parametres!H$10,"")))) ->  | Z29: =IF(B29=0,"",IF(A$2=Parametres!A$68,Parametres!D$20,IF(A$2=Parametres!A$69,Parametres!F$20,IF(A$2=Parametres!A$70,Parametres!H$20,"")))) ->  | AB29: =IF(A$2=Parametres!A$69,"",IF(B29=0,"",IF(N29>(W29+AA29),IF(N29<Parametres!D$28,"FORFAIT MINI","DEPENSES"),IF((W29+AA29)<Parametres!D$28,"FORFAIT MINI","RECETTES")))) ->  | AC29: =IF(A$2=Parametres!A$69,"",IF(B29=0,"",ROUND(IF(N29>(W29+AA29),IF(N29<Parametres!D$28,Parametres!D$28,N29),IF((W29+AA29)<Parametres!D$28,Parametres!D$28,(W29+AA29))),2))) ->  | AD29: =IF(A$2=Parametres!A$69,"",IF(B29=0,"",ROUND(AC29*Parametres!C$57,2))) ->  | AE29: =IF(A$2=Parametres!A$69,"",IF(B29=0,"",ROUND(AC29*Parametres!C$58,2))) ->  | AF29: =IF(A$2=Parametres!A$69,"",IF(B29=0,"",ROUND(AC29*Parametres!C$59,2))) ->  | AG29: =IF(A$2=Parametres!A$69,"",IF(B29=0,"",SUM(ROUND(AC29,2),ROUND(AD29,2),ROUND(AE29,2),ROUND(AF29,2)))) -> 
I31: =IF(F31=0,"",IF(A$2=Parametres!A$68,IF(G31="Oui",IF(H31="Oui",F31-F31*Parametres!C$41-(F31-F31*Parametres!C$41)*Parametres!C$42,IF(H31="Non",F31-F31*Parametres!C$41,"")),IF(G31="Non",IF(H31="Oui",F31-F31*Parametres!C$42,IF(H31="Non",F31,"")))),IF(A$2=Parametres!A$69,IF(G31="Oui",IF(H31="Oui",F31-F31*Parametres!C$41-(F31-F31*Parametres!C$41)*Parametres!C$42,IF(H31="Non",F31-F31*Parametres!E$41,"")),IF(G31="Non",IF(H31="Oui",F31-F31*Parametres!E$42,IF(H31="Non",F31,"")))),IF(A$2=Parametres!A$70,IF(G31="Oui",IF(H31="Oui",F31-F31*Parametres!C$41-(F31-F31*Parametres!C$41)*Parametres!C$42,IF(H31="Non",F31-F31*Parametres!G$41,"")),IF(G31="Non",IF(H31="Oui",F31-F31*Parametres!G$42,IF(H31="Non",F31,"")))),"")))) ->  | J31: =IF(B31=0,"",SUM(I31:I36)) ->  | K31: =IF(C31="","",IF(A$2=Parametres!A$70,Parametres!E$52,IF(A$2=Parametres!A$69,Parametres!E$51,IF(C31<=Parametres!D$47,Parametres!E$47,IF(C31<=Parametres!D$48,Parametres!E$48,IF(C31<=Parametres!D$49,Parametres!E$49,IF(C31>Parametres!D$50,Parametres!E$50,""))))))) ->  | L31: =IF(A$2=Parametres!A$70,Parametres!G$40,IF(B31="","",J31+J31*K31)) ->  | M31: =IF(B31=0,"",IF(A$2=Parametres!A$68,Parametres!D$10,IF(A$2=Parametres!A$69,Parametres!F$10,IF(A$2=Parametres!A$70,Parametres!H$10,"")))) ->  | N31: =IF(B31=0,"",M31*L31) ->  | O31: =IF(P31>0,"payant",IF(B31=0,"","gratuit")) ->  | Q31: =IF(B31=0,"",R31+S31) ->  | T31: =IF(O31="gratuit","",IF(Q31=0,0,IF(Q31="","",S31/R31))) ->  | U31: =IF(O31="gratuit","",IF(B31=0,"",IF(A$2=Parametres!A$68,IF(T31<Parametres!C$21,0,IF(T31<Parametres!D$32,Parametres!E$32,IF(T31<Parametres!C$33,Parametres!E$33,IF(T31<Parametres!C$34,Parametres!E$34,Parametres!E$35)))), IF(A$2=Parametres!A$69,IF(T31<Parametres!E$21,0,IF(T31<Parametres!D$32,Parametres!E$32,IF(T31<Parametres!C$33,Parametres!E$33,IF(T31<Parametres!C$34,Parametres!E$34,Parametres!E$35)))), IF(A$2=Parametres!A$70,IF(T31<Parametres!G$21,0,IF(T31<Parametres!D$32,Parametres!E$32,IF(T31<Parametres!C$33,Parametres!E$33,IF(T31<Parametres!C$34,Parametres!E$34,Parametres!E$35))))))))) ->  | V31: =IF(B31=0,"",IF(A$2=Parametres!A$68,Parametres!D$10,IF(A$2=Parametres!A$69,Parametres!F$10,IF(A$2=Parametres!A$70,Parametres!H$10,"")))) ->  | W31: =IF(B31=0,"",IF(O31="gratuit",P31*V31,P31*V31+(P31*V31)*U31)) ->  | Z31: =IF(B31=0,"",IF(A$2=Parametres!A$68,Parametres!D$20,IF(A$2=Parametres!A$69,Parametres!F$20,IF(A$2=Parametres!A$70,Parametres!H$20,"")))) ->  | AA31: =IF(B31=0,"",(X31+Y31)*Z31) ->  | AB31: =IF(A$2=Parametres!A$69,"",IF(B31=0,"",IF(N31>(W31+AA31),IF(N31<Parametres!D$28,"FORFAIT MINI","DEPENSES"),IF((W31+AA31)<Parametres!D$28,"FORFAIT MINI","RECETTES")))) ->  | AC31: =IF(A$2=Parametres!A$69,"",IF(B31=0,"",ROUND(IF(N31>(W31+AA31),IF(N31<Parametres!D$28,Parametres!D$28,N31),IF((W31+AA31)<Parametres!D$28,Parametres!D$28,(W31+AA31))),2))) ->  | AD31: =IF(A$2=Parametres!A$69,"",IF(B31=0,"",ROUND(AC31*Parametres!C$57,2))) ->  | AE31: =IF(A$2=Parametres!A$69,"",IF(B31=0,"",ROUND(AC31*Parametres!C$58,2))) ->  | AF31: =IF(A$2=Parametres!A$69,"",IF(B31=0,"",ROUND(AC31*Parametres!C$59,2))) ->  | AG31: =IF(A$2=Parametres!A$69,"",IF(B31=0,"",SUM(ROUND(AC31,2),ROUND(AD31,2),ROUND(AE31,2),ROUND(AF31,2)))) -> 
I32: =IF(F32=0,"",IF(A$2=Parametres!A$68,IF(G32="Oui",IF(H32="Oui",F32-F32*Parametres!C$41-(F32-F32*Parametres!C$41)*Parametres!C$42,IF(H32="Non",F32-F32*Parametres!C$41,"")),IF(G32="Non",IF(H32="Oui",F32-F32*Parametres!C$42,IF(H32="Non",F32,"")))),IF(A$2=Parametres!A$69,IF(G32="Oui",IF(H32="Oui",F32-F32*Parametres!C$41-(F32-F32*Parametres!C$41)*Parametres!C$42,IF(H32="Non",F32-F32*Parametres!E$41,"")),IF(G32="Non",IF(H32="Oui",F32-F32*Parametres!E$42,IF(H32="Non",F32,"")))),IF(A$2=Parametres!A$70,IF(G32="Oui",IF(H32="Oui",F32-F32*Parametres!C$41-(F32-F32*Parametres!C$41)*Parametres!C$42,IF(H32="Non",F32-F32*Parametres!G$41,"")),IF(G32="Non",IF(H32="Oui",F32-F32*Parametres!G$42,IF(H32="Non",F32,"")))),"")))) ->  | J32: =IF(B32=0,"",SUM(I31:I36)) ->  | K32: =IF(C32="","",IF(A$2=Parametres!A$70,Parametres!E$52,IF(A$2=Parametres!A$69,Parametres!E$51,IF(C32<=Parametres!D$47,Parametres!E$47,IF(C32<=Parametres!D$48,Parametres!E$48,IF(C32<=Parametres!D$49,Parametres!E$49,IF(C32>Parametres!D$50,Parametres!E$50,""))))))) ->  | L32: =IF(A$2=Parametres!A$70,Parametres!G$40,IF(B32="","",J32+J32*K32)) ->  | M32: =IF(B32=0,"",IF(A$2=Parametres!A$68,Parametres!D$10,IF(A$2=Parametres!A$69,Parametres!F$9,IF(A$2=Parametres!A$70,Parametres!H$9,"")))) ->  | T32: =IF(O32="gratuit","",IF(Q32=0,0,IF(Q32="","",S32/R32))) ->  | U32: =IF(O32="gratuit","",IF(B32=0,"",IF(A$2=Parametres!A$68,IF(T32<Parametres!C$21,0,IF(T32<Parametres!D$32,Parametres!E$32,IF(T32<Parametres!C$33,Parametres!E$33,IF(T32<Parametres!C$34,Parametres!E$34,Parametres!E$35)))), IF(A$2=Parametres!A$69,IF(T32<Parametres!E$21,0,IF(T32<Parametres!D$32,Parametres!E$32,IF(T32<Parametres!C$33,Parametres!E$33,IF(T32<Parametres!C$34,Parametres!E$34,Parametres!E$35)))), IF(A$2=Parametres!A$70,IF(T32<Parametres!G$21,0,IF(T32<Parametres!D$32,Parametres!E$32,IF(T32<Parametres!C$33,Parametres!E$33,IF(T32<Parametres!C$34,Parametres!E$34,Parametres!E$35))))))))) ->  | V32: =IF(B32=0,"",IF(A$2=Parametres!A$68,Parametres!D$10,IF(A$2=Parametres!A$69,Parametres!F$10,IF(A$2=Parametres!A$70,Parametres!H$10,"")))) ->  | W32: =IF(B32=0,"",IF(O32="gratuit",P32*V32,P32*V32+(P32*V32)*U32)) ->  | Z32: =IF(B32=0,"",IF(A$2=Parametres!A$68,Parametres!D$20,IF(A$2=Parametres!A$69,Parametres!F$20,IF(A$2=Parametres!A$70,Parametres!H$20,"")))) ->  | AB32: =IF(A$2=Parametres!A$69,"",IF(B32=0,"",IF(N32>(W32+AA32),IF(N32<Parametres!D$28,"FORFAIT MINI","DEPENSES"),IF((W32+AA32)<Parametres!D$28,"FORFAIT MINI","RECETTES")))) ->  | AC32: =IF(A$2=Parametres!A$69,"",IF(B32=0,"",ROUND(IF(N32>(W32+AA32),IF(N32<Parametres!D$28,Parametres!D$28,N32),IF((W32+AA32)<Parametres!D$28,Parametres!D$28,(W32+AA32))),2))) ->  | AD32: =IF(A$2=Parametres!A$69,"",IF(B32=0,"",ROUND(AC32*Parametres!C$57,2))) ->  | AE32: =IF(A$2=Parametres!A$69,"",IF(B32=0,"",ROUND(AC32*Parametres!C$58,2))) ->  | AF32: =IF(A$2=Parametres!A$69,"",IF(B32=0,"",ROUND(AC32*Parametres!C$59,2))) ->  | AG32: =IF(A$2=Parametres!A$69,"",IF(B32=0,"",SUM(ROUND(AC32,2),ROUND(AD32,2),ROUND(AE32,2),ROUND(AF32,2)))) -> 
I33: =IF(F33=0,"",IF(A$2=Parametres!A$68,IF(G33="Oui",IF(H33="Oui",F33-F33*Parametres!C$41-(F33-F33*Parametres!C$41)*Parametres!C$42,IF(H33="Non",F33-F33*Parametres!C$41,"")),IF(G33="Non",IF(H33="Oui",F33-F33*Parametres!C$42,IF(H33="Non",F33,"")))),IF(A$2=Parametres!A$69,IF(G33="Oui",IF(H33="Oui",F33-F33*Parametres!C$41-(F33-F33*Parametres!C$41)*Parametres!C$42,IF(H33="Non",F33-F33*Parametres!E$41,"")),IF(G33="Non",IF(H33="Oui",F33-F33*Parametres!E$42,IF(H33="Non",F33,"")))),IF(A$2=Parametres!A$70,IF(G33="Oui",IF(H33="Oui",F33-F33*Parametres!C$41-(F33-F33*Parametres!C$41)*Parametres!C$42,IF(H33="Non",F33-F33*Parametres!G$41,"")),IF(G33="Non",IF(H33="Oui",F33-F33*Parametres!G$42,IF(H33="Non",F33,"")))),"")))) ->  | J33: =IF(B33=0,"",(I31:I36)) ->  | K33: =IF(C33="","",IF(A$2=Parametres!A$70,Parametres!E$52,IF(A$2=Parametres!A$69,Parametres!E$51,IF(C33<=Parametres!D$47,Parametres!E$47,IF(C33<=Parametres!D$48,Parametres!E$48,IF(C33<=Parametres!D$49,Parametres!E$49,IF(C33>Parametres!D$50,Parametres!E$50,""))))))) ->  | L33: =IF(A$2=Parametres!A$70,Parametres!G$40,IF(B33="","",J33+J33*K33)) ->  | M33: =IF(B33=0,"",IF(A$2=Parametres!A$68,Parametres!D$10,IF(A$2=Parametres!A$69,Parametres!F$9,IF(A$2=Parametres!A$70,Parametres!H$9,"")))) ->  | U33: =IF(O33="gratuit","",IF(B33=0,"",IF(A$2=Parametres!A$68,IF(T33<Parametres!C$21,0,IF(T33<Parametres!D$32,Parametres!E$32,IF(T33<Parametres!C$33,Parametres!E$33,IF(T33<Parametres!C$34,Parametres!E$34,Parametres!E$35)))), IF(A$2=Parametres!A$69,IF(T33<Parametres!E$21,0,IF(T33<Parametres!D$32,Parametres!E$32,IF(T33<Parametres!C$33,Parametres!E$33,IF(T33<Parametres!C$34,Parametres!E$34,Parametres!E$35)))), IF(A$2=Parametres!A$70,IF(T33<Parametres!G$21,0,IF(T33<Parametres!D$32,Parametres!E$32,IF(T33<Parametres!C$33,Parametres!E$33,IF(T33<Parametres!C$34,Parametres!E$34,Parametres!E$35))))))))) ->  | V33: =IF(B33=0,"",IF(A$2=Parametres!A$68,Parametres!D$10,IF(A$2=Parametres!A$69,Parametres!F$10,IF(A$2=Parametres!A$70,Parametres!H$10,"")))) ->  | Z33: =IF(B33=0,"",IF(A$2=Parametres!A$68,Parametres!D$20,IF(A$2=Parametres!A$69,Parametres!F$20,IF(A$2=Parametres!A$70,Parametres!H$20,"")))) ->  | AB33: =IF(A$2=Parametres!A$69,"",IF(B33=0,"",IF(N33>(W33+AA33),IF(N33<Parametres!D$28,"FORFAIT MINI","DEPENSES"),IF((W33+AA33)<Parametres!D$28,"FORFAIT MINI","RECETTES")))) ->  | AC33: =IF(A$2=Parametres!A$69,"",IF(B33=0,"",ROUND(IF(N33>(W33+AA33),IF(N33<Parametres!D$28,Parametres!D$28,N33),IF((W33+AA33)<Parametres!D$28,Parametres!D$28,(W33+AA33))),2))) ->  | AD33: =IF(A$2=Parametres!A$69,"",IF(B33=0,"",ROUND(AC33*Parametres!C$57,2))) ->  | AE33: =IF(A$2=Parametres!A$69,"",IF(B33=0,"",ROUND(AC33*Parametres!C$58,2))) ->  | AF33: =IF(A$2=Parametres!A$69,"",IF(B33=0,"",ROUND(AC33*Parametres!C$59,2))) ->  | AG33: =IF(A$2=Parametres!A$69,"",IF(B33=0,"",SUM(ROUND(AC33,2),ROUND(AD33,2),ROUND(AE33,2),ROUND(AF33,2)))) -> 
I34: =IF(F34=0,"",IF(A$2=Parametres!A$68,IF(G34="Oui",IF(H34="Oui",F34-F34*Parametres!C$41-(F34-F34*Parametres!C$41)*Parametres!C$42,IF(H34="Non",F34-F34*Parametres!C$41,"")),IF(G34="Non",IF(H34="Oui",F34-F34*Parametres!C$42,IF(H34="Non",F34,"")))),IF(A$2=Parametres!A$69,IF(G34="Oui",IF(H34="Oui",F34-F34*Parametres!C$41-(F34-F34*Parametres!C$41)*Parametres!C$42,IF(H34="Non",F34-F34*Parametres!E$41,"")),IF(G34="Non",IF(H34="Oui",F34-F34*Parametres!E$42,IF(H34="Non",F34,"")))),IF(A$2=Parametres!A$70,IF(G34="Oui",IF(H34="Oui",F34-F34*Parametres!C$41-(F34-F34*Parametres!C$41)*Parametres!C$42,IF(H34="Non",F34-F34*Parametres!G$41,"")),IF(G34="Non",IF(H34="Oui",F34-F34*Parametres!G$42,IF(H34="Non",F34,"")))),"")))) ->  | J34: =IF(B34=0,"",SUM(I31:I36)) ->  | K34: =IF(C34="","",IF(A$2=Parametres!A$70,Parametres!E$52,IF(A$2=Parametres!A$69,Parametres!E$51,IF(C34<=Parametres!D$47,Parametres!E$47,IF(C34<=Parametres!D$48,Parametres!E$48,IF(C34<=Parametres!D$49,Parametres!E$49,IF(C34>Parametres!D$50,Parametres!E$50,""))))))) ->  | L34: =IF(A$2=Parametres!A$70,Parametres!G$40,IF(B34="","",J34+J34*K34)) ->  | M34: =IF(B34=0,"",IF(A$2=Parametres!A$68,Parametres!D$10,IF(A$2=Parametres!A$69,Parametres!F$9,IF(A$2=Parametres!A$70,Parametres!H$9,"")))) ->  | U34: =IF(O34="gratuit","",IF(B34=0,"",IF(A$2=Parametres!A$68,IF(T34<Parametres!C$21,0,IF(T34<Parametres!D$32,Parametres!E$32,IF(T34<Parametres!C$33,Parametres!E$33,IF(T34<Parametres!C$34,Parametres!E$34,Parametres!E$35)))), IF(A$2=Parametres!A$69,IF(T34<Parametres!E$21,0,IF(T34<Parametres!D$32,Parametres!E$32,IF(T34<Parametres!C$33,Parametres!E$33,IF(T34<Parametres!C$34,Parametres!E$34,Parametres!E$35)))), IF(A$2=Parametres!A$70,IF(T34<Parametres!G$21,0,IF(T34<Parametres!D$32,Parametres!E$32,IF(T34<Parametres!C$33,Parametres!E$33,IF(T34<Parametres!C$34,Parametres!E$34,Parametres!E$35))))))))) ->  | V34: =IF(B34=0,"",IF(A$2=Parametres!A$68,Parametres!D$10,IF(A$2=Parametres!A$69,Parametres!F$10,IF(A$2=Parametres!A$70,Parametres!H$10,"")))) ->  | Z34: =IF(B34=0,"",IF(A$2=Parametres!A$68,Parametres!D$20,IF(A$2=Parametres!A$69,Parametres!F$20,IF(A$2=Parametres!A$70,Parametres!H$20,"")))) ->  | AB34: =IF(A$2=Parametres!A$69,"",IF(B34=0,"",IF(N34>(W34+AA34),IF(N34<Parametres!D$28,"FORFAIT MINI","DEPENSES"),IF((W34+AA34)<Parametres!D$28,"FORFAIT MINI","RECETTES")))) ->  | AC34: =IF(A$2=Parametres!A$69,"",IF(B34=0,"",ROUND(IF(N34>(W34+AA34),IF(N34<Parametres!D$28,Parametres!D$28,N34),IF((W34+AA34)<Parametres!D$28,Parametres!D$28,(W34+AA34))),2))) ->  | AD34: =IF(A$2=Parametres!A$69,"",IF(B34=0,"",ROUND(AC34*Parametres!C$57,2))) ->  | AE34: =IF(A$2=Parametres!A$69,"",IF(B34=0,"",ROUND(AC34*Parametres!C$58,2))) ->  | AF34: =IF(A$2=Parametres!A$69,"",IF(B34=0,"",ROUND(AC34*Parametres!C$59,2))) ->  | AG34: =IF(A$2=Parametres!A$69,"",IF(B34=0,"",SUM(ROUND(AC34,2),ROUND(AD34,2),ROUND(AE34,2),ROUND(AF34,2)))) -> 
I35: =IF(F35=0,"",IF(A$2=Parametres!A$68,IF(G35="Oui",IF(H35="Oui",F35-F35*Parametres!C$41-(F35-F35*Parametres!C$41)*Parametres!C$42,IF(H35="Non",F35-F35*Parametres!C$41,"")),IF(G35="Non",IF(H35="Oui",F35-F35*Parametres!C$42,IF(H35="Non",F35,"")))),IF(A$2=Parametres!A$69,IF(G35="Oui",IF(H35="Oui",F35-F35*Parametres!C$41-(F35-F35*Parametres!C$41)*Parametres!C$42,IF(H35="Non",F35-F35*Parametres!E$41,"")),IF(G35="Non",IF(H35="Oui",F35-F35*Parametres!E$42,IF(H35="Non",F35,"")))),IF(A$2=Parametres!A$70,IF(G35="Oui",IF(H35="Oui",F35-F35*Parametres!C$41-(F35-F35*Parametres!C$41)*Parametres!C$42,IF(H35="Non",F35-F35*Parametres!G$41,"")),IF(G35="Non",IF(H35="Oui",F35-F35*Parametres!G$42,IF(H35="Non",F35,"")))),"")))) ->  | J35: =IF(B35=0,"",SUM(I31:I36)) ->  | K35: =IF(C35="","",IF(A$2=Parametres!A$70,Parametres!E$52,IF(A$2=Parametres!A$69,Parametres!E$51,IF(C35<=Parametres!D$47,Parametres!E$47,IF(C35<=Parametres!D$48,Parametres!E$48,IF(C35<=Parametres!D$49,Parametres!E$49,IF(C35>Parametres!D$50,Parametres!E$50,""))))))) ->  | L35: =IF(A$2=Parametres!A$70,Parametres!G$40,IF(B35="","",J35+J35*K35)) ->  | M35: =IF(B35=0,"",IF(A$2=Parametres!A$68,Parametres!D$10,IF(A$2=Parametres!A$69,Parametres!F$9,IF(A$2=Parametres!A$70,Parametres!H$9,"")))) ->  | U35: =IF(O35="gratuit","",IF(B35=0,"",IF(A$2=Parametres!A$68,IF(T35<Parametres!C$21,0,IF(T35<Parametres!D$32,Parametres!E$32,IF(T35<Parametres!C$33,Parametres!E$33,IF(T35<Parametres!C$34,Parametres!E$34,Parametres!E$35)))), IF(A$2=Parametres!A$69,IF(T35<Parametres!E$21,0,IF(T35<Parametres!D$32,Parametres!E$32,IF(T35<Parametres!C$33,Parametres!E$33,IF(T35<Parametres!C$34,Parametres!E$34,Parametres!E$35)))), IF(A$2=Parametres!A$70,IF(T35<Parametres!G$21,0,IF(T35<Parametres!D$32,Parametres!E$32,IF(T35<Parametres!C$33,Parametres!E$33,IF(T35<Parametres!C$34,Parametres!E$34,Parametres!E$35))))))))) ->  | V35: =IF(B35=0,"",IF(A$2=Parametres!A$68,Parametres!D$10,IF(A$2=Parametres!A$69,Parametres!F$10,IF(A$2=Parametres!A$70,Parametres!H$10,"")))) ->  | Z35: =IF(B35=0,"",IF(A$2=Parametres!A$68,Parametres!D$20,IF(A$2=Parametres!A$69,Parametres!F$20,IF(A$2=Parametres!A$70,Parametres!H$20,"")))) ->  | AB35: =IF(A$2=Parametres!A$69,"",IF(B35=0,"",IF(N35>(W35+AA35),IF(N35<Parametres!D$28,"FORFAIT MINI","DEPENSES"),IF((W35+AA35)<Parametres!D$28,"FORFAIT MINI","RECETTES")))) ->  | AC35: =IF(A$2=Parametres!A$69,"",IF(B35=0,"",ROUND(IF(N35>(W35+AA35),IF(N35<Parametres!D$28,Parametres!D$28,N35),IF((W35+AA35)<Parametres!D$28,Parametres!D$28,(W35+AA35))),2))) ->  | AD35: =IF(A$2=Parametres!A$69,"",IF(B35=0,"",ROUND(AC35*Parametres!C$57,2))) ->  | AE35: =IF(A$2=Parametres!A$69,"",IF(B35=0,"",ROUND(AC35*Parametres!C$58,2))) ->  | AF35: =IF(A$2=Parametres!A$69,"",IF(B35=0,"",ROUND(AC35*Parametres!C$59,2))) ->  | AG35: =IF(A$2=Parametres!A$69,"",IF(B35=0,"",SUM(ROUND(AC35,2),ROUND(AD35,2),ROUND(AE35,2),ROUND(AF35,2)))) -> 
I36: =IF(F36=0,"",IF(A$2=Parametres!A$68,IF(G36="Oui",IF(H36="Oui",F36-F36*Parametres!C$41-(F36-F36*Parametres!C$41)*Parametres!C$42,IF(H36="Non",F36-F36*Parametres!C$41,"")),IF(G36="Non",IF(H36="Oui",F36-F36*Parametres!C$42,IF(H36="Non",F36,"")))),IF(A$2=Parametres!A$69,IF(G36="Oui",IF(H36="Oui",F36-F36*Parametres!C$41-(F36-F36*Parametres!C$41)*Parametres!C$42,IF(H36="Non",F36-F36*Parametres!E$41,"")),IF(G36="Non",IF(H36="Oui",F36-F36*Parametres!E$42,IF(H36="Non",F36,"")))),IF(A$2=Parametres!A$70,IF(G36="Oui",IF(H36="Oui",F36-F36*Parametres!C$41-(F36-F36*Parametres!C$41)*Parametres!C$42,IF(H36="Non",F36-F36*Parametres!G$41,"")),IF(G36="Non",IF(H36="Oui",F36-F36*Parametres!G$42,IF(H36="Non",F36,"")))),"")))) ->  | J36: =IF(B36=0,"",SUM(I31:I36)) ->  | K36: =IF(C36="","",IF(A$2=Parametres!A$70,Parametres!E$52,IF(A$2=Parametres!A$69,Parametres!E$51,IF(C36<=Parametres!D$47,Parametres!E$47,IF(C36<=Parametres!D$48,Parametres!E$48,IF(C36<=Parametres!D$49,Parametres!E$49,IF(C36>Parametres!D$50,Parametres!E$50,""))))))) ->  | L36: =IF(A$2=Parametres!A$70,Parametres!G$40,IF(B36="","",J36+J36*K36)) ->  | M36: =IF(B36=0,"",IF(A$2=Parametres!A$68,Parametres!D$10,IF(A$2=Parametres!A$69,Parametres!F$9,IF(A$2=Parametres!A$70,Parametres!H$9,"")))) ->  | U36: =IF(O36="gratuit","",IF(B36=0,"",IF(A$2=Parametres!A$68,IF(T36<Parametres!C$21,0,IF(T36<Parametres!D$32,Parametres!E$32,IF(T36<Parametres!C$33,Parametres!E$33,IF(T36<Parametres!C$34,Parametres!E$34,Parametres!E$35)))), IF(A$2=Parametres!A$69,IF(T36<Parametres!E$21,0,IF(T36<Parametres!D$32,Parametres!E$32,IF(T36<Parametres!C$33,Parametres!E$33,IF(T36<Parametres!C$34,Parametres!E$34,Parametres!E$35)))), IF(A$2=Parametres!A$70,IF(T36<Parametres!G$21,0,IF(T36<Parametres!D$32,Parametres!E$32,IF(T36<Parametres!C$33,Parametres!E$33,IF(T36<Parametres!C$34,Parametres!E$34,Parametres!E$35))))))))) ->  | V36: =IF(B36=0,"",IF(A$2=Parametres!A$68,Parametres!D$10,IF(A$2=Parametres!A$69,Parametres!F$10,IF(A$2=Parametres!A$70,Parametres!H$10,"")))) ->  | Z36: =IF(B36=0,"",IF(A$2=Parametres!A$68,Parametres!D$20,IF(A$2=Parametres!A$69,Parametres!F$20,IF(A$2=Parametres!A$70,Parametres!H$20,"")))) ->  | AB36: =IF(A$2=Parametres!A$69,"",IF(B36=0,"",IF(N36>(W36+AA36),IF(N36<Parametres!D$28,"FORFAIT MINI","DEPENSES"),IF((W36+AA36)<Parametres!D$28,"FORFAIT MINI","RECETTES")))) ->  | AC36: =IF(A$2=Parametres!A$69,"",IF(B36=0,"",ROUND(IF(N36>(W36+AA36),IF(N36<Parametres!D$28,Parametres!D$28,N36),IF((W36+AA36)<Parametres!D$28,Parametres!D$28,(W36+AA36))),2))) ->  | AD36: =IF(A$2=Parametres!A$69,"",IF(B36=0,"",ROUND(AC36*Parametres!C$57,2))) ->  | AE36: =IF(A$2=Parametres!A$69,"",IF(B36=0,"",ROUND(AC36*Parametres!C$58,2))) ->  | AF36: =IF(A$2=Parametres!A$69,"",IF(B36=0,"",ROUND(AC36*Parametres!C$59,2))) ->  | AG36: =IF(A$2=Parametres!A$69,"",IF(B36=0,"",SUM(ROUND(AC36,2),ROUND(AD36,2),ROUND(AE36,2),ROUND(AF36,2)))) -> 
I38: =IF(F38=0,"",IF(A$2=Parametres!A$68,IF(G38="Oui",IF(H38="Oui",F38-F38*Parametres!C$41-(F38-F38*Parametres!C$41)*Parametres!C$42,IF(H38="Non",F38-F38*Parametres!C$41,"")),IF(G38="Non",IF(H38="Oui",F38-F38*Parametres!C$42,IF(H38="Non",F38,"")))),IF(A$2=Parametres!A$69,IF(G38="Oui",IF(H38="Oui",F38-F38*Parametres!C$41-(F38-F38*Parametres!C$41)*Parametres!C$42,IF(H38="Non",F38-F38*Parametres!E$41,"")),IF(G38="Non",IF(H38="Oui",F38-F38*Parametres!E$42,IF(H38="Non",F38,"")))),IF(A$2=Parametres!A$70,IF(G38="Oui",IF(H38="Oui",F38-F38*Parametres!C$41-(F38-F38*Parametres!C$41)*Parametres!C$42,IF(H38="Non",F38-F38*Parametres!G$41,"")),IF(G38="Non",IF(H38="Oui",F38-F38*Parametres!G$42,IF(H38="Non",F38,"")))),"")))) ->  | J38: =IF(B38=0,"",SUM(I38:I43)) ->  | K38: =IF(C38="","",IF(A$2=Parametres!A$70,Parametres!E$52,IF(A$2=Parametres!A$69,Parametres!E$51,IF(C38<=Parametres!D$47,Parametres!E$47,IF(C38<=Parametres!D$48,Parametres!E$48,IF(C38<=Parametres!D$49,Parametres!E$49,IF(C38>Parametres!D$50,Parametres!E$50,""))))))) ->  | L38: =IF(A$2=Parametres!A$70,Parametres!G$40,IF(B38="","",J38+J38*K38)) ->  | M38: =IF(B38=0,"",IF(A$2=Parametres!A$68,Parametres!D$10,IF(A$2=Parametres!A$69,Parametres!F$10,IF(A$2=Parametres!A$70,Parametres!H$10,"")))) ->  | N38: =IF(B38=0,"",M38*L38) ->  | O38: =IF(P38>0,"payant",IF(B38=0,"","gratuit")) ->  | Q38: =IF(B38=0,"",R38+S38) ->  | T38: =IF(O38="gratuit","",IF(Q38=0,0,IF(Q38="","",S38/R38))) ->  | U38: =IF(O38="gratuit","",IF(B38=0,"",IF(A$2=Parametres!A$68,IF(T38<Parametres!C$21,0,IF(T38<Parametres!D$32,Parametres!E$32,IF(T38<Parametres!C$33,Parametres!E$33,IF(T38<Parametres!C$34,Parametres!E$34,Parametres!E$35)))), IF(A$2=Parametres!A$69,IF(T38<Parametres!E$21,0,IF(T38<Parametres!D$32,Parametres!E$32,IF(T38<Parametres!C$33,Parametres!E$33,IF(T38<Parametres!C$34,Parametres!E$34,Parametres!E$35)))), IF(A$2=Parametres!A$70,IF(T38<Parametres!G$21,0,IF(T38<Parametres!D$32,Parametres!E$32,IF(T38<Parametres!C$33,Parametres!E$33,IF(T38<Parametres!C$34,Parametres!E$34,Parametres!E$35))))))))) ->  | V38: =IF(B38=0,"",IF(A$2=Parametres!A$68,Parametres!D$10,IF(A$2=Parametres!A$69,Parametres!F$10,IF(A$2=Parametres!A$70,Parametres!H$10,"")))) ->  | W38: =IF(B38=0,"",IF(O38="gratuit",P38*V38,P38*V38+(P38*V38)*U38)) ->  | Z38: =IF(B38=0,"",IF(A$2=Parametres!A$68,Parametres!D$20,IF(A$2=Parametres!A$69,Parametres!F$20,IF(A$2=Parametres!A$70,Parametres!H$20,"")))) ->  | AA38: =IF(B38=0,"",(X38+Y38)*Z38) ->  | AB38: =IF(A$2=Parametres!A$69,"",IF(B38=0,"",IF(N38>(W38+AA38),IF(N38<Parametres!D$28,"FORFAIT MINI","DEPENSES"),IF((W38+AA38)<Parametres!D$28,"FORFAIT MINI","RECETTES")))) ->  | AC38: =IF(A$2=Parametres!A$69,"",IF(B38=0,"",ROUND(IF(N38>(W38+AA38),IF(N38<Parametres!D$28,Parametres!D$28,N38),IF((W38+AA38)<Parametres!D$28,Parametres!D$28,(W38+AA38))),2))) ->  | AD38: =IF(A$2=Parametres!A$69,"",IF(B38=0,"",ROUND(AC38*Parametres!C$57,2))) ->  | AE38: =IF(A$2=Parametres!A$69,"",IF(B38=0,"",ROUND(AC38*Parametres!C$58,2))) ->  | AF38: =IF(A$2=Parametres!A$69,"",IF(B38=0,"",ROUND(AC38*Parametres!C$59,2))) ->  | AG38: =IF(A$2=Parametres!A$69,"",IF(B38=0,"",SUM(ROUND(AC38,2),ROUND(AD38,2),ROUND(AE38,2),ROUND(AF38,2)))) -> 
I39: =IF(F39=0,"",IF(A$2=Parametres!A$68,IF(G39="Oui",IF(H39="Oui",F39-F39*Parametres!C$41-(F39-F39*Parametres!C$41)*Parametres!C$42,IF(H39="Non",F39-F39*Parametres!C$41,"")),IF(G39="Non",IF(H39="Oui",F39-F39*Parametres!C$42,IF(H39="Non",F39,"")))),IF(A$2=Parametres!A$69,IF(G39="Oui",IF(H39="Oui",F39-F39*Parametres!C$41-(F39-F39*Parametres!C$41)*Parametres!C$42,IF(H39="Non",F39-F39*Parametres!E$41,"")),IF(G39="Non",IF(H39="Oui",F39-F39*Parametres!E$42,IF(H39="Non",F39,"")))),IF(A$2=Parametres!A$70,IF(G39="Oui",IF(H39="Oui",F39-F39*Parametres!C$41-(F39-F39*Parametres!C$41)*Parametres!C$42,IF(H39="Non",F39-F39*Parametres!G$41,"")),IF(G39="Non",IF(H39="Oui",F39-F39*Parametres!G$42,IF(H39="Non",F39,"")))),"")))) ->  | J39: =IF(B39=0,"",SUM(I38:I43)) ->  | K39: =IF(C39="","",IF(A$2=Parametres!A$70,Parametres!E$52,IF(A$2=Parametres!A$69,Parametres!E$51,IF(C39<=Parametres!D$47,Parametres!E$47,IF(C39<=Parametres!D$48,Parametres!E$48,IF(C39<=Parametres!D$49,Parametres!E$49,IF(C39>Parametres!D$50,Parametres!E$50,""))))))) ->  | L39: =IF(A$2=Parametres!A$70,Parametres!G$40,IF(B39="","",J39+J39*K39)) ->  | M39: =IF(B39=0,"",IF(A$2=Parametres!A$68,Parametres!D$10,IF(A$2=Parametres!A$69,Parametres!F$9,IF(A$2=Parametres!A$70,Parametres!H$9,"")))) ->  | T39: =IF(O39="gratuit","",IF(Q39=0,0,IF(Q39="","",S39/R39))) ->  | U39: =IF(O39="gratuit","",IF(B39=0,"",IF(A$2=Parametres!A$68,IF(T39<Parametres!C$21,0,IF(T39<Parametres!D$32,Parametres!E$32,IF(T39<Parametres!C$33,Parametres!E$33,IF(T39<Parametres!C$34,Parametres!E$34,Parametres!E$35)))), IF(A$2=Parametres!A$69,IF(T39<Parametres!E$21,0,IF(T39<Parametres!D$32,Parametres!E$32,IF(T39<Parametres!C$33,Parametres!E$33,IF(T39<Parametres!C$34,Parametres!E$34,Parametres!E$35)))), IF(A$2=Parametres!A$70,IF(T39<Parametres!G$21,0,IF(T39<Parametres!D$32,Parametres!E$32,IF(T39<Parametres!C$33,Parametres!E$33,IF(T39<Parametres!C$34,Parametres!E$34,Parametres!E$35))))))))) ->  | V39: =IF(B39=0,"",IF(A$2=Parametres!A$68,Parametres!D$10,IF(A$2=Parametres!A$69,Parametres!F$10,IF(A$2=Parametres!A$70,Parametres!H$10,"")))) ->  | W39: =IF(B39=0,"",IF(O39="gratuit",P39*V39,P39*V39+(P39*V39)*U39)) ->  | Z39: =IF(B39=0,"",IF(A$2=Parametres!A$68,Parametres!D$20,IF(A$2=Parametres!A$69,Parametres!F$20,IF(A$2=Parametres!A$70,Parametres!H$20,"")))) ->  | AB39: =IF(A$2=Parametres!A$69,"",IF(B39=0,"",IF(N39>(W39+AA39),IF(N39<Parametres!D$28,"FORFAIT MINI","DEPENSES"),IF((W39+AA39)<Parametres!D$28,"FORFAIT MINI","RECETTES")))) ->  | AC39: =IF(A$2=Parametres!A$69,"",IF(B39=0,"",ROUND(IF(N39>(W39+AA39),IF(N39<Parametres!D$28,Parametres!D$28,N39),IF((W39+AA39)<Parametres!D$28,Parametres!D$28,(W39+AA39))),2))) ->  | AD39: =IF(A$2=Parametres!A$69,"",IF(B39=0,"",ROUND(AC39*Parametres!C$57,2))) ->  | AE39: =IF(A$2=Parametres!A$69,"",IF(B39=0,"",ROUND(AC39*Parametres!C$58,2))) ->  | AF39: =IF(A$2=Parametres!A$69,"",IF(B39=0,"",ROUND(AC39*Parametres!C$59,2))) ->  | AG39: =IF(A$2=Parametres!A$69,"",IF(B39=0,"",SUM(ROUND(AC39,2),ROUND(AD39,2),ROUND(AE39,2),ROUND(AF39,2)))) -> 
I40: =IF(F40=0,"",IF(A$2=Parametres!A$68,IF(G40="Oui",IF(H40="Oui",F40-F40*Parametres!C$41-(F40-F40*Parametres!C$41)*Parametres!C$42,IF(H40="Non",F40-F40*Parametres!C$41,"")),IF(G40="Non",IF(H40="Oui",F40-F40*Parametres!C$42,IF(H40="Non",F40,"")))),IF(A$2=Parametres!A$69,IF(G40="Oui",IF(H40="Oui",F40-F40*Parametres!C$41-(F40-F40*Parametres!C$41)*Parametres!C$42,IF(H40="Non",F40-F40*Parametres!E$41,"")),IF(G40="Non",IF(H40="Oui",F40-F40*Parametres!E$42,IF(H40="Non",F40,"")))),IF(A$2=Parametres!A$70,IF(G40="Oui",IF(H40="Oui",F40-F40*Parametres!C$41-(F40-F40*Parametres!C$41)*Parametres!C$42,IF(H40="Non",F40-F40*Parametres!G$41,"")),IF(G40="Non",IF(H40="Oui",F40-F40*Parametres!G$42,IF(H40="Non",F40,"")))),"")))) ->  | J40: =IF(B40=0,"",(I38:I43)) ->  | K40: =IF(C40="","",IF(A$2=Parametres!A$70,Parametres!E$52,IF(A$2=Parametres!A$69,Parametres!E$51,IF(C40<=Parametres!D$47,Parametres!E$47,IF(C40<=Parametres!D$48,Parametres!E$48,IF(C40<=Parametres!D$49,Parametres!E$49,IF(C40>Parametres!D$50,Parametres!E$50,""))))))) ->  | L40: =IF(A$2=Parametres!A$70,Parametres!G$40,IF(B40="","",J40+J40*K40)) ->  | M40: =IF(B40=0,"",IF(A$2=Parametres!A$68,Parametres!D$10,IF(A$2=Parametres!A$69,Parametres!F$9,IF(A$2=Parametres!A$70,Parametres!H$9,"")))) ->  | U40: =IF(O40="gratuit","",IF(B40=0,"",IF(A$2=Parametres!A$68,IF(T40<Parametres!C$21,0,IF(T40<Parametres!D$32,Parametres!E$32,IF(T40<Parametres!C$33,Parametres!E$33,IF(T40<Parametres!C$34,Parametres!E$34,Parametres!E$35)))), IF(A$2=Parametres!A$69,IF(T40<Parametres!E$21,0,IF(T40<Parametres!D$32,Parametres!E$32,IF(T40<Parametres!C$33,Parametres!E$33,IF(T40<Parametres!C$34,Parametres!E$34,Parametres!E$35)))), IF(A$2=Parametres!A$70,IF(T40<Parametres!G$21,0,IF(T40<Parametres!D$32,Parametres!E$32,IF(T40<Parametres!C$33,Parametres!E$33,IF(T40<Parametres!C$34,Parametres!E$34,Parametres!E$35))))))))) ->  | V40: =IF(B40=0,"",IF(A$2=Parametres!A$68,Parametres!D$10,IF(A$2=Parametres!A$69,Parametres!F$10,IF(A$2=Parametres!A$70,Parametres!H$10,"")))) ->  | Z40: =IF(B40=0,"",IF(A$2=Parametres!A$68,Parametres!D$20,IF(A$2=Parametres!A$69,Parametres!F$20,IF(A$2=Parametres!A$70,Parametres!H$20,"")))) ->  | AB40: =IF(A$2=Parametres!A$69,"",IF(B40=0,"",IF(N40>(W40+AA40),IF(N40<Parametres!D$28,"FORFAIT MINI","DEPENSES"),IF((W40+AA40)<Parametres!D$28,"FORFAIT MINI","RECETTES")))) ->  | AC40: =IF(A$2=Parametres!A$69,"",IF(B40=0,"",ROUND(IF(N40>(W40+AA40),IF(N40<Parametres!D$28,Parametres!D$28,N40),IF((W40+AA40)<Parametres!D$28,Parametres!D$28,(W40+AA40))),2))) ->  | AD40: =IF(A$2=Parametres!A$69,"",IF(B40=0,"",ROUND(AC40*Parametres!C$57,2))) ->  | AE40: =IF(A$2=Parametres!A$69,"",IF(B40=0,"",ROUND(AC40*Parametres!C$58,2))) ->  | AF40: =IF(A$2=Parametres!A$69,"",IF(B40=0,"",ROUND(AC40*Parametres!C$59,2))) ->  | AG40: =IF(A$2=Parametres!A$69,"",IF(B40=0,"",SUM(ROUND(AC40,2),ROUND(AD40,2),ROUND(AE40,2),ROUND(AF40,2)))) -> 
I41: =IF(F41=0,"",IF(A$2=Parametres!A$68,IF(G41="Oui",IF(H41="Oui",F41-F41*Parametres!C$41-(F41-F41*Parametres!C$41)*Parametres!C$42,IF(H41="Non",F41-F41*Parametres!C$41,"")),IF(G41="Non",IF(H41="Oui",F41-F41*Parametres!C$42,IF(H41="Non",F41,"")))),IF(A$2=Parametres!A$69,IF(G41="Oui",IF(H41="Oui",F41-F41*Parametres!C$41-(F41-F41*Parametres!C$41)*Parametres!C$42,IF(H41="Non",F41-F41*Parametres!E$41,"")),IF(G41="Non",IF(H41="Oui",F41-F41*Parametres!E$42,IF(H41="Non",F41,"")))),IF(A$2=Parametres!A$70,IF(G41="Oui",IF(H41="Oui",F41-F41*Parametres!C$41-(F41-F41*Parametres!C$41)*Parametres!C$42,IF(H41="Non",F41-F41*Parametres!G$41,"")),IF(G41="Non",IF(H41="Oui",F41-F41*Parametres!G$42,IF(H41="Non",F41,"")))),"")))) ->  | J41: =IF(B41=0,"",SUM(I38:I43)) ->  | K41: =IF(C41="","",IF(A$2=Parametres!A$70,Parametres!E$52,IF(A$2=Parametres!A$69,Parametres!E$51,IF(C41<=Parametres!D$47,Parametres!E$47,IF(C41<=Parametres!D$48,Parametres!E$48,IF(C41<=Parametres!D$49,Parametres!E$49,IF(C41>Parametres!D$50,Parametres!E$50,""))))))) ->  | L41: =IF(A$2=Parametres!A$70,Parametres!G$40,IF(B41="","",J41+J41*K41)) ->  | M41: =IF(B41=0,"",IF(A$2=Parametres!A$68,Parametres!D$10,IF(A$2=Parametres!A$69,Parametres!F$9,IF(A$2=Parametres!A$70,Parametres!H$9,"")))) ->  | U41: =IF(O41="gratuit","",IF(B41=0,"",IF(A$2=Parametres!A$68,IF(T41<Parametres!C$21,0,IF(T41<Parametres!D$32,Parametres!E$32,IF(T41<Parametres!C$33,Parametres!E$33,IF(T41<Parametres!C$34,Parametres!E$34,Parametres!E$35)))), IF(A$2=Parametres!A$69,IF(T41<Parametres!E$21,0,IF(T41<Parametres!D$32,Parametres!E$32,IF(T41<Parametres!C$33,Parametres!E$33,IF(T41<Parametres!C$34,Parametres!E$34,Parametres!E$35)))), IF(A$2=Parametres!A$70,IF(T41<Parametres!G$21,0,IF(T41<Parametres!D$32,Parametres!E$32,IF(T41<Parametres!C$33,Parametres!E$33,IF(T41<Parametres!C$34,Parametres!E$34,Parametres!E$35))))))))) ->  | V41: =IF(B41=0,"",IF(A$2=Parametres!A$68,Parametres!D$10,IF(A$2=Parametres!A$69,Parametres!F$10,IF(A$2=Parametres!A$70,Parametres!H$10,"")))) ->  | Z41: =IF(B41=0,"",IF(A$2=Parametres!A$68,Parametres!D$20,IF(A$2=Parametres!A$69,Parametres!F$20,IF(A$2=Parametres!A$70,Parametres!H$20,"")))) ->  | AB41: =IF(A$2=Parametres!A$69,"",IF(B41=0,"",IF(N41>(W41+AA41),IF(N41<Parametres!D$28,"FORFAIT MINI","DEPENSES"),IF((W41+AA41)<Parametres!D$28,"FORFAIT MINI","RECETTES")))) ->  | AC41: =IF(A$2=Parametres!A$69,"",IF(B41=0,"",ROUND(IF(N41>(W41+AA41),IF(N41<Parametres!D$28,Parametres!D$28,N41),IF((W41+AA41)<Parametres!D$28,Parametres!D$28,(W41+AA41))),2))) ->  | AD41: =IF(A$2=Parametres!A$69,"",IF(B41=0,"",ROUND(AC41*Parametres!C$57,2))) ->  | AE41: =IF(A$2=Parametres!A$69,"",IF(B41=0,"",ROUND(AC41*Parametres!C$58,2))) ->  | AF41: =IF(A$2=Parametres!A$69,"",IF(B41=0,"",ROUND(AC41*Parametres!C$59,2))) ->  | AG41: =IF(A$2=Parametres!A$69,"",IF(B41=0,"",SUM(ROUND(AC41,2),ROUND(AD41,2),ROUND(AE41,2),ROUND(AF41,2)))) -> 
I42: =IF(F42=0,"",IF(A$2=Parametres!A$68,IF(G42="Oui",IF(H42="Oui",F42-F42*Parametres!C$41-(F42-F42*Parametres!C$41)*Parametres!C$42,IF(H42="Non",F42-F42*Parametres!C$41,"")),IF(G42="Non",IF(H42="Oui",F42-F42*Parametres!C$42,IF(H42="Non",F42,"")))),IF(A$2=Parametres!A$69,IF(G42="Oui",IF(H42="Oui",F42-F42*Parametres!C$41-(F42-F42*Parametres!C$41)*Parametres!C$42,IF(H42="Non",F42-F42*Parametres!E$41,"")),IF(G42="Non",IF(H42="Oui",F42-F42*Parametres!E$42,IF(H42="Non",F42,"")))),IF(A$2=Parametres!A$70,IF(G42="Oui",IF(H42="Oui",F42-F42*Parametres!C$41-(F42-F42*Parametres!C$41)*Parametres!C$42,IF(H42="Non",F42-F42*Parametres!G$41,"")),IF(G42="Non",IF(H42="Oui",F42-F42*Parametres!G$42,IF(H42="Non",F42,"")))),"")))) ->  | J42: =IF(B42=0,"",SUM(I38:I43)) ->  | K42: =IF(C42="","",IF(A$2=Parametres!A$70,Parametres!E$52,IF(A$2=Parametres!A$69,Parametres!E$51,IF(C42<=Parametres!D$47,Parametres!E$47,IF(C42<=Parametres!D$48,Parametres!E$48,IF(C42<=Parametres!D$49,Parametres!E$49,IF(C42>Parametres!D$50,Parametres!E$50,""))))))) ->  | L42: =IF(A$2=Parametres!A$70,Parametres!G$40,IF(B42="","",J42+J42*K42)) ->  | M42: =IF(B42=0,"",IF(A$2=Parametres!A$68,Parametres!D$10,IF(A$2=Parametres!A$69,Parametres!F$9,IF(A$2=Parametres!A$70,Parametres!H$9,"")))) ->  | U42: =IF(O42="gratuit","",IF(B42=0,"",IF(A$2=Parametres!A$68,IF(T42<Parametres!C$21,0,IF(T42<Parametres!D$32,Parametres!E$32,IF(T42<Parametres!C$33,Parametres!E$33,IF(T42<Parametres!C$34,Parametres!E$34,Parametres!E$35)))), IF(A$2=Parametres!A$69,IF(T42<Parametres!E$21,0,IF(T42<Parametres!D$32,Parametres!E$32,IF(T42<Parametres!C$33,Parametres!E$33,IF(T42<Parametres!C$34,Parametres!E$34,Parametres!E$35)))), IF(A$2=Parametres!A$70,IF(T42<Parametres!G$21,0,IF(T42<Parametres!D$32,Parametres!E$32,IF(T42<Parametres!C$33,Parametres!E$33,IF(T42<Parametres!C$34,Parametres!E$34,Parametres!E$35))))))))) ->  | V42: =IF(B42=0,"",IF(A$2=Parametres!A$68,Parametres!D$10,IF(A$2=Parametres!A$69,Parametres!F$10,IF(A$2=Parametres!A$70,Parametres!H$10,"")))) ->  | Z42: =IF(B42=0,"",IF(A$2=Parametres!A$68,Parametres!D$20,IF(A$2=Parametres!A$69,Parametres!F$20,IF(A$2=Parametres!A$70,Parametres!H$20,"")))) ->  | AB42: =IF(A$2=Parametres!A$69,"",IF(B42=0,"",IF(N42>(W42+AA42),IF(N42<Parametres!D$28,"FORFAIT MINI","DEPENSES"),IF((W42+AA42)<Parametres!D$28,"FORFAIT MINI","RECETTES")))) ->  | AC42: =IF(A$2=Parametres!A$69,"",IF(B42=0,"",ROUND(IF(N42>(W42+AA42),IF(N42<Parametres!D$28,Parametres!D$28,N42),IF((W42+AA42)<Parametres!D$28,Parametres!D$28,(W42+AA42))),2))) ->  | AD42: =IF(A$2=Parametres!A$69,"",IF(B42=0,"",ROUND(AC42*Parametres!C$57,2))) ->  | AE42: =IF(A$2=Parametres!A$69,"",IF(B42=0,"",ROUND(AC42*Parametres!C$58,2))) ->  | AF42: =IF(A$2=Parametres!A$69,"",IF(B42=0,"",ROUND(AC42*Parametres!C$59,2))) ->  | AG42: =IF(A$2=Parametres!A$69,"",IF(B42=0,"",SUM(ROUND(AC42,2),ROUND(AD42,2),ROUND(AE42,2),ROUND(AF42,2)))) -> 
I43: =IF(F43=0,"",IF(A$2=Parametres!A$68,IF(G43="Oui",IF(H43="Oui",F43-F43*Parametres!C$41-(F43-F43*Parametres!C$41)*Parametres!C$42,IF(H43="Non",F43-F43*Parametres!C$41,"")),IF(G43="Non",IF(H43="Oui",F43-F43*Parametres!C$42,IF(H43="Non",F43,"")))),IF(A$2=Parametres!A$69,IF(G43="Oui",IF(H43="Oui",F43-F43*Parametres!C$41-(F43-F43*Parametres!C$41)*Parametres!C$42,IF(H43="Non",F43-F43*Parametres!E$41,"")),IF(G43="Non",IF(H43="Oui",F43-F43*Parametres!E$42,IF(H43="Non",F43,"")))),IF(A$2=Parametres!A$70,IF(G43="Oui",IF(H43="Oui",F43-F43*Parametres!C$41-(F43-F43*Parametres!C$41)*Parametres!C$42,IF(H43="Non",F43-F43*Parametres!G$41,"")),IF(G43="Non",IF(H43="Oui",F43-F43*Parametres!G$42,IF(H43="Non",F43,"")))),"")))) ->  | J43: =IF(B43=0,"",SUM(I38:I43)) ->  | K43: =IF(C43="","",IF(A$2=Parametres!A$70,Parametres!E$52,IF(A$2=Parametres!A$69,Parametres!E$51,IF(C43<=Parametres!D$47,Parametres!E$47,IF(C43<=Parametres!D$48,Parametres!E$48,IF(C43<=Parametres!D$49,Parametres!E$49,IF(C43>Parametres!D$50,Parametres!E$50,""))))))) ->  | L43: =IF(A$2=Parametres!A$70,Parametres!G$40,IF(B43="","",J43+J43*K43)) ->  | M43: =IF(B43=0,"",IF(A$2=Parametres!A$68,Parametres!D$10,IF(A$2=Parametres!A$69,Parametres!F$9,IF(A$2=Parametres!A$70,Parametres!H$9,"")))) ->  | U43: =IF(O43="gratuit","",IF(B43=0,"",IF(A$2=Parametres!A$68,IF(T43<Parametres!C$21,0,IF(T43<Parametres!D$32,Parametres!E$32,IF(T43<Parametres!C$33,Parametres!E$33,IF(T43<Parametres!C$34,Parametres!E$34,Parametres!E$35)))), IF(A$2=Parametres!A$69,IF(T43<Parametres!E$21,0,IF(T43<Parametres!D$32,Parametres!E$32,IF(T43<Parametres!C$33,Parametres!E$33,IF(T43<Parametres!C$34,Parametres!E$34,Parametres!E$35)))), IF(A$2=Parametres!A$70,IF(T43<Parametres!G$21,0,IF(T43<Parametres!D$32,Parametres!E$32,IF(T43<Parametres!C$33,Parametres!E$33,IF(T43<Parametres!C$34,Parametres!E$34,Parametres!E$35))))))))) ->  | V43: =IF(B43=0,"",IF(A$2=Parametres!A$68,Parametres!D$10,IF(A$2=Parametres!A$69,Parametres!F$10,IF(A$2=Parametres!A$70,Parametres!H$10,"")))) ->  | Z43: =IF(B43=0,"",IF(A$2=Parametres!A$68,Parametres!D$20,IF(A$2=Parametres!A$69,Parametres!F$20,IF(A$2=Parametres!A$70,Parametres!H$20,"")))) ->  | AB43: =IF(A$2=Parametres!A$69,"",IF(B43=0,"",IF(N43>(W43+AA43),IF(N43<Parametres!D$28,"FORFAIT MINI","DEPENSES"),IF((W43+AA43)<Parametres!D$28,"FORFAIT MINI","RECETTES")))) ->  | AC43: =IF(A$2=Parametres!A$69,"",IF(B43=0,"",ROUND(IF(N43>(W43+AA43),IF(N43<Parametres!D$28,Parametres!D$28,N43),IF((W43+AA43)<Parametres!D$28,Parametres!D$28,(W43+AA43))),2))) ->  | AD43: =IF(A$2=Parametres!A$69,"",IF(B43=0,"",ROUND(AC43*Parametres!C$57,2))) ->  | AE43: =IF(A$2=Parametres!A$69,"",IF(B43=0,"",ROUND(AC43*Parametres!C$58,2))) ->  | AF43: =IF(A$2=Parametres!A$69,"",IF(B43=0,"",ROUND(AC43*Parametres!C$59,2))) ->  | AG43: =IF(A$2=Parametres!A$69,"",IF(B43=0,"",SUM(ROUND(AC43,2),ROUND(AD43,2),ROUND(AE43,2),ROUND(AF43,2)))) -> 
I45: =IF(F45=0,"",IF(A$2=Parametres!A$68,IF(G45="Oui",IF(H45="Oui",F45-F45*Parametres!C$41-(F45-F45*Parametres!C$41)*Parametres!C$42,IF(H45="Non",F45-F45*Parametres!C$41,"")),IF(G45="Non",IF(H45="Oui",F45-F45*Parametres!C$42,IF(H45="Non",F45,"")))),IF(A$2=Parametres!A$69,IF(G45="Oui",IF(H45="Oui",F45-F45*Parametres!C$41-(F45-F45*Parametres!C$41)*Parametres!C$42,IF(H45="Non",F45-F45*Parametres!E$41,"")),IF(G45="Non",IF(H45="Oui",F45-F45*Parametres!E$42,IF(H45="Non",F45,"")))),IF(A$2=Parametres!A$70,IF(G45="Oui",IF(H45="Oui",F45-F45*Parametres!C$41-(F45-F45*Parametres!C$41)*Parametres!C$42,IF(H45="Non",F45-F45*Parametres!G$41,"")),IF(G45="Non",IF(H45="Oui",F45-F45*Parametres!G$42,IF(H45="Non",F45,"")))),"")))) ->  | J45: =IF(B45=0,"",SUM(I45:I50)) ->  | K45: =IF(C45="","",IF(A$2=Parametres!A$70,Parametres!E$52,IF(A$2=Parametres!A$69,Parametres!E$51,IF(C45<=Parametres!D$47,Parametres!E$47,IF(C45<=Parametres!D$48,Parametres!E$48,IF(C45<=Parametres!D$49,Parametres!E$49,IF(C45>Parametres!D$50,Parametres!E$50,""))))))) ->  | L45: =IF(A$2=Parametres!A$70,Parametres!G$40,IF(B45="","",J45+J45*K45)) ->  | M45: =IF(B45=0,"",IF(A$2=Parametres!A$68,Parametres!D$10,IF(A$2=Parametres!A$69,Parametres!F$10,IF(A$2=Parametres!A$70,Parametres!H$10,"")))) ->  | N45: =IF(B45=0,"",M45*L45) ->  | O45: =IF(P45>0,"payant",IF(B45=0,"","gratuit")) ->  | Q45: =IF(B45=0,"",R45+S45) ->  | T45: =IF(O45="gratuit","",IF(Q45=0,0,IF(Q45="","",S45/R45))) ->  | U45: =IF(O45="gratuit","",IF(B45=0,"",IF(A$2=Parametres!A$68,IF(T45<Parametres!C$21,0,IF(T45<Parametres!D$32,Parametres!E$32,IF(T45<Parametres!C$33,Parametres!E$33,IF(T45<Parametres!C$34,Parametres!E$34,Parametres!E$35)))), IF(A$2=Parametres!A$69,IF(T45<Parametres!E$21,0,IF(T45<Parametres!D$32,Parametres!E$32,IF(T45<Parametres!C$33,Parametres!E$33,IF(T45<Parametres!C$34,Parametres!E$34,Parametres!E$35)))), IF(A$2=Parametres!A$70,IF(T45<Parametres!G$21,0,IF(T45<Parametres!D$32,Parametres!E$32,IF(T45<Parametres!C$33,Parametres!E$33,IF(T45<Parametres!C$34,Parametres!E$34,Parametres!E$35))))))))) ->  | V45: =IF(B45=0,"",IF(A$2=Parametres!A$68,Parametres!D$10,IF(A$2=Parametres!A$69,Parametres!F$10,IF(A$2=Parametres!A$70,Parametres!H$10,"")))) ->  | W45: =IF(B45=0,"",IF(O45="gratuit",P45*V45,P45*V45+(P45*V45)*U45)) ->  | Z45: =IF(B45=0,"",IF(A$2=Parametres!A$68,Parametres!D$20,IF(A$2=Parametres!A$69,Parametres!F$20,IF(A$2=Parametres!A$70,Parametres!H$20,"")))) ->  | AA45: =IF(B45=0,"",(X45+Y45)*Z45) ->  | AB45: =IF(A$2=Parametres!A$69,"",IF(B45=0,"",IF(N45>(W45+AA45),IF(N45<Parametres!D$28,"FORFAIT MINI","DEPENSES"),IF((W45+AA45)<Parametres!D$28,"FORFAIT MINI","RECETTES")))) ->  | AC45: =IF(A$2=Parametres!A$69,"",IF(B45=0,"",ROUND(IF(N45>(W45+AA45),IF(N45<Parametres!D$28,Parametres!D$28,N45),IF((W45+AA45)<Parametres!D$28,Parametres!D$28,(W45+AA45))),2))) ->  | AD45: =IF(A$2=Parametres!A$69,"",IF(B45=0,"",ROUND(AC45*Parametres!C$57,2))) ->  | AE45: =IF(A$2=Parametres!A$69,"",IF(B45=0,"",ROUND(AC45*Parametres!C$58,2))) ->  | AF45: =IF(A$2=Parametres!A$69,"",IF(B45=0,"",ROUND(AC45*Parametres!C$59,2))) ->  | AG45: =IF(A$2=Parametres!A$69,"",IF(B45=0,"",SUM(ROUND(AC45,2),ROUND(AD45,2),ROUND(AE45,2),ROUND(AF45,2)))) -> 
I46: =IF(F46=0,"",IF(A$2=Parametres!A$68,IF(G46="Oui",IF(H46="Oui",F46-F46*Parametres!C$41-(F46-F46*Parametres!C$41)*Parametres!C$42,IF(H46="Non",F46-F46*Parametres!C$41,"")),IF(G46="Non",IF(H46="Oui",F46-F46*Parametres!C$42,IF(H46="Non",F46,"")))),IF(A$2=Parametres!A$69,IF(G46="Oui",IF(H46="Oui",F46-F46*Parametres!C$41-(F46-F46*Parametres!C$41)*Parametres!C$42,IF(H46="Non",F46-F46*Parametres!E$41,"")),IF(G46="Non",IF(H46="Oui",F46-F46*Parametres!E$42,IF(H46="Non",F46,"")))),IF(A$2=Parametres!A$70,IF(G46="Oui",IF(H46="Oui",F46-F46*Parametres!C$41-(F46-F46*Parametres!C$41)*Parametres!C$42,IF(H46="Non",F46-F46*Parametres!G$41,"")),IF(G46="Non",IF(H46="Oui",F46-F46*Parametres!G$42,IF(H46="Non",F46,"")))),"")))) ->  | J46: =IF(B46=0,"",SUM(I45:I50)) ->  | K46: =IF(C46="","",IF(A$2=Parametres!A$70,Parametres!E$52,IF(A$2=Parametres!A$69,Parametres!E$51,IF(C46<=Parametres!D$47,Parametres!E$47,IF(C46<=Parametres!D$48,Parametres!E$48,IF(C46<=Parametres!D$49,Parametres!E$49,IF(C46>Parametres!D$50,Parametres!E$50,""))))))) ->  | L46: =IF(A$2=Parametres!A$70,Parametres!G$40,IF(B46="","",J46+J46*K46)) ->  | M46: =IF(B46=0,"",IF(A$2=Parametres!A$68,Parametres!D$10,IF(A$2=Parametres!A$69,Parametres!F$9,IF(A$2=Parametres!A$70,Parametres!H$9,"")))) ->  | T46: =IF(O46="gratuit","",IF(Q46=0,0,IF(Q46="","",S46/R46))) ->  | U46: =IF(O46="gratuit","",IF(B46=0,"",IF(A$2=Parametres!A$68,IF(T46<Parametres!C$21,0,IF(T46<Parametres!D$32,Parametres!E$32,IF(T46<Parametres!C$33,Parametres!E$33,IF(T46<Parametres!C$34,Parametres!E$34,Parametres!E$35)))), IF(A$2=Parametres!A$69,IF(T46<Parametres!E$21,0,IF(T46<Parametres!D$32,Parametres!E$32,IF(T46<Parametres!C$33,Parametres!E$33,IF(T46<Parametres!C$34,Parametres!E$34,Parametres!E$35)))), IF(A$2=Parametres!A$70,IF(T46<Parametres!G$21,0,IF(T46<Parametres!D$32,Parametres!E$32,IF(T46<Parametres!C$33,Parametres!E$33,IF(T46<Parametres!C$34,Parametres!E$34,Parametres!E$35))))))))) ->  | V46: =IF(B46=0,"",IF(A$2=Parametres!A$68,Parametres!D$10,IF(A$2=Parametres!A$69,Parametres!F$10,IF(A$2=Parametres!A$70,Parametres!H$10,"")))) ->  | W46: =IF(B46=0,"",IF(O46="gratuit",P46*V46,P46*V46+(P46*V46)*U46)) ->  | Z46: =IF(B46=0,"",IF(A$2=Parametres!A$68,Parametres!D$20,IF(A$2=Parametres!A$69,Parametres!F$20,IF(A$2=Parametres!A$70,Parametres!H$20,"")))) ->  | AB46: =IF(A$2=Parametres!A$69,"",IF(B46=0,"",IF(N46>(W46+AA46),IF(N46<Parametres!D$28,"FORFAIT MINI","DEPENSES"),IF((W46+AA46)<Parametres!D$28,"FORFAIT MINI","RECETTES")))) ->  | AC46: =IF(A$2=Parametres!A$69,"",IF(B46=0,"",ROUND(IF(N46>(W46+AA46),IF(N46<Parametres!D$28,Parametres!D$28,N46),IF((W46+AA46)<Parametres!D$28,Parametres!D$28,(W46+AA46))),2))) ->  | AD46: =IF(A$2=Parametres!A$69,"",IF(B46=0,"",ROUND(AC46*Parametres!C$57,2))) ->  | AE46: =IF(A$2=Parametres!A$69,"",IF(B46=0,"",ROUND(AC46*Parametres!C$58,2))) ->  | AF46: =IF(A$2=Parametres!A$69,"",IF(B46=0,"",ROUND(AC46*Parametres!C$59,2))) ->  | AG46: =IF(A$2=Parametres!A$69,"",IF(B46=0,"",SUM(ROUND(AC46,2),ROUND(AD46,2),ROUND(AE46,2),ROUND(AF46,2)))) -> 
I47: =IF(F47=0,"",IF(A$2=Parametres!A$68,IF(G47="Oui",IF(H47="Oui",F47-F47*Parametres!C$41-(F47-F47*Parametres!C$41)*Parametres!C$42,IF(H47="Non",F47-F47*Parametres!C$41,"")),IF(G47="Non",IF(H47="Oui",F47-F47*Parametres!C$42,IF(H47="Non",F47,"")))),IF(A$2=Parametres!A$69,IF(G47="Oui",IF(H47="Oui",F47-F47*Parametres!C$41-(F47-F47*Parametres!C$41)*Parametres!C$42,IF(H47="Non",F47-F47*Parametres!E$41,"")),IF(G47="Non",IF(H47="Oui",F47-F47*Parametres!E$42,IF(H47="Non",F47,"")))),IF(A$2=Parametres!A$70,IF(G47="Oui",IF(H47="Oui",F47-F47*Parametres!C$41-(F47-F47*Parametres!C$41)*Parametres!C$42,IF(H47="Non",F47-F47*Parametres!G$41,"")),IF(G47="Non",IF(H47="Oui",F47-F47*Parametres!G$42,IF(H47="Non",F47,"")))),"")))) ->  | J47: =IF(B47=0,"",(I45:I50)) ->  | K47: =IF(C47="","",IF(A$2=Parametres!A$70,Parametres!E$52,IF(A$2=Parametres!A$69,Parametres!E$51,IF(C47<=Parametres!D$47,Parametres!E$47,IF(C47<=Parametres!D$48,Parametres!E$48,IF(C47<=Parametres!D$49,Parametres!E$49,IF(C47>Parametres!D$50,Parametres!E$50,""))))))) ->  | L47: =IF(A$2=Parametres!A$70,Parametres!G$40,IF(B47="","",J47+J47*K47)) ->  | M47: =IF(B47=0,"",IF(A$2=Parametres!A$68,Parametres!D$10,IF(A$2=Parametres!A$69,Parametres!F$9,IF(A$2=Parametres!A$70,Parametres!H$9,"")))) ->  | U47: =IF(O47="gratuit","",IF(B47=0,"",IF(A$2=Parametres!A$68,IF(T47<Parametres!C$21,0,IF(T47<Parametres!D$32,Parametres!E$32,IF(T47<Parametres!C$33,Parametres!E$33,IF(T47<Parametres!C$34,Parametres!E$34,Parametres!E$35)))), IF(A$2=Parametres!A$69,IF(T47<Parametres!E$21,0,IF(T47<Parametres!D$32,Parametres!E$32,IF(T47<Parametres!C$33,Parametres!E$33,IF(T47<Parametres!C$34,Parametres!E$34,Parametres!E$35)))), IF(A$2=Parametres!A$70,IF(T47<Parametres!G$21,0,IF(T47<Parametres!D$32,Parametres!E$32,IF(T47<Parametres!C$33,Parametres!E$33,IF(T47<Parametres!C$34,Parametres!E$34,Parametres!E$35))))))))) ->  | V47: =IF(B47=0,"",IF(A$2=Parametres!A$68,Parametres!D$10,IF(A$2=Parametres!A$69,Parametres!F$10,IF(A$2=Parametres!A$70,Parametres!H$10,"")))) ->  | Z47: =IF(B47=0,"",IF(A$2=Parametres!A$68,Parametres!D$20,IF(A$2=Parametres!A$69,Parametres!F$20,IF(A$2=Parametres!A$70,Parametres!H$20,"")))) ->  | AB47: =IF(A$2=Parametres!A$69,"",IF(B47=0,"",IF(N47>(W47+AA47),IF(N47<Parametres!D$28,"FORFAIT MINI","DEPENSES"),IF((W47+AA47)<Parametres!D$28,"FORFAIT MINI","RECETTES")))) ->  | AC47: =IF(A$2=Parametres!A$69,"",IF(B47=0,"",ROUND(IF(N47>(W47+AA47),IF(N47<Parametres!D$28,Parametres!D$28,N47),IF((W47+AA47)<Parametres!D$28,Parametres!D$28,(W47+AA47))),2))) ->  | AD47: =IF(A$2=Parametres!A$69,"",IF(B47=0,"",ROUND(AC47*Parametres!C$57,2))) ->  | AE47: =IF(A$2=Parametres!A$69,"",IF(B47=0,"",ROUND(AC47*Parametres!C$58,2))) ->  | AF47: =IF(A$2=Parametres!A$69,"",IF(B47=0,"",ROUND(AC47*Parametres!C$59,2))) ->  | AG47: =IF(A$2=Parametres!A$69,"",IF(B47=0,"",SUM(ROUND(AC47,2),ROUND(AD47,2),ROUND(AE47,2),ROUND(AF47,2)))) -> 
I48: =IF(F48=0,"",IF(A$2=Parametres!A$68,IF(G48="Oui",IF(H48="Oui",F48-F48*Parametres!C$41-(F48-F48*Parametres!C$41)*Parametres!C$42,IF(H48="Non",F48-F48*Parametres!C$41,"")),IF(G48="Non",IF(H48="Oui",F48-F48*Parametres!C$42,IF(H48="Non",F48,"")))),IF(A$2=Parametres!A$69,IF(G48="Oui",IF(H48="Oui",F48-F48*Parametres!C$41-(F48-F48*Parametres!C$41)*Parametres!C$42,IF(H48="Non",F48-F48*Parametres!E$41,"")),IF(G48="Non",IF(H48="Oui",F48-F48*Parametres!E$42,IF(H48="Non",F48,"")))),IF(A$2=Parametres!A$70,IF(G48="Oui",IF(H48="Oui",F48-F48*Parametres!C$41-(F48-F48*Parametres!C$41)*Parametres!C$42,IF(H48="Non",F48-F48*Parametres!G$41,"")),IF(G48="Non",IF(H48="Oui",F48-F48*Parametres!G$42,IF(H48="Non",F48,"")))),"")))) ->  | J48: =IF(B48=0,"",SUM(I45:I50)) ->  | K48: =IF(C48="","",IF(A$2=Parametres!A$70,Parametres!E$52,IF(A$2=Parametres!A$69,Parametres!E$51,IF(C48<=Parametres!D$47,Parametres!E$47,IF(C48<=Parametres!D$48,Parametres!E$48,IF(C48<=Parametres!D$49,Parametres!E$49,IF(C48>Parametres!D$50,Parametres!E$50,""))))))) ->  | L48: =IF(A$2=Parametres!A$70,Parametres!G$40,IF(B48="","",J48+J48*K48)) ->  | M48: =IF(B48=0,"",IF(A$2=Parametres!A$68,Parametres!D$10,IF(A$2=Parametres!A$69,Parametres!F$9,IF(A$2=Parametres!A$70,Parametres!H$9,"")))) ->  | U48: =IF(O48="gratuit","",IF(B48=0,"",IF(A$2=Parametres!A$68,IF(T48<Parametres!C$21,0,IF(T48<Parametres!D$32,Parametres!E$32,IF(T48<Parametres!C$33,Parametres!E$33,IF(T48<Parametres!C$34,Parametres!E$34,Parametres!E$35)))), IF(A$2=Parametres!A$69,IF(T48<Parametres!E$21,0,IF(T48<Parametres!D$32,Parametres!E$32,IF(T48<Parametres!C$33,Parametres!E$33,IF(T48<Parametres!C$34,Parametres!E$34,Parametres!E$35)))), IF(A$2=Parametres!A$70,IF(T48<Parametres!G$21,0,IF(T48<Parametres!D$32,Parametres!E$32,IF(T48<Parametres!C$33,Parametres!E$33,IF(T48<Parametres!C$34,Parametres!E$34,Parametres!E$35))))))))) ->  | V48: =IF(B48=0,"",IF(A$2=Parametres!A$68,Parametres!D$10,IF(A$2=Parametres!A$69,Parametres!F$10,IF(A$2=Parametres!A$70,Parametres!H$10,"")))) ->  | Z48: =IF(B48=0,"",IF(A$2=Parametres!A$68,Parametres!D$20,IF(A$2=Parametres!A$69,Parametres!F$20,IF(A$2=Parametres!A$70,Parametres!H$20,"")))) ->  | AB48: =IF(A$2=Parametres!A$69,"",IF(B48=0,"",IF(N48>(W48+AA48),IF(N48<Parametres!D$28,"FORFAIT MINI","DEPENSES"),IF((W48+AA48)<Parametres!D$28,"FORFAIT MINI","RECETTES")))) ->  | AC48: =IF(A$2=Parametres!A$69,"",IF(B48=0,"",ROUND(IF(N48>(W48+AA48),IF(N48<Parametres!D$28,Parametres!D$28,N48),IF((W48+AA48)<Parametres!D$28,Parametres!D$28,(W48+AA48))),2))) ->  | AD48: =IF(A$2=Parametres!A$69,"",IF(B48=0,"",ROUND(AC48*Parametres!C$57,2))) ->  | AE48: =IF(A$2=Parametres!A$69,"",IF(B48=0,"",ROUND(AC48*Parametres!C$58,2))) ->  | AF48: =IF(A$2=Parametres!A$69,"",IF(B48=0,"",ROUND(AC48*Parametres!C$59,2))) ->  | AG48: =IF(A$2=Parametres!A$69,"",IF(B48=0,"",SUM(ROUND(AC48,2),ROUND(AD48,2),ROUND(AE48,2),ROUND(AF48,2)))) -> 
I49: =IF(F49=0,"",IF(A$2=Parametres!A$68,IF(G49="Oui",IF(H49="Oui",F49-F49*Parametres!C$41-(F49-F49*Parametres!C$41)*Parametres!C$42,IF(H49="Non",F49-F49*Parametres!C$41,"")),IF(G49="Non",IF(H49="Oui",F49-F49*Parametres!C$42,IF(H49="Non",F49,"")))),IF(A$2=Parametres!A$69,IF(G49="Oui",IF(H49="Oui",F49-F49*Parametres!C$41-(F49-F49*Parametres!C$41)*Parametres!C$42,IF(H49="Non",F49-F49*Parametres!E$41,"")),IF(G49="Non",IF(H49="Oui",F49-F49*Parametres!E$42,IF(H49="Non",F49,"")))),IF(A$2=Parametres!A$70,IF(G49="Oui",IF(H49="Oui",F49-F49*Parametres!C$41-(F49-F49*Parametres!C$41)*Parametres!C$42,IF(H49="Non",F49-F49*Parametres!G$41,"")),IF(G49="Non",IF(H49="Oui",F49-F49*Parametres!G$42,IF(H49="Non",F49,"")))),"")))) ->  | J49: =IF(B49=0,"",SUM(I45:I50)) ->  | K49: =IF(C49="","",IF(A$2=Parametres!A$70,Parametres!E$52,IF(A$2=Parametres!A$69,Parametres!E$51,IF(C49<=Parametres!D$47,Parametres!E$47,IF(C49<=Parametres!D$48,Parametres!E$48,IF(C49<=Parametres!D$49,Parametres!E$49,IF(C49>Parametres!D$50,Parametres!E$50,""))))))) ->  | L49: =IF(A$2=Parametres!A$70,Parametres!G$40,IF(B49="","",J49+J49*K49)) ->  | M49: =IF(B49=0,"",IF(A$2=Parametres!A$68,Parametres!D$10,IF(A$2=Parametres!A$69,Parametres!F$9,IF(A$2=Parametres!A$70,Parametres!H$9,"")))) ->  | U49: =IF(O49="gratuit","",IF(B49=0,"",IF(A$2=Parametres!A$68,IF(T49<Parametres!C$21,0,IF(T49<Parametres!D$32,Parametres!E$32,IF(T49<Parametres!C$33,Parametres!E$33,IF(T49<Parametres!C$34,Parametres!E$34,Parametres!E$35)))), IF(A$2=Parametres!A$69,IF(T49<Parametres!E$21,0,IF(T49<Parametres!D$32,Parametres!E$32,IF(T49<Parametres!C$33,Parametres!E$33,IF(T49<Parametres!C$34,Parametres!E$34,Parametres!E$35)))), IF(A$2=Parametres!A$70,IF(T49<Parametres!G$21,0,IF(T49<Parametres!D$32,Parametres!E$32,IF(T49<Parametres!C$33,Parametres!E$33,IF(T49<Parametres!C$34,Parametres!E$34,Parametres!E$35))))))))) ->  | V49: =IF(B49=0,"",IF(A$2=Parametres!A$68,Parametres!D$10,IF(A$2=Parametres!A$69,Parametres!F$10,IF(A$2=Parametres!A$70,Parametres!H$10,"")))) ->  | Z49: =IF(B49=0,"",IF(A$2=Parametres!A$68,Parametres!D$20,IF(A$2=Parametres!A$69,Parametres!F$20,IF(A$2=Parametres!A$70,Parametres!H$20,"")))) ->  | AB49: =IF(A$2=Parametres!A$69,"",IF(B49=0,"",IF(N49>(W49+AA49),IF(N49<Parametres!D$28,"FORFAIT MINI","DEPENSES"),IF((W49+AA49)<Parametres!D$28,"FORFAIT MINI","RECETTES")))) ->  | AC49: =IF(A$2=Parametres!A$69,"",IF(B49=0,"",ROUND(IF(N49>(W49+AA49),IF(N49<Parametres!D$28,Parametres!D$28,N49),IF((W49+AA49)<Parametres!D$28,Parametres!D$28,(W49+AA49))),2))) ->  | AD49: =IF(A$2=Parametres!A$69,"",IF(B49=0,"",ROUND(AC49*Parametres!C$57,2))) ->  | AE49: =IF(A$2=Parametres!A$69,"",IF(B49=0,"",ROUND(AC49*Parametres!C$58,2))) ->  | AF49: =IF(A$2=Parametres!A$69,"",IF(B49=0,"",ROUND(AC49*Parametres!C$59,2))) ->  | AG49: =IF(A$2=Parametres!A$69,"",IF(B49=0,"",SUM(ROUND(AC49,2),ROUND(AD49,2),ROUND(AE49,2),ROUND(AF49,2)))) -> 
I50: =IF(F50=0,"",IF(A$2=Parametres!A$68,IF(G50="Oui",IF(H50="Oui",F50-F50*Parametres!C$41-(F50-F50*Parametres!C$41)*Parametres!C$42,IF(H50="Non",F50-F50*Parametres!C$41,"")),IF(G50="Non",IF(H50="Oui",F50-F50*Parametres!C$42,IF(H50="Non",F50,"")))),IF(A$2=Parametres!A$69,IF(G50="Oui",IF(H50="Oui",F50-F50*Parametres!C$41-(F50-F50*Parametres!C$41)*Parametres!C$42,IF(H50="Non",F50-F50*Parametres!E$41,"")),IF(G50="Non",IF(H50="Oui",F50-F50*Parametres!E$42,IF(H50="Non",F50,"")))),IF(A$2=Parametres!A$70,IF(G50="Oui",IF(H50="Oui",F50-F50*Parametres!C$41-(F50-F50*Parametres!C$41)*Parametres!C$42,IF(H50="Non",F50-F50*Parametres!G$41,"")),IF(G50="Non",IF(H50="Oui",F50-F50*Parametres!G$42,IF(H50="Non",F50,"")))),"")))) ->  | J50: =IF(B50=0,"",SUM(I45:I50)) ->  | K50: =IF(C50="","",IF(A$2=Parametres!A$70,Parametres!E$52,IF(A$2=Parametres!A$69,Parametres!E$51,IF(C50<=Parametres!D$47,Parametres!E$47,IF(C50<=Parametres!D$48,Parametres!E$48,IF(C50<=Parametres!D$49,Parametres!E$49,IF(C50>Parametres!D$50,Parametres!E$50,""))))))) ->  | L50: =IF(A$2=Parametres!A$70,Parametres!G$40,IF(B50="","",J50+J50*K50)) ->  | M50: =IF(B50=0,"",IF(A$2=Parametres!A$68,Parametres!D$10,IF(A$2=Parametres!A$69,Parametres!F$9,IF(A$2=Parametres!A$70,Parametres!H$9,"")))) ->  | U50: =IF(O50="gratuit","",IF(B50=0,"",IF(A$2=Parametres!A$68,IF(T50<Parametres!C$21,0,IF(T50<Parametres!D$32,Parametres!E$32,IF(T50<Parametres!C$33,Parametres!E$33,IF(T50<Parametres!C$34,Parametres!E$34,Parametres!E$35)))), IF(A$2=Parametres!A$69,IF(T50<Parametres!E$21,0,IF(T50<Parametres!D$32,Parametres!E$32,IF(T50<Parametres!C$33,Parametres!E$33,IF(T50<Parametres!C$34,Parametres!E$34,Parametres!E$35)))), IF(A$2=Parametres!A$70,IF(T50<Parametres!G$21,0,IF(T50<Parametres!D$32,Parametres!E$32,IF(T50<Parametres!C$33,Parametres!E$33,IF(T50<Parametres!C$34,Parametres!E$34,Parametres!E$35))))))))) ->  | V50: =IF(B50=0,"",IF(A$2=Parametres!A$68,Parametres!D$10,IF(A$2=Parametres!A$69,Parametres!F$10,IF(A$2=Parametres!A$70,Parametres!H$10,"")))) ->  | Z50: =IF(B50=0,"",IF(A$2=Parametres!A$68,Parametres!D$20,IF(A$2=Parametres!A$69,Parametres!F$20,IF(A$2=Parametres!A$70,Parametres!H$20,"")))) ->  | AB50: =IF(A$2=Parametres!A$69,"",IF(B50=0,"",IF(N50>(W50+AA50),IF(N50<Parametres!D$28,"FORFAIT MINI","DEPENSES"),IF((W50+AA50)<Parametres!D$28,"FORFAIT MINI","RECETTES")))) ->  | AC50: =IF(A$2=Parametres!A$69,"",IF(B50=0,"",ROUND(IF(N50>(W50+AA50),IF(N50<Parametres!D$28,Parametres!D$28,N50),IF((W50+AA50)<Parametres!D$28,Parametres!D$28,(W50+AA50))),2))) ->  | AD50: =IF(A$2=Parametres!A$69,"",IF(B50=0,"",ROUND(AC50*Parametres!C$57,2))) ->  | AE50: =IF(A$2=Parametres!A$69,"",IF(B50=0,"",ROUND(AC50*Parametres!C$58,2))) ->  | AF50: =IF(A$2=Parametres!A$69,"",IF(B50=0,"",ROUND(AC50*Parametres!C$59,2))) ->  | AG50: =IF(A$2=Parametres!A$69,"",IF(B50=0,"",SUM(ROUND(AC50,2),ROUND(AD50,2),ROUND(AE50,2),ROUND(AF50,2)))) -> 
I52: =IF(F52=0,"",IF(A$2=Parametres!A$68,IF(G52="Oui",IF(H52="Oui",F52-F52*Parametres!C$41-(F52-F52*Parametres!C$41)*Parametres!C$42,IF(H52="Non",F52-F52*Parametres!C$41,"")),IF(G52="Non",IF(H52="Oui",F52-F52*Parametres!C$42,IF(H52="Non",F52,"")))),IF(A$2=Parametres!A$69,IF(G52="Oui",IF(H52="Oui",F52-F52*Parametres!C$41-(F52-F52*Parametres!C$41)*Parametres!C$42,IF(H52="Non",F52-F52*Parametres!E$41,"")),IF(G52="Non",IF(H52="Oui",F52-F52*Parametres!E$42,IF(H52="Non",F52,"")))),IF(A$2=Parametres!A$70,IF(G52="Oui",IF(H52="Oui",F52-F52*Parametres!C$41-(F52-F52*Parametres!C$41)*Parametres!C$42,IF(H52="Non",F52-F52*Parametres!G$41,"")),IF(G52="Non",IF(H52="Oui",F52-F52*Parametres!G$42,IF(H52="Non",F52,"")))),"")))) ->  | J52: =IF(B52=0,"",SUM(I52:I57)) ->  | K52: =IF(C52="","",IF(A$2=Parametres!A$70,Parametres!E$52,IF(A$2=Parametres!A$69,Parametres!E$51,IF(C52<=Parametres!D$47,Parametres!E$47,IF(C52<=Parametres!D$48,Parametres!E$48,IF(C52<=Parametres!D$49,Parametres!E$49,IF(C52>Parametres!D$50,Parametres!E$50,""))))))) ->  | L52: =IF(A$2=Parametres!A$70,Parametres!G$40,IF(B52="","",J52+J52*K52)) ->  | M52: =IF(B52=0,"",IF(A$2=Parametres!A$68,Parametres!D$10,IF(A$2=Parametres!A$69,Parametres!F$10,IF(A$2=Parametres!A$70,Parametres!H$10,"")))) ->  | N52: =IF(B52=0,"",M52*L52) ->  | O52: =IF(P52>0,"payant",IF(B52=0,"","gratuit")) ->  | Q52: =IF(B52=0,"",R52+S52) ->  | T52: =IF(O52="gratuit","",IF(Q52=0,0,IF(Q52="","",S52/R52))) ->  | U52: =IF(O52="gratuit","",IF(B52=0,"",IF(A$2=Parametres!A$68,IF(T52<Parametres!C$21,0,IF(T52<Parametres!D$32,Parametres!E$32,IF(T52<Parametres!C$33,Parametres!E$33,IF(T52<Parametres!C$34,Parametres!E$34,Parametres!E$35)))), IF(A$2=Parametres!A$69,IF(T52<Parametres!E$21,0,IF(T52<Parametres!D$32,Parametres!E$32,IF(T52<Parametres!C$33,Parametres!E$33,IF(T52<Parametres!C$34,Parametres!E$34,Parametres!E$35)))), IF(A$2=Parametres!A$70,IF(T52<Parametres!G$21,0,IF(T52<Parametres!D$32,Parametres!E$32,IF(T52<Parametres!C$33,Parametres!E$33,IF(T52<Parametres!C$34,Parametres!E$34,Parametres!E$35))))))))) ->  | V52: =IF(B52=0,"",IF(A$2=Parametres!A$68,Parametres!D$10,IF(A$2=Parametres!A$69,Parametres!F$10,IF(A$2=Parametres!A$70,Parametres!H$10,"")))) ->  | W52: =IF(B52=0,"",IF(O52="gratuit",P52*V52,P52*V52+(P52*V52)*U52)) ->  | Z52: =IF(B52=0,"",IF(A$2=Parametres!A$68,Parametres!D$20,IF(A$2=Parametres!A$69,Parametres!F$20,IF(A$2=Parametres!A$70,Parametres!H$20,"")))) ->  | AA52: =IF(B52=0,"",(X52+Y52)*Z52) ->  | AB52: =IF(A$2=Parametres!A$69,"",IF(B52=0,"",IF(N52>(W52+AA52),IF(N52<Parametres!D$28,"FORFAIT MINI","DEPENSES"),IF((W52+AA52)<Parametres!D$28,"FORFAIT MINI","RECETTES")))) ->  | AC52: =IF(A$2=Parametres!A$69,"",IF(B52=0,"",ROUND(IF(N52>(W52+AA52),IF(N52<Parametres!D$28,Parametres!D$28,N52),IF((W52+AA52)<Parametres!D$28,Parametres!D$28,(W52+AA52))),2))) ->  | AD52: =IF(A$2=Parametres!A$69,"",IF(B52=0,"",ROUND(AC52*Parametres!C$57,2))) ->  | AE52: =IF(A$2=Parametres!A$69,"",IF(B52=0,"",ROUND(AC52*Parametres!C$58,2))) ->  | AF52: =IF(A$2=Parametres!A$69,"",IF(B52=0,"",ROUND(AC52*Parametres!C$59,2))) ->  | AG52: =IF(A$2=Parametres!A$69,"",IF(B52=0,"",SUM(ROUND(AC52,2),ROUND(AD52,2),ROUND(AE52,2),ROUND(AF52,2)))) -> 
I53: =IF(F53=0,"",IF(A$2=Parametres!A$68,IF(G53="Oui",IF(H53="Oui",F53-F53*Parametres!C$41-(F53-F53*Parametres!C$41)*Parametres!C$42,IF(H53="Non",F53-F53*Parametres!C$41,"")),IF(G53="Non",IF(H53="Oui",F53-F53*Parametres!C$42,IF(H53="Non",F53,"")))),IF(A$2=Parametres!A$69,IF(G53="Oui",IF(H53="Oui",F53-F53*Parametres!C$41-(F53-F53*Parametres!C$41)*Parametres!C$42,IF(H53="Non",F53-F53*Parametres!E$41,"")),IF(G53="Non",IF(H53="Oui",F53-F53*Parametres!E$42,IF(H53="Non",F53,"")))),IF(A$2=Parametres!A$70,IF(G53="Oui",IF(H53="Oui",F53-F53*Parametres!C$41-(F53-F53*Parametres!C$41)*Parametres!C$42,IF(H53="Non",F53-F53*Parametres!G$41,"")),IF(G53="Non",IF(H53="Oui",F53-F53*Parametres!G$42,IF(H53="Non",F53,"")))),"")))) ->  | J53: =IF(B53=0,"",SUM(I52:I57)) ->  | K53: =IF(C53="","",IF(A$2=Parametres!A$70,Parametres!E$52,IF(A$2=Parametres!A$69,Parametres!E$51,IF(C53<=Parametres!D$47,Parametres!E$47,IF(C53<=Parametres!D$48,Parametres!E$48,IF(C53<=Parametres!D$49,Parametres!E$49,IF(C53>Parametres!D$50,Parametres!E$50,""))))))) ->  | L53: =IF(A$2=Parametres!A$70,Parametres!G$40,IF(B53="","",J53+J53*K53)) ->  | M53: =IF(B53=0,"",IF(A$2=Parametres!A$68,Parametres!D$10,IF(A$2=Parametres!A$69,Parametres!F$9,IF(A$2=Parametres!A$70,Parametres!H$9,"")))) ->  | T53: =IF(O53="gratuit","",IF(Q53=0,0,IF(Q53="","",S53/R53))) ->  | U53: =IF(O53="gratuit","",IF(B53=0,"",IF(A$2=Parametres!A$68,IF(T53<Parametres!C$21,0,IF(T53<Parametres!D$32,Parametres!E$32,IF(T53<Parametres!C$33,Parametres!E$33,IF(T53<Parametres!C$34,Parametres!E$34,Parametres!E$35)))), IF(A$2=Parametres!A$69,IF(T53<Parametres!E$21,0,IF(T53<Parametres!D$32,Parametres!E$32,IF(T53<Parametres!C$33,Parametres!E$33,IF(T53<Parametres!C$34,Parametres!E$34,Parametres!E$35)))), IF(A$2=Parametres!A$70,IF(T53<Parametres!G$21,0,IF(T53<Parametres!D$32,Parametres!E$32,IF(T53<Parametres!C$33,Parametres!E$33,IF(T53<Parametres!C$34,Parametres!E$34,Parametres!E$35))))))))) ->  | V53: =IF(B53=0,"",IF(A$2=Parametres!A$68,Parametres!D$10,IF(A$2=Parametres!A$69,Parametres!F$10,IF(A$2=Parametres!A$70,Parametres!H$10,"")))) ->  | W53: =IF(B53=0,"",IF(O53="gratuit",P53*V53,P53*V53+(P53*V53)*U53)) ->  | Z53: =IF(B53=0,"",IF(A$2=Parametres!A$68,Parametres!D$20,IF(A$2=Parametres!A$69,Parametres!F$20,IF(A$2=Parametres!A$70,Parametres!H$20,"")))) ->  | AB53: =IF(A$2=Parametres!A$69,"",IF(B53=0,"",IF(N53>(W53+AA53),IF(N53<Parametres!D$28,"FORFAIT MINI","DEPENSES"),IF((W53+AA53)<Parametres!D$28,"FORFAIT MINI","RECETTES")))) ->  | AC53: =IF(A$2=Parametres!A$69,"",IF(B53=0,"",ROUND(IF(N53>(W53+AA53),IF(N53<Parametres!D$28,Parametres!D$28,N53),IF((W53+AA53)<Parametres!D$28,Parametres!D$28,(W53+AA53))),2))) ->  | AD53: =IF(A$2=Parametres!A$69,"",IF(B53=0,"",ROUND(AC53*Parametres!C$57,2))) ->  | AE53: =IF(A$2=Parametres!A$69,"",IF(B53=0,"",ROUND(AC53*Parametres!C$58,2))) ->  | AF53: =IF(A$2=Parametres!A$69,"",IF(B53=0,"",ROUND(AC53*Parametres!C$59,2))) ->  | AG53: =IF(A$2=Parametres!A$69,"",IF(B53=0,"",SUM(ROUND(AC53,2),ROUND(AD53,2),ROUND(AE53,2),ROUND(AF53,2)))) -> 
I54: =IF(F54=0,"",IF(A$2=Parametres!A$68,IF(G54="Oui",IF(H54="Oui",F54-F54*Parametres!C$41-(F54-F54*Parametres!C$41)*Parametres!C$42,IF(H54="Non",F54-F54*Parametres!C$41,"")),IF(G54="Non",IF(H54="Oui",F54-F54*Parametres!C$42,IF(H54="Non",F54,"")))),IF(A$2=Parametres!A$69,IF(G54="Oui",IF(H54="Oui",F54-F54*Parametres!C$41-(F54-F54*Parametres!C$41)*Parametres!C$42,IF(H54="Non",F54-F54*Parametres!E$41,"")),IF(G54="Non",IF(H54="Oui",F54-F54*Parametres!E$42,IF(H54="Non",F54,"")))),IF(A$2=Parametres!A$70,IF(G54="Oui",IF(H54="Oui",F54-F54*Parametres!C$41-(F54-F54*Parametres!C$41)*Parametres!C$42,IF(H54="Non",F54-F54*Parametres!G$41,"")),IF(G54="Non",IF(H54="Oui",F54-F54*Parametres!G$42,IF(H54="Non",F54,"")))),"")))) ->  | J54: =IF(B54=0,"",(I52:I57)) ->  | K54: =IF(C54="","",IF(A$2=Parametres!A$70,Parametres!E$52,IF(A$2=Parametres!A$69,Parametres!E$51,IF(C54<=Parametres!D$47,Parametres!E$47,IF(C54<=Parametres!D$48,Parametres!E$48,IF(C54<=Parametres!D$49,Parametres!E$49,IF(C54>Parametres!D$50,Parametres!E$50,""))))))) ->  | L54: =IF(A$2=Parametres!A$70,Parametres!G$40,IF(B54="","",J54+J54*K54)) ->  | M54: =IF(B54=0,"",IF(A$2=Parametres!A$68,Parametres!D$10,IF(A$2=Parametres!A$69,Parametres!F$9,IF(A$2=Parametres!A$70,Parametres!H$9,"")))) ->  | U54: =IF(O54="gratuit","",IF(B54=0,"",IF(A$2=Parametres!A$68,IF(T54<Parametres!C$21,0,IF(T54<Parametres!D$32,Parametres!E$32,IF(T54<Parametres!C$33,Parametres!E$33,IF(T54<Parametres!C$34,Parametres!E$34,Parametres!E$35)))), IF(A$2=Parametres!A$69,IF(T54<Parametres!E$21,0,IF(T54<Parametres!D$32,Parametres!E$32,IF(T54<Parametres!C$33,Parametres!E$33,IF(T54<Parametres!C$34,Parametres!E$34,Parametres!E$35)))), IF(A$2=Parametres!A$70,IF(T54<Parametres!G$21,0,IF(T54<Parametres!D$32,Parametres!E$32,IF(T54<Parametres!C$33,Parametres!E$33,IF(T54<Parametres!C$34,Parametres!E$34,Parametres!E$35))))))))) ->  | V54: =IF(B54=0,"",IF(A$2=Parametres!A$68,Parametres!D$10,IF(A$2=Parametres!A$69,Parametres!F$10,IF(A$2=Parametres!A$70,Parametres!H$10,"")))) ->  | Z54: =IF(B54=0,"",IF(A$2=Parametres!A$68,Parametres!D$20,IF(A$2=Parametres!A$69,Parametres!F$20,IF(A$2=Parametres!A$70,Parametres!H$20,"")))) ->  | AB54: =IF(A$2=Parametres!A$69,"",IF(B54=0,"",IF(N54>(W54+AA54),IF(N54<Parametres!D$28,"FORFAIT MINI","DEPENSES"),IF((W54+AA54)<Parametres!D$28,"FORFAIT MINI","RECETTES")))) ->  | AC54: =IF(A$2=Parametres!A$69,"",IF(B54=0,"",ROUND(IF(N54>(W54+AA54),IF(N54<Parametres!D$28,Parametres!D$28,N54),IF((W54+AA54)<Parametres!D$28,Parametres!D$28,(W54+AA54))),2))) ->  | AD54: =IF(A$2=Parametres!A$69,"",IF(B54=0,"",ROUND(AC54*Parametres!C$57,2))) ->  | AE54: =IF(A$2=Parametres!A$69,"",IF(B54=0,"",ROUND(AC54*Parametres!C$58,2))) ->  | AF54: =IF(A$2=Parametres!A$69,"",IF(B54=0,"",ROUND(AC54*Parametres!C$59,2))) ->  | AG54: =IF(A$2=Parametres!A$69,"",IF(B54=0,"",SUM(ROUND(AC54,2),ROUND(AD54,2),ROUND(AE54,2),ROUND(AF54,2)))) -> 
I55: =IF(F55=0,"",IF(A$2=Parametres!A$68,IF(G55="Oui",IF(H55="Oui",F55-F55*Parametres!C$41-(F55-F55*Parametres!C$41)*Parametres!C$42,IF(H55="Non",F55-F55*Parametres!C$41,"")),IF(G55="Non",IF(H55="Oui",F55-F55*Parametres!C$42,IF(H55="Non",F55,"")))),IF(A$2=Parametres!A$69,IF(G55="Oui",IF(H55="Oui",F55-F55*Parametres!C$41-(F55-F55*Parametres!C$41)*Parametres!C$42,IF(H55="Non",F55-F55*Parametres!E$41,"")),IF(G55="Non",IF(H55="Oui",F55-F55*Parametres!E$42,IF(H55="Non",F55,"")))),IF(A$2=Parametres!A$70,IF(G55="Oui",IF(H55="Oui",F55-F55*Parametres!C$41-(F55-F55*Parametres!C$41)*Parametres!C$42,IF(H55="Non",F55-F55*Parametres!G$41,"")),IF(G55="Non",IF(H55="Oui",F55-F55*Parametres!G$42,IF(H55="Non",F55,"")))),"")))) ->  | J55: =IF(B55=0,"",SUM(I52:I57)) ->  | K55: =IF(C55="","",IF(A$2=Parametres!A$70,Parametres!E$52,IF(A$2=Parametres!A$69,Parametres!E$51,IF(C55<=Parametres!D$47,Parametres!E$47,IF(C55<=Parametres!D$48,Parametres!E$48,IF(C55<=Parametres!D$49,Parametres!E$49,IF(C55>Parametres!D$50,Parametres!E$50,""))))))) ->  | L55: =IF(A$2=Parametres!A$70,Parametres!G$40,IF(B55="","",J55+J55*K55)) ->  | M55: =IF(B55=0,"",IF(A$2=Parametres!A$68,Parametres!D$10,IF(A$2=Parametres!A$69,Parametres!F$9,IF(A$2=Parametres!A$70,Parametres!H$9,"")))) ->  | U55: =IF(O55="gratuit","",IF(B55=0,"",IF(A$2=Parametres!A$68,IF(T55<Parametres!C$21,0,IF(T55<Parametres!D$32,Parametres!E$32,IF(T55<Parametres!C$33,Parametres!E$33,IF(T55<Parametres!C$34,Parametres!E$34,Parametres!E$35)))), IF(A$2=Parametres!A$69,IF(T55<Parametres!E$21,0,IF(T55<Parametres!D$32,Parametres!E$32,IF(T55<Parametres!C$33,Parametres!E$33,IF(T55<Parametres!C$34,Parametres!E$34,Parametres!E$35)))), IF(A$2=Parametres!A$70,IF(T55<Parametres!G$21,0,IF(T55<Parametres!D$32,Parametres!E$32,IF(T55<Parametres!C$33,Parametres!E$33,IF(T55<Parametres!C$34,Parametres!E$34,Parametres!E$35))))))))) ->  | V55: =IF(B55=0,"",IF(A$2=Parametres!A$68,Parametres!D$10,IF(A$2=Parametres!A$69,Parametres!F$10,IF(A$2=Parametres!A$70,Parametres!H$10,"")))) ->  | Z55: =IF(B55=0,"",IF(A$2=Parametres!A$68,Parametres!D$20,IF(A$2=Parametres!A$69,Parametres!F$20,IF(A$2=Parametres!A$70,Parametres!H$20,"")))) ->  | AB55: =IF(A$2=Parametres!A$69,"",IF(B55=0,"",IF(N55>(W55+AA55),IF(N55<Parametres!D$28,"FORFAIT MINI","DEPENSES"),IF((W55+AA55)<Parametres!D$28,"FORFAIT MINI","RECETTES")))) ->  | AC55: =IF(A$2=Parametres!A$69,"",IF(B55=0,"",ROUND(IF(N55>(W55+AA55),IF(N55<Parametres!D$28,Parametres!D$28,N55),IF((W55+AA55)<Parametres!D$28,Parametres!D$28,(W55+AA55))),2))) ->  | AD55: =IF(A$2=Parametres!A$69,"",IF(B55=0,"",ROUND(AC55*Parametres!C$57,2))) ->  | AE55: =IF(A$2=Parametres!A$69,"",IF(B55=0,"",ROUND(AC55*Parametres!C$58,2))) ->  | AF55: =IF(A$2=Parametres!A$69,"",IF(B55=0,"",ROUND(AC55*Parametres!C$59,2))) ->  | AG55: =IF(A$2=Parametres!A$69,"",IF(B55=0,"",SUM(ROUND(AC55,2),ROUND(AD55,2),ROUND(AE55,2),ROUND(AF55,2)))) -> 
I56: =IF(F56=0,"",IF(A$2=Parametres!A$68,IF(G56="Oui",IF(H56="Oui",F56-F56*Parametres!C$41-(F56-F56*Parametres!C$41)*Parametres!C$42,IF(H56="Non",F56-F56*Parametres!C$41,"")),IF(G56="Non",IF(H56="Oui",F56-F56*Parametres!C$42,IF(H56="Non",F56,"")))),IF(A$2=Parametres!A$69,IF(G56="Oui",IF(H56="Oui",F56-F56*Parametres!C$41-(F56-F56*Parametres!C$41)*Parametres!C$42,IF(H56="Non",F56-F56*Parametres!E$41,"")),IF(G56="Non",IF(H56="Oui",F56-F56*Parametres!E$42,IF(H56="Non",F56,"")))),IF(A$2=Parametres!A$70,IF(G56="Oui",IF(H56="Oui",F56-F56*Parametres!C$41-(F56-F56*Parametres!C$41)*Parametres!C$42,IF(H56="Non",F56-F56*Parametres!G$41,"")),IF(G56="Non",IF(H56="Oui",F56-F56*Parametres!G$42,IF(H56="Non",F56,"")))),"")))) ->  | J56: =IF(B56=0,"",SUM(I52:I57)) ->  | K56: =IF(C56="","",IF(A$2=Parametres!A$70,Parametres!E$52,IF(A$2=Parametres!A$69,Parametres!E$51,IF(C56<=Parametres!D$47,Parametres!E$47,IF(C56<=Parametres!D$48,Parametres!E$48,IF(C56<=Parametres!D$49,Parametres!E$49,IF(C56>Parametres!D$50,Parametres!E$50,""))))))) ->  | L56: =IF(A$2=Parametres!A$70,Parametres!G$40,IF(B56="","",J56+J56*K56)) ->  | M56: =IF(B56=0,"",IF(A$2=Parametres!A$68,Parametres!D$10,IF(A$2=Parametres!A$69,Parametres!F$9,IF(A$2=Parametres!A$70,Parametres!H$9,"")))) ->  | U56: =IF(O56="gratuit","",IF(B56=0,"",IF(A$2=Parametres!A$68,IF(T56<Parametres!C$21,0,IF(T56<Parametres!D$32,Parametres!E$32,IF(T56<Parametres!C$33,Parametres!E$33,IF(T56<Parametres!C$34,Parametres!E$34,Parametres!E$35)))), IF(A$2=Parametres!A$69,IF(T56<Parametres!E$21,0,IF(T56<Parametres!D$32,Parametres!E$32,IF(T56<Parametres!C$33,Parametres!E$33,IF(T56<Parametres!C$34,Parametres!E$34,Parametres!E$35)))), IF(A$2=Parametres!A$70,IF(T56<Parametres!G$21,0,IF(T56<Parametres!D$32,Parametres!E$32,IF(T56<Parametres!C$33,Parametres!E$33,IF(T56<Parametres!C$34,Parametres!E$34,Parametres!E$35))))))))) ->  | V56: =IF(B56=0,"",IF(A$2=Parametres!A$68,Parametres!D$10,IF(A$2=Parametres!A$69,Parametres!F$10,IF(A$2=Parametres!A$70,Parametres!H$10,"")))) ->  | Z56: =IF(B56=0,"",IF(A$2=Parametres!A$68,Parametres!D$20,IF(A$2=Parametres!A$69,Parametres!F$20,IF(A$2=Parametres!A$70,Parametres!H$20,"")))) ->  | AB56: =IF(A$2=Parametres!A$69,"",IF(B56=0,"",IF(N56>(W56+AA56),IF(N56<Parametres!D$28,"FORFAIT MINI","DEPENSES"),IF((W56+AA56)<Parametres!D$28,"FORFAIT MINI","RECETTES")))) ->  | AC56: =IF(A$2=Parametres!A$69,"",IF(B56=0,"",ROUND(IF(N56>(W56+AA56),IF(N56<Parametres!D$28,Parametres!D$28,N56),IF((W56+AA56)<Parametres!D$28,Parametres!D$28,(W56+AA56))),2))) ->  | AD56: =IF(A$2=Parametres!A$69,"",IF(B56=0,"",ROUND(AC56*Parametres!C$57,2))) ->  | AE56: =IF(A$2=Parametres!A$69,"",IF(B56=0,"",ROUND(AC56*Parametres!C$58,2))) ->  | AF56: =IF(A$2=Parametres!A$69,"",IF(B56=0,"",ROUND(AC56*Parametres!C$59,2))) ->  | AG56: =IF(A$2=Parametres!A$69,"",IF(B56=0,"",SUM(ROUND(AC56,2),ROUND(AD56,2),ROUND(AE56,2),ROUND(AF56,2)))) -> 
I57: =IF(F57=0,"",IF(A$2=Parametres!A$68,IF(G57="Oui",IF(H57="Oui",F57-F57*Parametres!C$41-(F57-F57*Parametres!C$41)*Parametres!C$42,IF(H57="Non",F57-F57*Parametres!C$41,"")),IF(G57="Non",IF(H57="Oui",F57-F57*Parametres!C$42,IF(H57="Non",F57,"")))),IF(A$2=Parametres!A$69,IF(G57="Oui",IF(H57="Oui",F57-F57*Parametres!C$41-(F57-F57*Parametres!C$41)*Parametres!C$42,IF(H57="Non",F57-F57*Parametres!E$41,"")),IF(G57="Non",IF(H57="Oui",F57-F57*Parametres!E$42,IF(H57="Non",F57,"")))),IF(A$2=Parametres!A$70,IF(G57="Oui",IF(H57="Oui",F57-F57*Parametres!C$41-(F57-F57*Parametres!C$41)*Parametres!C$42,IF(H57="Non",F57-F57*Parametres!G$41,"")),IF(G57="Non",IF(H57="Oui",F57-F57*Parametres!G$42,IF(H57="Non",F57,"")))),"")))) ->  | J57: =IF(B57=0,"",SUM(I52:I57)) ->  | K57: =IF(C57="","",IF(A$2=Parametres!A$70,Parametres!E$52,IF(A$2=Parametres!A$69,Parametres!E$51,IF(C57<=Parametres!D$47,Parametres!E$47,IF(C57<=Parametres!D$48,Parametres!E$48,IF(C57<=Parametres!D$49,Parametres!E$49,IF(C57>Parametres!D$50,Parametres!E$50,""))))))) ->  | L57: =IF(A$2=Parametres!A$70,Parametres!G$40,IF(B57="","",J57+J57*K57)) ->  | M57: =IF(B57=0,"",IF(A$2=Parametres!A$68,Parametres!D$10,IF(A$2=Parametres!A$69,Parametres!F$9,IF(A$2=Parametres!A$70,Parametres!H$9,"")))) ->  | U57: =IF(O57="gratuit","",IF(B57=0,"",IF(A$2=Parametres!A$68,IF(T57<Parametres!C$21,0,IF(T57<Parametres!D$32,Parametres!E$32,IF(T57<Parametres!C$33,Parametres!E$33,IF(T57<Parametres!C$34,Parametres!E$34,Parametres!E$35)))), IF(A$2=Parametres!A$69,IF(T57<Parametres!E$21,0,IF(T57<Parametres!D$32,Parametres!E$32,IF(T57<Parametres!C$33,Parametres!E$33,IF(T57<Parametres!C$34,Parametres!E$34,Parametres!E$35)))), IF(A$2=Parametres!A$70,IF(T57<Parametres!G$21,0,IF(T57<Parametres!D$32,Parametres!E$32,IF(T57<Parametres!C$33,Parametres!E$33,IF(T57<Parametres!C$34,Parametres!E$34,Parametres!E$35))))))))) ->  | V57: =IF(B57=0,"",IF(A$2=Parametres!A$68,Parametres!D$10,IF(A$2=Parametres!A$69,Parametres!F$10,IF(A$2=Parametres!A$70,Parametres!H$10,"")))) ->  | Z57: =IF(B57=0,"",IF(A$2=Parametres!A$68,Parametres!D$20,IF(A$2=Parametres!A$69,Parametres!F$20,IF(A$2=Parametres!A$70,Parametres!H$20,"")))) ->  | AB57: =IF(A$2=Parametres!A$69,"",IF(B57=0,"",IF(N57>(W57+AA57),IF(N57<Parametres!D$28,"FORFAIT MINI","DEPENSES"),IF((W57+AA57)<Parametres!D$28,"FORFAIT MINI","RECETTES")))) ->  | AC57: =IF(A$2=Parametres!A$69,"",IF(B57=0,"",ROUND(IF(N57>(W57+AA57),IF(N57<Parametres!D$28,Parametres!D$28,N57),IF((W57+AA57)<Parametres!D$28,Parametres!D$28,(W57+AA57))),2))) ->  | AD57: =IF(A$2=Parametres!A$69,"",IF(B57=0,"",ROUND(AC57*Parametres!C$57,2))) ->  | AE57: =IF(A$2=Parametres!A$69,"",IF(B57=0,"",ROUND(AC57*Parametres!C$58,2))) ->  | AF57: =IF(A$2=Parametres!A$69,"",IF(B57=0,"",ROUND(AC57*Parametres!C$59,2))) ->  | AG57: =IF(A$2=Parametres!A$69,"",IF(B57=0,"",SUM(ROUND(AC57,2),ROUND(AD57,2),ROUND(AE57,2),ROUND(AF57,2)))) -> 
I59: =IF(F59=0,"",IF(A$2=Parametres!A$68,IF(G59="Oui",IF(H59="Oui",F59-F59*Parametres!C$41-(F59-F59*Parametres!C$41)*Parametres!C$42,IF(H59="Non",F59-F59*Parametres!C$41,"")),IF(G59="Non",IF(H59="Oui",F59-F59*Parametres!C$42,IF(H59="Non",F59,"")))),IF(A$2=Parametres!A$69,IF(G59="Oui",IF(H59="Oui",F59-F59*Parametres!C$41-(F59-F59*Parametres!C$41)*Parametres!C$42,IF(H59="Non",F59-F59*Parametres!E$41,"")),IF(G59="Non",IF(H59="Oui",F59-F59*Parametres!E$42,IF(H59="Non",F59,"")))),IF(A$2=Parametres!A$70,IF(G59="Oui",IF(H59="Oui",F59-F59*Parametres!C$41-(F59-F59*Parametres!C$41)*Parametres!C$42,IF(H59="Non",F59-F59*Parametres!G$41,"")),IF(G59="Non",IF(H59="Oui",F59-F59*Parametres!G$42,IF(H59="Non",F59,"")))),"")))) ->  | J59: =IF(B59=0,"",SUM(I59:I64)) ->  | K59: =IF(C59="","",IF(A$2=Parametres!A$70,Parametres!E$52,IF(A$2=Parametres!A$69,Parametres!E$51,IF(C59<=Parametres!D$47,Parametres!E$47,IF(C59<=Parametres!D$48,Parametres!E$48,IF(C59<=Parametres!D$49,Parametres!E$49,IF(C59>Parametres!D$50,Parametres!E$50,""))))))) ->  | L59: =IF(A$2=Parametres!A$70,Parametres!G$40,IF(B59="","",J59+J59*K59)) ->  | M59: =IF(B59=0,"",IF(A$2=Parametres!A$68,Parametres!D$10,IF(A$2=Parametres!A$69,Parametres!F$10,IF(A$2=Parametres!A$70,Parametres!H$10,"")))) ->  | N59: =IF(B59=0,"",M59*L59) ->  | O59: =IF(P59>0,"payant",IF(B59=0,"","gratuit")) ->  | Q59: =IF(B59=0,"",R59+S59) ->  | T59: =IF(O59="gratuit","",IF(Q59=0,0,IF(Q59="","",S59/R59))) ->  | U59: =IF(O59="gratuit","",IF(B59=0,"",IF(A$2=Parametres!A$68,IF(T59<Parametres!C$21,0,IF(T59<Parametres!D$32,Parametres!E$32,IF(T59<Parametres!C$33,Parametres!E$33,IF(T59<Parametres!C$34,Parametres!E$34,Parametres!E$35)))), IF(A$2=Parametres!A$69,IF(T59<Parametres!E$21,0,IF(T59<Parametres!D$32,Parametres!E$32,IF(T59<Parametres!C$33,Parametres!E$33,IF(T59<Parametres!C$34,Parametres!E$34,Parametres!E$35)))), IF(A$2=Parametres!A$70,IF(T59<Parametres!G$21,0,IF(T59<Parametres!D$32,Parametres!E$32,IF(T59<Parametres!C$33,Parametres!E$33,IF(T59<Parametres!C$34,Parametres!E$34,Parametres!E$35))))))))) ->  | V59: =IF(B59=0,"",IF(A$2=Parametres!A$68,Parametres!D$10,IF(A$2=Parametres!A$69,Parametres!F$10,IF(A$2=Parametres!A$70,Parametres!H$10,"")))) ->  | W59: =IF(B59=0,"",IF(O59="gratuit",P59*V59,P59*V59+(P59*V59)*U59)) ->  | Z59: =IF(B59=0,"",IF(A$2=Parametres!A$68,Parametres!D$20,IF(A$2=Parametres!A$69,Parametres!F$20,IF(A$2=Parametres!A$70,Parametres!H$20,"")))) ->  | AA59: =IF(B59=0,"",(X59+Y59)*Z59) ->  | AB59: =IF(A$2=Parametres!A$69,"",IF(B59=0,"",IF(N59>(W59+AA59),IF(N59<Parametres!D$28,"FORFAIT MINI","DEPENSES"),IF((W59+AA59)<Parametres!D$28,"FORFAIT MINI","RECETTES")))) ->  | AC59: =IF(A$2=Parametres!A$69,"",IF(B59=0,"",ROUND(IF(N59>(W59+AA59),IF(N59<Parametres!D$28,Parametres!D$28,N59),IF((W59+AA59)<Parametres!D$28,Parametres!D$28,(W59+AA59))),2))) ->  | AD59: =IF(A$2=Parametres!A$69,"",IF(B59=0,"",ROUND(AC59*Parametres!C$57,2))) ->  | AE59: =IF(A$2=Parametres!A$69,"",IF(B59=0,"",ROUND(AC59*Parametres!C$58,2))) ->  | AF59: =IF(A$2=Parametres!A$69,"",IF(B59=0,"",ROUND(AC59*Parametres!C$59,2))) ->  | AG59: =IF(A$2=Parametres!A$69,"",IF(B59=0,"",SUM(ROUND(AC59,2),ROUND(AD59,2),ROUND(AE59,2),ROUND(AF59,2)))) -> 
I60: =IF(F60=0,"",IF(A$2=Parametres!A$68,IF(G60="Oui",IF(H60="Oui",F60-F60*Parametres!C$41-(F60-F60*Parametres!C$41)*Parametres!C$42,IF(H60="Non",F60-F60*Parametres!C$41,"")),IF(G60="Non",IF(H60="Oui",F60-F60*Parametres!C$42,IF(H60="Non",F60,"")))),IF(A$2=Parametres!A$69,IF(G60="Oui",IF(H60="Oui",F60-F60*Parametres!C$41-(F60-F60*Parametres!C$41)*Parametres!C$42,IF(H60="Non",F60-F60*Parametres!E$41,"")),IF(G60="Non",IF(H60="Oui",F60-F60*Parametres!E$42,IF(H60="Non",F60,"")))),IF(A$2=Parametres!A$70,IF(G60="Oui",IF(H60="Oui",F60-F60*Parametres!C$41-(F60-F60*Parametres!C$41)*Parametres!C$42,IF(H60="Non",F60-F60*Parametres!G$41,"")),IF(G60="Non",IF(H60="Oui",F60-F60*Parametres!G$42,IF(H60="Non",F60,"")))),"")))) ->  | J60: =IF(B60=0,"",SUM(I59:I64)) ->  | K60: =IF(C60="","",IF(A$2=Parametres!A$70,Parametres!E$52,IF(A$2=Parametres!A$69,Parametres!E$51,IF(C60<=Parametres!D$47,Parametres!E$47,IF(C60<=Parametres!D$48,Parametres!E$48,IF(C60<=Parametres!D$49,Parametres!E$49,IF(C60>Parametres!D$50,Parametres!E$50,""))))))) ->  | L60: =IF(A$2=Parametres!A$70,Parametres!G$40,IF(B60="","",J60+J60*K60)) ->  | M60: =IF(B60=0,"",IF(A$2=Parametres!A$68,Parametres!D$10,IF(A$2=Parametres!A$69,Parametres!F$9,IF(A$2=Parametres!A$70,Parametres!H$9,"")))) ->  | T60: =IF(O60="gratuit","",IF(Q60=0,0,IF(Q60="","",S60/R60))) ->  | U60: =IF(O60="gratuit","",IF(B60=0,"",IF(A$2=Parametres!A$68,IF(T60<Parametres!C$21,0,IF(T60<Parametres!D$32,Parametres!E$32,IF(T60<Parametres!C$33,Parametres!E$33,IF(T60<Parametres!C$34,Parametres!E$34,Parametres!E$35)))), IF(A$2=Parametres!A$69,IF(T60<Parametres!E$21,0,IF(T60<Parametres!D$32,Parametres!E$32,IF(T60<Parametres!C$33,Parametres!E$33,IF(T60<Parametres!C$34,Parametres!E$34,Parametres!E$35)))), IF(A$2=Parametres!A$70,IF(T60<Parametres!G$21,0,IF(T60<Parametres!D$32,Parametres!E$32,IF(T60<Parametres!C$33,Parametres!E$33,IF(T60<Parametres!C$34,Parametres!E$34,Parametres!E$35))))))))) ->  | V60: =IF(B60=0,"",IF(A$2=Parametres!A$68,Parametres!D$10,IF(A$2=Parametres!A$69,Parametres!F$10,IF(A$2=Parametres!A$70,Parametres!H$10,"")))) ->  | W60: =IF(B60=0,"",IF(O60="gratuit",P60*V60,P60*V60+(P60*V60)*U60)) ->  | Z60: =IF(B60=0,"",IF(A$2=Parametres!A$68,Parametres!D$20,IF(A$2=Parametres!A$69,Parametres!F$20,IF(A$2=Parametres!A$70,Parametres!H$20,"")))) ->  | AB60: =IF(A$2=Parametres!A$69,"",IF(B60=0,"",IF(N60>(W60+AA60),IF(N60<Parametres!D$28,"FORFAIT MINI","DEPENSES"),IF((W60+AA60)<Parametres!D$28,"FORFAIT MINI","RECETTES")))) ->  | AC60: =IF(A$2=Parametres!A$69,"",IF(B60=0,"",ROUND(IF(N60>(W60+AA60),IF(N60<Parametres!D$28,Parametres!D$28,N60),IF((W60+AA60)<Parametres!D$28,Parametres!D$28,(W60+AA60))),2))) ->  | AD60: =IF(A$2=Parametres!A$69,"",IF(B60=0,"",ROUND(AC60*Parametres!C$57,2))) ->  | AE60: =IF(A$2=Parametres!A$69,"",IF(B60=0,"",ROUND(AC60*Parametres!C$58,2))) ->  | AF60: =IF(A$2=Parametres!A$69,"",IF(B60=0,"",ROUND(AC60*Parametres!C$59,2))) ->  | AG60: =IF(A$2=Parametres!A$69,"",IF(B60=0,"",SUM(ROUND(AC60,2),ROUND(AD60,2),ROUND(AE60,2),ROUND(AF60,2)))) -> 
I61: =IF(F61=0,"",IF(A$2=Parametres!A$68,IF(G61="Oui",IF(H61="Oui",F61-F61*Parametres!C$41-(F61-F61*Parametres!C$41)*Parametres!C$42,IF(H61="Non",F61-F61*Parametres!C$41,"")),IF(G61="Non",IF(H61="Oui",F61-F61*Parametres!C$42,IF(H61="Non",F61,"")))),IF(A$2=Parametres!A$69,IF(G61="Oui",IF(H61="Oui",F61-F61*Parametres!C$41-(F61-F61*Parametres!C$41)*Parametres!C$42,IF(H61="Non",F61-F61*Parametres!E$41,"")),IF(G61="Non",IF(H61="Oui",F61-F61*Parametres!E$42,IF(H61="Non",F61,"")))),IF(A$2=Parametres!A$70,IF(G61="Oui",IF(H61="Oui",F61-F61*Parametres!C$41-(F61-F61*Parametres!C$41)*Parametres!C$42,IF(H61="Non",F61-F61*Parametres!G$41,"")),IF(G61="Non",IF(H61="Oui",F61-F61*Parametres!G$42,IF(H61="Non",F61,"")))),"")))) ->  | J61: =IF(B61=0,"",(I59:I64)) ->  | K61: =IF(C61="","",IF(A$2=Parametres!A$70,Parametres!E$52,IF(A$2=Parametres!A$69,Parametres!E$51,IF(C61<=Parametres!D$47,Parametres!E$47,IF(C61<=Parametres!D$48,Parametres!E$48,IF(C61<=Parametres!D$49,Parametres!E$49,IF(C61>Parametres!D$50,Parametres!E$50,""))))))) ->  | L61: =IF(A$2=Parametres!A$70,Parametres!G$40,IF(B61="","",J61+J61*K61)) ->  | M61: =IF(B61=0,"",IF(A$2=Parametres!A$68,Parametres!D$10,IF(A$2=Parametres!A$69,Parametres!F$9,IF(A$2=Parametres!A$70,Parametres!H$9,"")))) ->  | U61: =IF(O61="gratuit","",IF(B61=0,"",IF(A$2=Parametres!A$68,IF(T61<Parametres!C$21,0,IF(T61<Parametres!D$32,Parametres!E$32,IF(T61<Parametres!C$33,Parametres!E$33,IF(T61<Parametres!C$34,Parametres!E$34,Parametres!E$35)))), IF(A$2=Parametres!A$69,IF(T61<Parametres!E$21,0,IF(T61<Parametres!D$32,Parametres!E$32,IF(T61<Parametres!C$33,Parametres!E$33,IF(T61<Parametres!C$34,Parametres!E$34,Parametres!E$35)))), IF(A$2=Parametres!A$70,IF(T61<Parametres!G$21,0,IF(T61<Parametres!D$32,Parametres!E$32,IF(T61<Parametres!C$33,Parametres!E$33,IF(T61<Parametres!C$34,Parametres!E$34,Parametres!E$35))))))))) ->  | V61: =IF(B61=0,"",IF(A$2=Parametres!A$68,Parametres!D$10,IF(A$2=Parametres!A$69,Parametres!F$10,IF(A$2=Parametres!A$70,Parametres!H$10,"")))) ->  | Z61: =IF(B61=0,"",IF(A$2=Parametres!A$68,Parametres!D$20,IF(A$2=Parametres!A$69,Parametres!F$20,IF(A$2=Parametres!A$70,Parametres!H$20,"")))) ->  | AB61: =IF(A$2=Parametres!A$69,"",IF(B61=0,"",IF(N61>(W61+AA61),IF(N61<Parametres!D$28,"FORFAIT MINI","DEPENSES"),IF((W61+AA61)<Parametres!D$28,"FORFAIT MINI","RECETTES")))) ->  | AC61: =IF(A$2=Parametres!A$69,"",IF(B61=0,"",ROUND(IF(N61>(W61+AA61),IF(N61<Parametres!D$28,Parametres!D$28,N61),IF((W61+AA61)<Parametres!D$28,Parametres!D$28,(W61+AA61))),2))) ->  | AD61: =IF(A$2=Parametres!A$69,"",IF(B61=0,"",ROUND(AC61*Parametres!C$57,2))) ->  | AE61: =IF(A$2=Parametres!A$69,"",IF(B61=0,"",ROUND(AC61*Parametres!C$58,2))) ->  | AF61: =IF(A$2=Parametres!A$69,"",IF(B61=0,"",ROUND(AC61*Parametres!C$59,2))) ->  | AG61: =IF(A$2=Parametres!A$69,"",IF(B61=0,"",SUM(ROUND(AC61,2),ROUND(AD61,2),ROUND(AE61,2),ROUND(AF61,2)))) -> 
I62: =IF(F62=0,"",IF(A$2=Parametres!A$68,IF(G62="Oui",IF(H62="Oui",F62-F62*Parametres!C$41-(F62-F62*Parametres!C$41)*Parametres!C$42,IF(H62="Non",F62-F62*Parametres!C$41,"")),IF(G62="Non",IF(H62="Oui",F62-F62*Parametres!C$42,IF(H62="Non",F62,"")))),IF(A$2=Parametres!A$69,IF(G62="Oui",IF(H62="Oui",F62-F62*Parametres!C$41-(F62-F62*Parametres!C$41)*Parametres!C$42,IF(H62="Non",F62-F62*Parametres!E$41,"")),IF(G62="Non",IF(H62="Oui",F62-F62*Parametres!E$42,IF(H62="Non",F62,"")))),IF(A$2=Parametres!A$70,IF(G62="Oui",IF(H62="Oui",F62-F62*Parametres!C$41-(F62-F62*Parametres!C$41)*Parametres!C$42,IF(H62="Non",F62-F62*Parametres!G$41,"")),IF(G62="Non",IF(H62="Oui",F62-F62*Parametres!G$42,IF(H62="Non",F62,"")))),"")))) ->  | J62: =IF(B62=0,"",SUM(I59:I64)) ->  | K62: =IF(C62="","",IF(A$2=Parametres!A$70,Parametres!E$52,IF(A$2=Parametres!A$69,Parametres!E$51,IF(C62<=Parametres!D$47,Parametres!E$47,IF(C62<=Parametres!D$48,Parametres!E$48,IF(C62<=Parametres!D$49,Parametres!E$49,IF(C62>Parametres!D$50,Parametres!E$50,""))))))) ->  | L62: =IF(A$2=Parametres!A$70,Parametres!G$40,IF(B62="","",J62+J62*K62)) ->  | M62: =IF(B62=0,"",IF(A$2=Parametres!A$68,Parametres!D$10,IF(A$2=Parametres!A$69,Parametres!F$9,IF(A$2=Parametres!A$70,Parametres!H$9,"")))) ->  | U62: =IF(O62="gratuit","",IF(B62=0,"",IF(A$2=Parametres!A$68,IF(T62<Parametres!C$21,0,IF(T62<Parametres!D$32,Parametres!E$32,IF(T62<Parametres!C$33,Parametres!E$33,IF(T62<Parametres!C$34,Parametres!E$34,Parametres!E$35)))), IF(A$2=Parametres!A$69,IF(T62<Parametres!E$21,0,IF(T62<Parametres!D$32,Parametres!E$32,IF(T62<Parametres!C$33,Parametres!E$33,IF(T62<Parametres!C$34,Parametres!E$34,Parametres!E$35)))), IF(A$2=Parametres!A$70,IF(T62<Parametres!G$21,0,IF(T62<Parametres!D$32,Parametres!E$32,IF(T62<Parametres!C$33,Parametres!E$33,IF(T62<Parametres!C$34,Parametres!E$34,Parametres!E$35))))))))) ->  | V62: =IF(B62=0,"",IF(A$2=Parametres!A$68,Parametres!D$10,IF(A$2=Parametres!A$69,Parametres!F$10,IF(A$2=Parametres!A$70,Parametres!H$10,"")))) ->  | Z62: =IF(B62=0,"",IF(A$2=Parametres!A$68,Parametres!D$20,IF(A$2=Parametres!A$69,Parametres!F$20,IF(A$2=Parametres!A$70,Parametres!H$20,"")))) ->  | AB62: =IF(A$2=Parametres!A$69,"",IF(B62=0,"",IF(N62>(W62+AA62),IF(N62<Parametres!D$28,"FORFAIT MINI","DEPENSES"),IF((W62+AA62)<Parametres!D$28,"FORFAIT MINI","RECETTES")))) ->  | AC62: =IF(A$2=Parametres!A$69,"",IF(B62=0,"",ROUND(IF(N62>(W62+AA62),IF(N62<Parametres!D$28,Parametres!D$28,N62),IF((W62+AA62)<Parametres!D$28,Parametres!D$28,(W62+AA62))),2))) ->  | AD62: =IF(A$2=Parametres!A$69,"",IF(B62=0,"",ROUND(AC62*Parametres!C$57,2))) ->  | AE62: =IF(A$2=Parametres!A$69,"",IF(B62=0,"",ROUND(AC62*Parametres!C$58,2))) ->  | AF62: =IF(A$2=Parametres!A$69,"",IF(B62=0,"",ROUND(AC62*Parametres!C$59,2))) ->  | AG62: =IF(A$2=Parametres!A$69,"",IF(B62=0,"",SUM(ROUND(AC62,2),ROUND(AD62,2),ROUND(AE62,2),ROUND(AF62,2)))) -> 
I63: =IF(F63=0,"",IF(A$2=Parametres!A$68,IF(G63="Oui",IF(H63="Oui",F63-F63*Parametres!C$41-(F63-F63*Parametres!C$41)*Parametres!C$42,IF(H63="Non",F63-F63*Parametres!C$41,"")),IF(G63="Non",IF(H63="Oui",F63-F63*Parametres!C$42,IF(H63="Non",F63,"")))),IF(A$2=Parametres!A$69,IF(G63="Oui",IF(H63="Oui",F63-F63*Parametres!C$41-(F63-F63*Parametres!C$41)*Parametres!C$42,IF(H63="Non",F63-F63*Parametres!E$41,"")),IF(G63="Non",IF(H63="Oui",F63-F63*Parametres!E$42,IF(H63="Non",F63,"")))),IF(A$2=Parametres!A$70,IF(G63="Oui",IF(H63="Oui",F63-F63*Parametres!C$41-(F63-F63*Parametres!C$41)*Parametres!C$42,IF(H63="Non",F63-F63*Parametres!G$41,"")),IF(G63="Non",IF(H63="Oui",F63-F63*Parametres!G$42,IF(H63="Non",F63,"")))),"")))) ->  | J63: =IF(B63=0,"",SUM(I59:I64)) ->  | K63: =IF(C63="","",IF(A$2=Parametres!A$70,Parametres!E$52,IF(A$2=Parametres!A$69,Parametres!E$51,IF(C63<=Parametres!D$47,Parametres!E$47,IF(C63<=Parametres!D$48,Parametres!E$48,IF(C63<=Parametres!D$49,Parametres!E$49,IF(C63>Parametres!D$50,Parametres!E$50,""))))))) ->  | L63: =IF(A$2=Parametres!A$70,Parametres!G$40,IF(B63="","",J63+J63*K63)) ->  | M63: =IF(B63=0,"",IF(A$2=Parametres!A$68,Parametres!D$10,IF(A$2=Parametres!A$69,Parametres!F$9,IF(A$2=Parametres!A$70,Parametres!H$9,"")))) ->  | U63: =IF(O63="gratuit","",IF(B63=0,"",IF(A$2=Parametres!A$68,IF(T63<Parametres!C$21,0,IF(T63<Parametres!D$32,Parametres!E$32,IF(T63<Parametres!C$33,Parametres!E$33,IF(T63<Parametres!C$34,Parametres!E$34,Parametres!E$35)))), IF(A$2=Parametres!A$69,IF(T63<Parametres!E$21,0,IF(T63<Parametres!D$32,Parametres!E$32,IF(T63<Parametres!C$33,Parametres!E$33,IF(T63<Parametres!C$34,Parametres!E$34,Parametres!E$35)))), IF(A$2=Parametres!A$70,IF(T63<Parametres!G$21,0,IF(T63<Parametres!D$32,Parametres!E$32,IF(T63<Parametres!C$33,Parametres!E$33,IF(T63<Parametres!C$34,Parametres!E$34,Parametres!E$35))))))))) ->  | V63: =IF(B63=0,"",IF(A$2=Parametres!A$68,Parametres!D$10,IF(A$2=Parametres!A$69,Parametres!F$10,IF(A$2=Parametres!A$70,Parametres!H$10,"")))) ->  | Z63: =IF(B63=0,"",IF(A$2=Parametres!A$68,Parametres!D$20,IF(A$2=Parametres!A$69,Parametres!F$20,IF(A$2=Parametres!A$70,Parametres!H$20,"")))) ->  | AB63: =IF(A$2=Parametres!A$69,"",IF(B63=0,"",IF(N63>(W63+AA63),IF(N63<Parametres!D$28,"FORFAIT MINI","DEPENSES"),IF((W63+AA63)<Parametres!D$28,"FORFAIT MINI","RECETTES")))) ->  | AC63: =IF(A$2=Parametres!A$69,"",IF(B63=0,"",ROUND(IF(N63>(W63+AA63),IF(N63<Parametres!D$28,Parametres!D$28,N63),IF((W63+AA63)<Parametres!D$28,Parametres!D$28,(W63+AA63))),2))) ->  | AD63: =IF(A$2=Parametres!A$69,"",IF(B63=0,"",ROUND(AC63*Parametres!C$57,2))) ->  | AE63: =IF(A$2=Parametres!A$69,"",IF(B63=0,"",ROUND(AC63*Parametres!C$58,2))) ->  | AF63: =IF(A$2=Parametres!A$69,"",IF(B63=0,"",ROUND(AC63*Parametres!C$59,2))) ->  | AG63: =IF(A$2=Parametres!A$69,"",IF(B63=0,"",SUM(ROUND(AC63,2),ROUND(AD63,2),ROUND(AE63,2),ROUND(AF63,2)))) -> 
I64: =IF(F64=0,"",IF(A$2=Parametres!A$68,IF(G64="Oui",IF(H64="Oui",F64-F64*Parametres!C$41-(F64-F64*Parametres!C$41)*Parametres!C$42,IF(H64="Non",F64-F64*Parametres!C$41,"")),IF(G64="Non",IF(H64="Oui",F64-F64*Parametres!C$42,IF(H64="Non",F64,"")))),IF(A$2=Parametres!A$69,IF(G64="Oui",IF(H64="Oui",F64-F64*Parametres!C$41-(F64-F64*Parametres!C$41)*Parametres!C$42,IF(H64="Non",F64-F64*Parametres!E$41,"")),IF(G64="Non",IF(H64="Oui",F64-F64*Parametres!E$42,IF(H64="Non",F64,"")))),IF(A$2=Parametres!A$70,IF(G64="Oui",IF(H64="Oui",F64-F64*Parametres!C$41-(F64-F64*Parametres!C$41)*Parametres!C$42,IF(H64="Non",F64-F64*Parametres!G$41,"")),IF(G64="Non",IF(H64="Oui",F64-F64*Parametres!G$42,IF(H64="Non",F64,"")))),"")))) ->  | J64: =IF(B64=0,"",SUM(I59:I64)) ->  | K64: =IF(C64="","",IF(A$2=Parametres!A$70,Parametres!E$52,IF(A$2=Parametres!A$69,Parametres!E$51,IF(C64<=Parametres!D$47,Parametres!E$47,IF(C64<=Parametres!D$48,Parametres!E$48,IF(C64<=Parametres!D$49,Parametres!E$49,IF(C64>Parametres!D$50,Parametres!E$50,""))))))) ->  | L64: =IF(A$2=Parametres!A$70,Parametres!G$40,IF(B64="","",J64+J64*K64)) ->  | M64: =IF(B64=0,"",IF(A$2=Parametres!A$68,Parametres!D$10,IF(A$2=Parametres!A$69,Parametres!F$9,IF(A$2=Parametres!A$70,Parametres!H$9,"")))) ->  | U64: =IF(O64="gratuit","",IF(B64=0,"",IF(A$2=Parametres!A$68,IF(T64<Parametres!C$21,0,IF(T64<Parametres!D$32,Parametres!E$32,IF(T64<Parametres!C$33,Parametres!E$33,IF(T64<Parametres!C$34,Parametres!E$34,Parametres!E$35)))), IF(A$2=Parametres!A$69,IF(T64<Parametres!E$21,0,IF(T64<Parametres!D$32,Parametres!E$32,IF(T64<Parametres!C$33,Parametres!E$33,IF(T64<Parametres!C$34,Parametres!E$34,Parametres!E$35)))), IF(A$2=Parametres!A$70,IF(T64<Parametres!G$21,0,IF(T64<Parametres!D$32,Parametres!E$32,IF(T64<Parametres!C$33,Parametres!E$33,IF(T64<Parametres!C$34,Parametres!E$34,Parametres!E$35))))))))) ->  | V64: =IF(B64=0,"",IF(A$2=Parametres!A$68,Parametres!D$10,IF(A$2=Parametres!A$69,Parametres!F$10,IF(A$2=Parametres!A$70,Parametres!H$10,"")))) ->  | Z64: =IF(B64=0,"",IF(A$2=Parametres!A$68,Parametres!D$20,IF(A$2=Parametres!A$69,Parametres!F$20,IF(A$2=Parametres!A$70,Parametres!H$20,"")))) ->  | AB64: =IF(A$2=Parametres!A$69,"",IF(B64=0,"",IF(N64>(W64+AA64),IF(N64<Parametres!D$28,"FORFAIT MINI","DEPENSES"),IF((W64+AA64)<Parametres!D$28,"FORFAIT MINI","RECETTES")))) ->  | AC64: =IF(A$2=Parametres!A$69,"",IF(B64=0,"",ROUND(IF(N64>(W64+AA64),IF(N64<Parametres!D$28,Parametres!D$28,N64),IF((W64+AA64)<Parametres!D$28,Parametres!D$28,(W64+AA64))),2))) ->  | AD64: =IF(A$2=Parametres!A$69,"",IF(B64=0,"",ROUND(AC64*Parametres!C$57,2))) ->  | AE64: =IF(A$2=Parametres!A$69,"",IF(B64=0,"",ROUND(AC64*Parametres!C$58,2))) ->  | AF64: =IF(A$2=Parametres!A$69,"",IF(B64=0,"",ROUND(AC64*Parametres!C$59,2))) ->  | AG64: =IF(A$2=Parametres!A$69,"",IF(B64=0,"",SUM(ROUND(AC64,2),ROUND(AD64,2),ROUND(AE64,2),ROUND(AF64,2)))) -> 
I66: =IF(F66=0,"",IF(A$2=Parametres!A$68,IF(G66="Oui",IF(H66="Oui",F66-F66*Parametres!C$41-(F66-F66*Parametres!C$41)*Parametres!C$42,IF(H66="Non",F66-F66*Parametres!C$41,"")),IF(G66="Non",IF(H66="Oui",F66-F66*Parametres!C$42,IF(H66="Non",F66,"")))),IF(A$2=Parametres!A$69,IF(G66="Oui",IF(H66="Oui",F66-F66*Parametres!C$41-(F66-F66*Parametres!C$41)*Parametres!C$42,IF(H66="Non",F66-F66*Parametres!E$41,"")),IF(G66="Non",IF(H66="Oui",F66-F66*Parametres!E$42,IF(H66="Non",F66,"")))),IF(A$2=Parametres!A$70,IF(G66="Oui",IF(H66="Oui",F66-F66*Parametres!C$41-(F66-F66*Parametres!C$41)*Parametres!C$42,IF(H66="Non",F66-F66*Parametres!G$41,"")),IF(G66="Non",IF(H66="Oui",F66-F66*Parametres!G$42,IF(H66="Non",F66,"")))),"")))) ->  | J66: =IF(B66=0,"",SUM(I66:I71)) ->  | K66: =IF(C66="","",IF(A$2=Parametres!A$70,Parametres!E$52,IF(A$2=Parametres!A$69,Parametres!E$51,IF(C66<=Parametres!D$47,Parametres!E$47,IF(C66<=Parametres!D$48,Parametres!E$48,IF(C66<=Parametres!D$49,Parametres!E$49,IF(C66>Parametres!D$50,Parametres!E$50,""))))))) ->  | L66: =IF(A$2=Parametres!A$70,Parametres!G$40,IF(B66="","",J66+J66*K66)) ->  | M66: =IF(B66=0,"",IF(A$2=Parametres!A$68,Parametres!D$10,IF(A$2=Parametres!A$69,Parametres!F$10,IF(A$2=Parametres!A$70,Parametres!H$10,"")))) ->  | N66: =IF(B66=0,"",M66*L66) ->  | O66: =IF(P66>0,"payant",IF(B66=0,"","gratuit")) ->  | Q66: =IF(B66=0,"",R66+S66) ->  | T66: =IF(O66="gratuit","",IF(Q66=0,0,IF(Q66="","",S66/R66))) ->  | U66: =IF(O66="gratuit","",IF(B66=0,"",IF(A$2=Parametres!A$68,IF(T66<Parametres!C$21,0,IF(T66<Parametres!D$32,Parametres!E$32,IF(T66<Parametres!C$33,Parametres!E$33,IF(T66<Parametres!C$34,Parametres!E$34,Parametres!E$35)))), IF(A$2=Parametres!A$69,IF(T66<Parametres!E$21,0,IF(T66<Parametres!D$32,Parametres!E$32,IF(T66<Parametres!C$33,Parametres!E$33,IF(T66<Parametres!C$34,Parametres!E$34,Parametres!E$35)))), IF(A$2=Parametres!A$70,IF(T66<Parametres!G$21,0,IF(T66<Parametres!D$32,Parametres!E$32,IF(T66<Parametres!C$33,Parametres!E$33,IF(T66<Parametres!C$34,Parametres!E$34,Parametres!E$35))))))))) ->  | V66: =IF(B66=0,"",IF(A$2=Parametres!A$68,Parametres!D$10,IF(A$2=Parametres!A$69,Parametres!F$10,IF(A$2=Parametres!A$70,Parametres!H$10,"")))) ->  | W66: =IF(B66=0,"",IF(O66="gratuit",P66*V66,P66*V66+(P66*V66)*U66)) ->  | Z66: =IF(B66=0,"",IF(A$2=Parametres!A$68,Parametres!D$20,IF(A$2=Parametres!A$69,Parametres!F$20,IF(A$2=Parametres!A$70,Parametres!H$20,"")))) ->  | AA66: =IF(B66=0,"",(X66+Y66)*Z66) ->  | AB66: =IF(A$2=Parametres!A$69,"",IF(B66=0,"",IF(N66>(W66+AA66),IF(N66<Parametres!D$28,"FORFAIT MINI","DEPENSES"),IF((W66+AA66)<Parametres!D$28,"FORFAIT MINI","RECETTES")))) ->  | AC66: =IF(A$2=Parametres!A$69,"",IF(B66=0,"",ROUND(IF(N66>(W66+AA66),IF(N66<Parametres!D$28,Parametres!D$28,N66),IF((W66+AA66)<Parametres!D$28,Parametres!D$28,(W66+AA66))),2))) ->  | AD66: =IF(A$2=Parametres!A$69,"",IF(B66=0,"",ROUND(AC66*Parametres!C$57,2))) ->  | AE66: =IF(A$2=Parametres!A$69,"",IF(B66=0,"",ROUND(AC66*Parametres!C$58,2))) ->  | AF66: =IF(A$2=Parametres!A$69,"",IF(B66=0,"",ROUND(AC66*Parametres!C$59,2))) ->  | AG66: =IF(A$2=Parametres!A$69,"",IF(B66=0,"",SUM(ROUND(AC66,2),ROUND(AD66,2),ROUND(AE66,2),ROUND(AF66,2)))) -> 
I67: =IF(F67=0,"",IF(A$2=Parametres!A$68,IF(G67="Oui",IF(H67="Oui",F67-F67*Parametres!C$41-(F67-F67*Parametres!C$41)*Parametres!C$42,IF(H67="Non",F67-F67*Parametres!C$41,"")),IF(G67="Non",IF(H67="Oui",F67-F67*Parametres!C$42,IF(H67="Non",F67,"")))),IF(A$2=Parametres!A$69,IF(G67="Oui",IF(H67="Oui",F67-F67*Parametres!C$41-(F67-F67*Parametres!C$41)*Parametres!C$42,IF(H67="Non",F67-F67*Parametres!E$41,"")),IF(G67="Non",IF(H67="Oui",F67-F67*Parametres!E$42,IF(H67="Non",F67,"")))),IF(A$2=Parametres!A$70,IF(G67="Oui",IF(H67="Oui",F67-F67*Parametres!C$41-(F67-F67*Parametres!C$41)*Parametres!C$42,IF(H67="Non",F67-F67*Parametres!G$41,"")),IF(G67="Non",IF(H67="Oui",F67-F67*Parametres!G$42,IF(H67="Non",F67,"")))),"")))) ->  | J67: =IF(B67=0,"",SUM(I66:I71)) ->  | K67: =IF(C67="","",IF(A$2=Parametres!A$70,Parametres!E$52,IF(A$2=Parametres!A$69,Parametres!E$51,IF(C67<=Parametres!D$47,Parametres!E$47,IF(C67<=Parametres!D$48,Parametres!E$48,IF(C67<=Parametres!D$49,Parametres!E$49,IF(C67>Parametres!D$50,Parametres!E$50,""))))))) ->  | L67: =IF(A$2=Parametres!A$70,Parametres!G$40,IF(B67="","",J67+J67*K67)) ->  | M67: =IF(B67=0,"",IF(A$2=Parametres!A$68,Parametres!D$10,IF(A$2=Parametres!A$69,Parametres!F$9,IF(A$2=Parametres!A$70,Parametres!H$9,"")))) ->  | T67: =IF(O67="gratuit","",IF(Q67=0,0,IF(Q67="","",S67/R67))) ->  | U67: =IF(O67="gratuit","",IF(B67=0,"",IF(A$2=Parametres!A$68,IF(T67<Parametres!C$21,0,IF(T67<Parametres!D$32,Parametres!E$32,IF(T67<Parametres!C$33,Parametres!E$33,IF(T67<Parametres!C$34,Parametres!E$34,Parametres!E$35)))), IF(A$2=Parametres!A$69,IF(T67<Parametres!E$21,0,IF(T67<Parametres!D$32,Parametres!E$32,IF(T67<Parametres!C$33,Parametres!E$33,IF(T67<Parametres!C$34,Parametres!E$34,Parametres!E$35)))), IF(A$2=Parametres!A$70,IF(T67<Parametres!G$21,0,IF(T67<Parametres!D$32,Parametres!E$32,IF(T67<Parametres!C$33,Parametres!E$33,IF(T67<Parametres!C$34,Parametres!E$34,Parametres!E$35))))))))) ->  | V67: =IF(B67=0,"",IF(A$2=Parametres!A$68,Parametres!D$10,IF(A$2=Parametres!A$69,Parametres!F$10,IF(A$2=Parametres!A$70,Parametres!H$10,"")))) ->  | W67: =IF(B67=0,"",IF(O67="gratuit",P67*V67,P67*V67+(P67*V67)*U67)) ->  | Z67: =IF(B67=0,"",IF(A$2=Parametres!A$68,Parametres!D$20,IF(A$2=Parametres!A$69,Parametres!F$20,IF(A$2=Parametres!A$70,Parametres!H$20,"")))) ->  | AB67: =IF(A$2=Parametres!A$69,"",IF(B67=0,"",IF(N67>(W67+AA67),IF(N67<Parametres!D$28,"FORFAIT MINI","DEPENSES"),IF((W67+AA67)<Parametres!D$28,"FORFAIT MINI","RECETTES")))) ->  | AC67: =IF(A$2=Parametres!A$69,"",IF(B67=0,"",ROUND(IF(N67>(W67+AA67),IF(N67<Parametres!D$28,Parametres!D$28,N67),IF((W67+AA67)<Parametres!D$28,Parametres!D$28,(W67+AA67))),2))) ->  | AD67: =IF(A$2=Parametres!A$69,"",IF(B67=0,"",ROUND(AC67*Parametres!C$57,2))) ->  | AE67: =IF(A$2=Parametres!A$69,"",IF(B67=0,"",ROUND(AC67*Parametres!C$58,2))) ->  | AF67: =IF(A$2=Parametres!A$69,"",IF(B67=0,"",ROUND(AC67*Parametres!C$59,2))) ->  | AG67: =IF(A$2=Parametres!A$69,"",IF(B67=0,"",SUM(ROUND(AC67,2),ROUND(AD67,2),ROUND(AE67,2),ROUND(AF67,2)))) -> 
I68: =IF(F68=0,"",IF(A$2=Parametres!A$68,IF(G68="Oui",IF(H68="Oui",F68-F68*Parametres!C$41-(F68-F68*Parametres!C$41)*Parametres!C$42,IF(H68="Non",F68-F68*Parametres!C$41,"")),IF(G68="Non",IF(H68="Oui",F68-F68*Parametres!C$42,IF(H68="Non",F68,"")))),IF(A$2=Parametres!A$69,IF(G68="Oui",IF(H68="Oui",F68-F68*Parametres!C$41-(F68-F68*Parametres!C$41)*Parametres!C$42,IF(H68="Non",F68-F68*Parametres!E$41,"")),IF(G68="Non",IF(H68="Oui",F68-F68*Parametres!E$42,IF(H68="Non",F68,"")))),IF(A$2=Parametres!A$70,IF(G68="Oui",IF(H68="Oui",F68-F68*Parametres!C$41-(F68-F68*Parametres!C$41)*Parametres!C$42,IF(H68="Non",F68-F68*Parametres!G$41,"")),IF(G68="Non",IF(H68="Oui",F68-F68*Parametres!G$42,IF(H68="Non",F68,"")))),"")))) ->  | J68: =IF(B68=0,"",(I66:I71)) ->  | K68: =IF(C68="","",IF(A$2=Parametres!A$70,Parametres!E$52,IF(A$2=Parametres!A$69,Parametres!E$51,IF(C68<=Parametres!D$47,Parametres!E$47,IF(C68<=Parametres!D$48,Parametres!E$48,IF(C68<=Parametres!D$49,Parametres!E$49,IF(C68>Parametres!D$50,Parametres!E$50,""))))))) ->  | L68: =IF(A$2=Parametres!A$70,Parametres!G$40,IF(B68="","",J68+J68*K68)) ->  | M68: =IF(B68=0,"",IF(A$2=Parametres!A$68,Parametres!D$10,IF(A$2=Parametres!A$69,Parametres!F$9,IF(A$2=Parametres!A$70,Parametres!H$9,"")))) ->  | U68: =IF(O68="gratuit","",IF(B68=0,"",IF(A$2=Parametres!A$68,IF(T68<Parametres!C$21,0,IF(T68<Parametres!D$32,Parametres!E$32,IF(T68<Parametres!C$33,Parametres!E$33,IF(T68<Parametres!C$34,Parametres!E$34,Parametres!E$35)))), IF(A$2=Parametres!A$69,IF(T68<Parametres!E$21,0,IF(T68<Parametres!D$32,Parametres!E$32,IF(T68<Parametres!C$33,Parametres!E$33,IF(T68<Parametres!C$34,Parametres!E$34,Parametres!E$35)))), IF(A$2=Parametres!A$70,IF(T68<Parametres!G$21,0,IF(T68<Parametres!D$32,Parametres!E$32,IF(T68<Parametres!C$33,Parametres!E$33,IF(T68<Parametres!C$34,Parametres!E$34,Parametres!E$35))))))))) ->  | V68: =IF(B68=0,"",IF(A$2=Parametres!A$68,Parametres!D$10,IF(A$2=Parametres!A$69,Parametres!F$10,IF(A$2=Parametres!A$70,Parametres!H$10,"")))) ->  | Z68: =IF(B68=0,"",IF(A$2=Parametres!A$68,Parametres!D$20,IF(A$2=Parametres!A$69,Parametres!F$20,IF(A$2=Parametres!A$70,Parametres!H$20,"")))) ->  | AB68: =IF(A$2=Parametres!A$69,"",IF(B68=0,"",IF(N68>(W68+AA68),IF(N68<Parametres!D$28,"FORFAIT MINI","DEPENSES"),IF((W68+AA68)<Parametres!D$28,"FORFAIT MINI","RECETTES")))) ->  | AC68: =IF(A$2=Parametres!A$69,"",IF(B68=0,"",ROUND(IF(N68>(W68+AA68),IF(N68<Parametres!D$28,Parametres!D$28,N68),IF((W68+AA68)<Parametres!D$28,Parametres!D$28,(W68+AA68))),2))) ->  | AD68: =IF(A$2=Parametres!A$69,"",IF(B68=0,"",ROUND(AC68*Parametres!C$57,2))) ->  | AE68: =IF(A$2=Parametres!A$69,"",IF(B68=0,"",ROUND(AC68*Parametres!C$58,2))) ->  | AF68: =IF(A$2=Parametres!A$69,"",IF(B68=0,"",ROUND(AC68*Parametres!C$59,2))) ->  | AG68: =IF(A$2=Parametres!A$69,"",IF(B68=0,"",SUM(ROUND(AC68,2),ROUND(AD68,2),ROUND(AE68,2),ROUND(AF68,2)))) -> 
I69: =IF(F69=0,"",IF(A$2=Parametres!A$68,IF(G69="Oui",IF(H69="Oui",F69-F69*Parametres!C$41-(F69-F69*Parametres!C$41)*Parametres!C$42,IF(H69="Non",F69-F69*Parametres!C$41,"")),IF(G69="Non",IF(H69="Oui",F69-F69*Parametres!C$42,IF(H69="Non",F69,"")))),IF(A$2=Parametres!A$69,IF(G69="Oui",IF(H69="Oui",F69-F69*Parametres!C$41-(F69-F69*Parametres!C$41)*Parametres!C$42,IF(H69="Non",F69-F69*Parametres!E$41,"")),IF(G69="Non",IF(H69="Oui",F69-F69*Parametres!E$42,IF(H69="Non",F69,"")))),IF(A$2=Parametres!A$70,IF(G69="Oui",IF(H69="Oui",F69-F69*Parametres!C$41-(F69-F69*Parametres!C$41)*Parametres!C$42,IF(H69="Non",F69-F69*Parametres!G$41,"")),IF(G69="Non",IF(H69="Oui",F69-F69*Parametres!G$42,IF(H69="Non",F69,"")))),"")))) ->  | J69: =IF(B69=0,"",SUM(I66:I71)) ->  | K69: =IF(C69="","",IF(A$2=Parametres!A$70,Parametres!E$52,IF(A$2=Parametres!A$69,Parametres!E$51,IF(C69<=Parametres!D$47,Parametres!E$47,IF(C69<=Parametres!D$48,Parametres!E$48,IF(C69<=Parametres!D$49,Parametres!E$49,IF(C69>Parametres!D$50,Parametres!E$50,""))))))) ->  | L69: =IF(A$2=Parametres!A$70,Parametres!G$40,IF(B69="","",J69+J69*K69)) ->  | M69: =IF(B69=0,"",IF(A$2=Parametres!A$68,Parametres!D$10,IF(A$2=Parametres!A$69,Parametres!F$9,IF(A$2=Parametres!A$70,Parametres!H$9,"")))) ->  | U69: =IF(O69="gratuit","",IF(B69=0,"",IF(A$2=Parametres!A$68,IF(T69<Parametres!C$21,0,IF(T69<Parametres!D$32,Parametres!E$32,IF(T69<Parametres!C$33,Parametres!E$33,IF(T69<Parametres!C$34,Parametres!E$34,Parametres!E$35)))), IF(A$2=Parametres!A$69,IF(T69<Parametres!E$21,0,IF(T69<Parametres!D$32,Parametres!E$32,IF(T69<Parametres!C$33,Parametres!E$33,IF(T69<Parametres!C$34,Parametres!E$34,Parametres!E$35)))), IF(A$2=Parametres!A$70,IF(T69<Parametres!G$21,0,IF(T69<Parametres!D$32,Parametres!E$32,IF(T69<Parametres!C$33,Parametres!E$33,IF(T69<Parametres!C$34,Parametres!E$34,Parametres!E$35))))))))) ->  | V69: =IF(B69=0,"",IF(A$2=Parametres!A$68,Parametres!D$10,IF(A$2=Parametres!A$69,Parametres!F$10,IF(A$2=Parametres!A$70,Parametres!H$10,"")))) ->  | Z69: =IF(B69=0,"",IF(A$2=Parametres!A$68,Parametres!D$20,IF(A$2=Parametres!A$69,Parametres!F$20,IF(A$2=Parametres!A$70,Parametres!H$20,"")))) ->  | AB69: =IF(A$2=Parametres!A$69,"",IF(B69=0,"",IF(N69>(W69+AA69),IF(N69<Parametres!D$28,"FORFAIT MINI","DEPENSES"),IF((W69+AA69)<Parametres!D$28,"FORFAIT MINI","RECETTES")))) ->  | AC69: =IF(A$2=Parametres!A$69,"",IF(B69=0,"",ROUND(IF(N69>(W69+AA69),IF(N69<Parametres!D$28,Parametres!D$28,N69),IF((W69+AA69)<Parametres!D$28,Parametres!D$28,(W69+AA69))),2))) ->  | AD69: =IF(A$2=Parametres!A$69,"",IF(B69=0,"",ROUND(AC69*Parametres!C$57,2))) ->  | AE69: =IF(A$2=Parametres!A$69,"",IF(B69=0,"",ROUND(AC69*Parametres!C$58,2))) ->  | AF69: =IF(A$2=Parametres!A$69,"",IF(B69=0,"",ROUND(AC69*Parametres!C$59,2))) ->  | AG69: =IF(A$2=Parametres!A$69,"",IF(B69=0,"",SUM(ROUND(AC69,2),ROUND(AD69,2),ROUND(AE69,2),ROUND(AF69,2)))) -> 
I70: =IF(F70=0,"",IF(A$2=Parametres!A$68,IF(G70="Oui",IF(H70="Oui",F70-F70*Parametres!C$41-(F70-F70*Parametres!C$41)*Parametres!C$42,IF(H70="Non",F70-F70*Parametres!C$41,"")),IF(G70="Non",IF(H70="Oui",F70-F70*Parametres!C$42,IF(H70="Non",F70,"")))),IF(A$2=Parametres!A$69,IF(G70="Oui",IF(H70="Oui",F70-F70*Parametres!C$41-(F70-F70*Parametres!C$41)*Parametres!C$42,IF(H70="Non",F70-F70*Parametres!E$41,"")),IF(G70="Non",IF(H70="Oui",F70-F70*Parametres!E$42,IF(H70="Non",F70,"")))),IF(A$2=Parametres!A$70,IF(G70="Oui",IF(H70="Oui",F70-F70*Parametres!C$41-(F70-F70*Parametres!C$41)*Parametres!C$42,IF(H70="Non",F70-F70*Parametres!G$41,"")),IF(G70="Non",IF(H70="Oui",F70-F70*Parametres!G$42,IF(H70="Non",F70,"")))),"")))) ->  | J70: =IF(B70=0,"",SUM(I66:I71)) ->  | K70: =IF(C70="","",IF(A$2=Parametres!A$70,Parametres!E$52,IF(A$2=Parametres!A$69,Parametres!E$51,IF(C70<=Parametres!D$47,Parametres!E$47,IF(C70<=Parametres!D$48,Parametres!E$48,IF(C70<=Parametres!D$49,Parametres!E$49,IF(C70>Parametres!D$50,Parametres!E$50,""))))))) ->  | L70: =IF(A$2=Parametres!A$70,Parametres!G$40,IF(B70="","",J70+J70*K70)) ->  | M70: =IF(B70=0,"",IF(A$2=Parametres!A$68,Parametres!D$10,IF(A$2=Parametres!A$69,Parametres!F$9,IF(A$2=Parametres!A$70,Parametres!H$9,"")))) ->  | U70: =IF(O70="gratuit","",IF(B70=0,"",IF(A$2=Parametres!A$68,IF(T70<Parametres!C$21,0,IF(T70<Parametres!D$32,Parametres!E$32,IF(T70<Parametres!C$33,Parametres!E$33,IF(T70<Parametres!C$34,Parametres!E$34,Parametres!E$35)))), IF(A$2=Parametres!A$69,IF(T70<Parametres!E$21,0,IF(T70<Parametres!D$32,Parametres!E$32,IF(T70<Parametres!C$33,Parametres!E$33,IF(T70<Parametres!C$34,Parametres!E$34,Parametres!E$35)))), IF(A$2=Parametres!A$70,IF(T70<Parametres!G$21,0,IF(T70<Parametres!D$32,Parametres!E$32,IF(T70<Parametres!C$33,Parametres!E$33,IF(T70<Parametres!C$34,Parametres!E$34,Parametres!E$35))))))))) ->  | V70: =IF(B70=0,"",IF(A$2=Parametres!A$68,Parametres!D$10,IF(A$2=Parametres!A$69,Parametres!F$10,IF(A$2=Parametres!A$70,Parametres!H$10,"")))) ->  | Z70: =IF(B70=0,"",IF(A$2=Parametres!A$68,Parametres!D$20,IF(A$2=Parametres!A$69,Parametres!F$20,IF(A$2=Parametres!A$70,Parametres!H$20,"")))) ->  | AB70: =IF(A$2=Parametres!A$69,"",IF(B70=0,"",IF(N70>(W70+AA70),IF(N70<Parametres!D$28,"FORFAIT MINI","DEPENSES"),IF((W70+AA70)<Parametres!D$28,"FORFAIT MINI","RECETTES")))) ->  | AC70: =IF(A$2=Parametres!A$69,"",IF(B70=0,"",ROUND(IF(N70>(W70+AA70),IF(N70<Parametres!D$28,Parametres!D$28,N70),IF((W70+AA70)<Parametres!D$28,Parametres!D$28,(W70+AA70))),2))) ->  | AD70: =IF(A$2=Parametres!A$69,"",IF(B70=0,"",ROUND(AC70*Parametres!C$57,2))) ->  | AE70: =IF(A$2=Parametres!A$69,"",IF(B70=0,"",ROUND(AC70*Parametres!C$58,2))) ->  | AF70: =IF(A$2=Parametres!A$69,"",IF(B70=0,"",ROUND(AC70*Parametres!C$59,2))) ->  | AG70: =IF(A$2=Parametres!A$69,"",IF(B70=0,"",SUM(ROUND(AC70,2),ROUND(AD70,2),ROUND(AE70,2),ROUND(AF70,2)))) -> 
I71: =IF(F71=0,"",IF(A$2=Parametres!A$68,IF(G71="Oui",IF(H71="Oui",F71-F71*Parametres!C$41-(F71-F71*Parametres!C$41)*Parametres!C$42,IF(H71="Non",F71-F71*Parametres!C$41,"")),IF(G71="Non",IF(H71="Oui",F71-F71*Parametres!C$42,IF(H71="Non",F71,"")))),IF(A$2=Parametres!A$69,IF(G71="Oui",IF(H71="Oui",F71-F71*Parametres!C$41-(F71-F71*Parametres!C$41)*Parametres!C$42,IF(H71="Non",F71-F71*Parametres!E$41,"")),IF(G71="Non",IF(H71="Oui",F71-F71*Parametres!E$42,IF(H71="Non",F71,"")))),IF(A$2=Parametres!A$70,IF(G71="Oui",IF(H71="Oui",F71-F71*Parametres!C$41-(F71-F71*Parametres!C$41)*Parametres!C$42,IF(H71="Non",F71-F71*Parametres!G$41,"")),IF(G71="Non",IF(H71="Oui",F71-F71*Parametres!G$42,IF(H71="Non",F71,"")))),"")))) ->  | J71: =IF(B71=0,"",SUM(I66:I71)) ->  | K71: =IF(C71="","",IF(A$2=Parametres!A$70,Parametres!E$52,IF(A$2=Parametres!A$69,Parametres!E$51,IF(C71<=Parametres!D$47,Parametres!E$47,IF(C71<=Parametres!D$48,Parametres!E$48,IF(C71<=Parametres!D$49,Parametres!E$49,IF(C71>Parametres!D$50,Parametres!E$50,""))))))) ->  | L71: =IF(A$2=Parametres!A$70,Parametres!G$40,IF(B71="","",J71+J71*K71)) ->  | M71: =IF(B71=0,"",IF(A$2=Parametres!A$68,Parametres!D$10,IF(A$2=Parametres!A$69,Parametres!F$9,IF(A$2=Parametres!A$70,Parametres!H$9,"")))) ->  | U71: =IF(O71="gratuit","",IF(B71=0,"",IF(A$2=Parametres!A$68,IF(T71<Parametres!C$21,0,IF(T71<Parametres!D$32,Parametres!E$32,IF(T71<Parametres!C$33,Parametres!E$33,IF(T71<Parametres!C$34,Parametres!E$34,Parametres!E$35)))), IF(A$2=Parametres!A$69,IF(T71<Parametres!E$21,0,IF(T71<Parametres!D$32,Parametres!E$32,IF(T71<Parametres!C$33,Parametres!E$33,IF(T71<Parametres!C$34,Parametres!E$34,Parametres!E$35)))), IF(A$2=Parametres!A$70,IF(T71<Parametres!G$21,0,IF(T71<Parametres!D$32,Parametres!E$32,IF(T71<Parametres!C$33,Parametres!E$33,IF(T71<Parametres!C$34,Parametres!E$34,Parametres!E$35))))))))) ->  | V71: =IF(B71=0,"",IF(A$2=Parametres!A$68,Parametres!D$10,IF(A$2=Parametres!A$69,Parametres!F$10,IF(A$2=Parametres!A$70,Parametres!H$10,"")))) ->  | Z71: =IF(B71=0,"",IF(A$2=Parametres!A$68,Parametres!D$20,IF(A$2=Parametres!A$69,Parametres!F$20,IF(A$2=Parametres!A$70,Parametres!H$20,"")))) ->  | AB71: =IF(A$2=Parametres!A$69,"",IF(B71=0,"",IF(N71>(W71+AA71),IF(N71<Parametres!D$28,"FORFAIT MINI","DEPENSES"),IF((W71+AA71)<Parametres!D$28,"FORFAIT MINI","RECETTES")))) ->  | AC71: =IF(A$2=Parametres!A$69,"",IF(B71=0,"",ROUND(IF(N71>(W71+AA71),IF(N71<Parametres!D$28,Parametres!D$28,N71),IF((W71+AA71)<Parametres!D$28,Parametres!D$28,(W71+AA71))),2))) ->  | AD71: =IF(A$2=Parametres!A$69,"",IF(B71=0,"",ROUND(AC71*Parametres!C$57,2))) ->  | AE71: =IF(A$2=Parametres!A$69,"",IF(B71=0,"",ROUND(AC71*Parametres!C$58,2))) ->  | AF71: =IF(A$2=Parametres!A$69,"",IF(B71=0,"",ROUND(AC71*Parametres!C$59,2))) ->  | AG71: =IF(A$2=Parametres!A$69,"",IF(B71=0,"",SUM(ROUND(AC71,2),ROUND(AD71,2),ROUND(AE71,2),ROUND(AF71,2)))) -> 
I73: =IF(F73=0,"",IF(A$2=Parametres!A$68,IF(G73="Oui",IF(H73="Oui",F73-F73*Parametres!C$41-(F73-F73*Parametres!C$41)*Parametres!C$42,IF(H73="Non",F73-F73*Parametres!C$41,"")),IF(G73="Non",IF(H73="Oui",F73-F73*Parametres!C$42,IF(H73="Non",F73,"")))),IF(A$2=Parametres!A$69,IF(G73="Oui",IF(H73="Oui",F73-F73*Parametres!C$41-(F73-F73*Parametres!C$41)*Parametres!C$42,IF(H73="Non",F73-F73*Parametres!E$41,"")),IF(G73="Non",IF(H73="Oui",F73-F73*Parametres!E$42,IF(H73="Non",F73,"")))),IF(A$2=Parametres!A$70,IF(G73="Oui",IF(H73="Oui",F73-F73*Parametres!C$41-(F73-F73*Parametres!C$41)*Parametres!C$42,IF(H73="Non",F73-F73*Parametres!G$41,"")),IF(G73="Non",IF(H73="Oui",F73-F73*Parametres!G$42,IF(H73="Non",F73,"")))),"")))) ->  | J73: =IF(B73=0,"",SUM(I73:I78)) ->  | K73: =IF(C73="","",IF(A$2=Parametres!A$70,Parametres!E$52,IF(A$2=Parametres!A$69,Parametres!E$51,IF(C73<=Parametres!D$47,Parametres!E$47,IF(C73<=Parametres!D$48,Parametres!E$48,IF(C73<=Parametres!D$49,Parametres!E$49,IF(C73>Parametres!D$50,Parametres!E$50,""))))))) ->  | L73: =IF(A$2=Parametres!A$70,Parametres!G$40,IF(B73="","",J73+J73*K73)) ->  | M73: =IF(B73=0,"",IF(A$2=Parametres!A$68,Parametres!D$10,IF(A$2=Parametres!A$69,Parametres!F$10,IF(A$2=Parametres!A$70,Parametres!H$10,"")))) ->  | N73: =IF(B73=0,"",M73*L73) ->  | O73: =IF(P73>0,"payant",IF(B73=0,"","gratuit")) ->  | Q73: =IF(B73=0,"",R73+S73) ->  | T73: =IF(O73="gratuit","",IF(Q73=0,0,IF(Q73="","",S73/R73))) ->  | U73: =IF(O73="gratuit","",IF(B73=0,"",IF(A$2=Parametres!A$68,IF(T73<Parametres!C$21,0,IF(T73<Parametres!D$32,Parametres!E$32,IF(T73<Parametres!C$33,Parametres!E$33,IF(T73<Parametres!C$34,Parametres!E$34,Parametres!E$35)))), IF(A$2=Parametres!A$69,IF(T73<Parametres!E$21,0,IF(T73<Parametres!D$32,Parametres!E$32,IF(T73<Parametres!C$33,Parametres!E$33,IF(T73<Parametres!C$34,Parametres!E$34,Parametres!E$35)))), IF(A$2=Parametres!A$70,IF(T73<Parametres!G$21,0,IF(T73<Parametres!D$32,Parametres!E$32,IF(T73<Parametres!C$33,Parametres!E$33,IF(T73<Parametres!C$34,Parametres!E$34,Parametres!E$35))))))))) ->  | V73: =IF(B73=0,"",IF(A$2=Parametres!A$68,Parametres!D$10,IF(A$2=Parametres!A$69,Parametres!F$10,IF(A$2=Parametres!A$70,Parametres!H$10,"")))) ->  | W73: =IF(B73=0,"",IF(O73="gratuit",P73*V73,P73*V73+(P73*V73)*U73)) ->  | Z73: =IF(B73=0,"",IF(A$2=Parametres!A$68,Parametres!D$20,IF(A$2=Parametres!A$69,Parametres!F$20,IF(A$2=Parametres!A$70,Parametres!H$20,"")))) ->  | AA73: =IF(B73=0,"",(X73+Y73)*Z73) ->  | AB73: =IF(A$2=Parametres!A$69,"",IF(B73=0,"",IF(N73>(W73+AA73),IF(N73<Parametres!D$28,"FORFAIT MINI","DEPENSES"),IF((W73+AA73)<Parametres!D$28,"FORFAIT MINI","RECETTES")))) ->  | AC73: =IF(A$2=Parametres!A$69,"",IF(B73=0,"",ROUND(IF(N73>(W73+AA73),IF(N73<Parametres!D$28,Parametres!D$28,N73),IF((W73+AA73)<Parametres!D$28,Parametres!D$28,(W73+AA73))),2))) ->  | AD73: =IF(A$2=Parametres!A$69,"",IF(B73=0,"",ROUND(AC73*Parametres!C$57,2))) ->  | AE73: =IF(A$2=Parametres!A$69,"",IF(B73=0,"",ROUND(AC73*Parametres!C$58,2))) ->  | AF73: =IF(A$2=Parametres!A$69,"",IF(B73=0,"",ROUND(AC73*Parametres!C$59,2))) ->  | AG73: =IF(A$2=Parametres!A$69,"",IF(B73=0,"",SUM(ROUND(AC73,2),ROUND(AD73,2),ROUND(AE73,2),ROUND(AF73,2)))) -> 
I74: =IF(F74=0,"",IF(A$2=Parametres!A$68,IF(G74="Oui",IF(H74="Oui",F74-F74*Parametres!C$41-(F74-F74*Parametres!C$41)*Parametres!C$42,IF(H74="Non",F74-F74*Parametres!C$41,"")),IF(G74="Non",IF(H74="Oui",F74-F74*Parametres!C$42,IF(H74="Non",F74,"")))),IF(A$2=Parametres!A$69,IF(G74="Oui",IF(H74="Oui",F74-F74*Parametres!C$41-(F74-F74*Parametres!C$41)*Parametres!C$42,IF(H74="Non",F74-F74*Parametres!E$41,"")),IF(G74="Non",IF(H74="Oui",F74-F74*Parametres!E$42,IF(H74="Non",F74,"")))),IF(A$2=Parametres!A$70,IF(G74="Oui",IF(H74="Oui",F74-F74*Parametres!C$41-(F74-F74*Parametres!C$41)*Parametres!C$42,IF(H74="Non",F74-F74*Parametres!G$41,"")),IF(G74="Non",IF(H74="Oui",F74-F74*Parametres!G$42,IF(H74="Non",F74,"")))),"")))) ->  | J74: =IF(B74=0,"",SUM(I73:I78)) ->  | K74: =IF(C74="","",IF(A$2=Parametres!A$70,Parametres!E$52,IF(A$2=Parametres!A$69,Parametres!E$51,IF(C74<=Parametres!D$47,Parametres!E$47,IF(C74<=Parametres!D$48,Parametres!E$48,IF(C74<=Parametres!D$49,Parametres!E$49,IF(C74>Parametres!D$50,Parametres!E$50,""))))))) ->  | L74: =IF(A$2=Parametres!A$70,Parametres!G$40,IF(B74="","",J74+J74*K74)) ->  | M74: =IF(B74=0,"",IF(A$2=Parametres!A$68,Parametres!D$10,IF(A$2=Parametres!A$69,Parametres!F$9,IF(A$2=Parametres!A$70,Parametres!H$9,"")))) ->  | T74: =IF(O74="gratuit","",IF(Q74=0,0,IF(Q74="","",S74/R74))) ->  | U74: =IF(O74="gratuit","",IF(B74=0,"",IF(A$2=Parametres!A$68,IF(T74<Parametres!C$21,0,IF(T74<Parametres!D$32,Parametres!E$32,IF(T74<Parametres!C$33,Parametres!E$33,IF(T74<Parametres!C$34,Parametres!E$34,Parametres!E$35)))), IF(A$2=Parametres!A$69,IF(T74<Parametres!E$21,0,IF(T74<Parametres!D$32,Parametres!E$32,IF(T74<Parametres!C$33,Parametres!E$33,IF(T74<Parametres!C$34,Parametres!E$34,Parametres!E$35)))), IF(A$2=Parametres!A$70,IF(T74<Parametres!G$21,0,IF(T74<Parametres!D$32,Parametres!E$32,IF(T74<Parametres!C$33,Parametres!E$33,IF(T74<Parametres!C$34,Parametres!E$34,Parametres!E$35))))))))) ->  | V74: =IF(B74=0,"",IF(A$2=Parametres!A$68,Parametres!D$10,IF(A$2=Parametres!A$69,Parametres!F$10,IF(A$2=Parametres!A$70,Parametres!H$10,"")))) ->  | W74: =IF(B74=0,"",IF(O74="gratuit",P74*V74,P74*V74+(P74*V74)*U74)) ->  | Z74: =IF(B74=0,"",IF(A$2=Parametres!A$68,Parametres!D$20,IF(A$2=Parametres!A$69,Parametres!F$20,IF(A$2=Parametres!A$70,Parametres!H$20,"")))) ->  | AB74: =IF(A$2=Parametres!A$69,"",IF(B74=0,"",IF(N74>(W74+AA74),IF(N74<Parametres!D$28,"FORFAIT MINI","DEPENSES"),IF((W74+AA74)<Parametres!D$28,"FORFAIT MINI","RECETTES")))) ->  | AC74: =IF(A$2=Parametres!A$69,"",IF(B74=0,"",ROUND(IF(N74>(W74+AA74),IF(N74<Parametres!D$28,Parametres!D$28,N74),IF((W74+AA74)<Parametres!D$28,Parametres!D$28,(W74+AA74))),2))) ->  | AD74: =IF(A$2=Parametres!A$69,"",IF(B74=0,"",ROUND(AC74*Parametres!C$57,2))) ->  | AE74: =IF(A$2=Parametres!A$69,"",IF(B74=0,"",ROUND(AC74*Parametres!C$58,2))) ->  | AF74: =IF(A$2=Parametres!A$69,"",IF(B74=0,"",ROUND(AC74*Parametres!C$59,2))) ->  | AG74: =IF(A$2=Parametres!A$69,"",IF(B74=0,"",SUM(ROUND(AC74,2),ROUND(AD74,2),ROUND(AE74,2),ROUND(AF74,2)))) -> 
I75: =IF(F75=0,"",IF(A$2=Parametres!A$68,IF(G75="Oui",IF(H75="Oui",F75-F75*Parametres!C$41-(F75-F75*Parametres!C$41)*Parametres!C$42,IF(H75="Non",F75-F75*Parametres!C$41,"")),IF(G75="Non",IF(H75="Oui",F75-F75*Parametres!C$42,IF(H75="Non",F75,"")))),IF(A$2=Parametres!A$69,IF(G75="Oui",IF(H75="Oui",F75-F75*Parametres!C$41-(F75-F75*Parametres!C$41)*Parametres!C$42,IF(H75="Non",F75-F75*Parametres!E$41,"")),IF(G75="Non",IF(H75="Oui",F75-F75*Parametres!E$42,IF(H75="Non",F75,"")))),IF(A$2=Parametres!A$70,IF(G75="Oui",IF(H75="Oui",F75-F75*Parametres!C$41-(F75-F75*Parametres!C$41)*Parametres!C$42,IF(H75="Non",F75-F75*Parametres!G$41,"")),IF(G75="Non",IF(H75="Oui",F75-F75*Parametres!G$42,IF(H75="Non",F75,"")))),"")))) ->  | J75: =IF(B75=0,"",(I73:I78)) ->  | K75: =IF(C75="","",IF(A$2=Parametres!A$70,Parametres!E$52,IF(A$2=Parametres!A$69,Parametres!E$51,IF(C75<=Parametres!D$47,Parametres!E$47,IF(C75<=Parametres!D$48,Parametres!E$48,IF(C75<=Parametres!D$49,Parametres!E$49,IF(C75>Parametres!D$50,Parametres!E$50,""))))))) ->  | L75: =IF(A$2=Parametres!A$70,Parametres!G$40,IF(B75="","",J75+J75*K75)) ->  | M75: =IF(B75=0,"",IF(A$2=Parametres!A$68,Parametres!D$10,IF(A$2=Parametres!A$69,Parametres!F$9,IF(A$2=Parametres!A$70,Parametres!H$9,"")))) ->  | U75: =IF(O75="gratuit","",IF(B75=0,"",IF(A$2=Parametres!A$68,IF(T75<Parametres!C$21,0,IF(T75<Parametres!D$32,Parametres!E$32,IF(T75<Parametres!C$33,Parametres!E$33,IF(T75<Parametres!C$34,Parametres!E$34,Parametres!E$35)))), IF(A$2=Parametres!A$69,IF(T75<Parametres!E$21,0,IF(T75<Parametres!D$32,Parametres!E$32,IF(T75<Parametres!C$33,Parametres!E$33,IF(T75<Parametres!C$34,Parametres!E$34,Parametres!E$35)))), IF(A$2=Parametres!A$70,IF(T75<Parametres!G$21,0,IF(T75<Parametres!D$32,Parametres!E$32,IF(T75<Parametres!C$33,Parametres!E$33,IF(T75<Parametres!C$34,Parametres!E$34,Parametres!E$35))))))))) ->  | V75: =IF(B75=0,"",IF(A$2=Parametres!A$68,Parametres!D$10,IF(A$2=Parametres!A$69,Parametres!F$10,IF(A$2=Parametres!A$70,Parametres!H$10,"")))) ->  | Z75: =IF(B75=0,"",IF(A$2=Parametres!A$68,Parametres!D$20,IF(A$2=Parametres!A$69,Parametres!F$20,IF(A$2=Parametres!A$70,Parametres!H$20,"")))) ->  | AB75: =IF(A$2=Parametres!A$69,"",IF(B75=0,"",IF(N75>(W75+AA75),IF(N75<Parametres!D$28,"FORFAIT MINI","DEPENSES"),IF((W75+AA75)<Parametres!D$28,"FORFAIT MINI","RECETTES")))) ->  | AC75: =IF(A$2=Parametres!A$69,"",IF(B75=0,"",ROUND(IF(N75>(W75+AA75),IF(N75<Parametres!D$28,Parametres!D$28,N75),IF((W75+AA75)<Parametres!D$28,Parametres!D$28,(W75+AA75))),2))) ->  | AD75: =IF(A$2=Parametres!A$69,"",IF(B75=0,"",ROUND(AC75*Parametres!C$57,2))) ->  | AE75: =IF(A$2=Parametres!A$69,"",IF(B75=0,"",ROUND(AC75*Parametres!C$58,2))) ->  | AF75: =IF(A$2=Parametres!A$69,"",IF(B75=0,"",ROUND(AC75*Parametres!C$59,2))) ->  | AG75: =IF(A$2=Parametres!A$69,"",IF(B75=0,"",SUM(ROUND(AC75,2),ROUND(AD75,2),ROUND(AE75,2),ROUND(AF75,2)))) -> 
I76: =IF(F76=0,"",IF(A$2=Parametres!A$68,IF(G76="Oui",IF(H76="Oui",F76-F76*Parametres!C$41-(F76-F76*Parametres!C$41)*Parametres!C$42,IF(H76="Non",F76-F76*Parametres!C$41,"")),IF(G76="Non",IF(H76="Oui",F76-F76*Parametres!C$42,IF(H76="Non",F76,"")))),IF(A$2=Parametres!A$69,IF(G76="Oui",IF(H76="Oui",F76-F76*Parametres!C$41-(F76-F76*Parametres!C$41)*Parametres!C$42,IF(H76="Non",F76-F76*Parametres!E$41,"")),IF(G76="Non",IF(H76="Oui",F76-F76*Parametres!E$42,IF(H76="Non",F76,"")))),IF(A$2=Parametres!A$70,IF(G76="Oui",IF(H76="Oui",F76-F76*Parametres!C$41-(F76-F76*Parametres!C$41)*Parametres!C$42,IF(H76="Non",F76-F76*Parametres!G$41,"")),IF(G76="Non",IF(H76="Oui",F76-F76*Parametres!G$42,IF(H76="Non",F76,"")))),"")))) ->  | J76: =IF(B76=0,"",SUM(I73:I78)) ->  | K76: =IF(C76="","",IF(A$2=Parametres!A$70,Parametres!E$52,IF(A$2=Parametres!A$69,Parametres!E$51,IF(C76<=Parametres!D$47,Parametres!E$47,IF(C76<=Parametres!D$48,Parametres!E$48,IF(C76<=Parametres!D$49,Parametres!E$49,IF(C76>Parametres!D$50,Parametres!E$50,""))))))) ->  | L76: =IF(A$2=Parametres!A$70,Parametres!G$40,IF(B76="","",J76+J76*K76)) ->  | M76: =IF(B76=0,"",IF(A$2=Parametres!A$68,Parametres!D$10,IF(A$2=Parametres!A$69,Parametres!F$9,IF(A$2=Parametres!A$70,Parametres!H$9,"")))) ->  | U76: =IF(O76="gratuit","",IF(B76=0,"",IF(A$2=Parametres!A$68,IF(T76<Parametres!C$21,0,IF(T76<Parametres!D$32,Parametres!E$32,IF(T76<Parametres!C$33,Parametres!E$33,IF(T76<Parametres!C$34,Parametres!E$34,Parametres!E$35)))), IF(A$2=Parametres!A$69,IF(T76<Parametres!E$21,0,IF(T76<Parametres!D$32,Parametres!E$32,IF(T76<Parametres!C$33,Parametres!E$33,IF(T76<Parametres!C$34,Parametres!E$34,Parametres!E$35)))), IF(A$2=Parametres!A$70,IF(T76<Parametres!G$21,0,IF(T76<Parametres!D$32,Parametres!E$32,IF(T76<Parametres!C$33,Parametres!E$33,IF(T76<Parametres!C$34,Parametres!E$34,Parametres!E$35))))))))) ->  | V76: =IF(B76=0,"",IF(A$2=Parametres!A$68,Parametres!D$10,IF(A$2=Parametres!A$69,Parametres!F$10,IF(A$2=Parametres!A$70,Parametres!H$10,"")))) ->  | Z76: =IF(B76=0,"",IF(A$2=Parametres!A$68,Parametres!D$20,IF(A$2=Parametres!A$69,Parametres!F$20,IF(A$2=Parametres!A$70,Parametres!H$20,"")))) ->  | AB76: =IF(A$2=Parametres!A$69,"",IF(B76=0,"",IF(N76>(W76+AA76),IF(N76<Parametres!D$28,"FORFAIT MINI","DEPENSES"),IF((W76+AA76)<Parametres!D$28,"FORFAIT MINI","RECETTES")))) ->  | AC76: =IF(A$2=Parametres!A$69,"",IF(B76=0,"",ROUND(IF(N76>(W76+AA76),IF(N76<Parametres!D$28,Parametres!D$28,N76),IF((W76+AA76)<Parametres!D$28,Parametres!D$28,(W76+AA76))),2))) ->  | AD76: =IF(A$2=Parametres!A$69,"",IF(B76=0,"",ROUND(AC76*Parametres!C$57,2))) ->  | AE76: =IF(A$2=Parametres!A$69,"",IF(B76=0,"",ROUND(AC76*Parametres!C$58,2))) ->  | AF76: =IF(A$2=Parametres!A$69,"",IF(B76=0,"",ROUND(AC76*Parametres!C$59,2))) ->  | AG76: =IF(A$2=Parametres!A$69,"",IF(B76=0,"",SUM(ROUND(AC76,2),ROUND(AD76,2),ROUND(AE76,2),ROUND(AF76,2)))) -> 
I77: =IF(F77=0,"",IF(A$2=Parametres!A$68,IF(G77="Oui",IF(H77="Oui",F77-F77*Parametres!C$41-(F77-F77*Parametres!C$41)*Parametres!C$42,IF(H77="Non",F77-F77*Parametres!C$41,"")),IF(G77="Non",IF(H77="Oui",F77-F77*Parametres!C$42,IF(H77="Non",F77,"")))),IF(A$2=Parametres!A$69,IF(G77="Oui",IF(H77="Oui",F77-F77*Parametres!C$41-(F77-F77*Parametres!C$41)*Parametres!C$42,IF(H77="Non",F77-F77*Parametres!E$41,"")),IF(G77="Non",IF(H77="Oui",F77-F77*Parametres!E$42,IF(H77="Non",F77,"")))),IF(A$2=Parametres!A$70,IF(G77="Oui",IF(H77="Oui",F77-F77*Parametres!C$41-(F77-F77*Parametres!C$41)*Parametres!C$42,IF(H77="Non",F77-F77*Parametres!G$41,"")),IF(G77="Non",IF(H77="Oui",F77-F77*Parametres!G$42,IF(H77="Non",F77,"")))),"")))) ->  | J77: =IF(B77=0,"",SUM(I73:I78)) ->  | K77: =IF(C77="","",IF(A$2=Parametres!A$70,Parametres!E$52,IF(A$2=Parametres!A$69,Parametres!E$51,IF(C77<=Parametres!D$47,Parametres!E$47,IF(C77<=Parametres!D$48,Parametres!E$48,IF(C77<=Parametres!D$49,Parametres!E$49,IF(C77>Parametres!D$50,Parametres!E$50,""))))))) ->  | L77: =IF(A$2=Parametres!A$70,Parametres!G$40,IF(B77="","",J77+J77*K77)) ->  | M77: =IF(B77=0,"",IF(A$2=Parametres!A$68,Parametres!D$10,IF(A$2=Parametres!A$69,Parametres!F$9,IF(A$2=Parametres!A$70,Parametres!H$9,"")))) ->  | U77: =IF(O77="gratuit","",IF(B77=0,"",IF(A$2=Parametres!A$68,IF(T77<Parametres!C$21,0,IF(T77<Parametres!D$32,Parametres!E$32,IF(T77<Parametres!C$33,Parametres!E$33,IF(T77<Parametres!C$34,Parametres!E$34,Parametres!E$35)))), IF(A$2=Parametres!A$69,IF(T77<Parametres!E$21,0,IF(T77<Parametres!D$32,Parametres!E$32,IF(T77<Parametres!C$33,Parametres!E$33,IF(T77<Parametres!C$34,Parametres!E$34,Parametres!E$35)))), IF(A$2=Parametres!A$70,IF(T77<Parametres!G$21,0,IF(T77<Parametres!D$32,Parametres!E$32,IF(T77<Parametres!C$33,Parametres!E$33,IF(T77<Parametres!C$34,Parametres!E$34,Parametres!E$35))))))))) ->  | V77: =IF(B77=0,"",IF(A$2=Parametres!A$68,Parametres!D$10,IF(A$2=Parametres!A$69,Parametres!F$10,IF(A$2=Parametres!A$70,Parametres!H$10,"")))) ->  | Z77: =IF(B77=0,"",IF(A$2=Parametres!A$68,Parametres!D$20,IF(A$2=Parametres!A$69,Parametres!F$20,IF(A$2=Parametres!A$70,Parametres!H$20,"")))) ->  | AB77: =IF(A$2=Parametres!A$69,"",IF(B77=0,"",IF(N77>(W77+AA77),IF(N77<Parametres!D$28,"FORFAIT MINI","DEPENSES"),IF((W77+AA77)<Parametres!D$28,"FORFAIT MINI","RECETTES")))) ->  | AC77: =IF(A$2=Parametres!A$69,"",IF(B77=0,"",ROUND(IF(N77>(W77+AA77),IF(N77<Parametres!D$28,Parametres!D$28,N77),IF((W77+AA77)<Parametres!D$28,Parametres!D$28,(W77+AA77))),2))) ->  | AD77: =IF(A$2=Parametres!A$69,"",IF(B77=0,"",ROUND(AC77*Parametres!C$57,2))) ->  | AE77: =IF(A$2=Parametres!A$69,"",IF(B77=0,"",ROUND(AC77*Parametres!C$58,2))) ->  | AF77: =IF(A$2=Parametres!A$69,"",IF(B77=0,"",ROUND(AC77*Parametres!C$59,2))) ->  | AG77: =IF(A$2=Parametres!A$69,"",IF(B77=0,"",SUM(ROUND(AC77,2),ROUND(AD77,2),ROUND(AE77,2),ROUND(AF77,2)))) -> 
I78: =IF(F78=0,"",IF(A$2=Parametres!A$68,IF(G78="Oui",IF(H78="Oui",F78-F78*Parametres!C$41-(F78-F78*Parametres!C$41)*Parametres!C$42,IF(H78="Non",F78-F78*Parametres!C$41,"")),IF(G78="Non",IF(H78="Oui",F78-F78*Parametres!C$42,IF(H78="Non",F78,"")))),IF(A$2=Parametres!A$69,IF(G78="Oui",IF(H78="Oui",F78-F78*Parametres!C$41-(F78-F78*Parametres!C$41)*Parametres!C$42,IF(H78="Non",F78-F78*Parametres!E$41,"")),IF(G78="Non",IF(H78="Oui",F78-F78*Parametres!E$42,IF(H78="Non",F78,"")))),IF(A$2=Parametres!A$70,IF(G78="Oui",IF(H78="Oui",F78-F78*Parametres!C$41-(F78-F78*Parametres!C$41)*Parametres!C$42,IF(H78="Non",F78-F78*Parametres!G$41,"")),IF(G78="Non",IF(H78="Oui",F78-F78*Parametres!G$42,IF(H78="Non",F78,"")))),"")))) ->  | J78: =IF(B78=0,"",SUM(I73:I78)) ->  | K78: =IF(C78="","",IF(A$2=Parametres!A$70,Parametres!E$52,IF(A$2=Parametres!A$69,Parametres!E$51,IF(C78<=Parametres!D$47,Parametres!E$47,IF(C78<=Parametres!D$48,Parametres!E$48,IF(C78<=Parametres!D$49,Parametres!E$49,IF(C78>Parametres!D$50,Parametres!E$50,""))))))) ->  | L78: =IF(A$2=Parametres!A$70,Parametres!G$40,IF(B78="","",J78+J78*K78)) ->  | M78: =IF(B78=0,"",IF(A$2=Parametres!A$68,Parametres!D$10,IF(A$2=Parametres!A$69,Parametres!F$9,IF(A$2=Parametres!A$70,Parametres!H$9,"")))) ->  | U78: =IF(O78="gratuit","",IF(B78=0,"",IF(A$2=Parametres!A$68,IF(T78<Parametres!C$21,0,IF(T78<Parametres!D$32,Parametres!E$32,IF(T78<Parametres!C$33,Parametres!E$33,IF(T78<Parametres!C$34,Parametres!E$34,Parametres!E$35)))), IF(A$2=Parametres!A$69,IF(T78<Parametres!E$21,0,IF(T78<Parametres!D$32,Parametres!E$32,IF(T78<Parametres!C$33,Parametres!E$33,IF(T78<Parametres!C$34,Parametres!E$34,Parametres!E$35)))), IF(A$2=Parametres!A$70,IF(T78<Parametres!G$21,0,IF(T78<Parametres!D$32,Parametres!E$32,IF(T78<Parametres!C$33,Parametres!E$33,IF(T78<Parametres!C$34,Parametres!E$34,Parametres!E$35))))))))) ->  | V78: =IF(B78=0,"",IF(A$2=Parametres!A$68,Parametres!D$10,IF(A$2=Parametres!A$69,Parametres!F$10,IF(A$2=Parametres!A$70,Parametres!H$10,"")))) ->  | Z78: =IF(B78=0,"",IF(A$2=Parametres!A$68,Parametres!D$20,IF(A$2=Parametres!A$69,Parametres!F$20,IF(A$2=Parametres!A$70,Parametres!H$20,"")))) ->  | AB78: =IF(A$2=Parametres!A$69,"",IF(B78=0,"",IF(N78>(W78+AA78),IF(N78<Parametres!D$28,"FORFAIT MINI","DEPENSES"),IF((W78+AA78)<Parametres!D$28,"FORFAIT MINI","RECETTES")))) ->  | AC78: =IF(A$2=Parametres!A$69,"",IF(B78=0,"",ROUND(IF(N78>(W78+AA78),IF(N78<Parametres!D$28,Parametres!D$28,N78),IF((W78+AA78)<Parametres!D$28,Parametres!D$28,(W78+AA78))),2))) ->  | AD78: =IF(A$2=Parametres!A$69,"",IF(B78=0,"",ROUND(AC78*Parametres!C$57,2))) ->  | AE78: =IF(A$2=Parametres!A$69,"",IF(B78=0,"",ROUND(AC78*Parametres!C$58,2))) ->  | AF78: =IF(A$2=Parametres!A$69,"",IF(B78=0,"",ROUND(AC78*Parametres!C$59,2))) ->  | AG78: =IF(A$2=Parametres!A$69,"",IF(B78=0,"",SUM(ROUND(AC78,2),ROUND(AD78,2),ROUND(AE78,2),ROUND(AF78,2)))) -> 
I80: =IF(F80=0,"",IF(A$2=Parametres!A$68,IF(G80="Oui",IF(H80="Oui",F80-F80*Parametres!C$41-(F80-F80*Parametres!C$41)*Parametres!C$42,IF(H80="Non",F80-F80*Parametres!C$41,"")),IF(G80="Non",IF(H80="Oui",F80-F80*Parametres!C$42,IF(H80="Non",F80,"")))),IF(A$2=Parametres!A$69,IF(G80="Oui",IF(H80="Oui",F80-F80*Parametres!C$41-(F80-F80*Parametres!C$41)*Parametres!C$42,IF(H80="Non",F80-F80*Parametres!E$41,"")),IF(G80="Non",IF(H80="Oui",F80-F80*Parametres!E$42,IF(H80="Non",F80,"")))),IF(A$2=Parametres!A$70,IF(G80="Oui",IF(H80="Oui",F80-F80*Parametres!C$41-(F80-F80*Parametres!C$41)*Parametres!C$42,IF(H80="Non",F80-F80*Parametres!G$41,"")),IF(G80="Non",IF(H80="Oui",F80-F80*Parametres!G$42,IF(H80="Non",F80,"")))),"")))) ->  | J80: =IF(B80=0,"",SUM(I80:I85)) ->  | K80: =IF(C80="","",IF(A$2=Parametres!A$70,Parametres!E$52,IF(A$2=Parametres!A$69,Parametres!E$51,IF(C80<=Parametres!D$47,Parametres!E$47,IF(C80<=Parametres!D$48,Parametres!E$48,IF(C80<=Parametres!D$49,Parametres!E$49,IF(C80>Parametres!D$50,Parametres!E$50,""))))))) ->  | L80: =IF(A$2=Parametres!A$70,Parametres!G$40,IF(B80="","",J80+J80*K80)) ->  | M80: =IF(B80=0,"",IF(A$2=Parametres!A$68,Parametres!D$10,IF(A$2=Parametres!A$69,Parametres!F$10,IF(A$2=Parametres!A$70,Parametres!H$10,"")))) ->  | N80: =IF(B80=0,"",M80*L80) ->  | O80: =IF(P80>0,"payant",IF(B80=0,"","gratuit")) ->  | Q80: =IF(B80=0,"",R80+S80) ->  | T80: =IF(O80="gratuit","",IF(Q80=0,0,IF(Q80="","",S80/R80))) ->  | U80: =IF(O80="gratuit","",IF(B80=0,"",IF(A$2=Parametres!A$68,IF(T80<Parametres!C$21,0,IF(T80<Parametres!D$32,Parametres!E$32,IF(T80<Parametres!C$33,Parametres!E$33,IF(T80<Parametres!C$34,Parametres!E$34,Parametres!E$35)))), IF(A$2=Parametres!A$69,IF(T80<Parametres!E$21,0,IF(T80<Parametres!D$32,Parametres!E$32,IF(T80<Parametres!C$33,Parametres!E$33,IF(T80<Parametres!C$34,Parametres!E$34,Parametres!E$35)))), IF(A$2=Parametres!A$70,IF(T80<Parametres!G$21,0,IF(T80<Parametres!D$32,Parametres!E$32,IF(T80<Parametres!C$33,Parametres!E$33,IF(T80<Parametres!C$34,Parametres!E$34,Parametres!E$35))))))))) ->  | V80: =IF(B80=0,"",IF(A$2=Parametres!A$68,Parametres!D$10,IF(A$2=Parametres!A$69,Parametres!F$10,IF(A$2=Parametres!A$70,Parametres!H$10,"")))) ->  | W80: =IF(B80=0,"",IF(O80="gratuit",P80*V80,P80*V80+(P80*V80)*U80)) ->  | Z80: =IF(B80=0,"",IF(A$2=Parametres!A$68,Parametres!D$20,IF(A$2=Parametres!A$69,Parametres!F$20,IF(A$2=Parametres!A$70,Parametres!H$20,"")))) ->  | AA80: =IF(B80=0,"",(X80+Y80)*Z80) ->  | AB80: =IF(A$2=Parametres!A$69,"",IF(B80=0,"",IF(N80>(W80+AA80),IF(N80<Parametres!D$28,"FORFAIT MINI","DEPENSES"),IF((W80+AA80)<Parametres!D$28,"FORFAIT MINI","RECETTES")))) ->  | AC80: =IF(A$2=Parametres!A$69,"",IF(B80=0,"",ROUND(IF(N80>(W80+AA80),IF(N80<Parametres!D$28,Parametres!D$28,N80),IF((W80+AA80)<Parametres!D$28,Parametres!D$28,(W80+AA80))),2))) ->  | AD80: =IF(A$2=Parametres!A$69,"",IF(B80=0,"",ROUND(AC80*Parametres!C$57,2))) ->  | AE80: =IF(A$2=Parametres!A$69,"",IF(B80=0,"",ROUND(AC80*Parametres!C$58,2))) ->  | AF80: =IF(A$2=Parametres!A$69,"",IF(B80=0,"",ROUND(AC80*Parametres!C$59,2))) ->  | AG80: =IF(A$2=Parametres!A$69,"",IF(B80=0,"",SUM(ROUND(AC80,2),ROUND(AD80,2),ROUND(AE80,2),ROUND(AF80,2)))) -> 
I81: =IF(F81=0,"",IF(A$2=Parametres!A$68,IF(G81="Oui",IF(H81="Oui",F81-F81*Parametres!C$41-(F81-F81*Parametres!C$41)*Parametres!C$42,IF(H81="Non",F81-F81*Parametres!C$41,"")),IF(G81="Non",IF(H81="Oui",F81-F81*Parametres!C$42,IF(H81="Non",F81,"")))),IF(A$2=Parametres!A$69,IF(G81="Oui",IF(H81="Oui",F81-F81*Parametres!C$41-(F81-F81*Parametres!C$41)*Parametres!C$42,IF(H81="Non",F81-F81*Parametres!E$41,"")),IF(G81="Non",IF(H81="Oui",F81-F81*Parametres!E$42,IF(H81="Non",F81,"")))),IF(A$2=Parametres!A$70,IF(G81="Oui",IF(H81="Oui",F81-F81*Parametres!C$41-(F81-F81*Parametres!C$41)*Parametres!C$42,IF(H81="Non",F81-F81*Parametres!G$41,"")),IF(G81="Non",IF(H81="Oui",F81-F81*Parametres!G$42,IF(H81="Non",F81,"")))),"")))) ->  | J81: =IF(B81=0,"",SUM(I80:I85)) ->  | K81: =IF(C81="","",IF(A$2=Parametres!A$70,Parametres!E$52,IF(A$2=Parametres!A$69,Parametres!E$51,IF(C81<=Parametres!D$47,Parametres!E$47,IF(C81<=Parametres!D$48,Parametres!E$48,IF(C81<=Parametres!D$49,Parametres!E$49,IF(C81>Parametres!D$50,Parametres!E$50,""))))))) ->  | L81: =IF(A$2=Parametres!A$70,Parametres!G$40,IF(B81="","",J81+J81*K81)) ->  | M81: =IF(B81=0,"",IF(A$2=Parametres!A$68,Parametres!D$10,IF(A$2=Parametres!A$69,Parametres!F$9,IF(A$2=Parametres!A$70,Parametres!H$9,"")))) ->  | T81: =IF(O81="gratuit","",IF(Q81=0,0,IF(Q81="","",S81/R81))) ->  | U81: =IF(O81="gratuit","",IF(B81=0,"",IF(A$2=Parametres!A$68,IF(T81<Parametres!C$21,0,IF(T81<Parametres!D$32,Parametres!E$32,IF(T81<Parametres!C$33,Parametres!E$33,IF(T81<Parametres!C$34,Parametres!E$34,Parametres!E$35)))), IF(A$2=Parametres!A$69,IF(T81<Parametres!E$21,0,IF(T81<Parametres!D$32,Parametres!E$32,IF(T81<Parametres!C$33,Parametres!E$33,IF(T81<Parametres!C$34,Parametres!E$34,Parametres!E$35)))), IF(A$2=Parametres!A$70,IF(T81<Parametres!G$21,0,IF(T81<Parametres!D$32,Parametres!E$32,IF(T81<Parametres!C$33,Parametres!E$33,IF(T81<Parametres!C$34,Parametres!E$34,Parametres!E$35))))))))) ->  | V81: =IF(B81=0,"",IF(A$2=Parametres!A$68,Parametres!D$10,IF(A$2=Parametres!A$69,Parametres!F$10,IF(A$2=Parametres!A$70,Parametres!H$10,"")))) ->  | W81: =IF(B81=0,"",IF(O81="gratuit",P81*V81,P81*V81+(P81*V81)*U81)) ->  | Z81: =IF(B81=0,"",IF(A$2=Parametres!A$68,Parametres!D$20,IF(A$2=Parametres!A$69,Parametres!F$20,IF(A$2=Parametres!A$70,Parametres!H$20,"")))) ->  | AB81: =IF(A$2=Parametres!A$69,"",IF(B81=0,"",IF(N81>(W81+AA81),IF(N81<Parametres!D$28,"FORFAIT MINI","DEPENSES"),IF((W81+AA81)<Parametres!D$28,"FORFAIT MINI","RECETTES")))) ->  | AC81: =IF(A$2=Parametres!A$69,"",IF(B81=0,"",ROUND(IF(N81>(W81+AA81),IF(N81<Parametres!D$28,Parametres!D$28,N81),IF((W81+AA81)<Parametres!D$28,Parametres!D$28,(W81+AA81))),2))) ->  | AD81: =IF(A$2=Parametres!A$69,"",IF(B81=0,"",ROUND(AC81*Parametres!C$57,2))) ->  | AE81: =IF(A$2=Parametres!A$69,"",IF(B81=0,"",ROUND(AC81*Parametres!C$58,2))) ->  | AF81: =IF(A$2=Parametres!A$69,"",IF(B81=0,"",ROUND(AC81*Parametres!C$59,2))) ->  | AG81: =IF(A$2=Parametres!A$69,"",IF(B81=0,"",SUM(ROUND(AC81,2),ROUND(AD81,2),ROUND(AE81,2),ROUND(AF81,2)))) -> 
I82: =IF(F82=0,"",IF(A$2=Parametres!A$68,IF(G82="Oui",IF(H82="Oui",F82-F82*Parametres!C$41-(F82-F82*Parametres!C$41)*Parametres!C$42,IF(H82="Non",F82-F82*Parametres!C$41,"")),IF(G82="Non",IF(H82="Oui",F82-F82*Parametres!C$42,IF(H82="Non",F82,"")))),IF(A$2=Parametres!A$69,IF(G82="Oui",IF(H82="Oui",F82-F82*Parametres!C$41-(F82-F82*Parametres!C$41)*Parametres!C$42,IF(H82="Non",F82-F82*Parametres!E$41,"")),IF(G82="Non",IF(H82="Oui",F82-F82*Parametres!E$42,IF(H82="Non",F82,"")))),IF(A$2=Parametres!A$70,IF(G82="Oui",IF(H82="Oui",F82-F82*Parametres!C$41-(F82-F82*Parametres!C$41)*Parametres!C$42,IF(H82="Non",F82-F82*Parametres!G$41,"")),IF(G82="Non",IF(H82="Oui",F82-F82*Parametres!G$42,IF(H82="Non",F82,"")))),"")))) ->  | J82: =IF(B82=0,"",(I80:I85)) ->  | K82: =IF(C82="","",IF(A$2=Parametres!A$70,Parametres!E$52,IF(A$2=Parametres!A$69,Parametres!E$51,IF(C82<=Parametres!D$47,Parametres!E$47,IF(C82<=Parametres!D$48,Parametres!E$48,IF(C82<=Parametres!D$49,Parametres!E$49,IF(C82>Parametres!D$50,Parametres!E$50,""))))))) ->  | L82: =IF(A$2=Parametres!A$70,Parametres!G$40,IF(B82="","",J82+J82*K82)) ->  | M82: =IF(B82=0,"",IF(A$2=Parametres!A$68,Parametres!D$10,IF(A$2=Parametres!A$69,Parametres!F$9,IF(A$2=Parametres!A$70,Parametres!H$9,"")))) ->  | U82: =IF(O82="gratuit","",IF(B82=0,"",IF(A$2=Parametres!A$68,IF(T82<Parametres!C$21,0,IF(T82<Parametres!D$32,Parametres!E$32,IF(T82<Parametres!C$33,Parametres!E$33,IF(T82<Parametres!C$34,Parametres!E$34,Parametres!E$35)))), IF(A$2=Parametres!A$69,IF(T82<Parametres!E$21,0,IF(T82<Parametres!D$32,Parametres!E$32,IF(T82<Parametres!C$33,Parametres!E$33,IF(T82<Parametres!C$34,Parametres!E$34,Parametres!E$35)))), IF(A$2=Parametres!A$70,IF(T82<Parametres!G$21,0,IF(T82<Parametres!D$32,Parametres!E$32,IF(T82<Parametres!C$33,Parametres!E$33,IF(T82<Parametres!C$34,Parametres!E$34,Parametres!E$35))))))))) ->  | V82: =IF(B82=0,"",IF(A$2=Parametres!A$68,Parametres!D$10,IF(A$2=Parametres!A$69,Parametres!F$10,IF(A$2=Parametres!A$70,Parametres!H$10,"")))) ->  | Z82: =IF(B82=0,"",IF(A$2=Parametres!A$68,Parametres!D$20,IF(A$2=Parametres!A$69,Parametres!F$20,IF(A$2=Parametres!A$70,Parametres!H$20,"")))) ->  | AB82: =IF(A$2=Parametres!A$69,"",IF(B82=0,"",IF(N82>(W82+AA82),IF(N82<Parametres!D$28,"FORFAIT MINI","DEPENSES"),IF((W82+AA82)<Parametres!D$28,"FORFAIT MINI","RECETTES")))) ->  | AC82: =IF(A$2=Parametres!A$69,"",IF(B82=0,"",ROUND(IF(N82>(W82+AA82),IF(N82<Parametres!D$28,Parametres!D$28,N82),IF((W82+AA82)<Parametres!D$28,Parametres!D$28,(W82+AA82))),2))) ->  | AD82: =IF(A$2=Parametres!A$69,"",IF(B82=0,"",ROUND(AC82*Parametres!C$57,2))) ->  | AE82: =IF(A$2=Parametres!A$69,"",IF(B82=0,"",ROUND(AC82*Parametres!C$58,2))) ->  | AF82: =IF(A$2=Parametres!A$69,"",IF(B82=0,"",ROUND(AC82*Parametres!C$59,2))) ->  | AG82: =IF(A$2=Parametres!A$69,"",IF(B82=0,"",SUM(ROUND(AC82,2),ROUND(AD82,2),ROUND(AE82,2),ROUND(AF82,2)))) -> 
I83: =IF(F83=0,"",IF(A$2=Parametres!A$68,IF(G83="Oui",IF(H83="Oui",F83-F83*Parametres!C$41-(F83-F83*Parametres!C$41)*Parametres!C$42,IF(H83="Non",F83-F83*Parametres!C$41,"")),IF(G83="Non",IF(H83="Oui",F83-F83*Parametres!C$42,IF(H83="Non",F83,"")))),IF(A$2=Parametres!A$69,IF(G83="Oui",IF(H83="Oui",F83-F83*Parametres!C$41-(F83-F83*Parametres!C$41)*Parametres!C$42,IF(H83="Non",F83-F83*Parametres!E$41,"")),IF(G83="Non",IF(H83="Oui",F83-F83*Parametres!E$42,IF(H83="Non",F83,"")))),IF(A$2=Parametres!A$70,IF(G83="Oui",IF(H83="Oui",F83-F83*Parametres!C$41-(F83-F83*Parametres!C$41)*Parametres!C$42,IF(H83="Non",F83-F83*Parametres!G$41,"")),IF(G83="Non",IF(H83="Oui",F83-F83*Parametres!G$42,IF(H83="Non",F83,"")))),"")))) ->  | J83: =IF(B83=0,"",SUM(I80:I85)) ->  | K83: =IF(C83="","",IF(A$2=Parametres!A$70,Parametres!E$52,IF(A$2=Parametres!A$69,Parametres!E$51,IF(C83<=Parametres!D$47,Parametres!E$47,IF(C83<=Parametres!D$48,Parametres!E$48,IF(C83<=Parametres!D$49,Parametres!E$49,IF(C83>Parametres!D$50,Parametres!E$50,""))))))) ->  | L83: =IF(A$2=Parametres!A$70,Parametres!G$40,IF(B83="","",J83+J83*K83)) ->  | M83: =IF(B83=0,"",IF(A$2=Parametres!A$68,Parametres!D$10,IF(A$2=Parametres!A$69,Parametres!F$9,IF(A$2=Parametres!A$70,Parametres!H$9,"")))) ->  | U83: =IF(O83="gratuit","",IF(B83=0,"",IF(A$2=Parametres!A$68,IF(T83<Parametres!C$21,0,IF(T83<Parametres!D$32,Parametres!E$32,IF(T83<Parametres!C$33,Parametres!E$33,IF(T83<Parametres!C$34,Parametres!E$34,Parametres!E$35)))), IF(A$2=Parametres!A$69,IF(T83<Parametres!E$21,0,IF(T83<Parametres!D$32,Parametres!E$32,IF(T83<Parametres!C$33,Parametres!E$33,IF(T83<Parametres!C$34,Parametres!E$34,Parametres!E$35)))), IF(A$2=Parametres!A$70,IF(T83<Parametres!G$21,0,IF(T83<Parametres!D$32,Parametres!E$32,IF(T83<Parametres!C$33,Parametres!E$33,IF(T83<Parametres!C$34,Parametres!E$34,Parametres!E$35))))))))) ->  | V83: =IF(B83=0,"",IF(A$2=Parametres!A$68,Parametres!D$10,IF(A$2=Parametres!A$69,Parametres!F$10,IF(A$2=Parametres!A$70,Parametres!H$10,"")))) ->  | Z83: =IF(B83=0,"",IF(A$2=Parametres!A$68,Parametres!D$20,IF(A$2=Parametres!A$69,Parametres!F$20,IF(A$2=Parametres!A$70,Parametres!H$20,"")))) ->  | AB83: =IF(A$2=Parametres!A$69,"",IF(B83=0,"",IF(N83>(W83+AA83),IF(N83<Parametres!D$28,"FORFAIT MINI","DEPENSES"),IF((W83+AA83)<Parametres!D$28,"FORFAIT MINI","RECETTES")))) ->  | AC83: =IF(A$2=Parametres!A$69,"",IF(B83=0,"",ROUND(IF(N83>(W83+AA83),IF(N83<Parametres!D$28,Parametres!D$28,N83),IF((W83+AA83)<Parametres!D$28,Parametres!D$28,(W83+AA83))),2))) ->  | AD83: =IF(A$2=Parametres!A$69,"",IF(B83=0,"",ROUND(AC83*Parametres!C$57,2))) ->  | AE83: =IF(A$2=Parametres!A$69,"",IF(B83=0,"",ROUND(AC83*Parametres!C$58,2))) ->  | AF83: =IF(A$2=Parametres!A$69,"",IF(B83=0,"",ROUND(AC83*Parametres!C$59,2))) ->  | AG83: =IF(A$2=Parametres!A$69,"",IF(B83=0,"",SUM(ROUND(AC83,2),ROUND(AD83,2),ROUND(AE83,2),ROUND(AF83,2)))) -> 
I84: =IF(F84=0,"",IF(A$2=Parametres!A$68,IF(G84="Oui",IF(H84="Oui",F84-F84*Parametres!C$41-(F84-F84*Parametres!C$41)*Parametres!C$42,IF(H84="Non",F84-F84*Parametres!C$41,"")),IF(G84="Non",IF(H84="Oui",F84-F84*Parametres!C$42,IF(H84="Non",F84,"")))),IF(A$2=Parametres!A$69,IF(G84="Oui",IF(H84="Oui",F84-F84*Parametres!C$41-(F84-F84*Parametres!C$41)*Parametres!C$42,IF(H84="Non",F84-F84*Parametres!E$41,"")),IF(G84="Non",IF(H84="Oui",F84-F84*Parametres!E$42,IF(H84="Non",F84,"")))),IF(A$2=Parametres!A$70,IF(G84="Oui",IF(H84="Oui",F84-F84*Parametres!C$41-(F84-F84*Parametres!C$41)*Parametres!C$42,IF(H84="Non",F84-F84*Parametres!G$41,"")),IF(G84="Non",IF(H84="Oui",F84-F84*Parametres!G$42,IF(H84="Non",F84,"")))),"")))) ->  | J84: =IF(B84=0,"",SUM(I80:I85)) ->  | K84: =IF(C84="","",IF(A$2=Parametres!A$70,Parametres!E$52,IF(A$2=Parametres!A$69,Parametres!E$51,IF(C84<=Parametres!D$47,Parametres!E$47,IF(C84<=Parametres!D$48,Parametres!E$48,IF(C84<=Parametres!D$49,Parametres!E$49,IF(C84>Parametres!D$50,Parametres!E$50,""))))))) ->  | L84: =IF(A$2=Parametres!A$70,Parametres!G$40,IF(B84="","",J84+J84*K84)) ->  | M84: =IF(B84=0,"",IF(A$2=Parametres!A$68,Parametres!D$10,IF(A$2=Parametres!A$69,Parametres!F$9,IF(A$2=Parametres!A$70,Parametres!H$9,"")))) ->  | U84: =IF(O84="gratuit","",IF(B84=0,"",IF(A$2=Parametres!A$68,IF(T84<Parametres!C$21,0,IF(T84<Parametres!D$32,Parametres!E$32,IF(T84<Parametres!C$33,Parametres!E$33,IF(T84<Parametres!C$34,Parametres!E$34,Parametres!E$35)))), IF(A$2=Parametres!A$69,IF(T84<Parametres!E$21,0,IF(T84<Parametres!D$32,Parametres!E$32,IF(T84<Parametres!C$33,Parametres!E$33,IF(T84<Parametres!C$34,Parametres!E$34,Parametres!E$35)))), IF(A$2=Parametres!A$70,IF(T84<Parametres!G$21,0,IF(T84<Parametres!D$32,Parametres!E$32,IF(T84<Parametres!C$33,Parametres!E$33,IF(T84<Parametres!C$34,Parametres!E$34,Parametres!E$35))))))))) ->  | V84: =IF(B84=0,"",IF(A$2=Parametres!A$68,Parametres!D$10,IF(A$2=Parametres!A$69,Parametres!F$10,IF(A$2=Parametres!A$70,Parametres!H$10,"")))) ->  | Z84: =IF(B84=0,"",IF(A$2=Parametres!A$68,Parametres!D$20,IF(A$2=Parametres!A$69,Parametres!F$20,IF(A$2=Parametres!A$70,Parametres!H$20,"")))) ->  | AB84: =IF(A$2=Parametres!A$69,"",IF(B84=0,"",IF(N84>(W84+AA84),IF(N84<Parametres!D$28,"FORFAIT MINI","DEPENSES"),IF((W84+AA84)<Parametres!D$28,"FORFAIT MINI","RECETTES")))) ->  | AC84: =IF(A$2=Parametres!A$69,"",IF(B84=0,"",ROUND(IF(N84>(W84+AA84),IF(N84<Parametres!D$28,Parametres!D$28,N84),IF((W84+AA84)<Parametres!D$28,Parametres!D$28,(W84+AA84))),2))) ->  | AD84: =IF(A$2=Parametres!A$69,"",IF(B84=0,"",ROUND(AC84*Parametres!C$57,2))) ->  | AE84: =IF(A$2=Parametres!A$69,"",IF(B84=0,"",ROUND(AC84*Parametres!C$58,2))) ->  | AF84: =IF(A$2=Parametres!A$69,"",IF(B84=0,"",ROUND(AC84*Parametres!C$59,2))) ->  | AG84: =IF(A$2=Parametres!A$69,"",IF(B84=0,"",SUM(ROUND(AC84,2),ROUND(AD84,2),ROUND(AE84,2),ROUND(AF84,2)))) -> 
I85: =IF(F85=0,"",IF(A$2=Parametres!A$68,IF(G85="Oui",IF(H85="Oui",F85-F85*Parametres!C$41-(F85-F85*Parametres!C$41)*Parametres!C$42,IF(H85="Non",F85-F85*Parametres!C$41,"")),IF(G85="Non",IF(H85="Oui",F85-F85*Parametres!C$42,IF(H85="Non",F85,"")))),IF(A$2=Parametres!A$69,IF(G85="Oui",IF(H85="Oui",F85-F85*Parametres!C$41-(F85-F85*Parametres!C$41)*Parametres!C$42,IF(H85="Non",F85-F85*Parametres!E$41,"")),IF(G85="Non",IF(H85="Oui",F85-F85*Parametres!E$42,IF(H85="Non",F85,"")))),IF(A$2=Parametres!A$70,IF(G85="Oui",IF(H85="Oui",F85-F85*Parametres!C$41-(F85-F85*Parametres!C$41)*Parametres!C$42,IF(H85="Non",F85-F85*Parametres!G$41,"")),IF(G85="Non",IF(H85="Oui",F85-F85*Parametres!G$42,IF(H85="Non",F85,"")))),"")))) ->  | J85: =IF(B85=0,"",SUM(I80:I85)) ->  | K85: =IF(C85="","",IF(A$2=Parametres!A$70,Parametres!E$52,IF(A$2=Parametres!A$69,Parametres!E$51,IF(C85<=Parametres!D$47,Parametres!E$47,IF(C85<=Parametres!D$48,Parametres!E$48,IF(C85<=Parametres!D$49,Parametres!E$49,IF(C85>Parametres!D$50,Parametres!E$50,""))))))) ->  | L85: =IF(A$2=Parametres!A$70,Parametres!G$40,IF(B85="","",J85+J85*K85)) ->  | M85: =IF(B85=0,"",IF(A$2=Parametres!A$68,Parametres!D$10,IF(A$2=Parametres!A$69,Parametres!F$9,IF(A$2=Parametres!A$70,Parametres!H$9,"")))) ->  | U85: =IF(O85="gratuit","",IF(B85=0,"",IF(A$2=Parametres!A$68,IF(T85<Parametres!C$21,0,IF(T85<Parametres!D$32,Parametres!E$32,IF(T85<Parametres!C$33,Parametres!E$33,IF(T85<Parametres!C$34,Parametres!E$34,Parametres!E$35)))), IF(A$2=Parametres!A$69,IF(T85<Parametres!E$21,0,IF(T85<Parametres!D$32,Parametres!E$32,IF(T85<Parametres!C$33,Parametres!E$33,IF(T85<Parametres!C$34,Parametres!E$34,Parametres!E$35)))), IF(A$2=Parametres!A$70,IF(T85<Parametres!G$21,0,IF(T85<Parametres!D$32,Parametres!E$32,IF(T85<Parametres!C$33,Parametres!E$33,IF(T85<Parametres!C$34,Parametres!E$34,Parametres!E$35))))))))) ->  | V85: =IF(B85=0,"",IF(A$2=Parametres!A$68,Parametres!D$10,IF(A$2=Parametres!A$69,Parametres!F$10,IF(A$2=Parametres!A$70,Parametres!H$10,"")))) ->  | Z85: =IF(B85=0,"",IF(A$2=Parametres!A$68,Parametres!D$20,IF(A$2=Parametres!A$69,Parametres!F$20,IF(A$2=Parametres!A$70,Parametres!H$20,"")))) ->  | AB85: =IF(A$2=Parametres!A$69,"",IF(B85=0,"",IF(N85>(W85+AA85),IF(N85<Parametres!D$28,"FORFAIT MINI","DEPENSES"),IF((W85+AA85)<Parametres!D$28,"FORFAIT MINI","RECETTES")))) ->  | AC85: =IF(A$2=Parametres!A$69,"",IF(B85=0,"",ROUND(IF(N85>(W85+AA85),IF(N85<Parametres!D$28,Parametres!D$28,N85),IF((W85+AA85)<Parametres!D$28,Parametres!D$28,(W85+AA85))),2))) ->  | AD85: =IF(A$2=Parametres!A$69,"",IF(B85=0,"",ROUND(AC85*Parametres!C$57,2))) ->  | AE85: =IF(A$2=Parametres!A$69,"",IF(B85=0,"",ROUND(AC85*Parametres!C$58,2))) ->  | AF85: =IF(A$2=Parametres!A$69,"",IF(B85=0,"",ROUND(AC85*Parametres!C$59,2))) ->  | AG85: =IF(A$2=Parametres!A$69,"",IF(B85=0,"",SUM(ROUND(AC85,2),ROUND(AD85,2),ROUND(AE85,2),ROUND(AF85,2)))) -> 
I87: =IF(F87=0,"",IF(A$2=Parametres!A$68,IF(G87="Oui",IF(H87="Oui",F87-F87*Parametres!C$41-(F87-F87*Parametres!C$41)*Parametres!C$42,IF(H87="Non",F87-F87*Parametres!C$41,"")),IF(G87="Non",IF(H87="Oui",F87-F87*Parametres!C$42,IF(H87="Non",F87,"")))),IF(A$2=Parametres!A$69,IF(G87="Oui",IF(H87="Oui",F87-F87*Parametres!C$41-(F87-F87*Parametres!C$41)*Parametres!C$42,IF(H87="Non",F87-F87*Parametres!E$41,"")),IF(G87="Non",IF(H87="Oui",F87-F87*Parametres!E$42,IF(H87="Non",F87,"")))),IF(A$2=Parametres!A$70,IF(G87="Oui",IF(H87="Oui",F87-F87*Parametres!C$41-(F87-F87*Parametres!C$41)*Parametres!C$42,IF(H87="Non",F87-F87*Parametres!G$41,"")),IF(G87="Non",IF(H87="Oui",F87-F87*Parametres!G$42,IF(H87="Non",F87,"")))),"")))) ->  | J87: =IF(B87=0,"",SUM(I87:I92)) ->  | K87: =IF(C87="","",IF(A$2=Parametres!A$70,Parametres!E$52,IF(A$2=Parametres!A$69,Parametres!E$51,IF(C87<=Parametres!D$47,Parametres!E$47,IF(C87<=Parametres!D$48,Parametres!E$48,IF(C87<=Parametres!D$49,Parametres!E$49,IF(C87>Parametres!D$50,Parametres!E$50,""))))))) ->  | L87: =IF(A$2=Parametres!A$70,Parametres!G$40,IF(B87="","",J87+J87*K87)) ->  | M87: =IF(B87=0,"",IF(A$2=Parametres!A$68,Parametres!D$10,IF(A$2=Parametres!A$69,Parametres!F$10,IF(A$2=Parametres!A$70,Parametres!H$10,"")))) ->  | N87: =IF(B87=0,"",M87*L87) ->  | O87: =IF(P87>0,"payant",IF(B87=0,"","gratuit")) ->  | Q87: =IF(B87=0,"",R87+S87) ->  | T87: =IF(O87="gratuit","",IF(Q87=0,0,IF(Q87="","",S87/R87))) ->  | U87: =IF(O87="gratuit","",IF(B87=0,"",IF(A$2=Parametres!A$68,IF(T87<Parametres!C$21,0,IF(T87<Parametres!D$32,Parametres!E$32,IF(T87<Parametres!C$33,Parametres!E$33,IF(T87<Parametres!C$34,Parametres!E$34,Parametres!E$35)))), IF(A$2=Parametres!A$69,IF(T87<Parametres!E$21,0,IF(T87<Parametres!D$32,Parametres!E$32,IF(T87<Parametres!C$33,Parametres!E$33,IF(T87<Parametres!C$34,Parametres!E$34,Parametres!E$35)))), IF(A$2=Parametres!A$70,IF(T87<Parametres!G$21,0,IF(T87<Parametres!D$32,Parametres!E$32,IF(T87<Parametres!C$33,Parametres!E$33,IF(T87<Parametres!C$34,Parametres!E$34,Parametres!E$35))))))))) ->  | V87: =IF(B87=0,"",IF(A$2=Parametres!A$68,Parametres!D$10,IF(A$2=Parametres!A$69,Parametres!F$10,IF(A$2=Parametres!A$70,Parametres!H$10,"")))) ->  | W87: =IF(B87=0,"",IF(O87="gratuit",P87*V87,P87*V87+(P87*V87)*U87)) ->  | Z87: =IF(B87=0,"",IF(A$2=Parametres!A$68,Parametres!D$20,IF(A$2=Parametres!A$69,Parametres!F$20,IF(A$2=Parametres!A$70,Parametres!H$20,"")))) ->  | AA87: =IF(B87=0,"",(X87+Y87)*Z87) ->  | AB87: =IF(A$2=Parametres!A$69,"",IF(B87=0,"",IF(N87>(W87+AA87),IF(N87<Parametres!D$28,"FORFAIT MINI","DEPENSES"),IF((W87+AA87)<Parametres!D$28,"FORFAIT MINI","RECETTES")))) ->  | AC87: =IF(A$2=Parametres!A$69,"",IF(B87=0,"",ROUND(IF(N87>(W87+AA87),IF(N87<Parametres!D$28,Parametres!D$28,N87),IF((W87+AA87)<Parametres!D$28,Parametres!D$28,(W87+AA87))),2))) ->  | AD87: =IF(A$2=Parametres!A$69,"",IF(B87=0,"",ROUND(AC87*Parametres!C$57,2))) ->  | AE87: =IF(A$2=Parametres!A$69,"",IF(B87=0,"",ROUND(AC87*Parametres!C$58,2))) ->  | AF87: =IF(A$2=Parametres!A$69,"",IF(B87=0,"",ROUND(AC87*Parametres!C$59,2))) ->  | AG87: =IF(A$2=Parametres!A$69,"",IF(B87=0,"",SUM(ROUND(AC87,2),ROUND(AD87,2),ROUND(AE87,2),ROUND(AF87,2)))) -> 
I88: =IF(F88=0,"",IF(A$2=Parametres!A$68,IF(G88="Oui",IF(H88="Oui",F88-F88*Parametres!C$41-(F88-F88*Parametres!C$41)*Parametres!C$42,IF(H88="Non",F88-F88*Parametres!C$41,"")),IF(G88="Non",IF(H88="Oui",F88-F88*Parametres!C$42,IF(H88="Non",F88,"")))),IF(A$2=Parametres!A$69,IF(G88="Oui",IF(H88="Oui",F88-F88*Parametres!C$41-(F88-F88*Parametres!C$41)*Parametres!C$42,IF(H88="Non",F88-F88*Parametres!E$41,"")),IF(G88="Non",IF(H88="Oui",F88-F88*Parametres!E$42,IF(H88="Non",F88,"")))),IF(A$2=Parametres!A$70,IF(G88="Oui",IF(H88="Oui",F88-F88*Parametres!C$41-(F88-F88*Parametres!C$41)*Parametres!C$42,IF(H88="Non",F88-F88*Parametres!G$41,"")),IF(G88="Non",IF(H88="Oui",F88-F88*Parametres!G$42,IF(H88="Non",F88,"")))),"")))) ->  | J88: =IF(B88=0,"",SUM(I87:I92)) ->  | K88: =IF(C88="","",IF(A$2=Parametres!A$70,Parametres!E$52,IF(A$2=Parametres!A$69,Parametres!E$51,IF(C88<=Parametres!D$47,Parametres!E$47,IF(C88<=Parametres!D$48,Parametres!E$48,IF(C88<=Parametres!D$49,Parametres!E$49,IF(C88>Parametres!D$50,Parametres!E$50,""))))))) ->  | L88: =IF(A$2=Parametres!A$70,Parametres!G$40,IF(B88="","",J88+J88*K88)) ->  | M88: =IF(B88=0,"",IF(A$2=Parametres!A$68,Parametres!D$10,IF(A$2=Parametres!A$69,Parametres!F$9,IF(A$2=Parametres!A$70,Parametres!H$9,"")))) ->  | T88: =IF(O88="gratuit","",IF(Q88=0,0,IF(Q88="","",S88/R88))) ->  | U88: =IF(O88="gratuit","",IF(B88=0,"",IF(A$2=Parametres!A$68,IF(T88<Parametres!C$21,0,IF(T88<Parametres!D$32,Parametres!E$32,IF(T88<Parametres!C$33,Parametres!E$33,IF(T88<Parametres!C$34,Parametres!E$34,Parametres!E$35)))), IF(A$2=Parametres!A$69,IF(T88<Parametres!E$21,0,IF(T88<Parametres!D$32,Parametres!E$32,IF(T88<Parametres!C$33,Parametres!E$33,IF(T88<Parametres!C$34,Parametres!E$34,Parametres!E$35)))), IF(A$2=Parametres!A$70,IF(T88<Parametres!G$21,0,IF(T88<Parametres!D$32,Parametres!E$32,IF(T88<Parametres!C$33,Parametres!E$33,IF(T88<Parametres!C$34,Parametres!E$34,Parametres!E$35))))))))) ->  | V88: =IF(B88=0,"",IF(A$2=Parametres!A$68,Parametres!D$10,IF(A$2=Parametres!A$69,Parametres!F$10,IF(A$2=Parametres!A$70,Parametres!H$10,"")))) ->  | W88: =IF(B88=0,"",IF(O88="gratuit",P88*V88,P88*V88+(P88*V88)*U88)) ->  | Z88: =IF(B88=0,"",IF(A$2=Parametres!A$68,Parametres!D$20,IF(A$2=Parametres!A$69,Parametres!F$20,IF(A$2=Parametres!A$70,Parametres!H$20,"")))) ->  | AB88: =IF(A$2=Parametres!A$69,"",IF(B88=0,"",IF(N88>(W88+AA88),IF(N88<Parametres!D$28,"FORFAIT MINI","DEPENSES"),IF((W88+AA88)<Parametres!D$28,"FORFAIT MINI","RECETTES")))) ->  | AC88: =IF(A$2=Parametres!A$69,"",IF(B88=0,"",ROUND(IF(N88>(W88+AA88),IF(N88<Parametres!D$28,Parametres!D$28,N88),IF((W88+AA88)<Parametres!D$28,Parametres!D$28,(W88+AA88))),2))) ->  | AD88: =IF(A$2=Parametres!A$69,"",IF(B88=0,"",ROUND(AC88*Parametres!C$57,2))) ->  | AE88: =IF(A$2=Parametres!A$69,"",IF(B88=0,"",ROUND(AC88*Parametres!C$58,2))) ->  | AF88: =IF(A$2=Parametres!A$69,"",IF(B88=0,"",ROUND(AC88*Parametres!C$59,2))) ->  | AG88: =IF(A$2=Parametres!A$69,"",IF(B88=0,"",SUM(ROUND(AC88,2),ROUND(AD88,2),ROUND(AE88,2),ROUND(AF88,2)))) -> 
I89: =IF(F89=0,"",IF(A$2=Parametres!A$68,IF(G89="Oui",IF(H89="Oui",F89-F89*Parametres!C$41-(F89-F89*Parametres!C$41)*Parametres!C$42,IF(H89="Non",F89-F89*Parametres!C$41,"")),IF(G89="Non",IF(H89="Oui",F89-F89*Parametres!C$42,IF(H89="Non",F89,"")))),IF(A$2=Parametres!A$69,IF(G89="Oui",IF(H89="Oui",F89-F89*Parametres!C$41-(F89-F89*Parametres!C$41)*Parametres!C$42,IF(H89="Non",F89-F89*Parametres!E$41,"")),IF(G89="Non",IF(H89="Oui",F89-F89*Parametres!E$42,IF(H89="Non",F89,"")))),IF(A$2=Parametres!A$70,IF(G89="Oui",IF(H89="Oui",F89-F89*Parametres!C$41-(F89-F89*Parametres!C$41)*Parametres!C$42,IF(H89="Non",F89-F89*Parametres!G$41,"")),IF(G89="Non",IF(H89="Oui",F89-F89*Parametres!G$42,IF(H89="Non",F89,"")))),"")))) ->  | J89: =IF(B89=0,"",(I87:I92)) ->  | K89: =IF(C89="","",IF(A$2=Parametres!A$70,Parametres!E$52,IF(A$2=Parametres!A$69,Parametres!E$51,IF(C89<=Parametres!D$47,Parametres!E$47,IF(C89<=Parametres!D$48,Parametres!E$48,IF(C89<=Parametres!D$49,Parametres!E$49,IF(C89>Parametres!D$50,Parametres!E$50,""))))))) ->  | L89: =IF(A$2=Parametres!A$70,Parametres!G$40,IF(B89="","",J89+J89*K89)) ->  | M89: =IF(B89=0,"",IF(A$2=Parametres!A$68,Parametres!D$10,IF(A$2=Parametres!A$69,Parametres!F$9,IF(A$2=Parametres!A$70,Parametres!H$9,"")))) ->  | U89: =IF(O89="gratuit","",IF(B89=0,"",IF(A$2=Parametres!A$68,IF(T89<Parametres!C$21,0,IF(T89<Parametres!D$32,Parametres!E$32,IF(T89<Parametres!C$33,Parametres!E$33,IF(T89<Parametres!C$34,Parametres!E$34,Parametres!E$35)))), IF(A$2=Parametres!A$69,IF(T89<Parametres!E$21,0,IF(T89<Parametres!D$32,Parametres!E$32,IF(T89<Parametres!C$33,Parametres!E$33,IF(T89<Parametres!C$34,Parametres!E$34,Parametres!E$35)))), IF(A$2=Parametres!A$70,IF(T89<Parametres!G$21,0,IF(T89<Parametres!D$32,Parametres!E$32,IF(T89<Parametres!C$33,Parametres!E$33,IF(T89<Parametres!C$34,Parametres!E$34,Parametres!E$35))))))))) ->  | V89: =IF(B89=0,"",IF(A$2=Parametres!A$68,Parametres!D$10,IF(A$2=Parametres!A$69,Parametres!F$10,IF(A$2=Parametres!A$70,Parametres!H$10,"")))) ->  | Z89: =IF(B89=0,"",IF(A$2=Parametres!A$68,Parametres!D$20,IF(A$2=Parametres!A$69,Parametres!F$20,IF(A$2=Parametres!A$70,Parametres!H$20,"")))) ->  | AB89: =IF(A$2=Parametres!A$69,"",IF(B89=0,"",IF(N89>(W89+AA89),IF(N89<Parametres!D$28,"FORFAIT MINI","DEPENSES"),IF((W89+AA89)<Parametres!D$28,"FORFAIT MINI","RECETTES")))) ->  | AC89: =IF(A$2=Parametres!A$69,"",IF(B89=0,"",ROUND(IF(N89>(W89+AA89),IF(N89<Parametres!D$28,Parametres!D$28,N89),IF((W89+AA89)<Parametres!D$28,Parametres!D$28,(W89+AA89))),2))) ->  | AD89: =IF(A$2=Parametres!A$69,"",IF(B89=0,"",ROUND(AC89*Parametres!C$57,2))) ->  | AE89: =IF(A$2=Parametres!A$69,"",IF(B89=0,"",ROUND(AC89*Parametres!C$58,2))) ->  | AF89: =IF(A$2=Parametres!A$69,"",IF(B89=0,"",ROUND(AC89*Parametres!C$59,2))) ->  | AG89: =IF(A$2=Parametres!A$69,"",IF(B89=0,"",SUM(ROUND(AC89,2),ROUND(AD89,2),ROUND(AE89,2),ROUND(AF89,2)))) -> 
I90: =IF(F90=0,"",IF(A$2=Parametres!A$68,IF(G90="Oui",IF(H90="Oui",F90-F90*Parametres!C$41-(F90-F90*Parametres!C$41)*Parametres!C$42,IF(H90="Non",F90-F90*Parametres!C$41,"")),IF(G90="Non",IF(H90="Oui",F90-F90*Parametres!C$42,IF(H90="Non",F90,"")))),IF(A$2=Parametres!A$69,IF(G90="Oui",IF(H90="Oui",F90-F90*Parametres!C$41-(F90-F90*Parametres!C$41)*Parametres!C$42,IF(H90="Non",F90-F90*Parametres!E$41,"")),IF(G90="Non",IF(H90="Oui",F90-F90*Parametres!E$42,IF(H90="Non",F90,"")))),IF(A$2=Parametres!A$70,IF(G90="Oui",IF(H90="Oui",F90-F90*Parametres!C$41-(F90-F90*Parametres!C$41)*Parametres!C$42,IF(H90="Non",F90-F90*Parametres!G$41,"")),IF(G90="Non",IF(H90="Oui",F90-F90*Parametres!G$42,IF(H90="Non",F90,"")))),"")))) ->  | J90: =IF(B90=0,"",SUM(I87:I92)) ->  | K90: =IF(C90="","",IF(A$2=Parametres!A$70,Parametres!E$52,IF(A$2=Parametres!A$69,Parametres!E$51,IF(C90<=Parametres!D$47,Parametres!E$47,IF(C90<=Parametres!D$48,Parametres!E$48,IF(C90<=Parametres!D$49,Parametres!E$49,IF(C90>Parametres!D$50,Parametres!E$50,""))))))) ->  | L90: =IF(A$2=Parametres!A$70,Parametres!G$40,IF(B90="","",J90+J90*K90)) ->  | M90: =IF(B90=0,"",IF(A$2=Parametres!A$68,Parametres!D$10,IF(A$2=Parametres!A$69,Parametres!F$9,IF(A$2=Parametres!A$70,Parametres!H$9,"")))) ->  | U90: =IF(O90="gratuit","",IF(B90=0,"",IF(A$2=Parametres!A$68,IF(T90<Parametres!C$21,0,IF(T90<Parametres!D$32,Parametres!E$32,IF(T90<Parametres!C$33,Parametres!E$33,IF(T90<Parametres!C$34,Parametres!E$34,Parametres!E$35)))), IF(A$2=Parametres!A$69,IF(T90<Parametres!E$21,0,IF(T90<Parametres!D$32,Parametres!E$32,IF(T90<Parametres!C$33,Parametres!E$33,IF(T90<Parametres!C$34,Parametres!E$34,Parametres!E$35)))), IF(A$2=Parametres!A$70,IF(T90<Parametres!G$21,0,IF(T90<Parametres!D$32,Parametres!E$32,IF(T90<Parametres!C$33,Parametres!E$33,IF(T90<Parametres!C$34,Parametres!E$34,Parametres!E$35))))))))) ->  | V90: =IF(B90=0,"",IF(A$2=Parametres!A$68,Parametres!D$10,IF(A$2=Parametres!A$69,Parametres!F$10,IF(A$2=Parametres!A$70,Parametres!H$10,"")))) ->  | Z90: =IF(B90=0,"",IF(A$2=Parametres!A$68,Parametres!D$20,IF(A$2=Parametres!A$69,Parametres!F$20,IF(A$2=Parametres!A$70,Parametres!H$20,"")))) ->  | AB90: =IF(A$2=Parametres!A$69,"",IF(B90=0,"",IF(N90>(W90+AA90),IF(N90<Parametres!D$28,"FORFAIT MINI","DEPENSES"),IF((W90+AA90)<Parametres!D$28,"FORFAIT MINI","RECETTES")))) ->  | AC90: =IF(A$2=Parametres!A$69,"",IF(B90=0,"",ROUND(IF(N90>(W90+AA90),IF(N90<Parametres!D$28,Parametres!D$28,N90),IF((W90+AA90)<Parametres!D$28,Parametres!D$28,(W90+AA90))),2))) ->  | AD90: =IF(A$2=Parametres!A$69,"",IF(B90=0,"",ROUND(AC90*Parametres!C$57,2))) ->  | AE90: =IF(A$2=Parametres!A$69,"",IF(B90=0,"",ROUND(AC90*Parametres!C$58,2))) ->  | AF90: =IF(A$2=Parametres!A$69,"",IF(B90=0,"",ROUND(AC90*Parametres!C$59,2))) ->  | AG90: =IF(A$2=Parametres!A$69,"",IF(B90=0,"",SUM(ROUND(AC90,2),ROUND(AD90,2),ROUND(AE90,2),ROUND(AF90,2)))) -> 
I91: =IF(F91=0,"",IF(A$2=Parametres!A$68,IF(G91="Oui",IF(H91="Oui",F91-F91*Parametres!C$41-(F91-F91*Parametres!C$41)*Parametres!C$42,IF(H91="Non",F91-F91*Parametres!C$41,"")),IF(G91="Non",IF(H91="Oui",F91-F91*Parametres!C$42,IF(H91="Non",F91,"")))),IF(A$2=Parametres!A$69,IF(G91="Oui",IF(H91="Oui",F91-F91*Parametres!C$41-(F91-F91*Parametres!C$41)*Parametres!C$42,IF(H91="Non",F91-F91*Parametres!E$41,"")),IF(G91="Non",IF(H91="Oui",F91-F91*Parametres!E$42,IF(H91="Non",F91,"")))),IF(A$2=Parametres!A$70,IF(G91="Oui",IF(H91="Oui",F91-F91*Parametres!C$41-(F91-F91*Parametres!C$41)*Parametres!C$42,IF(H91="Non",F91-F91*Parametres!G$41,"")),IF(G91="Non",IF(H91="Oui",F91-F91*Parametres!G$42,IF(H91="Non",F91,"")))),"")))) ->  | J91: =IF(B91=0,"",SUM(I87:I92)) ->  | K91: =IF(C91="","",IF(A$2=Parametres!A$70,Parametres!E$52,IF(A$2=Parametres!A$69,Parametres!E$51,IF(C91<=Parametres!D$47,Parametres!E$47,IF(C91<=Parametres!D$48,Parametres!E$48,IF(C91<=Parametres!D$49,Parametres!E$49,IF(C91>Parametres!D$50,Parametres!E$50,""))))))) ->  | L91: =IF(A$2=Parametres!A$70,Parametres!G$40,IF(B91="","",J91+J91*K91)) ->  | M91: =IF(B91=0,"",IF(A$2=Parametres!A$68,Parametres!D$10,IF(A$2=Parametres!A$69,Parametres!F$9,IF(A$2=Parametres!A$70,Parametres!H$9,"")))) ->  | U91: =IF(O91="gratuit","",IF(B91=0,"",IF(A$2=Parametres!A$68,IF(T91<Parametres!C$21,0,IF(T91<Parametres!D$32,Parametres!E$32,IF(T91<Parametres!C$33,Parametres!E$33,IF(T91<Parametres!C$34,Parametres!E$34,Parametres!E$35)))), IF(A$2=Parametres!A$69,IF(T91<Parametres!E$21,0,IF(T91<Parametres!D$32,Parametres!E$32,IF(T91<Parametres!C$33,Parametres!E$33,IF(T91<Parametres!C$34,Parametres!E$34,Parametres!E$35)))), IF(A$2=Parametres!A$70,IF(T91<Parametres!G$21,0,IF(T91<Parametres!D$32,Parametres!E$32,IF(T91<Parametres!C$33,Parametres!E$33,IF(T91<Parametres!C$34,Parametres!E$34,Parametres!E$35))))))))) ->  | V91: =IF(B91=0,"",IF(A$2=Parametres!A$68,Parametres!D$10,IF(A$2=Parametres!A$69,Parametres!F$10,IF(A$2=Parametres!A$70,Parametres!H$10,"")))) ->  | Z91: =IF(B91=0,"",IF(A$2=Parametres!A$68,Parametres!D$20,IF(A$2=Parametres!A$69,Parametres!F$20,IF(A$2=Parametres!A$70,Parametres!H$20,"")))) ->  | AB91: =IF(A$2=Parametres!A$69,"",IF(B91=0,"",IF(N91>(W91+AA91),IF(N91<Parametres!D$28,"FORFAIT MINI","DEPENSES"),IF((W91+AA91)<Parametres!D$28,"FORFAIT MINI","RECETTES")))) ->  | AC91: =IF(A$2=Parametres!A$69,"",IF(B91=0,"",ROUND(IF(N91>(W91+AA91),IF(N91<Parametres!D$28,Parametres!D$28,N91),IF((W91+AA91)<Parametres!D$28,Parametres!D$28,(W91+AA91))),2))) ->  | AD91: =IF(A$2=Parametres!A$69,"",IF(B91=0,"",ROUND(AC91*Parametres!C$57,2))) ->  | AE91: =IF(A$2=Parametres!A$69,"",IF(B91=0,"",ROUND(AC91*Parametres!C$58,2))) ->  | AF91: =IF(A$2=Parametres!A$69,"",IF(B91=0,"",ROUND(AC91*Parametres!C$59,2))) ->  | AG91: =IF(A$2=Parametres!A$69,"",IF(B91=0,"",SUM(ROUND(AC91,2),ROUND(AD91,2),ROUND(AE91,2),ROUND(AF91,2)))) -> 
I92: =IF(F92=0,"",IF(A$2=Parametres!A$68,IF(G92="Oui",IF(H92="Oui",F92-F92*Parametres!C$41-(F92-F92*Parametres!C$41)*Parametres!C$42,IF(H92="Non",F92-F92*Parametres!C$41,"")),IF(G92="Non",IF(H92="Oui",F92-F92*Parametres!C$42,IF(H92="Non",F92,"")))),IF(A$2=Parametres!A$69,IF(G92="Oui",IF(H92="Oui",F92-F92*Parametres!C$41-(F92-F92*Parametres!C$41)*Parametres!C$42,IF(H92="Non",F92-F92*Parametres!E$41,"")),IF(G92="Non",IF(H92="Oui",F92-F92*Parametres!E$42,IF(H92="Non",F92,"")))),IF(A$2=Parametres!A$70,IF(G92="Oui",IF(H92="Oui",F92-F92*Parametres!C$41-(F92-F92*Parametres!C$41)*Parametres!C$42,IF(H92="Non",F92-F92*Parametres!G$41,"")),IF(G92="Non",IF(H92="Oui",F92-F92*Parametres!G$42,IF(H92="Non",F92,"")))),"")))) ->  | J92: =IF(B92=0,"",SUM(I87:I92)) ->  | K92: =IF(C92="","",IF(A$2=Parametres!A$70,Parametres!E$52,IF(A$2=Parametres!A$69,Parametres!E$51,IF(C92<=Parametres!D$47,Parametres!E$47,IF(C92<=Parametres!D$48,Parametres!E$48,IF(C92<=Parametres!D$49,Parametres!E$49,IF(C92>Parametres!D$50,Parametres!E$50,""))))))) ->  | L92: =IF(A$2=Parametres!A$70,Parametres!G$40,IF(B92="","",J92+J92*K92)) ->  | M92: =IF(B92=0,"",IF(A$2=Parametres!A$68,Parametres!D$10,IF(A$2=Parametres!A$69,Parametres!F$9,IF(A$2=Parametres!A$70,Parametres!H$9,"")))) ->  | U92: =IF(O92="gratuit","",IF(B92=0,"",IF(A$2=Parametres!A$68,IF(T92<Parametres!C$21,0,IF(T92<Parametres!D$32,Parametres!E$32,IF(T92<Parametres!C$33,Parametres!E$33,IF(T92<Parametres!C$34,Parametres!E$34,Parametres!E$35)))), IF(A$2=Parametres!A$69,IF(T92<Parametres!E$21,0,IF(T92<Parametres!D$32,Parametres!E$32,IF(T92<Parametres!C$33,Parametres!E$33,IF(T92<Parametres!C$34,Parametres!E$34,Parametres!E$35)))), IF(A$2=Parametres!A$70,IF(T92<Parametres!G$21,0,IF(T92<Parametres!D$32,Parametres!E$32,IF(T92<Parametres!C$33,Parametres!E$33,IF(T92<Parametres!C$34,Parametres!E$34,Parametres!E$35))))))))) ->  | V92: =IF(B92=0,"",IF(A$2=Parametres!A$68,Parametres!D$10,IF(A$2=Parametres!A$69,Parametres!F$10,IF(A$2=Parametres!A$70,Parametres!H$10,"")))) ->  | Z92: =IF(B92=0,"",IF(A$2=Parametres!A$68,Parametres!D$20,IF(A$2=Parametres!A$69,Parametres!F$20,IF(A$2=Parametres!A$70,Parametres!H$20,"")))) ->  | AB92: =IF(A$2=Parametres!A$69,"",IF(B92=0,"",IF(N92>(W92+AA92),IF(N92<Parametres!D$28,"FORFAIT MINI","DEPENSES"),IF((W92+AA92)<Parametres!D$28,"FORFAIT MINI","RECETTES")))) ->  | AC92: =IF(A$2=Parametres!A$69,"",IF(B92=0,"",ROUND(IF(N92>(W92+AA92),IF(N92<Parametres!D$28,Parametres!D$28,N92),IF((W92+AA92)<Parametres!D$28,Parametres!D$28,(W92+AA92))),2))) ->  | AD92: =IF(A$2=Parametres!A$69,"",IF(B92=0,"",ROUND(AC92*Parametres!C$57,2))) ->  | AE92: =IF(A$2=Parametres!A$69,"",IF(B92=0,"",ROUND(AC92*Parametres!C$58,2))) ->  | AF92: =IF(A$2=Parametres!A$69,"",IF(B92=0,"",ROUND(AC92*Parametres!C$59,2))) ->  | AG92: =IF(A$2=Parametres!A$69,"",IF(B92=0,"",SUM(ROUND(AC92,2),ROUND(AD92,2),ROUND(AE92,2),ROUND(AF92,2)))) -> 
I94: =IF(F94=0,"",IF(A$2=Parametres!A$68,IF(G94="Oui",IF(H94="Oui",F94-F94*Parametres!C$41-(F94-F94*Parametres!C$41)*Parametres!C$42,IF(H94="Non",F94-F94*Parametres!C$41,"")),IF(G94="Non",IF(H94="Oui",F94-F94*Parametres!C$42,IF(H94="Non",F94,"")))),IF(A$2=Parametres!A$69,IF(G94="Oui",IF(H94="Oui",F94-F94*Parametres!C$41-(F94-F94*Parametres!C$41)*Parametres!C$42,IF(H94="Non",F94-F94*Parametres!E$41,"")),IF(G94="Non",IF(H94="Oui",F94-F94*Parametres!E$42,IF(H94="Non",F94,"")))),IF(A$2=Parametres!A$70,IF(G94="Oui",IF(H94="Oui",F94-F94*Parametres!C$41-(F94-F94*Parametres!C$41)*Parametres!C$42,IF(H94="Non",F94-F94*Parametres!G$41,"")),IF(G94="Non",IF(H94="Oui",F94-F94*Parametres!G$42,IF(H94="Non",F94,"")))),"")))) ->  | J94: =IF(B94=0,"",SUM(I94:I99)) ->  | K94: =IF(C94="","",IF(A$2=Parametres!A$70,Parametres!E$52,IF(A$2=Parametres!A$69,Parametres!E$51,IF(C94<=Parametres!D$47,Parametres!E$47,IF(C94<=Parametres!D$48,Parametres!E$48,IF(C94<=Parametres!D$49,Parametres!E$49,IF(C94>Parametres!D$50,Parametres!E$50,""))))))) ->  | L94: =IF(A$2=Parametres!A$70,Parametres!G$40,IF(B94="","",J94+J94*K94)) ->  | M94: =IF(B94=0,"",IF(A$2=Parametres!A$68,Parametres!D$10,IF(A$2=Parametres!A$69,Parametres!F$10,IF(A$2=Parametres!A$70,Parametres!H$10,"")))) ->  | N94: =IF(B94=0,"",M94*L94) ->  | O94: =IF(P94>0,"payant",IF(B94=0,"","gratuit")) ->  | Q94: =IF(B94=0,"",R94+S94) ->  | T94: =IF(O94="gratuit","",IF(Q94=0,0,IF(Q94="","",S94/R94))) ->  | U94: =IF(O94="gratuit","",IF(B94=0,"",IF(A$2=Parametres!A$68,IF(T94<Parametres!C$21,0,IF(T94<Parametres!D$32,Parametres!E$32,IF(T94<Parametres!C$33,Parametres!E$33,IF(T94<Parametres!C$34,Parametres!E$34,Parametres!E$35)))), IF(A$2=Parametres!A$69,IF(T94<Parametres!E$21,0,IF(T94<Parametres!D$32,Parametres!E$32,IF(T94<Parametres!C$33,Parametres!E$33,IF(T94<Parametres!C$34,Parametres!E$34,Parametres!E$35)))), IF(A$2=Parametres!A$70,IF(T94<Parametres!G$21,0,IF(T94<Parametres!D$32,Parametres!E$32,IF(T94<Parametres!C$33,Parametres!E$33,IF(T94<Parametres!C$34,Parametres!E$34,Parametres!E$35))))))))) ->  | V94: =IF(B94=0,"",IF(A$2=Parametres!A$68,Parametres!D$10,IF(A$2=Parametres!A$69,Parametres!F$10,IF(A$2=Parametres!A$70,Parametres!H$10,"")))) ->  | W94: =IF(B94=0,"",IF(O94="gratuit",P94*V94,P94*V94+(P94*V94)*U94)) ->  | Z94: =IF(B94=0,"",IF(A$2=Parametres!A$68,Parametres!D$20,IF(A$2=Parametres!A$69,Parametres!F$20,IF(A$2=Parametres!A$70,Parametres!H$20,"")))) ->  | AA94: =IF(B94=0,"",(X94+Y94)*Z94) ->  | AB94: =IF(A$2=Parametres!A$69,"",IF(B94=0,"",IF(N94>(W94+AA94),IF(N94<Parametres!D$28,"FORFAIT MINI","DEPENSES"),IF((W94+AA94)<Parametres!D$28,"FORFAIT MINI","RECETTES")))) ->  | AC94: =IF(A$2=Parametres!A$69,"",IF(B94=0,"",ROUND(IF(N94>(W94+AA94),IF(N94<Parametres!D$28,Parametres!D$28,N94),IF((W94+AA94)<Parametres!D$28,Parametres!D$28,(W94+AA94))),2))) ->  | AD94: =IF(A$2=Parametres!A$69,"",IF(B94=0,"",ROUND(AC94*Parametres!C$57,2))) ->  | AE94: =IF(A$2=Parametres!A$69,"",IF(B94=0,"",ROUND(AC94*Parametres!C$58,2))) ->  | AF94: =IF(A$2=Parametres!A$69,"",IF(B94=0,"",ROUND(AC94*Parametres!C$59,2))) ->  | AG94: =IF(A$2=Parametres!A$69,"",IF(B94=0,"",SUM(ROUND(AC94,2),ROUND(AD94,2),ROUND(AE94,2),ROUND(AF94,2)))) -> 
I95: =IF(F95=0,"",IF(A$2=Parametres!A$68,IF(G95="Oui",IF(H95="Oui",F95-F95*Parametres!C$41-(F95-F95*Parametres!C$41)*Parametres!C$42,IF(H95="Non",F95-F95*Parametres!C$41,"")),IF(G95="Non",IF(H95="Oui",F95-F95*Parametres!C$42,IF(H95="Non",F95,"")))),IF(A$2=Parametres!A$69,IF(G95="Oui",IF(H95="Oui",F95-F95*Parametres!C$41-(F95-F95*Parametres!C$41)*Parametres!C$42,IF(H95="Non",F95-F95*Parametres!E$41,"")),IF(G95="Non",IF(H95="Oui",F95-F95*Parametres!E$42,IF(H95="Non",F95,"")))),IF(A$2=Parametres!A$70,IF(G95="Oui",IF(H95="Oui",F95-F95*Parametres!C$41-(F95-F95*Parametres!C$41)*Parametres!C$42,IF(H95="Non",F95-F95*Parametres!G$41,"")),IF(G95="Non",IF(H95="Oui",F95-F95*Parametres!G$42,IF(H95="Non",F95,"")))),"")))) ->  | J95: =IF(B95=0,"",SUM(I94:I99)) ->  | K95: =IF(C95="","",IF(A$2=Parametres!A$70,Parametres!E$52,IF(A$2=Parametres!A$69,Parametres!E$51,IF(C95<=Parametres!D$47,Parametres!E$47,IF(C95<=Parametres!D$48,Parametres!E$48,IF(C95<=Parametres!D$49,Parametres!E$49,IF(C95>Parametres!D$50,Parametres!E$50,""))))))) ->  | L95: =IF(A$2=Parametres!A$70,Parametres!G$40,IF(B95="","",J95+J95*K95)) ->  | M95: =IF(B95=0,"",IF(A$2=Parametres!A$68,Parametres!D$10,IF(A$2=Parametres!A$69,Parametres!F$9,IF(A$2=Parametres!A$70,Parametres!H$9,"")))) ->  | T95: =IF(O95="gratuit","",IF(Q95=0,0,IF(Q95="","",S95/R95))) ->  | U95: =IF(O95="gratuit","",IF(B95=0,"",IF(A$2=Parametres!A$68,IF(T95<Parametres!C$21,0,IF(T95<Parametres!D$32,Parametres!E$32,IF(T95<Parametres!C$33,Parametres!E$33,IF(T95<Parametres!C$34,Parametres!E$34,Parametres!E$35)))), IF(A$2=Parametres!A$69,IF(T95<Parametres!E$21,0,IF(T95<Parametres!D$32,Parametres!E$32,IF(T95<Parametres!C$33,Parametres!E$33,IF(T95<Parametres!C$34,Parametres!E$34,Parametres!E$35)))), IF(A$2=Parametres!A$70,IF(T95<Parametres!G$21,0,IF(T95<Parametres!D$32,Parametres!E$32,IF(T95<Parametres!C$33,Parametres!E$33,IF(T95<Parametres!C$34,Parametres!E$34,Parametres!E$35))))))))) ->  | V95: =IF(B95=0,"",IF(A$2=Parametres!A$68,Parametres!D$10,IF(A$2=Parametres!A$69,Parametres!F$10,IF(A$2=Parametres!A$70,Parametres!H$10,"")))) ->  | W95: =IF(B95=0,"",IF(O95="gratuit",P95*V95,P95*V95+(P95*V95)*U95)) ->  | Z95: =IF(B95=0,"",IF(A$2=Parametres!A$68,Parametres!D$20,IF(A$2=Parametres!A$69,Parametres!F$20,IF(A$2=Parametres!A$70,Parametres!H$20,"")))) ->  | AB95: =IF(A$2=Parametres!A$69,"",IF(B95=0,"",IF(N95>(W95+AA95),IF(N95<Parametres!D$28,"FORFAIT MINI","DEPENSES"),IF((W95+AA95)<Parametres!D$28,"FORFAIT MINI","RECETTES")))) ->  | AC95: =IF(A$2=Parametres!A$69,"",IF(B95=0,"",ROUND(IF(N95>(W95+AA95),IF(N95<Parametres!D$28,Parametres!D$28,N95),IF((W95+AA95)<Parametres!D$28,Parametres!D$28,(W95+AA95))),2))) ->  | AD95: =IF(A$2=Parametres!A$69,"",IF(B95=0,"",ROUND(AC95*Parametres!C$57,2))) ->  | AE95: =IF(A$2=Parametres!A$69,"",IF(B95=0,"",ROUND(AC95*Parametres!C$58,2))) ->  | AF95: =IF(A$2=Parametres!A$69,"",IF(B95=0,"",ROUND(AC95*Parametres!C$59,2))) ->  | AG95: =IF(A$2=Parametres!A$69,"",IF(B95=0,"",SUM(ROUND(AC95,2),ROUND(AD95,2),ROUND(AE95,2),ROUND(AF95,2)))) -> 
I96: =IF(F96=0,"",IF(A$2=Parametres!A$68,IF(G96="Oui",IF(H96="Oui",F96-F96*Parametres!C$41-(F96-F96*Parametres!C$41)*Parametres!C$42,IF(H96="Non",F96-F96*Parametres!C$41,"")),IF(G96="Non",IF(H96="Oui",F96-F96*Parametres!C$42,IF(H96="Non",F96,"")))),IF(A$2=Parametres!A$69,IF(G96="Oui",IF(H96="Oui",F96-F96*Parametres!C$41-(F96-F96*Parametres!C$41)*Parametres!C$42,IF(H96="Non",F96-F96*Parametres!E$41,"")),IF(G96="Non",IF(H96="Oui",F96-F96*Parametres!E$42,IF(H96="Non",F96,"")))),IF(A$2=Parametres!A$70,IF(G96="Oui",IF(H96="Oui",F96-F96*Parametres!C$41-(F96-F96*Parametres!C$41)*Parametres!C$42,IF(H96="Non",F96-F96*Parametres!G$41,"")),IF(G96="Non",IF(H96="Oui",F96-F96*Parametres!G$42,IF(H96="Non",F96,"")))),"")))) ->  | J96: =IF(B96=0,"",(I94:I99)) ->  | K96: =IF(C96="","",IF(A$2=Parametres!A$70,Parametres!E$52,IF(A$2=Parametres!A$69,Parametres!E$51,IF(C96<=Parametres!D$47,Parametres!E$47,IF(C96<=Parametres!D$48,Parametres!E$48,IF(C96<=Parametres!D$49,Parametres!E$49,IF(C96>Parametres!D$50,Parametres!E$50,""))))))) ->  | L96: =IF(A$2=Parametres!A$70,Parametres!G$40,IF(B96="","",J96+J96*K96)) ->  | M96: =IF(B96=0,"",IF(A$2=Parametres!A$68,Parametres!D$10,IF(A$2=Parametres!A$69,Parametres!F$9,IF(A$2=Parametres!A$70,Parametres!H$9,"")))) ->  | U96: =IF(O96="gratuit","",IF(B96=0,"",IF(A$2=Parametres!A$68,IF(T96<Parametres!C$21,0,IF(T96<Parametres!D$32,Parametres!E$32,IF(T96<Parametres!C$33,Parametres!E$33,IF(T96<Parametres!C$34,Parametres!E$34,Parametres!E$35)))), IF(A$2=Parametres!A$69,IF(T96<Parametres!E$21,0,IF(T96<Parametres!D$32,Parametres!E$32,IF(T96<Parametres!C$33,Parametres!E$33,IF(T96<Parametres!C$34,Parametres!E$34,Parametres!E$35)))), IF(A$2=Parametres!A$70,IF(T96<Parametres!G$21,0,IF(T96<Parametres!D$32,Parametres!E$32,IF(T96<Parametres!C$33,Parametres!E$33,IF(T96<Parametres!C$34,Parametres!E$34,Parametres!E$35))))))))) ->  | V96: =IF(B96=0,"",IF(A$2=Parametres!A$68,Parametres!D$10,IF(A$2=Parametres!A$69,Parametres!F$10,IF(A$2=Parametres!A$70,Parametres!H$10,"")))) ->  | Z96: =IF(B96=0,"",IF(A$2=Parametres!A$68,Parametres!D$20,IF(A$2=Parametres!A$69,Parametres!F$20,IF(A$2=Parametres!A$70,Parametres!H$20,"")))) ->  | AB96: =IF(A$2=Parametres!A$69,"",IF(B96=0,"",IF(N96>(W96+AA96),IF(N96<Parametres!D$28,"FORFAIT MINI","DEPENSES"),IF((W96+AA96)<Parametres!D$28,"FORFAIT MINI","RECETTES")))) ->  | AC96: =IF(A$2=Parametres!A$69,"",IF(B96=0,"",ROUND(IF(N96>(W96+AA96),IF(N96<Parametres!D$28,Parametres!D$28,N96),IF((W96+AA96)<Parametres!D$28,Parametres!D$28,(W96+AA96))),2))) ->  | AD96: =IF(A$2=Parametres!A$69,"",IF(B96=0,"",ROUND(AC96*Parametres!C$57,2))) ->  | AE96: =IF(A$2=Parametres!A$69,"",IF(B96=0,"",ROUND(AC96*Parametres!C$58,2))) ->  | AF96: =IF(A$2=Parametres!A$69,"",IF(B96=0,"",ROUND(AC96*Parametres!C$59,2))) ->  | AG96: =IF(A$2=Parametres!A$69,"",IF(B96=0,"",SUM(ROUND(AC96,2),ROUND(AD96,2),ROUND(AE96,2),ROUND(AF96,2)))) -> 
I97: =IF(F97=0,"",IF(A$2=Parametres!A$68,IF(G97="Oui",IF(H97="Oui",F97-F97*Parametres!C$41-(F97-F97*Parametres!C$41)*Parametres!C$42,IF(H97="Non",F97-F97*Parametres!C$41,"")),IF(G97="Non",IF(H97="Oui",F97-F97*Parametres!C$42,IF(H97="Non",F97,"")))),IF(A$2=Parametres!A$69,IF(G97="Oui",IF(H97="Oui",F97-F97*Parametres!C$41-(F97-F97*Parametres!C$41)*Parametres!C$42,IF(H97="Non",F97-F97*Parametres!E$41,"")),IF(G97="Non",IF(H97="Oui",F97-F97*Parametres!E$42,IF(H97="Non",F97,"")))),IF(A$2=Parametres!A$70,IF(G97="Oui",IF(H97="Oui",F97-F97*Parametres!C$41-(F97-F97*Parametres!C$41)*Parametres!C$42,IF(H97="Non",F97-F97*Parametres!G$41,"")),IF(G97="Non",IF(H97="Oui",F97-F97*Parametres!G$42,IF(H97="Non",F97,"")))),"")))) ->  | J97: =IF(B97=0,"",SUM(I94:I99)) ->  | K97: =IF(C97="","",IF(A$2=Parametres!A$70,Parametres!E$52,IF(A$2=Parametres!A$69,Parametres!E$51,IF(C97<=Parametres!D$47,Parametres!E$47,IF(C97<=Parametres!D$48,Parametres!E$48,IF(C97<=Parametres!D$49,Parametres!E$49,IF(C97>Parametres!D$50,Parametres!E$50,""))))))) ->  | L97: =IF(A$2=Parametres!A$70,Parametres!G$40,IF(B97="","",J97+J97*K97)) ->  | M97: =IF(B97=0,"",IF(A$2=Parametres!A$68,Parametres!D$10,IF(A$2=Parametres!A$69,Parametres!F$9,IF(A$2=Parametres!A$70,Parametres!H$9,"")))) ->  | U97: =IF(O97="gratuit","",IF(B97=0,"",IF(A$2=Parametres!A$68,IF(T97<Parametres!C$21,0,IF(T97<Parametres!D$32,Parametres!E$32,IF(T97<Parametres!C$33,Parametres!E$33,IF(T97<Parametres!C$34,Parametres!E$34,Parametres!E$35)))), IF(A$2=Parametres!A$69,IF(T97<Parametres!E$21,0,IF(T97<Parametres!D$32,Parametres!E$32,IF(T97<Parametres!C$33,Parametres!E$33,IF(T97<Parametres!C$34,Parametres!E$34,Parametres!E$35)))), IF(A$2=Parametres!A$70,IF(T97<Parametres!G$21,0,IF(T97<Parametres!D$32,Parametres!E$32,IF(T97<Parametres!C$33,Parametres!E$33,IF(T97<Parametres!C$34,Parametres!E$34,Parametres!E$35))))))))) ->  | V97: =IF(B97=0,"",IF(A$2=Parametres!A$68,Parametres!D$10,IF(A$2=Parametres!A$69,Parametres!F$10,IF(A$2=Parametres!A$70,Parametres!H$10,"")))) ->  | Z97: =IF(B97=0,"",IF(A$2=Parametres!A$68,Parametres!D$20,IF(A$2=Parametres!A$69,Parametres!F$20,IF(A$2=Parametres!A$70,Parametres!H$20,"")))) ->  | AB97: =IF(A$2=Parametres!A$69,"",IF(B97=0,"",IF(N97>(W97+AA97),IF(N97<Parametres!D$28,"FORFAIT MINI","DEPENSES"),IF((W97+AA97)<Parametres!D$28,"FORFAIT MINI","RECETTES")))) ->  | AC97: =IF(A$2=Parametres!A$69,"",IF(B97=0,"",ROUND(IF(N97>(W97+AA97),IF(N97<Parametres!D$28,Parametres!D$28,N97),IF((W97+AA97)<Parametres!D$28,Parametres!D$28,(W97+AA97))),2))) ->  | AD97: =IF(A$2=Parametres!A$69,"",IF(B97=0,"",ROUND(AC97*Parametres!C$57,2))) ->  | AE97: =IF(A$2=Parametres!A$69,"",IF(B97=0,"",ROUND(AC97*Parametres!C$58,2))) ->  | AF97: =IF(A$2=Parametres!A$69,"",IF(B97=0,"",ROUND(AC97*Parametres!C$59,2))) ->  | AG97: =IF(A$2=Parametres!A$69,"",IF(B97=0,"",SUM(ROUND(AC97,2),ROUND(AD97,2),ROUND(AE97,2),ROUND(AF97,2)))) -> 
I98: =IF(F98=0,"",IF(A$2=Parametres!A$68,IF(G98="Oui",IF(H98="Oui",F98-F98*Parametres!C$41-(F98-F98*Parametres!C$41)*Parametres!C$42,IF(H98="Non",F98-F98*Parametres!C$41,"")),IF(G98="Non",IF(H98="Oui",F98-F98*Parametres!C$42,IF(H98="Non",F98,"")))),IF(A$2=Parametres!A$69,IF(G98="Oui",IF(H98="Oui",F98-F98*Parametres!C$41-(F98-F98*Parametres!C$41)*Parametres!C$42,IF(H98="Non",F98-F98*Parametres!E$41,"")),IF(G98="Non",IF(H98="Oui",F98-F98*Parametres!E$42,IF(H98="Non",F98,"")))),IF(A$2=Parametres!A$70,IF(G98="Oui",IF(H98="Oui",F98-F98*Parametres!C$41-(F98-F98*Parametres!C$41)*Parametres!C$42,IF(H98="Non",F98-F98*Parametres!G$41,"")),IF(G98="Non",IF(H98="Oui",F98-F98*Parametres!G$42,IF(H98="Non",F98,"")))),"")))) ->  | J98: =IF(B98=0,"",SUM(I94:I99)) ->  | K98: =IF(C98="","",IF(A$2=Parametres!A$70,Parametres!E$52,IF(A$2=Parametres!A$69,Parametres!E$51,IF(C98<=Parametres!D$47,Parametres!E$47,IF(C98<=Parametres!D$48,Parametres!E$48,IF(C98<=Parametres!D$49,Parametres!E$49,IF(C98>Parametres!D$50,Parametres!E$50,""))))))) ->  | L98: =IF(A$2=Parametres!A$70,Parametres!G$40,IF(B98="","",J98+J98*K98)) ->  | M98: =IF(B98=0,"",IF(A$2=Parametres!A$68,Parametres!D$10,IF(A$2=Parametres!A$69,Parametres!F$9,IF(A$2=Parametres!A$70,Parametres!H$9,"")))) ->  | U98: =IF(O98="gratuit","",IF(B98=0,"",IF(A$2=Parametres!A$68,IF(T98<Parametres!C$21,0,IF(T98<Parametres!D$32,Parametres!E$32,IF(T98<Parametres!C$33,Parametres!E$33,IF(T98<Parametres!C$34,Parametres!E$34,Parametres!E$35)))), IF(A$2=Parametres!A$69,IF(T98<Parametres!E$21,0,IF(T98<Parametres!D$32,Parametres!E$32,IF(T98<Parametres!C$33,Parametres!E$33,IF(T98<Parametres!C$34,Parametres!E$34,Parametres!E$35)))), IF(A$2=Parametres!A$70,IF(T98<Parametres!G$21,0,IF(T98<Parametres!D$32,Parametres!E$32,IF(T98<Parametres!C$33,Parametres!E$33,IF(T98<Parametres!C$34,Parametres!E$34,Parametres!E$35))))))))) ->  | V98: =IF(B98=0,"",IF(A$2=Parametres!A$68,Parametres!D$10,IF(A$2=Parametres!A$69,Parametres!F$10,IF(A$2=Parametres!A$70,Parametres!H$10,"")))) ->  | Z98: =IF(B98=0,"",IF(A$2=Parametres!A$68,Parametres!D$20,IF(A$2=Parametres!A$69,Parametres!F$20,IF(A$2=Parametres!A$70,Parametres!H$20,"")))) ->  | AB98: =IF(A$2=Parametres!A$69,"",IF(B98=0,"",IF(N98>(W98+AA98),IF(N98<Parametres!D$28,"FORFAIT MINI","DEPENSES"),IF((W98+AA98)<Parametres!D$28,"FORFAIT MINI","RECETTES")))) ->  | AC98: =IF(A$2=Parametres!A$69,"",IF(B98=0,"",ROUND(IF(N98>(W98+AA98),IF(N98<Parametres!D$28,Parametres!D$28,N98),IF((W98+AA98)<Parametres!D$28,Parametres!D$28,(W98+AA98))),2))) ->  | AD98: =IF(A$2=Parametres!A$69,"",IF(B98=0,"",ROUND(AC98*Parametres!C$57,2))) ->  | AE98: =IF(A$2=Parametres!A$69,"",IF(B98=0,"",ROUND(AC98*Parametres!C$58,2))) ->  | AF98: =IF(A$2=Parametres!A$69,"",IF(B98=0,"",ROUND(AC98*Parametres!C$59,2))) ->  | AG98: =IF(A$2=Parametres!A$69,"",IF(B98=0,"",SUM(ROUND(AC98,2),ROUND(AD98,2),ROUND(AE98,2),ROUND(AF98,2)))) -> 
I99: =IF(F99=0,"",IF(A$2=Parametres!A$68,IF(G99="Oui",IF(H99="Oui",F99-F99*Parametres!C$41-(F99-F99*Parametres!C$41)*Parametres!C$42,IF(H99="Non",F99-F99*Parametres!C$41,"")),IF(G99="Non",IF(H99="Oui",F99-F99*Parametres!C$42,IF(H99="Non",F99,"")))),IF(A$2=Parametres!A$69,IF(G99="Oui",IF(H99="Oui",F99-F99*Parametres!C$41-(F99-F99*Parametres!C$41)*Parametres!C$42,IF(H99="Non",F99-F99*Parametres!E$41,"")),IF(G99="Non",IF(H99="Oui",F99-F99*Parametres!E$42,IF(H99="Non",F99,"")))),IF(A$2=Parametres!A$70,IF(G99="Oui",IF(H99="Oui",F99-F99*Parametres!C$41-(F99-F99*Parametres!C$41)*Parametres!C$42,IF(H99="Non",F99-F99*Parametres!G$41,"")),IF(G99="Non",IF(H99="Oui",F99-F99*Parametres!G$42,IF(H99="Non",F99,"")))),"")))) ->  | J99: =IF(B99=0,"",SUM(I94:I99)) ->  | K99: =IF(C99="","",IF(A$2=Parametres!A$70,Parametres!E$52,IF(A$2=Parametres!A$69,Parametres!E$51,IF(C99<=Parametres!D$47,Parametres!E$47,IF(C99<=Parametres!D$48,Parametres!E$48,IF(C99<=Parametres!D$49,Parametres!E$49,IF(C99>Parametres!D$50,Parametres!E$50,""))))))) ->  | L99: =IF(A$2=Parametres!A$70,Parametres!G$40,IF(B99="","",J99+J99*K99)) ->  | M99: =IF(B99=0,"",IF(A$2=Parametres!A$68,Parametres!D$10,IF(A$2=Parametres!A$69,Parametres!F$9,IF(A$2=Parametres!A$70,Parametres!H$9,"")))) ->  | U99: =IF(O99="gratuit","",IF(B99=0,"",IF(A$2=Parametres!A$68,IF(T99<Parametres!C$21,0,IF(T99<Parametres!D$32,Parametres!E$32,IF(T99<Parametres!C$33,Parametres!E$33,IF(T99<Parametres!C$34,Parametres!E$34,Parametres!E$35)))), IF(A$2=Parametres!A$69,IF(T99<Parametres!E$21,0,IF(T99<Parametres!D$32,Parametres!E$32,IF(T99<Parametres!C$33,Parametres!E$33,IF(T99<Parametres!C$34,Parametres!E$34,Parametres!E$35)))), IF(A$2=Parametres!A$70,IF(T99<Parametres!G$21,0,IF(T99<Parametres!D$32,Parametres!E$32,IF(T99<Parametres!C$33,Parametres!E$33,IF(T99<Parametres!C$34,Parametres!E$34,Parametres!E$35))))))))) ->  | V99: =IF(B99=0,"",IF(A$2=Parametres!A$68,Parametres!D$10,IF(A$2=Parametres!A$69,Parametres!F$10,IF(A$2=Parametres!A$70,Parametres!H$10,"")))) ->  | Z99: =IF(B99=0,"",IF(A$2=Parametres!A$68,Parametres!D$20,IF(A$2=Parametres!A$69,Parametres!F$20,IF(A$2=Parametres!A$70,Parametres!H$20,"")))) ->  | AB99: =IF(A$2=Parametres!A$69,"",IF(B99=0,"",IF(N99>(W99+AA99),IF(N99<Parametres!D$28,"FORFAIT MINI","DEPENSES"),IF((W99+AA99)<Parametres!D$28,"FORFAIT MINI","RECETTES")))) ->  | AC99: =IF(A$2=Parametres!A$69,"",IF(B99=0,"",ROUND(IF(N99>(W99+AA99),IF(N99<Parametres!D$28,Parametres!D$28,N99),IF((W99+AA99)<Parametres!D$28,Parametres!D$28,(W99+AA99))),2))) ->  | AD99: =IF(A$2=Parametres!A$69,"",IF(B99=0,"",ROUND(AC99*Parametres!C$57,2))) ->  | AE99: =IF(A$2=Parametres!A$69,"",IF(B99=0,"",ROUND(AC99*Parametres!C$58,2))) ->  | AF99: =IF(A$2=Parametres!A$69,"",IF(B99=0,"",ROUND(AC99*Parametres!C$59,2))) ->  | AG99: =IF(A$2=Parametres!A$69,"",IF(B99=0,"",SUM(ROUND(AC99,2),ROUND(AD99,2),ROUND(AE99,2),ROUND(AF99,2)))) -> 
I101: =IF(F101=0,"",IF(A$2=Parametres!A$68,IF(G101="Oui",IF(H101="Oui",F101-F101*Parametres!C$41-(F101-F101*Parametres!C$41)*Parametres!C$42,IF(H101="Non",F101-F101*Parametres!C$41,"")),IF(G101="Non",IF(H101="Oui",F101-F101*Parametres!C$42,IF(H101="Non",F101,"")))),IF(A$2=Parametres!A$69,IF(G101="Oui",IF(H101="Oui",F101-F101*Parametres!C$41-(F101-F101*Parametres!C$41)*Parametres!C$42,IF(H101="Non",F101-F101*Parametres!E$41,"")),IF(G101="Non",IF(H101="Oui",F101-F101*Parametres!E$42,IF(H101="Non",F101,"")))),IF(A$2=Parametres!A$70,IF(G101="Oui",IF(H101="Oui",F101-F101*Parametres!C$41-(F101-F101*Parametres!C$41)*Parametres!C$42,IF(H101="Non",F101-F101*Parametres!G$41,"")),IF(G101="Non",IF(H101="Oui",F101-F101*Parametres!G$42,IF(H101="Non",F101,"")))),"")))) ->  | J101: =IF(B101=0,"",SUM(I101:I106)) ->  | K101: =IF(C101="","",IF(A$2=Parametres!A$70,Parametres!E$52,IF(A$2=Parametres!A$69,Parametres!E$51,IF(C101<=Parametres!D$47,Parametres!E$47,IF(C101<=Parametres!D$48,Parametres!E$48,IF(C101<=Parametres!D$49,Parametres!E$49,IF(C101>Parametres!D$50,Parametres!E$50,""))))))) ->  | L101: =IF(A$2=Parametres!A$70,Parametres!G$40,IF(B101="","",J101+J101*K101)) ->  | M101: =IF(B101=0,"",IF(A$2=Parametres!A$68,Parametres!D$10,IF(A$2=Parametres!A$69,Parametres!F$10,IF(A$2=Parametres!A$70,Parametres!H$10,"")))) ->  | N101: =IF(B101=0,"",M101*L101) ->  | O101: =IF(P101>0,"payant",IF(B101=0,"","gratuit")) ->  | Q101: =IF(B101=0,"",R101+S101) ->  | T101: =IF(O101="gratuit","",IF(Q101=0,0,IF(Q101="","",S101/R101))) ->  | U101: =IF(O101="gratuit","",IF(B101=0,"",IF(A$2=Parametres!A$68,IF(T101<Parametres!C$21,0,IF(T101<Parametres!D$32,Parametres!E$32,IF(T101<Parametres!C$33,Parametres!E$33,IF(T101<Parametres!C$34,Parametres!E$34,Parametres!E$35)))), IF(A$2=Parametres!A$69,IF(T101<Parametres!E$21,0,IF(T101<Parametres!D$32,Parametres!E$32,IF(T101<Parametres!C$33,Parametres!E$33,IF(T101<Parametres!C$34,Parametres!E$34,Parametres!E$35)))), IF(A$2=Parametres!A$70,IF(T101<Parametres!G$21,0,IF(T101<Parametres!D$32,Parametres!E$32,IF(T101<Parametres!C$33,Parametres!E$33,IF(T101<Parametres!C$34,Parametres!E$34,Parametres!E$35))))))))) ->  | V101: =IF(B101=0,"",IF(A$2=Parametres!A$68,Parametres!D$10,IF(A$2=Parametres!A$69,Parametres!F$10,IF(A$2=Parametres!A$70,Parametres!H$10,"")))) ->  | W101: =IF(B101=0,"",IF(O101="gratuit",P101*V101,P101*V101+(P101*V101)*U101)) ->  | Z101: =IF(B101=0,"",IF(A$2=Parametres!A$68,Parametres!D$20,IF(A$2=Parametres!A$69,Parametres!F$20,IF(A$2=Parametres!A$70,Parametres!H$20,"")))) ->  | AA101: =IF(B101=0,"",(X101+Y101)*Z101) ->  | AB101: =IF(A$2=Parametres!A$69,"",IF(B101=0,"",IF(N101>(W101+AA101),IF(N101<Parametres!D$28,"FORFAIT MINI","DEPENSES"),IF((W101+AA101)<Parametres!D$28,"FORFAIT MINI","RECETTES")))) ->  | AC101: =IF(A$2=Parametres!A$69,"",IF(B101=0,"",ROUND(IF(N101>(W101+AA101),IF(N101<Parametres!D$28,Parametres!D$28,N101),IF((W101+AA101)<Parametres!D$28,Parametres!D$28,(W101+AA101))),2))) ->  | AD101: =IF(A$2=Parametres!A$69,"",IF(B101=0,"",ROUND(AC101*Parametres!C$57,2))) ->  | AE101: =IF(A$2=Parametres!A$69,"",IF(B101=0,"",ROUND(AC101*Parametres!C$58,2))) ->  | AF101: =IF(A$2=Parametres!A$69,"",IF(B101=0,"",ROUND(AC101*Parametres!C$59,2))) ->  | AG101: =IF(A$2=Parametres!A$69,"",IF(B101=0,"",SUM(ROUND(AC101,2),ROUND(AD101,2),ROUND(AE101,2),ROUND(AF101,2)))) -> 
I102: =IF(F102=0,"",IF(A$2=Parametres!A$68,IF(G102="Oui",IF(H102="Oui",F102-F102*Parametres!C$41-(F102-F102*Parametres!C$41)*Parametres!C$42,IF(H102="Non",F102-F102*Parametres!C$41,"")),IF(G102="Non",IF(H102="Oui",F102-F102*Parametres!C$42,IF(H102="Non",F102,"")))),IF(A$2=Parametres!A$69,IF(G102="Oui",IF(H102="Oui",F102-F102*Parametres!C$41-(F102-F102*Parametres!C$41)*Parametres!C$42,IF(H102="Non",F102-F102*Parametres!E$41,"")),IF(G102="Non",IF(H102="Oui",F102-F102*Parametres!E$42,IF(H102="Non",F102,"")))),IF(A$2=Parametres!A$70,IF(G102="Oui",IF(H102="Oui",F102-F102*Parametres!C$41-(F102-F102*Parametres!C$41)*Parametres!C$42,IF(H102="Non",F102-F102*Parametres!G$41,"")),IF(G102="Non",IF(H102="Oui",F102-F102*Parametres!G$42,IF(H102="Non",F102,"")))),"")))) ->  | J102: =IF(B102=0,"",SUM(I101:I106)) ->  | K102: =IF(C102="","",IF(A$2=Parametres!A$70,Parametres!E$52,IF(A$2=Parametres!A$69,Parametres!E$51,IF(C102<=Parametres!D$47,Parametres!E$47,IF(C102<=Parametres!D$48,Parametres!E$48,IF(C102<=Parametres!D$49,Parametres!E$49,IF(C102>Parametres!D$50,Parametres!E$50,""))))))) ->  | L102: =IF(A$2=Parametres!A$70,Parametres!G$40,IF(B102="","",J102+J102*K102)) ->  | M102: =IF(B102=0,"",IF(A$2=Parametres!A$68,Parametres!D$10,IF(A$2=Parametres!A$69,Parametres!F$9,IF(A$2=Parametres!A$70,Parametres!H$9,"")))) ->  | T102: =IF(O102="gratuit","",IF(Q102=0,0,IF(Q102="","",S102/R102))) ->  | U102: =IF(O102="gratuit","",IF(B102=0,"",IF(A$2=Parametres!A$68,IF(T102<Parametres!C$21,0,IF(T102<Parametres!D$32,Parametres!E$32,IF(T102<Parametres!C$33,Parametres!E$33,IF(T102<Parametres!C$34,Parametres!E$34,Parametres!E$35)))), IF(A$2=Parametres!A$69,IF(T102<Parametres!E$21,0,IF(T102<Parametres!D$32,Parametres!E$32,IF(T102<Parametres!C$33,Parametres!E$33,IF(T102<Parametres!C$34,Parametres!E$34,Parametres!E$35)))), IF(A$2=Parametres!A$70,IF(T102<Parametres!G$21,0,IF(T102<Parametres!D$32,Parametres!E$32,IF(T102<Parametres!C$33,Parametres!E$33,IF(T102<Parametres!C$34,Parametres!E$34,Parametres!E$35))))))))) ->  | V102: =IF(B102=0,"",IF(A$2=Parametres!A$68,Parametres!D$10,IF(A$2=Parametres!A$69,Parametres!F$10,IF(A$2=Parametres!A$70,Parametres!H$10,"")))) ->  | W102: =IF(B102=0,"",IF(O102="gratuit",P102*V102,P102*V102+(P102*V102)*U102)) ->  | Z102: =IF(B102=0,"",IF(A$2=Parametres!A$68,Parametres!D$20,IF(A$2=Parametres!A$69,Parametres!F$20,IF(A$2=Parametres!A$70,Parametres!H$20,"")))) ->  | AB102: =IF(A$2=Parametres!A$69,"",IF(B102=0,"",IF(N102>(W102+AA102),IF(N102<Parametres!D$28,"FORFAIT MINI","DEPENSES"),IF((W102+AA102)<Parametres!D$28,"FORFAIT MINI","RECETTES")))) ->  | AC102: =IF(A$2=Parametres!A$69,"",IF(B102=0,"",ROUND(IF(N102>(W102+AA102),IF(N102<Parametres!D$28,Parametres!D$28,N102),IF((W102+AA102)<Parametres!D$28,Parametres!D$28,(W102+AA102))),2))) ->  | AD102: =IF(A$2=Parametres!A$69,"",IF(B102=0,"",ROUND(AC102*Parametres!C$57,2))) ->  | AE102: =IF(A$2=Parametres!A$69,"",IF(B102=0,"",ROUND(AC102*Parametres!C$58,2))) ->  | AF102: =IF(A$2=Parametres!A$69,"",IF(B102=0,"",ROUND(AC102*Parametres!C$59,2))) ->  | AG102: =IF(A$2=Parametres!A$69,"",IF(B102=0,"",SUM(ROUND(AC102,2),ROUND(AD102,2),ROUND(AE102,2),ROUND(AF102,2)))) -> 
I103: =IF(F103=0,"",IF(A$2=Parametres!A$68,IF(G103="Oui",IF(H103="Oui",F103-F103*Parametres!C$41-(F103-F103*Parametres!C$41)*Parametres!C$42,IF(H103="Non",F103-F103*Parametres!C$41,"")),IF(G103="Non",IF(H103="Oui",F103-F103*Parametres!C$42,IF(H103="Non",F103,"")))),IF(A$2=Parametres!A$69,IF(G103="Oui",IF(H103="Oui",F103-F103*Parametres!C$41-(F103-F103*Parametres!C$41)*Parametres!C$42,IF(H103="Non",F103-F103*Parametres!E$41,"")),IF(G103="Non",IF(H103="Oui",F103-F103*Parametres!E$42,IF(H103="Non",F103,"")))),IF(A$2=Parametres!A$70,IF(G103="Oui",IF(H103="Oui",F103-F103*Parametres!C$41-(F103-F103*Parametres!C$41)*Parametres!C$42,IF(H103="Non",F103-F103*Parametres!G$41,"")),IF(G103="Non",IF(H103="Oui",F103-F103*Parametres!G$42,IF(H103="Non",F103,"")))),"")))) ->  | J103: =IF(B103=0,"",(I101:I106)) ->  | K103: =IF(C103="","",IF(A$2=Parametres!A$70,Parametres!E$52,IF(A$2=Parametres!A$69,Parametres!E$51,IF(C103<=Parametres!D$47,Parametres!E$47,IF(C103<=Parametres!D$48,Parametres!E$48,IF(C103<=Parametres!D$49,Parametres!E$49,IF(C103>Parametres!D$50,Parametres!E$50,""))))))) ->  | L103: =IF(A$2=Parametres!A$70,Parametres!G$40,IF(B103="","",J103+J103*K103)) ->  | M103: =IF(B103=0,"",IF(A$2=Parametres!A$68,Parametres!D$10,IF(A$2=Parametres!A$69,Parametres!F$9,IF(A$2=Parametres!A$70,Parametres!H$9,"")))) ->  | U103: =IF(O103="gratuit","",IF(B103=0,"",IF(A$2=Parametres!A$68,IF(T103<Parametres!C$21,0,IF(T103<Parametres!D$32,Parametres!E$32,IF(T103<Parametres!C$33,Parametres!E$33,IF(T103<Parametres!C$34,Parametres!E$34,Parametres!E$35)))), IF(A$2=Parametres!A$69,IF(T103<Parametres!E$21,0,IF(T103<Parametres!D$32,Parametres!E$32,IF(T103<Parametres!C$33,Parametres!E$33,IF(T103<Parametres!C$34,Parametres!E$34,Parametres!E$35)))), IF(A$2=Parametres!A$70,IF(T103<Parametres!G$21,0,IF(T103<Parametres!D$32,Parametres!E$32,IF(T103<Parametres!C$33,Parametres!E$33,IF(T103<Parametres!C$34,Parametres!E$34,Parametres!E$35))))))))) ->  | V103: =IF(B103=0,"",IF(A$2=Parametres!A$68,Parametres!D$10,IF(A$2=Parametres!A$69,Parametres!F$10,IF(A$2=Parametres!A$70,Parametres!H$10,"")))) ->  | Z103: =IF(B103=0,"",IF(A$2=Parametres!A$68,Parametres!D$20,IF(A$2=Parametres!A$69,Parametres!F$20,IF(A$2=Parametres!A$70,Parametres!H$20,"")))) ->  | AB103: =IF(A$2=Parametres!A$69,"",IF(B103=0,"",IF(N103>(W103+AA103),IF(N103<Parametres!D$28,"FORFAIT MINI","DEPENSES"),IF((W103+AA103)<Parametres!D$28,"FORFAIT MINI","RECETTES")))) ->  | AC103: =IF(A$2=Parametres!A$69,"",IF(B103=0,"",ROUND(IF(N103>(W103+AA103),IF(N103<Parametres!D$28,Parametres!D$28,N103),IF((W103+AA103)<Parametres!D$28,Parametres!D$28,(W103+AA103))),2))) ->  | AD103: =IF(A$2=Parametres!A$69,"",IF(B103=0,"",ROUND(AC103*Parametres!C$57,2))) ->  | AE103: =IF(A$2=Parametres!A$69,"",IF(B103=0,"",ROUND(AC103*Parametres!C$58,2))) ->  | AF103: =IF(A$2=Parametres!A$69,"",IF(B103=0,"",ROUND(AC103*Parametres!C$59,2))) ->  | AG103: =IF(A$2=Parametres!A$69,"",IF(B103=0,"",SUM(ROUND(AC103,2),ROUND(AD103,2),ROUND(AE103,2),ROUND(AF103,2)))) -> 
I104: =IF(F104=0,"",IF(A$2=Parametres!A$68,IF(G104="Oui",IF(H104="Oui",F104-F104*Parametres!C$41-(F104-F104*Parametres!C$41)*Parametres!C$42,IF(H104="Non",F104-F104*Parametres!C$41,"")),IF(G104="Non",IF(H104="Oui",F104-F104*Parametres!C$42,IF(H104="Non",F104,"")))),IF(A$2=Parametres!A$69,IF(G104="Oui",IF(H104="Oui",F104-F104*Parametres!C$41-(F104-F104*Parametres!C$41)*Parametres!C$42,IF(H104="Non",F104-F104*Parametres!E$41,"")),IF(G104="Non",IF(H104="Oui",F104-F104*Parametres!E$42,IF(H104="Non",F104,"")))),IF(A$2=Parametres!A$70,IF(G104="Oui",IF(H104="Oui",F104-F104*Parametres!C$41-(F104-F104*Parametres!C$41)*Parametres!C$42,IF(H104="Non",F104-F104*Parametres!G$41,"")),IF(G104="Non",IF(H104="Oui",F104-F104*Parametres!G$42,IF(H104="Non",F104,"")))),"")))) ->  | J104: =IF(B104=0,"",SUM(I101:I106)) ->  | K104: =IF(C104="","",IF(A$2=Parametres!A$70,Parametres!E$52,IF(A$2=Parametres!A$69,Parametres!E$51,IF(C104<=Parametres!D$47,Parametres!E$47,IF(C104<=Parametres!D$48,Parametres!E$48,IF(C104<=Parametres!D$49,Parametres!E$49,IF(C104>Parametres!D$50,Parametres!E$50,""))))))) ->  | L104: =IF(A$2=Parametres!A$70,Parametres!G$40,IF(B104="","",J104+J104*K104)) ->  | M104: =IF(B104=0,"",IF(A$2=Parametres!A$68,Parametres!D$10,IF(A$2=Parametres!A$69,Parametres!F$9,IF(A$2=Parametres!A$70,Parametres!H$9,"")))) ->  | U104: =IF(O104="gratuit","",IF(B104=0,"",IF(A$2=Parametres!A$68,IF(T104<Parametres!C$21,0,IF(T104<Parametres!D$32,Parametres!E$32,IF(T104<Parametres!C$33,Parametres!E$33,IF(T104<Parametres!C$34,Parametres!E$34,Parametres!E$35)))), IF(A$2=Parametres!A$69,IF(T104<Parametres!E$21,0,IF(T104<Parametres!D$32,Parametres!E$32,IF(T104<Parametres!C$33,Parametres!E$33,IF(T104<Parametres!C$34,Parametres!E$34,Parametres!E$35)))), IF(A$2=Parametres!A$70,IF(T104<Parametres!G$21,0,IF(T104<Parametres!D$32,Parametres!E$32,IF(T104<Parametres!C$33,Parametres!E$33,IF(T104<Parametres!C$34,Parametres!E$34,Parametres!E$35))))))))) ->  | V104: =IF(B104=0,"",IF(A$2=Parametres!A$68,Parametres!D$10,IF(A$2=Parametres!A$69,Parametres!F$10,IF(A$2=Parametres!A$70,Parametres!H$10,"")))) ->  | Z104: =IF(B104=0,"",IF(A$2=Parametres!A$68,Parametres!D$20,IF(A$2=Parametres!A$69,Parametres!F$20,IF(A$2=Parametres!A$70,Parametres!H$20,"")))) ->  | AB104: =IF(A$2=Parametres!A$69,"",IF(B104=0,"",IF(N104>(W104+AA104),IF(N104<Parametres!D$28,"FORFAIT MINI","DEPENSES"),IF((W104+AA104)<Parametres!D$28,"FORFAIT MINI","RECETTES")))) ->  | AC104: =IF(A$2=Parametres!A$69,"",IF(B104=0,"",ROUND(IF(N104>(W104+AA104),IF(N104<Parametres!D$28,Parametres!D$28,N104),IF((W104+AA104)<Parametres!D$28,Parametres!D$28,(W104+AA104))),2))) ->  | AD104: =IF(A$2=Parametres!A$69,"",IF(B104=0,"",ROUND(AC104*Parametres!C$57,2))) ->  | AE104: =IF(A$2=Parametres!A$69,"",IF(B104=0,"",ROUND(AC104*Parametres!C$58,2))) ->  | AF104: =IF(A$2=Parametres!A$69,"",IF(B104=0,"",ROUND(AC104*Parametres!C$59,2))) ->  | AG104: =IF(A$2=Parametres!A$69,"",IF(B104=0,"",SUM(ROUND(AC104,2),ROUND(AD104,2),ROUND(AE104,2),ROUND(AF104,2)))) -> 
I105: =IF(F105=0,"",IF(A$2=Parametres!A$68,IF(G105="Oui",IF(H105="Oui",F105-F105*Parametres!C$41-(F105-F105*Parametres!C$41)*Parametres!C$42,IF(H105="Non",F105-F105*Parametres!C$41,"")),IF(G105="Non",IF(H105="Oui",F105-F105*Parametres!C$42,IF(H105="Non",F105,"")))),IF(A$2=Parametres!A$69,IF(G105="Oui",IF(H105="Oui",F105-F105*Parametres!C$41-(F105-F105*Parametres!C$41)*Parametres!C$42,IF(H105="Non",F105-F105*Parametres!E$41,"")),IF(G105="Non",IF(H105="Oui",F105-F105*Parametres!E$42,IF(H105="Non",F105,"")))),IF(A$2=Parametres!A$70,IF(G105="Oui",IF(H105="Oui",F105-F105*Parametres!C$41-(F105-F105*Parametres!C$41)*Parametres!C$42,IF(H105="Non",F105-F105*Parametres!G$41,"")),IF(G105="Non",IF(H105="Oui",F105-F105*Parametres!G$42,IF(H105="Non",F105,"")))),"")))) ->  | J105: =IF(B105=0,"",SUM(I101:I106)) ->  | K105: =IF(C105="","",IF(A$2=Parametres!A$70,Parametres!E$52,IF(A$2=Parametres!A$69,Parametres!E$51,IF(C105<=Parametres!D$47,Parametres!E$47,IF(C105<=Parametres!D$48,Parametres!E$48,IF(C105<=Parametres!D$49,Parametres!E$49,IF(C105>Parametres!D$50,Parametres!E$50,""))))))) ->  | L105: =IF(A$2=Parametres!A$70,Parametres!G$40,IF(B105="","",J105+J105*K105)) ->  | M105: =IF(B105=0,"",IF(A$2=Parametres!A$68,Parametres!D$10,IF(A$2=Parametres!A$69,Parametres!F$9,IF(A$2=Parametres!A$70,Parametres!H$9,"")))) ->  | U105: =IF(O105="gratuit","",IF(B105=0,"",IF(A$2=Parametres!A$68,IF(T105<Parametres!C$21,0,IF(T105<Parametres!D$32,Parametres!E$32,IF(T105<Parametres!C$33,Parametres!E$33,IF(T105<Parametres!C$34,Parametres!E$34,Parametres!E$35)))), IF(A$2=Parametres!A$69,IF(T105<Parametres!E$21,0,IF(T105<Parametres!D$32,Parametres!E$32,IF(T105<Parametres!C$33,Parametres!E$33,IF(T105<Parametres!C$34,Parametres!E$34,Parametres!E$35)))), IF(A$2=Parametres!A$70,IF(T105<Parametres!G$21,0,IF(T105<Parametres!D$32,Parametres!E$32,IF(T105<Parametres!C$33,Parametres!E$33,IF(T105<Parametres!C$34,Parametres!E$34,Parametres!E$35))))))))) ->  | V105: =IF(B105=0,"",IF(A$2=Parametres!A$68,Parametres!D$10,IF(A$2=Parametres!A$69,Parametres!F$10,IF(A$2=Parametres!A$70,Parametres!H$10,"")))) ->  | Z105: =IF(B105=0,"",IF(A$2=Parametres!A$68,Parametres!D$20,IF(A$2=Parametres!A$69,Parametres!F$20,IF(A$2=Parametres!A$70,Parametres!H$20,"")))) ->  | AB105: =IF(A$2=Parametres!A$69,"",IF(B105=0,"",IF(N105>(W105+AA105),IF(N105<Parametres!D$28,"FORFAIT MINI","DEPENSES"),IF((W105+AA105)<Parametres!D$28,"FORFAIT MINI","RECETTES")))) ->  | AC105: =IF(A$2=Parametres!A$69,"",IF(B105=0,"",ROUND(IF(N105>(W105+AA105),IF(N105<Parametres!D$28,Parametres!D$28,N105),IF((W105+AA105)<Parametres!D$28,Parametres!D$28,(W105+AA105))),2))) ->  | AD105: =IF(A$2=Parametres!A$69,"",IF(B105=0,"",ROUND(AC105*Parametres!C$57,2))) ->  | AE105: =IF(A$2=Parametres!A$69,"",IF(B105=0,"",ROUND(AC105*Parametres!C$58,2))) ->  | AF105: =IF(A$2=Parametres!A$69,"",IF(B105=0,"",ROUND(AC105*Parametres!C$59,2))) ->  | AG105: =IF(A$2=Parametres!A$69,"",IF(B105=0,"",SUM(ROUND(AC105,2),ROUND(AD105,2),ROUND(AE105,2),ROUND(AF105,2)))) -> 
I106: =IF(F106=0,"",IF(A$2=Parametres!A$68,IF(G106="Oui",IF(H106="Oui",F106-F106*Parametres!C$41-(F106-F106*Parametres!C$41)*Parametres!C$42,IF(H106="Non",F106-F106*Parametres!C$41,"")),IF(G106="Non",IF(H106="Oui",F106-F106*Parametres!C$42,IF(H106="Non",F106,"")))),IF(A$2=Parametres!A$69,IF(G106="Oui",IF(H106="Oui",F106-F106*Parametres!C$41-(F106-F106*Parametres!C$41)*Parametres!C$42,IF(H106="Non",F106-F106*Parametres!E$41,"")),IF(G106="Non",IF(H106="Oui",F106-F106*Parametres!E$42,IF(H106="Non",F106,"")))),IF(A$2=Parametres!A$70,IF(G106="Oui",IF(H106="Oui",F106-F106*Parametres!C$41-(F106-F106*Parametres!C$41)*Parametres!C$42,IF(H106="Non",F106-F106*Parametres!G$41,"")),IF(G106="Non",IF(H106="Oui",F106-F106*Parametres!G$42,IF(H106="Non",F106,"")))),"")))) ->  | J106: =IF(B106=0,"",SUM(I101:I106)) ->  | K106: =IF(C106="","",IF(A$2=Parametres!A$70,Parametres!E$52,IF(A$2=Parametres!A$69,Parametres!E$51,IF(C106<=Parametres!D$47,Parametres!E$47,IF(C106<=Parametres!D$48,Parametres!E$48,IF(C106<=Parametres!D$49,Parametres!E$49,IF(C106>Parametres!D$50,Parametres!E$50,""))))))) ->  | L106: =IF(A$2=Parametres!A$70,Parametres!G$40,IF(B106="","",J106+J106*K106)) ->  | M106: =IF(B106=0,"",IF(A$2=Parametres!A$68,Parametres!D$10,IF(A$2=Parametres!A$69,Parametres!F$9,IF(A$2=Parametres!A$70,Parametres!H$9,"")))) ->  | U106: =IF(O106="gratuit","",IF(B106=0,"",IF(A$2=Parametres!A$68,IF(T106<Parametres!C$21,0,IF(T106<Parametres!D$32,Parametres!E$32,IF(T106<Parametres!C$33,Parametres!E$33,IF(T106<Parametres!C$34,Parametres!E$34,Parametres!E$35)))), IF(A$2=Parametres!A$69,IF(T106<Parametres!E$21,0,IF(T106<Parametres!D$32,Parametres!E$32,IF(T106<Parametres!C$33,Parametres!E$33,IF(T106<Parametres!C$34,Parametres!E$34,Parametres!E$35)))), IF(A$2=Parametres!A$70,IF(T106<Parametres!G$21,0,IF(T106<Parametres!D$32,Parametres!E$32,IF(T106<Parametres!C$33,Parametres!E$33,IF(T106<Parametres!C$34,Parametres!E$34,Parametres!E$35))))))))) ->  | V106: =IF(B106=0,"",IF(A$2=Parametres!A$68,Parametres!D$10,IF(A$2=Parametres!A$69,Parametres!F$10,IF(A$2=Parametres!A$70,Parametres!H$10,"")))) ->  | Z106: =IF(B106=0,"",IF(A$2=Parametres!A$68,Parametres!D$20,IF(A$2=Parametres!A$69,Parametres!F$20,IF(A$2=Parametres!A$70,Parametres!H$20,"")))) ->  | AB106: =IF(A$2=Parametres!A$69,"",IF(B106=0,"",IF(N106>(W106+AA106),IF(N106<Parametres!D$28,"FORFAIT MINI","DEPENSES"),IF((W106+AA106)<Parametres!D$28,"FORFAIT MINI","RECETTES")))) ->  | AC106: =IF(A$2=Parametres!A$69,"",IF(B106=0,"",ROUND(IF(N106>(W106+AA106),IF(N106<Parametres!D$28,Parametres!D$28,N106),IF((W106+AA106)<Parametres!D$28,Parametres!D$28,(W106+AA106))),2))) ->  | AD106: =IF(A$2=Parametres!A$69,"",IF(B106=0,"",ROUND(AC106*Parametres!C$57,2))) ->  | AE106: =IF(A$2=Parametres!A$69,"",IF(B106=0,"",ROUND(AC106*Parametres!C$58,2))) ->  | AF106: =IF(A$2=Parametres!A$69,"",IF(B106=0,"",ROUND(AC106*Parametres!C$59,2))) ->  | AG106: =IF(A$2=Parametres!A$69,"",IF(B106=0,"",SUM(ROUND(AC106,2),ROUND(AD106,2),ROUND(AE106,2),ROUND(AF106,2)))) -> 
I108: =IF(F108=0,"",IF(A$2=Parametres!A$68,IF(G108="Oui",IF(H108="Oui",F108-F108*Parametres!C$41-(F108-F108*Parametres!C$41)*Parametres!C$42,IF(H108="Non",F108-F108*Parametres!C$41,"")),IF(G108="Non",IF(H108="Oui",F108-F108*Parametres!C$42,IF(H108="Non",F108,"")))),IF(A$2=Parametres!A$69,IF(G108="Oui",IF(H108="Oui",F108-F108*Parametres!C$41-(F108-F108*Parametres!C$41)*Parametres!C$42,IF(H108="Non",F108-F108*Parametres!E$41,"")),IF(G108="Non",IF(H108="Oui",F108-F108*Parametres!E$42,IF(H108="Non",F108,"")))),IF(A$2=Parametres!A$70,IF(G108="Oui",IF(H108="Oui",F108-F108*Parametres!C$41-(F108-F108*Parametres!C$41)*Parametres!C$42,IF(H108="Non",F108-F108*Parametres!G$41,"")),IF(G108="Non",IF(H108="Oui",F108-F108*Parametres!G$42,IF(H108="Non",F108,"")))),"")))) ->  | J108: =IF(B108=0,"",SUM(I108:I113)) ->  | K108: =IF(C108="","",IF(A$2=Parametres!A$70,Parametres!E$52,IF(A$2=Parametres!A$69,Parametres!E$51,IF(C108<=Parametres!D$47,Parametres!E$47,IF(C108<=Parametres!D$48,Parametres!E$48,IF(C108<=Parametres!D$49,Parametres!E$49,IF(C108>Parametres!D$50,Parametres!E$50,""))))))) ->  | L108: =IF(A$2=Parametres!A$70,Parametres!G$40,IF(B108="","",J108+J108*K108)) ->  | M108: =IF(B108=0,"",IF(A$2=Parametres!A$68,Parametres!D$10,IF(A$2=Parametres!A$69,Parametres!F$10,IF(A$2=Parametres!A$70,Parametres!H$10,"")))) ->  | N108: =IF(B108=0,"",M108*L108) ->  | O108: =IF(P108>0,"payant",IF(B108=0,"","gratuit")) ->  | Q108: =IF(B108=0,"",R108+S108) ->  | T108: =IF(O108="gratuit","",IF(Q108=0,0,IF(Q108="","",S108/R108))) ->  | U108: =IF(O108="gratuit","",IF(B108=0,"",IF(A$2=Parametres!A$68,IF(T108<Parametres!C$21,0,IF(T108<Parametres!D$32,Parametres!E$32,IF(T108<Parametres!C$33,Parametres!E$33,IF(T108<Parametres!C$34,Parametres!E$34,Parametres!E$35)))), IF(A$2=Parametres!A$69,IF(T108<Parametres!E$21,0,IF(T108<Parametres!D$32,Parametres!E$32,IF(T108<Parametres!C$33,Parametres!E$33,IF(T108<Parametres!C$34,Parametres!E$34,Parametres!E$35)))), IF(A$2=Parametres!A$70,IF(T108<Parametres!G$21,0,IF(T108<Parametres!D$32,Parametres!E$32,IF(T108<Parametres!C$33,Parametres!E$33,IF(T108<Parametres!C$34,Parametres!E$34,Parametres!E$35))))))))) ->  | V108: =IF(B108=0,"",IF(A$2=Parametres!A$68,Parametres!D$10,IF(A$2=Parametres!A$69,Parametres!F$10,IF(A$2=Parametres!A$70,Parametres!H$10,"")))) ->  | W108: =IF(B108=0,"",IF(O108="gratuit",P108*V108,P108*V108+(P108*V108)*U108)) ->  | Z108: =IF(B108=0,"",IF(A$2=Parametres!A$68,Parametres!D$20,IF(A$2=Parametres!A$69,Parametres!F$20,IF(A$2=Parametres!A$70,Parametres!H$20,"")))) ->  | AA108: =IF(B108=0,"",(X108+Y108)*Z108) ->  | AB108: =IF(A$2=Parametres!A$69,"",IF(B108=0,"",IF(N108>(W108+AA108),IF(N108<Parametres!D$28,"FORFAIT MINI","DEPENSES"),IF((W108+AA108)<Parametres!D$28,"FORFAIT MINI","RECETTES")))) ->  | AC108: =IF(A$2=Parametres!A$69,"",IF(B108=0,"",ROUND(IF(N108>(W108+AA108),IF(N108<Parametres!D$28,Parametres!D$28,N108),IF((W108+AA108)<Parametres!D$28,Parametres!D$28,(W108+AA108))),2))) ->  | AD108: =IF(A$2=Parametres!A$69,"",IF(B108=0,"",ROUND(AC108*Parametres!C$57,2))) ->  | AE108: =IF(A$2=Parametres!A$69,"",IF(B108=0,"",ROUND(AC108*Parametres!C$58,2))) ->  | AF108: =IF(A$2=Parametres!A$69,"",IF(B108=0,"",ROUND(AC108*Parametres!C$59,2))) ->  | AG108: =IF(A$2=Parametres!A$69,"",IF(B108=0,"",SUM(ROUND(AC108,2),ROUND(AD108,2),ROUND(AE108,2),ROUND(AF108,2)))) -> 
I109: =IF(F109=0,"",IF(A$2=Parametres!A$68,IF(G109="Oui",IF(H109="Oui",F109-F109*Parametres!C$41-(F109-F109*Parametres!C$41)*Parametres!C$42,IF(H109="Non",F109-F109*Parametres!C$41,"")),IF(G109="Non",IF(H109="Oui",F109-F109*Parametres!C$42,IF(H109="Non",F109,"")))),IF(A$2=Parametres!A$69,IF(G109="Oui",IF(H109="Oui",F109-F109*Parametres!C$41-(F109-F109*Parametres!C$41)*Parametres!C$42,IF(H109="Non",F109-F109*Parametres!E$41,"")),IF(G109="Non",IF(H109="Oui",F109-F109*Parametres!E$42,IF(H109="Non",F109,"")))),IF(A$2=Parametres!A$70,IF(G109="Oui",IF(H109="Oui",F109-F109*Parametres!C$41-(F109-F109*Parametres!C$41)*Parametres!C$42,IF(H109="Non",F109-F109*Parametres!G$41,"")),IF(G109="Non",IF(H109="Oui",F109-F109*Parametres!G$42,IF(H109="Non",F109,"")))),"")))) ->  | J109: =IF(B109=0,"",SUM(I108:I113)) ->  | K109: =IF(C109="","",IF(A$2=Parametres!A$70,Parametres!E$52,IF(A$2=Parametres!A$69,Parametres!E$51,IF(C109<=Parametres!D$47,Parametres!E$47,IF(C109<=Parametres!D$48,Parametres!E$48,IF(C109<=Parametres!D$49,Parametres!E$49,IF(C109>Parametres!D$50,Parametres!E$50,""))))))) ->  | L109: =IF(A$2=Parametres!A$70,Parametres!G$40,IF(B109="","",J109+J109*K109)) ->  | M109: =IF(B109=0,"",IF(A$2=Parametres!A$68,Parametres!D$10,IF(A$2=Parametres!A$69,Parametres!F$9,IF(A$2=Parametres!A$70,Parametres!H$9,"")))) ->  | T109: =IF(O109="gratuit","",IF(Q109=0,0,IF(Q109="","",S109/R109))) ->  | U109: =IF(O109="gratuit","",IF(B109=0,"",IF(A$2=Parametres!A$68,IF(T109<Parametres!C$21,0,IF(T109<Parametres!D$32,Parametres!E$32,IF(T109<Parametres!C$33,Parametres!E$33,IF(T109<Parametres!C$34,Parametres!E$34,Parametres!E$35)))), IF(A$2=Parametres!A$69,IF(T109<Parametres!E$21,0,IF(T109<Parametres!D$32,Parametres!E$32,IF(T109<Parametres!C$33,Parametres!E$33,IF(T109<Parametres!C$34,Parametres!E$34,Parametres!E$35)))), IF(A$2=Parametres!A$70,IF(T109<Parametres!G$21,0,IF(T109<Parametres!D$32,Parametres!E$32,IF(T109<Parametres!C$33,Parametres!E$33,IF(T109<Parametres!C$34,Parametres!E$34,Parametres!E$35))))))))) ->  | V109: =IF(B109=0,"",IF(A$2=Parametres!A$68,Parametres!D$10,IF(A$2=Parametres!A$69,Parametres!F$10,IF(A$2=Parametres!A$70,Parametres!H$10,"")))) ->  | W109: =IF(B109=0,"",IF(O109="gratuit",P109*V109,P109*V109+(P109*V109)*U109)) ->  | Z109: =IF(B109=0,"",IF(A$2=Parametres!A$68,Parametres!D$20,IF(A$2=Parametres!A$69,Parametres!F$20,IF(A$2=Parametres!A$70,Parametres!H$20,"")))) ->  | AB109: =IF(A$2=Parametres!A$69,"",IF(B109=0,"",IF(N109>(W109+AA109),IF(N109<Parametres!D$28,"FORFAIT MINI","DEPENSES"),IF((W109+AA109)<Parametres!D$28,"FORFAIT MINI","RECETTES")))) ->  | AC109: =IF(A$2=Parametres!A$69,"",IF(B109=0,"",ROUND(IF(N109>(W109+AA109),IF(N109<Parametres!D$28,Parametres!D$28,N109),IF((W109+AA109)<Parametres!D$28,Parametres!D$28,(W109+AA109))),2))) ->  | AD109: =IF(A$2=Parametres!A$69,"",IF(B109=0,"",ROUND(AC109*Parametres!C$57,2))) ->  | AE109: =IF(A$2=Parametres!A$69,"",IF(B109=0,"",ROUND(AC109*Parametres!C$58,2))) ->  | AF109: =IF(A$2=Parametres!A$69,"",IF(B109=0,"",ROUND(AC109*Parametres!C$59,2))) ->  | AG109: =IF(A$2=Parametres!A$69,"",IF(B109=0,"",SUM(ROUND(AC109,2),ROUND(AD109,2),ROUND(AE109,2),ROUND(AF109,2)))) -> 
I110: =IF(F110=0,"",IF(A$2=Parametres!A$68,IF(G110="Oui",IF(H110="Oui",F110-F110*Parametres!C$41-(F110-F110*Parametres!C$41)*Parametres!C$42,IF(H110="Non",F110-F110*Parametres!C$41,"")),IF(G110="Non",IF(H110="Oui",F110-F110*Parametres!C$42,IF(H110="Non",F110,"")))),IF(A$2=Parametres!A$69,IF(G110="Oui",IF(H110="Oui",F110-F110*Parametres!C$41-(F110-F110*Parametres!C$41)*Parametres!C$42,IF(H110="Non",F110-F110*Parametres!E$41,"")),IF(G110="Non",IF(H110="Oui",F110-F110*Parametres!E$42,IF(H110="Non",F110,"")))),IF(A$2=Parametres!A$70,IF(G110="Oui",IF(H110="Oui",F110-F110*Parametres!C$41-(F110-F110*Parametres!C$41)*Parametres!C$42,IF(H110="Non",F110-F110*Parametres!G$41,"")),IF(G110="Non",IF(H110="Oui",F110-F110*Parametres!G$42,IF(H110="Non",F110,"")))),"")))) ->  | J110: =IF(B110=0,"",(I108:I113)) ->  | K110: =IF(C110="","",IF(A$2=Parametres!A$70,Parametres!E$52,IF(A$2=Parametres!A$69,Parametres!E$51,IF(C110<=Parametres!D$47,Parametres!E$47,IF(C110<=Parametres!D$48,Parametres!E$48,IF(C110<=Parametres!D$49,Parametres!E$49,IF(C110>Parametres!D$50,Parametres!E$50,""))))))) ->  | L110: =IF(A$2=Parametres!A$70,Parametres!G$40,IF(B110="","",J110+J110*K110)) ->  | M110: =IF(B110=0,"",IF(A$2=Parametres!A$68,Parametres!D$10,IF(A$2=Parametres!A$69,Parametres!F$9,IF(A$2=Parametres!A$70,Parametres!H$9,"")))) ->  | U110: =IF(O110="gratuit","",IF(B110=0,"",IF(A$2=Parametres!A$68,IF(T110<Parametres!C$21,0,IF(T110<Parametres!D$32,Parametres!E$32,IF(T110<Parametres!C$33,Parametres!E$33,IF(T110<Parametres!C$34,Parametres!E$34,Parametres!E$35)))), IF(A$2=Parametres!A$69,IF(T110<Parametres!E$21,0,IF(T110<Parametres!D$32,Parametres!E$32,IF(T110<Parametres!C$33,Parametres!E$33,IF(T110<Parametres!C$34,Parametres!E$34,Parametres!E$35)))), IF(A$2=Parametres!A$70,IF(T110<Parametres!G$21,0,IF(T110<Parametres!D$32,Parametres!E$32,IF(T110<Parametres!C$33,Parametres!E$33,IF(T110<Parametres!C$34,Parametres!E$34,Parametres!E$35))))))))) ->  | V110: =IF(B110=0,"",IF(A$2=Parametres!A$68,Parametres!D$10,IF(A$2=Parametres!A$69,Parametres!F$10,IF(A$2=Parametres!A$70,Parametres!H$10,"")))) ->  | Z110: =IF(B110=0,"",IF(A$2=Parametres!A$68,Parametres!D$20,IF(A$2=Parametres!A$69,Parametres!F$20,IF(A$2=Parametres!A$70,Parametres!H$20,"")))) ->  | AB110: =IF(A$2=Parametres!A$69,"",IF(B110=0,"",IF(N110>(W110+AA110),IF(N110<Parametres!D$28,"FORFAIT MINI","DEPENSES"),IF((W110+AA110)<Parametres!D$28,"FORFAIT MINI","RECETTES")))) ->  | AC110: =IF(A$2=Parametres!A$69,"",IF(B110=0,"",ROUND(IF(N110>(W110+AA110),IF(N110<Parametres!D$28,Parametres!D$28,N110),IF((W110+AA110)<Parametres!D$28,Parametres!D$28,(W110+AA110))),2))) ->  | AD110: =IF(A$2=Parametres!A$69,"",IF(B110=0,"",ROUND(AC110*Parametres!C$57,2))) ->  | AE110: =IF(A$2=Parametres!A$69,"",IF(B110=0,"",ROUND(AC110*Parametres!C$58,2))) ->  | AF110: =IF(A$2=Parametres!A$69,"",IF(B110=0,"",ROUND(AC110*Parametres!C$59,2))) ->  | AG110: =IF(A$2=Parametres!A$69,"",IF(B110=0,"",SUM(ROUND(AC110,2),ROUND(AD110,2),ROUND(AE110,2),ROUND(AF110,2)))) -> 
I111: =IF(F111=0,"",IF(A$2=Parametres!A$68,IF(G111="Oui",IF(H111="Oui",F111-F111*Parametres!C$41-(F111-F111*Parametres!C$41)*Parametres!C$42,IF(H111="Non",F111-F111*Parametres!C$41,"")),IF(G111="Non",IF(H111="Oui",F111-F111*Parametres!C$42,IF(H111="Non",F111,"")))),IF(A$2=Parametres!A$69,IF(G111="Oui",IF(H111="Oui",F111-F111*Parametres!C$41-(F111-F111*Parametres!C$41)*Parametres!C$42,IF(H111="Non",F111-F111*Parametres!E$41,"")),IF(G111="Non",IF(H111="Oui",F111-F111*Parametres!E$42,IF(H111="Non",F111,"")))),IF(A$2=Parametres!A$70,IF(G111="Oui",IF(H111="Oui",F111-F111*Parametres!C$41-(F111-F111*Parametres!C$41)*Parametres!C$42,IF(H111="Non",F111-F111*Parametres!G$41,"")),IF(G111="Non",IF(H111="Oui",F111-F111*Parametres!G$42,IF(H111="Non",F111,"")))),"")))) ->  | J111: =IF(B111=0,"",SUM(I108:I113)) ->  | K111: =IF(C111="","",IF(A$2=Parametres!A$70,Parametres!E$52,IF(A$2=Parametres!A$69,Parametres!E$51,IF(C111<=Parametres!D$47,Parametres!E$47,IF(C111<=Parametres!D$48,Parametres!E$48,IF(C111<=Parametres!D$49,Parametres!E$49,IF(C111>Parametres!D$50,Parametres!E$50,""))))))) ->  | L111: =IF(A$2=Parametres!A$70,Parametres!G$40,IF(B111="","",J111+J111*K111)) ->  | M111: =IF(B111=0,"",IF(A$2=Parametres!A$68,Parametres!D$10,IF(A$2=Parametres!A$69,Parametres!F$9,IF(A$2=Parametres!A$70,Parametres!H$9,"")))) ->  | U111: =IF(O111="gratuit","",IF(B111=0,"",IF(A$2=Parametres!A$68,IF(T111<Parametres!C$21,0,IF(T111<Parametres!D$32,Parametres!E$32,IF(T111<Parametres!C$33,Parametres!E$33,IF(T111<Parametres!C$34,Parametres!E$34,Parametres!E$35)))), IF(A$2=Parametres!A$69,IF(T111<Parametres!E$21,0,IF(T111<Parametres!D$32,Parametres!E$32,IF(T111<Parametres!C$33,Parametres!E$33,IF(T111<Parametres!C$34,Parametres!E$34,Parametres!E$35)))), IF(A$2=Parametres!A$70,IF(T111<Parametres!G$21,0,IF(T111<Parametres!D$32,Parametres!E$32,IF(T111<Parametres!C$33,Parametres!E$33,IF(T111<Parametres!C$34,Parametres!E$34,Parametres!E$35))))))))) ->  | V111: =IF(B111=0,"",IF(A$2=Parametres!A$68,Parametres!D$10,IF(A$2=Parametres!A$69,Parametres!F$10,IF(A$2=Parametres!A$70,Parametres!H$10,"")))) ->  | Z111: =IF(B111=0,"",IF(A$2=Parametres!A$68,Parametres!D$20,IF(A$2=Parametres!A$69,Parametres!F$20,IF(A$2=Parametres!A$70,Parametres!H$20,"")))) ->  | AB111: =IF(A$2=Parametres!A$69,"",IF(B111=0,"",IF(N111>(W111+AA111),IF(N111<Parametres!D$28,"FORFAIT MINI","DEPENSES"),IF((W111+AA111)<Parametres!D$28,"FORFAIT MINI","RECETTES")))) ->  | AC111: =IF(A$2=Parametres!A$69,"",IF(B111=0,"",ROUND(IF(N111>(W111+AA111),IF(N111<Parametres!D$28,Parametres!D$28,N111),IF((W111+AA111)<Parametres!D$28,Parametres!D$28,(W111+AA111))),2))) ->  | AD111: =IF(A$2=Parametres!A$69,"",IF(B111=0,"",ROUND(AC111*Parametres!C$57,2))) ->  | AE111: =IF(A$2=Parametres!A$69,"",IF(B111=0,"",ROUND(AC111*Parametres!C$58,2))) ->  | AF111: =IF(A$2=Parametres!A$69,"",IF(B111=0,"",ROUND(AC111*Parametres!C$59,2))) ->  | AG111: =IF(A$2=Parametres!A$69,"",IF(B111=0,"",SUM(ROUND(AC111,2),ROUND(AD111,2),ROUND(AE111,2),ROUND(AF111,2)))) -> 
I112: =IF(F112=0,"",IF(A$2=Parametres!A$68,IF(G112="Oui",IF(H112="Oui",F112-F112*Parametres!C$41-(F112-F112*Parametres!C$41)*Parametres!C$42,IF(H112="Non",F112-F112*Parametres!C$41,"")),IF(G112="Non",IF(H112="Oui",F112-F112*Parametres!C$42,IF(H112="Non",F112,"")))),IF(A$2=Parametres!A$69,IF(G112="Oui",IF(H112="Oui",F112-F112*Parametres!C$41-(F112-F112*Parametres!C$41)*Parametres!C$42,IF(H112="Non",F112-F112*Parametres!E$41,"")),IF(G112="Non",IF(H112="Oui",F112-F112*Parametres!E$42,IF(H112="Non",F112,"")))),IF(A$2=Parametres!A$70,IF(G112="Oui",IF(H112="Oui",F112-F112*Parametres!C$41-(F112-F112*Parametres!C$41)*Parametres!C$42,IF(H112="Non",F112-F112*Parametres!G$41,"")),IF(G112="Non",IF(H112="Oui",F112-F112*Parametres!G$42,IF(H112="Non",F112,"")))),"")))) ->  | J112: =IF(B112=0,"",SUM(I108:I113)) ->  | K112: =IF(C112="","",IF(A$2=Parametres!A$70,Parametres!E$52,IF(A$2=Parametres!A$69,Parametres!E$51,IF(C112<=Parametres!D$47,Parametres!E$47,IF(C112<=Parametres!D$48,Parametres!E$48,IF(C112<=Parametres!D$49,Parametres!E$49,IF(C112>Parametres!D$50,Parametres!E$50,""))))))) ->  | L112: =IF(A$2=Parametres!A$70,Parametres!G$40,IF(B112="","",J112+J112*K112)) ->  | M112: =IF(B112=0,"",IF(A$2=Parametres!A$68,Parametres!D$10,IF(A$2=Parametres!A$69,Parametres!F$9,IF(A$2=Parametres!A$70,Parametres!H$9,"")))) ->  | U112: =IF(O112="gratuit","",IF(B112=0,"",IF(A$2=Parametres!A$68,IF(T112<Parametres!C$21,0,IF(T112<Parametres!D$32,Parametres!E$32,IF(T112<Parametres!C$33,Parametres!E$33,IF(T112<Parametres!C$34,Parametres!E$34,Parametres!E$35)))), IF(A$2=Parametres!A$69,IF(T112<Parametres!E$21,0,IF(T112<Parametres!D$32,Parametres!E$32,IF(T112<Parametres!C$33,Parametres!E$33,IF(T112<Parametres!C$34,Parametres!E$34,Parametres!E$35)))), IF(A$2=Parametres!A$70,IF(T112<Parametres!G$21,0,IF(T112<Parametres!D$32,Parametres!E$32,IF(T112<Parametres!C$33,Parametres!E$33,IF(T112<Parametres!C$34,Parametres!E$34,Parametres!E$35))))))))) ->  | V112: =IF(B112=0,"",IF(A$2=Parametres!A$68,Parametres!D$10,IF(A$2=Parametres!A$69,Parametres!F$10,IF(A$2=Parametres!A$70,Parametres!H$10,"")))) ->  | Z112: =IF(B112=0,"",IF(A$2=Parametres!A$68,Parametres!D$20,IF(A$2=Parametres!A$69,Parametres!F$20,IF(A$2=Parametres!A$70,Parametres!H$20,"")))) ->  | AB112: =IF(A$2=Parametres!A$69,"",IF(B112=0,"",IF(N112>(W112+AA112),IF(N112<Parametres!D$28,"FORFAIT MINI","DEPENSES"),IF((W112+AA112)<Parametres!D$28,"FORFAIT MINI","RECETTES")))) ->  | AC112: =IF(A$2=Parametres!A$69,"",IF(B112=0,"",ROUND(IF(N112>(W112+AA112),IF(N112<Parametres!D$28,Parametres!D$28,N112),IF((W112+AA112)<Parametres!D$28,Parametres!D$28,(W112+AA112))),2))) ->  | AD112: =IF(A$2=Parametres!A$69,"",IF(B112=0,"",ROUND(AC112*Parametres!C$57,2))) ->  | AE112: =IF(A$2=Parametres!A$69,"",IF(B112=0,"",ROUND(AC112*Parametres!C$58,2))) ->  | AF112: =IF(A$2=Parametres!A$69,"",IF(B112=0,"",ROUND(AC112*Parametres!C$59,2))) ->  | AG112: =IF(A$2=Parametres!A$69,"",IF(B112=0,"",SUM(ROUND(AC112,2),ROUND(AD112,2),ROUND(AE112,2),ROUND(AF112,2)))) -> 
I113: =IF(F113=0,"",IF(A$2=Parametres!A$68,IF(G113="Oui",IF(H113="Oui",F113-F113*Parametres!C$41-(F113-F113*Parametres!C$41)*Parametres!C$42,IF(H113="Non",F113-F113*Parametres!C$41,"")),IF(G113="Non",IF(H113="Oui",F113-F113*Parametres!C$42,IF(H113="Non",F113,"")))),IF(A$2=Parametres!A$69,IF(G113="Oui",IF(H113="Oui",F113-F113*Parametres!C$41-(F113-F113*Parametres!C$41)*Parametres!C$42,IF(H113="Non",F113-F113*Parametres!E$41,"")),IF(G113="Non",IF(H113="Oui",F113-F113*Parametres!E$42,IF(H113="Non",F113,"")))),IF(A$2=Parametres!A$70,IF(G113="Oui",IF(H113="Oui",F113-F113*Parametres!C$41-(F113-F113*Parametres!C$41)*Parametres!C$42,IF(H113="Non",F113-F113*Parametres!G$41,"")),IF(G113="Non",IF(H113="Oui",F113-F113*Parametres!G$42,IF(H113="Non",F113,"")))),"")))) ->  | J113: =IF(B113=0,"",SUM(I108:I113)) ->  | K113: =IF(C113="","",IF(A$2=Parametres!A$70,Parametres!E$52,IF(A$2=Parametres!A$69,Parametres!E$51,IF(C113<=Parametres!D$47,Parametres!E$47,IF(C113<=Parametres!D$48,Parametres!E$48,IF(C113<=Parametres!D$49,Parametres!E$49,IF(C113>Parametres!D$50,Parametres!E$50,""))))))) ->  | L113: =IF(A$2=Parametres!A$70,Parametres!G$40,IF(B113="","",J113+J113*K113)) ->  | M113: =IF(B113=0,"",IF(A$2=Parametres!A$68,Parametres!D$10,IF(A$2=Parametres!A$69,Parametres!F$9,IF(A$2=Parametres!A$70,Parametres!H$9,"")))) ->  | U113: =IF(O113="gratuit","",IF(B113=0,"",IF(A$2=Parametres!A$68,IF(T113<Parametres!C$21,0,IF(T113<Parametres!D$32,Parametres!E$32,IF(T113<Parametres!C$33,Parametres!E$33,IF(T113<Parametres!C$34,Parametres!E$34,Parametres!E$35)))), IF(A$2=Parametres!A$69,IF(T113<Parametres!E$21,0,IF(T113<Parametres!D$32,Parametres!E$32,IF(T113<Parametres!C$33,Parametres!E$33,IF(T113<Parametres!C$34,Parametres!E$34,Parametres!E$35)))), IF(A$2=Parametres!A$70,IF(T113<Parametres!G$21,0,IF(T113<Parametres!D$32,Parametres!E$32,IF(T113<Parametres!C$33,Parametres!E$33,IF(T113<Parametres!C$34,Parametres!E$34,Parametres!E$35))))))))) ->  | V113: =IF(B113=0,"",IF(A$2=Parametres!A$68,Parametres!D$10,IF(A$2=Parametres!A$69,Parametres!F$10,IF(A$2=Parametres!A$70,Parametres!H$10,"")))) ->  | Z113: =IF(B113=0,"",IF(A$2=Parametres!A$68,Parametres!D$20,IF(A$2=Parametres!A$69,Parametres!F$20,IF(A$2=Parametres!A$70,Parametres!H$20,"")))) ->  | AB113: =IF(A$2=Parametres!A$69,"",IF(B113=0,"",IF(N113>(W113+AA113),IF(N113<Parametres!D$28,"FORFAIT MINI","DEPENSES"),IF((W113+AA113)<Parametres!D$28,"FORFAIT MINI","RECETTES")))) ->  | AC113: =IF(A$2=Parametres!A$69,"",IF(B113=0,"",ROUND(IF(N113>(W113+AA113),IF(N113<Parametres!D$28,Parametres!D$28,N113),IF((W113+AA113)<Parametres!D$28,Parametres!D$28,(W113+AA113))),2))) ->  | AD113: =IF(A$2=Parametres!A$69,"",IF(B113=0,"",ROUND(AC113*Parametres!C$57,2))) ->  | AE113: =IF(A$2=Parametres!A$69,"",IF(B113=0,"",ROUND(AC113*Parametres!C$58,2))) ->  | AF113: =IF(A$2=Parametres!A$69,"",IF(B113=0,"",ROUND(AC113*Parametres!C$59,2))) ->  | AG113: =IF(A$2=Parametres!A$69,"",IF(B113=0,"",SUM(ROUND(AC113,2),ROUND(AD113,2),ROUND(AE113,2),ROUND(AF113,2)))) -> 
I115: =IF(F115=0,"",IF(A$2=Parametres!A$68,IF(G115="Oui",IF(H115="Oui",F115-F115*Parametres!C$41-(F115-F115*Parametres!C$41)*Parametres!C$42,IF(H115="Non",F115-F115*Parametres!C$41,"")),IF(G115="Non",IF(H115="Oui",F115-F115*Parametres!C$42,IF(H115="Non",F115,"")))),IF(A$2=Parametres!A$69,IF(G115="Oui",IF(H115="Oui",F115-F115*Parametres!C$41-(F115-F115*Parametres!C$41)*Parametres!C$42,IF(H115="Non",F115-F115*Parametres!E$41,"")),IF(G115="Non",IF(H115="Oui",F115-F115*Parametres!E$42,IF(H115="Non",F115,"")))),IF(A$2=Parametres!A$70,IF(G115="Oui",IF(H115="Oui",F115-F115*Parametres!C$41-(F115-F115*Parametres!C$41)*Parametres!C$42,IF(H115="Non",F115-F115*Parametres!G$41,"")),IF(G115="Non",IF(H115="Oui",F115-F115*Parametres!G$42,IF(H115="Non",F115,"")))),"")))) ->  | J115: =IF(B115=0,"",SUM(I115:I120)) ->  | K115: =IF(C115="","",IF(A$2=Parametres!A$70,Parametres!E$52,IF(A$2=Parametres!A$69,Parametres!E$51,IF(C115<=Parametres!D$47,Parametres!E$47,IF(C115<=Parametres!D$48,Parametres!E$48,IF(C115<=Parametres!D$49,Parametres!E$49,IF(C115>Parametres!D$50,Parametres!E$50,""))))))) ->  | L115: =IF(A$2=Parametres!A$70,Parametres!G$40,IF(B115="","",J115+J115*K115)) ->  | M115: =IF(B115=0,"",IF(A$2=Parametres!A$68,Parametres!D$10,IF(A$2=Parametres!A$69,Parametres!F$10,IF(A$2=Parametres!A$70,Parametres!H$10,"")))) ->  | N115: =IF(B115=0,"",M115*L115) ->  | O115: =IF(P115>0,"payant",IF(B115=0,"","gratuit")) ->  | Q115: =IF(B115=0,"",R115+S115) ->  | T115: =IF(O115="gratuit","",IF(Q115=0,0,IF(Q115="","",S115/R115))) ->  | U115: =IF(O115="gratuit","",IF(B115=0,"",IF(A$2=Parametres!A$68,IF(T115<Parametres!C$21,0,IF(T115<Parametres!D$32,Parametres!E$32,IF(T115<Parametres!C$33,Parametres!E$33,IF(T115<Parametres!C$34,Parametres!E$34,Parametres!E$35)))), IF(A$2=Parametres!A$69,IF(T115<Parametres!E$21,0,IF(T115<Parametres!D$32,Parametres!E$32,IF(T115<Parametres!C$33,Parametres!E$33,IF(T115<Parametres!C$34,Parametres!E$34,Parametres!E$35)))), IF(A$2=Parametres!A$70,IF(T115<Parametres!G$21,0,IF(T115<Parametres!D$32,Parametres!E$32,IF(T115<Parametres!C$33,Parametres!E$33,IF(T115<Parametres!C$34,Parametres!E$34,Parametres!E$35))))))))) ->  | V115: =IF(B115=0,"",IF(A$2=Parametres!A$68,Parametres!D$10,IF(A$2=Parametres!A$69,Parametres!F$10,IF(A$2=Parametres!A$70,Parametres!H$10,"")))) ->  | W115: =IF(B115=0,"",IF(O115="gratuit",P115*V115,P115*V115+(P115*V115)*U115)) ->  | Z115: =IF(B115=0,"",IF(A$2=Parametres!A$68,Parametres!D$20,IF(A$2=Parametres!A$69,Parametres!F$20,IF(A$2=Parametres!A$70,Parametres!H$20,"")))) ->  | AA115: =IF(B115=0,"",(X115+Y115)*Z115) ->  | AB115: =IF(A$2=Parametres!A$69,"",IF(B115=0,"",IF(N115>(W115+AA115),IF(N115<Parametres!D$28,"FORFAIT MINI","DEPENSES"),IF((W115+AA115)<Parametres!D$28,"FORFAIT MINI","RECETTES")))) ->  | AC115: =IF(A$2=Parametres!A$69,"",IF(B115=0,"",ROUND(IF(N115>(W115+AA115),IF(N115<Parametres!D$28,Parametres!D$28,N115),IF((W115+AA115)<Parametres!D$28,Parametres!D$28,(W115+AA115))),2))) ->  | AD115: =IF(A$2=Parametres!A$69,"",IF(B115=0,"",ROUND(AC115*Parametres!C$57,2))) ->  | AE115: =IF(A$2=Parametres!A$69,"",IF(B115=0,"",ROUND(AC115*Parametres!C$58,2))) ->  | AF115: =IF(A$2=Parametres!A$69,"",IF(B115=0,"",ROUND(AC115*Parametres!C$59,2))) ->  | AG115: =IF(A$2=Parametres!A$69,"",IF(B115=0,"",SUM(ROUND(AC115,2),ROUND(AD115,2),ROUND(AE115,2),ROUND(AF115,2)))) -> 
I116: =IF(F116=0,"",IF(A$2=Parametres!A$68,IF(G116="Oui",IF(H116="Oui",F116-F116*Parametres!C$41-(F116-F116*Parametres!C$41)*Parametres!C$42,IF(H116="Non",F116-F116*Parametres!C$41,"")),IF(G116="Non",IF(H116="Oui",F116-F116*Parametres!C$42,IF(H116="Non",F116,"")))),IF(A$2=Parametres!A$69,IF(G116="Oui",IF(H116="Oui",F116-F116*Parametres!C$41-(F116-F116*Parametres!C$41)*Parametres!C$42,IF(H116="Non",F116-F116*Parametres!E$41,"")),IF(G116="Non",IF(H116="Oui",F116-F116*Parametres!E$42,IF(H116="Non",F116,"")))),IF(A$2=Parametres!A$70,IF(G116="Oui",IF(H116="Oui",F116-F116*Parametres!C$41-(F116-F116*Parametres!C$41)*Parametres!C$42,IF(H116="Non",F116-F116*Parametres!G$41,"")),IF(G116="Non",IF(H116="Oui",F116-F116*Parametres!G$42,IF(H116="Non",F116,"")))),"")))) ->  | J116: =IF(B116=0,"",SUM(I115:I120)) ->  | K116: =IF(C116="","",IF(A$2=Parametres!A$70,Parametres!E$52,IF(A$2=Parametres!A$69,Parametres!E$51,IF(C116<=Parametres!D$47,Parametres!E$47,IF(C116<=Parametres!D$48,Parametres!E$48,IF(C116<=Parametres!D$49,Parametres!E$49,IF(C116>Parametres!D$50,Parametres!E$50,""))))))) ->  | L116: =IF(A$2=Parametres!A$70,Parametres!G$40,IF(B116="","",J116+J116*K116)) ->  | M116: =IF(B116=0,"",IF(A$2=Parametres!A$68,Parametres!D$10,IF(A$2=Parametres!A$69,Parametres!F$9,IF(A$2=Parametres!A$70,Parametres!H$9,"")))) ->  | T116: =IF(O116="gratuit","",IF(Q116=0,0,IF(Q116="","",S116/R116))) ->  | U116: =IF(O116="gratuit","",IF(B116=0,"",IF(A$2=Parametres!A$68,IF(T116<Parametres!C$21,0,IF(T116<Parametres!D$32,Parametres!E$32,IF(T116<Parametres!C$33,Parametres!E$33,IF(T116<Parametres!C$34,Parametres!E$34,Parametres!E$35)))), IF(A$2=Parametres!A$69,IF(T116<Parametres!E$21,0,IF(T116<Parametres!D$32,Parametres!E$32,IF(T116<Parametres!C$33,Parametres!E$33,IF(T116<Parametres!C$34,Parametres!E$34,Parametres!E$35)))), IF(A$2=Parametres!A$70,IF(T116<Parametres!G$21,0,IF(T116<Parametres!D$32,Parametres!E$32,IF(T116<Parametres!C$33,Parametres!E$33,IF(T116<Parametres!C$34,Parametres!E$34,Parametres!E$35))))))))) ->  | V116: =IF(B116=0,"",IF(A$2=Parametres!A$68,Parametres!D$10,IF(A$2=Parametres!A$69,Parametres!F$10,IF(A$2=Parametres!A$70,Parametres!H$10,"")))) ->  | W116: =IF(B116=0,"",IF(O116="gratuit",P116*V116,P116*V116+(P116*V116)*U116)) ->  | Z116: =IF(B116=0,"",IF(A$2=Parametres!A$68,Parametres!D$20,IF(A$2=Parametres!A$69,Parametres!F$20,IF(A$2=Parametres!A$70,Parametres!H$20,"")))) ->  | AB116: =IF(A$2=Parametres!A$69,"",IF(B116=0,"",IF(N116>(W116+AA116),IF(N116<Parametres!D$28,"FORFAIT MINI","DEPENSES"),IF((W116+AA116)<Parametres!D$28,"FORFAIT MINI","RECETTES")))) ->  | AC116: =IF(A$2=Parametres!A$69,"",IF(B116=0,"",ROUND(IF(N116>(W116+AA116),IF(N116<Parametres!D$28,Parametres!D$28,N116),IF((W116+AA116)<Parametres!D$28,Parametres!D$28,(W116+AA116))),2))) ->  | AD116: =IF(A$2=Parametres!A$69,"",IF(B116=0,"",ROUND(AC116*Parametres!C$57,2))) ->  | AE116: =IF(A$2=Parametres!A$69,"",IF(B116=0,"",ROUND(AC116*Parametres!C$58,2))) ->  | AF116: =IF(A$2=Parametres!A$69,"",IF(B116=0,"",ROUND(AC116*Parametres!C$59,2))) ->  | AG116: =IF(A$2=Parametres!A$69,"",IF(B116=0,"",SUM(ROUND(AC116,2),ROUND(AD116,2),ROUND(AE116,2),ROUND(AF116,2)))) -> 
I117: =IF(F117=0,"",IF(A$2=Parametres!A$68,IF(G117="Oui",IF(H117="Oui",F117-F117*Parametres!C$41-(F117-F117*Parametres!C$41)*Parametres!C$42,IF(H117="Non",F117-F117*Parametres!C$41,"")),IF(G117="Non",IF(H117="Oui",F117-F117*Parametres!C$42,IF(H117="Non",F117,"")))),IF(A$2=Parametres!A$69,IF(G117="Oui",IF(H117="Oui",F117-F117*Parametres!C$41-(F117-F117*Parametres!C$41)*Parametres!C$42,IF(H117="Non",F117-F117*Parametres!E$41,"")),IF(G117="Non",IF(H117="Oui",F117-F117*Parametres!E$42,IF(H117="Non",F117,"")))),IF(A$2=Parametres!A$70,IF(G117="Oui",IF(H117="Oui",F117-F117*Parametres!C$41-(F117-F117*Parametres!C$41)*Parametres!C$42,IF(H117="Non",F117-F117*Parametres!G$41,"")),IF(G117="Non",IF(H117="Oui",F117-F117*Parametres!G$42,IF(H117="Non",F117,"")))),"")))) ->  | J117: =IF(B117=0,"",(I115:I120)) ->  | K117: =IF(C117="","",IF(A$2=Parametres!A$70,Parametres!E$52,IF(A$2=Parametres!A$69,Parametres!E$51,IF(C117<=Parametres!D$47,Parametres!E$47,IF(C117<=Parametres!D$48,Parametres!E$48,IF(C117<=Parametres!D$49,Parametres!E$49,IF(C117>Parametres!D$50,Parametres!E$50,""))))))) ->  | L117: =IF(A$2=Parametres!A$70,Parametres!G$40,IF(B117="","",J117+J117*K117)) ->  | M117: =IF(B117=0,"",IF(A$2=Parametres!A$68,Parametres!D$10,IF(A$2=Parametres!A$69,Parametres!F$9,IF(A$2=Parametres!A$70,Parametres!H$9,"")))) ->  | U117: =IF(O117="gratuit","",IF(B117=0,"",IF(A$2=Parametres!A$68,IF(T117<Parametres!C$21,0,IF(T117<Parametres!D$32,Parametres!E$32,IF(T117<Parametres!C$33,Parametres!E$33,IF(T117<Parametres!C$34,Parametres!E$34,Parametres!E$35)))), IF(A$2=Parametres!A$69,IF(T117<Parametres!E$21,0,IF(T117<Parametres!D$32,Parametres!E$32,IF(T117<Parametres!C$33,Parametres!E$33,IF(T117<Parametres!C$34,Parametres!E$34,Parametres!E$35)))), IF(A$2=Parametres!A$70,IF(T117<Parametres!G$21,0,IF(T117<Parametres!D$32,Parametres!E$32,IF(T117<Parametres!C$33,Parametres!E$33,IF(T117<Parametres!C$34,Parametres!E$34,Parametres!E$35))))))))) ->  | V117: =IF(B117=0,"",IF(A$2=Parametres!A$68,Parametres!D$10,IF(A$2=Parametres!A$69,Parametres!F$10,IF(A$2=Parametres!A$70,Parametres!H$10,"")))) ->  | Z117: =IF(B117=0,"",IF(A$2=Parametres!A$68,Parametres!D$20,IF(A$2=Parametres!A$69,Parametres!F$20,IF(A$2=Parametres!A$70,Parametres!H$20,"")))) ->  | AB117: =IF(A$2=Parametres!A$69,"",IF(B117=0,"",IF(N117>(W117+AA117),IF(N117<Parametres!D$28,"FORFAIT MINI","DEPENSES"),IF((W117+AA117)<Parametres!D$28,"FORFAIT MINI","RECETTES")))) ->  | AC117: =IF(A$2=Parametres!A$69,"",IF(B117=0,"",ROUND(IF(N117>(W117+AA117),IF(N117<Parametres!D$28,Parametres!D$28,N117),IF((W117+AA117)<Parametres!D$28,Parametres!D$28,(W117+AA117))),2))) ->  | AD117: =IF(A$2=Parametres!A$69,"",IF(B117=0,"",ROUND(AC117*Parametres!C$57,2))) ->  | AE117: =IF(A$2=Parametres!A$69,"",IF(B117=0,"",ROUND(AC117*Parametres!C$58,2))) ->  | AF117: =IF(A$2=Parametres!A$69,"",IF(B117=0,"",ROUND(AC117*Parametres!C$59,2))) ->  | AG117: =IF(A$2=Parametres!A$69,"",IF(B117=0,"",SUM(ROUND(AC117,2),ROUND(AD117,2),ROUND(AE117,2),ROUND(AF117,2)))) -> 
I118: =IF(F118=0,"",IF(A$2=Parametres!A$68,IF(G118="Oui",IF(H118="Oui",F118-F118*Parametres!C$41-(F118-F118*Parametres!C$41)*Parametres!C$42,IF(H118="Non",F118-F118*Parametres!C$41,"")),IF(G118="Non",IF(H118="Oui",F118-F118*Parametres!C$42,IF(H118="Non",F118,"")))),IF(A$2=Parametres!A$69,IF(G118="Oui",IF(H118="Oui",F118-F118*Parametres!C$41-(F118-F118*Parametres!C$41)*Parametres!C$42,IF(H118="Non",F118-F118*Parametres!E$41,"")),IF(G118="Non",IF(H118="Oui",F118-F118*Parametres!E$42,IF(H118="Non",F118,"")))),IF(A$2=Parametres!A$70,IF(G118="Oui",IF(H118="Oui",F118-F118*Parametres!C$41-(F118-F118*Parametres!C$41)*Parametres!C$42,IF(H118="Non",F118-F118*Parametres!G$41,"")),IF(G118="Non",IF(H118="Oui",F118-F118*Parametres!G$42,IF(H118="Non",F118,"")))),"")))) ->  | J118: =IF(B118=0,"",SUM(I115:I120)) ->  | K118: =IF(C118="","",IF(A$2=Parametres!A$70,Parametres!E$52,IF(A$2=Parametres!A$69,Parametres!E$51,IF(C118<=Parametres!D$47,Parametres!E$47,IF(C118<=Parametres!D$48,Parametres!E$48,IF(C118<=Parametres!D$49,Parametres!E$49,IF(C118>Parametres!D$50,Parametres!E$50,""))))))) ->  | L118: =IF(A$2=Parametres!A$70,Parametres!G$40,IF(B118="","",J118+J118*K118)) ->  | M118: =IF(B118=0,"",IF(A$2=Parametres!A$68,Parametres!D$10,IF(A$2=Parametres!A$69,Parametres!F$9,IF(A$2=Parametres!A$70,Parametres!H$9,"")))) ->  | U118: =IF(O118="gratuit","",IF(B118=0,"",IF(A$2=Parametres!A$68,IF(T118<Parametres!C$21,0,IF(T118<Parametres!D$32,Parametres!E$32,IF(T118<Parametres!C$33,Parametres!E$33,IF(T118<Parametres!C$34,Parametres!E$34,Parametres!E$35)))), IF(A$2=Parametres!A$69,IF(T118<Parametres!E$21,0,IF(T118<Parametres!D$32,Parametres!E$32,IF(T118<Parametres!C$33,Parametres!E$33,IF(T118<Parametres!C$34,Parametres!E$34,Parametres!E$35)))), IF(A$2=Parametres!A$70,IF(T118<Parametres!G$21,0,IF(T118<Parametres!D$32,Parametres!E$32,IF(T118<Parametres!C$33,Parametres!E$33,IF(T118<Parametres!C$34,Parametres!E$34,Parametres!E$35))))))))) ->  | V118: =IF(B118=0,"",IF(A$2=Parametres!A$68,Parametres!D$10,IF(A$2=Parametres!A$69,Parametres!F$10,IF(A$2=Parametres!A$70,Parametres!H$10,"")))) ->  | Z118: =IF(B118=0,"",IF(A$2=Parametres!A$68,Parametres!D$20,IF(A$2=Parametres!A$69,Parametres!F$20,IF(A$2=Parametres!A$70,Parametres!H$20,"")))) ->  | AB118: =IF(A$2=Parametres!A$69,"",IF(B118=0,"",IF(N118>(W118+AA118),IF(N118<Parametres!D$28,"FORFAIT MINI","DEPENSES"),IF((W118+AA118)<Parametres!D$28,"FORFAIT MINI","RECETTES")))) ->  | AC118: =IF(A$2=Parametres!A$69,"",IF(B118=0,"",ROUND(IF(N118>(W118+AA118),IF(N118<Parametres!D$28,Parametres!D$28,N118),IF((W118+AA118)<Parametres!D$28,Parametres!D$28,(W118+AA118))),2))) ->  | AD118: =IF(A$2=Parametres!A$69,"",IF(B118=0,"",ROUND(AC118*Parametres!C$57,2))) ->  | AE118: =IF(A$2=Parametres!A$69,"",IF(B118=0,"",ROUND(AC118*Parametres!C$58,2))) ->  | AF118: =IF(A$2=Parametres!A$69,"",IF(B118=0,"",ROUND(AC118*Parametres!C$59,2))) ->  | AG118: =IF(A$2=Parametres!A$69,"",IF(B118=0,"",SUM(ROUND(AC118,2),ROUND(AD118,2),ROUND(AE118,2),ROUND(AF118,2)))) -> 
I119: =IF(F119=0,"",IF(A$2=Parametres!A$68,IF(G119="Oui",IF(H119="Oui",F119-F119*Parametres!C$41-(F119-F119*Parametres!C$41)*Parametres!C$42,IF(H119="Non",F119-F119*Parametres!C$41,"")),IF(G119="Non",IF(H119="Oui",F119-F119*Parametres!C$42,IF(H119="Non",F119,"")))),IF(A$2=Parametres!A$69,IF(G119="Oui",IF(H119="Oui",F119-F119*Parametres!C$41-(F119-F119*Parametres!C$41)*Parametres!C$42,IF(H119="Non",F119-F119*Parametres!E$41,"")),IF(G119="Non",IF(H119="Oui",F119-F119*Parametres!E$42,IF(H119="Non",F119,"")))),IF(A$2=Parametres!A$70,IF(G119="Oui",IF(H119="Oui",F119-F119*Parametres!C$41-(F119-F119*Parametres!C$41)*Parametres!C$42,IF(H119="Non",F119-F119*Parametres!G$41,"")),IF(G119="Non",IF(H119="Oui",F119-F119*Parametres!G$42,IF(H119="Non",F119,"")))),"")))) ->  | J119: =IF(B119=0,"",SUM(I115:I120)) ->  | K119: =IF(C119="","",IF(A$2=Parametres!A$70,Parametres!E$52,IF(A$2=Parametres!A$69,Parametres!E$51,IF(C119<=Parametres!D$47,Parametres!E$47,IF(C119<=Parametres!D$48,Parametres!E$48,IF(C119<=Parametres!D$49,Parametres!E$49,IF(C119>Parametres!D$50,Parametres!E$50,""))))))) ->  | L119: =IF(A$2=Parametres!A$70,Parametres!G$40,IF(B119="","",J119+J119*K119)) ->  | M119: =IF(B119=0,"",IF(A$2=Parametres!A$68,Parametres!D$10,IF(A$2=Parametres!A$69,Parametres!F$9,IF(A$2=Parametres!A$70,Parametres!H$9,"")))) ->  | U119: =IF(O119="gratuit","",IF(B119=0,"",IF(A$2=Parametres!A$68,IF(T119<Parametres!C$21,0,IF(T119<Parametres!D$32,Parametres!E$32,IF(T119<Parametres!C$33,Parametres!E$33,IF(T119<Parametres!C$34,Parametres!E$34,Parametres!E$35)))), IF(A$2=Parametres!A$69,IF(T119<Parametres!E$21,0,IF(T119<Parametres!D$32,Parametres!E$32,IF(T119<Parametres!C$33,Parametres!E$33,IF(T119<Parametres!C$34,Parametres!E$34,Parametres!E$35)))), IF(A$2=Parametres!A$70,IF(T119<Parametres!G$21,0,IF(T119<Parametres!D$32,Parametres!E$32,IF(T119<Parametres!C$33,Parametres!E$33,IF(T119<Parametres!C$34,Parametres!E$34,Parametres!E$35))))))))) ->  | V119: =IF(B119=0,"",IF(A$2=Parametres!A$68,Parametres!D$10,IF(A$2=Parametres!A$69,Parametres!F$10,IF(A$2=Parametres!A$70,Parametres!H$10,"")))) ->  | Z119: =IF(B119=0,"",IF(A$2=Parametres!A$68,Parametres!D$20,IF(A$2=Parametres!A$69,Parametres!F$20,IF(A$2=Parametres!A$70,Parametres!H$20,"")))) ->  | AB119: =IF(A$2=Parametres!A$69,"",IF(B119=0,"",IF(N119>(W119+AA119),IF(N119<Parametres!D$28,"FORFAIT MINI","DEPENSES"),IF((W119+AA119)<Parametres!D$28,"FORFAIT MINI","RECETTES")))) ->  | AC119: =IF(A$2=Parametres!A$69,"",IF(B119=0,"",ROUND(IF(N119>(W119+AA119),IF(N119<Parametres!D$28,Parametres!D$28,N119),IF((W119+AA119)<Parametres!D$28,Parametres!D$28,(W119+AA119))),2))) ->  | AD119: =IF(A$2=Parametres!A$69,"",IF(B119=0,"",ROUND(AC119*Parametres!C$57,2))) ->  | AE119: =IF(A$2=Parametres!A$69,"",IF(B119=0,"",ROUND(AC119*Parametres!C$58,2))) ->  | AF119: =IF(A$2=Parametres!A$69,"",IF(B119=0,"",ROUND(AC119*Parametres!C$59,2))) ->  | AG119: =IF(A$2=Parametres!A$69,"",IF(B119=0,"",SUM(ROUND(AC119,2),ROUND(AD119,2),ROUND(AE119,2),ROUND(AF119,2)))) -> 
I120: =IF(F120=0,"",IF(A$2=Parametres!A$68,IF(G120="Oui",IF(H120="Oui",F120-F120*Parametres!C$41-(F120-F120*Parametres!C$41)*Parametres!C$42,IF(H120="Non",F120-F120*Parametres!C$41,"")),IF(G120="Non",IF(H120="Oui",F120-F120*Parametres!C$42,IF(H120="Non",F120,"")))),IF(A$2=Parametres!A$69,IF(G120="Oui",IF(H120="Oui",F120-F120*Parametres!C$41-(F120-F120*Parametres!C$41)*Parametres!C$42,IF(H120="Non",F120-F120*Parametres!E$41,"")),IF(G120="Non",IF(H120="Oui",F120-F120*Parametres!E$42,IF(H120="Non",F120,"")))),IF(A$2=Parametres!A$70,IF(G120="Oui",IF(H120="Oui",F120-F120*Parametres!C$41-(F120-F120*Parametres!C$41)*Parametres!C$42,IF(H120="Non",F120-F120*Parametres!G$41,"")),IF(G120="Non",IF(H120="Oui",F120-F120*Parametres!G$42,IF(H120="Non",F120,"")))),"")))) ->  | J120: =IF(B120=0,"",SUM(I115:I120)) ->  | K120: =IF(C120="","",IF(A$2=Parametres!A$70,Parametres!E$52,IF(A$2=Parametres!A$69,Parametres!E$51,IF(C120<=Parametres!D$47,Parametres!E$47,IF(C120<=Parametres!D$48,Parametres!E$48,IF(C120<=Parametres!D$49,Parametres!E$49,IF(C120>Parametres!D$50,Parametres!E$50,""))))))) ->  | L120: =IF(A$2=Parametres!A$70,Parametres!G$40,IF(B120="","",J120+J120*K120)) ->  | M120: =IF(B120=0,"",IF(A$2=Parametres!A$68,Parametres!D$10,IF(A$2=Parametres!A$69,Parametres!F$9,IF(A$2=Parametres!A$70,Parametres!H$9,"")))) ->  | U120: =IF(O120="gratuit","",IF(B120=0,"",IF(A$2=Parametres!A$68,IF(T120<Parametres!C$21,0,IF(T120<Parametres!D$32,Parametres!E$32,IF(T120<Parametres!C$33,Parametres!E$33,IF(T120<Parametres!C$34,Parametres!E$34,Parametres!E$35)))), IF(A$2=Parametres!A$69,IF(T120<Parametres!E$21,0,IF(T120<Parametres!D$32,Parametres!E$32,IF(T120<Parametres!C$33,Parametres!E$33,IF(T120<Parametres!C$34,Parametres!E$34,Parametres!E$35)))), IF(A$2=Parametres!A$70,IF(T120<Parametres!G$21,0,IF(T120<Parametres!D$32,Parametres!E$32,IF(T120<Parametres!C$33,Parametres!E$33,IF(T120<Parametres!C$34,Parametres!E$34,Parametres!E$35))))))))) ->  | V120: =IF(B120=0,"",IF(A$2=Parametres!A$68,Parametres!D$10,IF(A$2=Parametres!A$69,Parametres!F$10,IF(A$2=Parametres!A$70,Parametres!H$10,"")))) ->  | Z120: =IF(B120=0,"",IF(A$2=Parametres!A$68,Parametres!D$20,IF(A$2=Parametres!A$69,Parametres!F$20,IF(A$2=Parametres!A$70,Parametres!H$20,"")))) ->  | AB120: =IF(A$2=Parametres!A$69,"",IF(B120=0,"",IF(N120>(W120+AA120),IF(N120<Parametres!D$28,"FORFAIT MINI","DEPENSES"),IF((W120+AA120)<Parametres!D$28,"FORFAIT MINI","RECETTES")))) ->  | AC120: =IF(A$2=Parametres!A$69,"",IF(B120=0,"",ROUND(IF(N120>(W120+AA120),IF(N120<Parametres!D$28,Parametres!D$28,N120),IF((W120+AA120)<Parametres!D$28,Parametres!D$28,(W120+AA120))),2))) ->  | AD120: =IF(A$2=Parametres!A$69,"",IF(B120=0,"",ROUND(AC120*Parametres!C$57,2))) ->  | AE120: =IF(A$2=Parametres!A$69,"",IF(B120=0,"",ROUND(AC120*Parametres!C$58,2))) ->  | AF120: =IF(A$2=Parametres!A$69,"",IF(B120=0,"",ROUND(AC120*Parametres!C$59,2))) ->  | AG120: =IF(A$2=Parametres!A$69,"",IF(B120=0,"",SUM(ROUND(AC120,2),ROUND(AD120,2),ROUND(AE120,2),ROUND(AF120,2)))) -> 
I122: =IF(F122=0,"",IF(A$2=Parametres!A$68,IF(G122="Oui",IF(H122="Oui",F122-F122*Parametres!C$41-(F122-F122*Parametres!C$41)*Parametres!C$42,IF(H122="Non",F122-F122*Parametres!C$41,"")),IF(G122="Non",IF(H122="Oui",F122-F122*Parametres!C$42,IF(H122="Non",F122,"")))),IF(A$2=Parametres!A$69,IF(G122="Oui",IF(H122="Oui",F122-F122*Parametres!C$41-(F122-F122*Parametres!C$41)*Parametres!C$42,IF(H122="Non",F122-F122*Parametres!E$41,"")),IF(G122="Non",IF(H122="Oui",F122-F122*Parametres!E$42,IF(H122="Non",F122,"")))),IF(A$2=Parametres!A$70,IF(G122="Oui",IF(H122="Oui",F122-F122*Parametres!C$41-(F122-F122*Parametres!C$41)*Parametres!C$42,IF(H122="Non",F122-F122*Parametres!G$41,"")),IF(G122="Non",IF(H122="Oui",F122-F122*Parametres!G$42,IF(H122="Non",F122,"")))),"")))) ->  | J122: =IF(B122=0,"",SUM(I122:I127)) ->  | K122: =IF(C122="","",IF(A$2=Parametres!A$70,Parametres!E$52,IF(A$2=Parametres!A$69,Parametres!E$51,IF(C122<=Parametres!D$47,Parametres!E$47,IF(C122<=Parametres!D$48,Parametres!E$48,IF(C122<=Parametres!D$49,Parametres!E$49,IF(C122>Parametres!D$50,Parametres!E$50,""))))))) ->  | L122: =IF(A$2=Parametres!A$70,Parametres!G$40,IF(B122="","",J122+J122*K122)) ->  | M122: =IF(B122=0,"",IF(A$2=Parametres!A$68,Parametres!D$10,IF(A$2=Parametres!A$69,Parametres!F$10,IF(A$2=Parametres!A$70,Parametres!H$10,"")))) ->  | N122: =IF(B122=0,"",M122*L122) ->  | O122: =IF(P122>0,"payant",IF(B122=0,"","gratuit")) ->  | Q122: =IF(B122=0,"",R122+S122) ->  | T122: =IF(O122="gratuit","",IF(Q122=0,0,IF(Q122="","",S122/R122))) ->  | U122: =IF(O122="gratuit","",IF(B122=0,"",IF(A$2=Parametres!A$68,IF(T122<Parametres!C$21,0,IF(T122<Parametres!D$32,Parametres!E$32,IF(T122<Parametres!C$33,Parametres!E$33,IF(T122<Parametres!C$34,Parametres!E$34,Parametres!E$35)))), IF(A$2=Parametres!A$69,IF(T122<Parametres!E$21,0,IF(T122<Parametres!D$32,Parametres!E$32,IF(T122<Parametres!C$33,Parametres!E$33,IF(T122<Parametres!C$34,Parametres!E$34,Parametres!E$35)))), IF(A$2=Parametres!A$70,IF(T122<Parametres!G$21,0,IF(T122<Parametres!D$32,Parametres!E$32,IF(T122<Parametres!C$33,Parametres!E$33,IF(T122<Parametres!C$34,Parametres!E$34,Parametres!E$35))))))))) ->  | V122: =IF(B122=0,"",IF(A$2=Parametres!A$68,Parametres!D$10,IF(A$2=Parametres!A$69,Parametres!F$10,IF(A$2=Parametres!A$70,Parametres!H$10,"")))) ->  | W122: =IF(B122=0,"",IF(O122="gratuit",P122*V122,P122*V122+(P122*V122)*U122)) ->  | Z122: =IF(B122=0,"",IF(A$2=Parametres!A$68,Parametres!D$20,IF(A$2=Parametres!A$69,Parametres!F$20,IF(A$2=Parametres!A$70,Parametres!H$20,"")))) ->  | AA122: =IF(B122=0,"",(X122+Y122)*Z122) ->  | AB122: =IF(A$2=Parametres!A$69,"",IF(B122=0,"",IF(N122>(W122+AA122),IF(N122<Parametres!D$28,"FORFAIT MINI","DEPENSES"),IF((W122+AA122)<Parametres!D$28,"FORFAIT MINI","RECETTES")))) ->  | AC122: =IF(A$2=Parametres!A$69,"",IF(B122=0,"",ROUND(IF(N122>(W122+AA122),IF(N122<Parametres!D$28,Parametres!D$28,N122),IF((W122+AA122)<Parametres!D$28,Parametres!D$28,(W122+AA122))),2))) ->  | AD122: =IF(A$2=Parametres!A$69,"",IF(B122=0,"",ROUND(AC122*Parametres!C$57,2))) ->  | AE122: =IF(A$2=Parametres!A$69,"",IF(B122=0,"",ROUND(AC122*Parametres!C$58,2))) ->  | AF122: =IF(A$2=Parametres!A$69,"",IF(B122=0,"",ROUND(AC122*Parametres!C$59,2))) ->  | AG122: =IF(A$2=Parametres!A$69,"",IF(B122=0,"",SUM(ROUND(AC122,2),ROUND(AD122,2),ROUND(AE122,2),ROUND(AF122,2)))) -> 
I123: =IF(F123=0,"",IF(A$2=Parametres!A$68,IF(G123="Oui",IF(H123="Oui",F123-F123*Parametres!C$41-(F123-F123*Parametres!C$41)*Parametres!C$42,IF(H123="Non",F123-F123*Parametres!C$41,"")),IF(G123="Non",IF(H123="Oui",F123-F123*Parametres!C$42,IF(H123="Non",F123,"")))),IF(A$2=Parametres!A$69,IF(G123="Oui",IF(H123="Oui",F123-F123*Parametres!C$41-(F123-F123*Parametres!C$41)*Parametres!C$42,IF(H123="Non",F123-F123*Parametres!E$41,"")),IF(G123="Non",IF(H123="Oui",F123-F123*Parametres!E$42,IF(H123="Non",F123,"")))),IF(A$2=Parametres!A$70,IF(G123="Oui",IF(H123="Oui",F123-F123*Parametres!C$41-(F123-F123*Parametres!C$41)*Parametres!C$42,IF(H123="Non",F123-F123*Parametres!G$41,"")),IF(G123="Non",IF(H123="Oui",F123-F123*Parametres!G$42,IF(H123="Non",F123,"")))),"")))) ->  | J123: =IF(B123=0,"",SUM(I122:I127)) ->  | K123: =IF(C123="","",IF(A$2=Parametres!A$70,Parametres!E$52,IF(A$2=Parametres!A$69,Parametres!E$51,IF(C123<=Parametres!D$47,Parametres!E$47,IF(C123<=Parametres!D$48,Parametres!E$48,IF(C123<=Parametres!D$49,Parametres!E$49,IF(C123>Parametres!D$50,Parametres!E$50,""))))))) ->  | L123: =IF(A$2=Parametres!A$70,Parametres!G$40,IF(B123="","",J123+J123*K123)) ->  | M123: =IF(B123=0,"",IF(A$2=Parametres!A$68,Parametres!D$10,IF(A$2=Parametres!A$69,Parametres!F$9,IF(A$2=Parametres!A$70,Parametres!H$9,"")))) ->  | T123: =IF(O123="gratuit","",IF(Q123=0,0,IF(Q123="","",S123/R123))) ->  | U123: =IF(O123="gratuit","",IF(B123=0,"",IF(A$2=Parametres!A$68,IF(T123<Parametres!C$21,0,IF(T123<Parametres!D$32,Parametres!E$32,IF(T123<Parametres!C$33,Parametres!E$33,IF(T123<Parametres!C$34,Parametres!E$34,Parametres!E$35)))), IF(A$2=Parametres!A$69,IF(T123<Parametres!E$21,0,IF(T123<Parametres!D$32,Parametres!E$32,IF(T123<Parametres!C$33,Parametres!E$33,IF(T123<Parametres!C$34,Parametres!E$34,Parametres!E$35)))), IF(A$2=Parametres!A$70,IF(T123<Parametres!G$21,0,IF(T123<Parametres!D$32,Parametres!E$32,IF(T123<Parametres!C$33,Parametres!E$33,IF(T123<Parametres!C$34,Parametres!E$34,Parametres!E$35))))))))) ->  | V123: =IF(B123=0,"",IF(A$2=Parametres!A$68,Parametres!D$10,IF(A$2=Parametres!A$69,Parametres!F$10,IF(A$2=Parametres!A$70,Parametres!H$10,"")))) ->  | W123: =IF(B123=0,"",IF(O123="gratuit",P123*V123,P123*V123+(P123*V123)*U123)) ->  | Z123: =IF(B123=0,"",IF(A$2=Parametres!A$68,Parametres!D$20,IF(A$2=Parametres!A$69,Parametres!F$20,IF(A$2=Parametres!A$70,Parametres!H$20,"")))) ->  | AB123: =IF(A$2=Parametres!A$69,"",IF(B123=0,"",IF(N123>(W123+AA123),IF(N123<Parametres!D$28,"FORFAIT MINI","DEPENSES"),IF((W123+AA123)<Parametres!D$28,"FORFAIT MINI","RECETTES")))) ->  | AC123: =IF(A$2=Parametres!A$69,"",IF(B123=0,"",ROUND(IF(N123>(W123+AA123),IF(N123<Parametres!D$28,Parametres!D$28,N123),IF((W123+AA123)<Parametres!D$28,Parametres!D$28,(W123+AA123))),2))) ->  | AD123: =IF(A$2=Parametres!A$69,"",IF(B123=0,"",ROUND(AC123*Parametres!C$57,2))) ->  | AE123: =IF(A$2=Parametres!A$69,"",IF(B123=0,"",ROUND(AC123*Parametres!C$58,2))) ->  | AF123: =IF(A$2=Parametres!A$69,"",IF(B123=0,"",ROUND(AC123*Parametres!C$59,2))) ->  | AG123: =IF(A$2=Parametres!A$69,"",IF(B123=0,"",SUM(ROUND(AC123,2),ROUND(AD123,2),ROUND(AE123,2),ROUND(AF123,2)))) -> 
